Workbook

Sheet Contents
B1: REGULATORY REPORTING STATEMENT
B2: =TradingName -> Powercor Australia Ltd
B3: =CONCATENATE("Category Analysis RIN response ",CRY) -> Category Analysis RIN response 2014
B4: CONTENTS
E7: 1. Business details | L7: 2. Expenditure
E27: 4. Alternative control services | L27: 5. Network information | S27: 6. Service & quality

Sheet 1.0 Business & other details
B1: =Title -> REGULATORY REPORTING STATEMENT
B2: =TradingName -> Powercor Australia Ltd
B3: =CONCATENATE("Category Analysis RIN response ",CRY) -> Category Analysis RIN response 2014
B4: 1.0 BUSINESS & OTHER DETAILS
B7: Instructions
B8: Complete the following business details regulatory template before entering data or values in any other regulatory template. This regulatory template is linked to other cells within the spreadsheet and automatically generates column headings.
B10: Table 1.1 - Submission particulars input sheet
B12: Entity details
B14: Trading name | C14: Powercor Australia Ltd
B15: ACN / ABN | C15: 64651109
B18: Business address | C18: Address 1 | E18: 40 Market Street
D19: Address 2
C20: Suburb | E20: Melbourne
D21: State | E21: Vic | F21: p/code | G21: 3000
B23: Postal address | C23: Address 1 | E23: Locked Bag 14090
D24: Address 2
C25: Suburb | E25: Melbourne
D26: State | E26: Vic | F26: p/code | G26: 8001
B29: Contact name/s | C29: Hannah Williams
B30: Contact phone/s | C30: 03 9683 4088
B31: Contact email address/s | C31: hwilliams@powercor.com.au
B34: Regulatory year | C34: Calendar | M34: 2009 | N34: 2010 | O34: 2011 | P34: 2012 | Q34: 2013
C35: 2014 | M35: 2008/09 | N35: 2009/10 | O35: 2010/11 | P35: 2011/12 | Q35: 2012/13
B44: Sector | C44: Electricity
B45: Segment | C45: Distribution
B46: Source | C46: Reporting
B47: Regulatory year ending | C47: 2014
B48: Reporting period type | C48: Financial
B49: RIN Type | C49: CA
B50: Security classification | C50: Public
B51: Estimated, Actual, Consolidated, Consolidated Public | C51: Consolidated Public
B52: RIN response - version no. | C52: 1
B53: RIN response - amendment reason | C53: <If resubmitting, NSP to provide amendment reason>
B54: RIN template - version no. | C54: 2

Sheet 2.1 Expenditure summary
B1: =Title -> REGULATORY REPORTING STATEMENT
B2: =TradingName -> Powercor Australia Ltd
B3: =CONCATENATE("Category Analysis RIN response ",CRY) -> Category Analysis RIN response 2014
B4: 2.1 EXPENDITURE SUMMARY & RECONCILIATION
B11: TABLE 2.1.1 - STANDARD CONTROL SERVICES CAPEX
C14: Actual ($000's)
C15: =CRY -> 2014
A16: ED_EXP211_00001 | B16: Replacement expenditure | C16: =SUM('2.2 Repex'!D11:D113,'2.2 Repex'!D123:D140) -> 91583.74699
A17: ED_EXP211_00002 | B17: Connections | C17: =SUM('2.5 Connections'!H14:H27)+'4.4 Quoted services.'!D11 -> 87475.08
A18: ED_EXP211_00003 | B18: Augmentation Expenditure | C18: =SUM('2.3 Augex'!M172:M180) -> 53390.44521
A19: ED_EXP211_00004 | B19: Non-network | C19: =SUM('2.6 Non-network'!E15,'2.6 Non-network'!E17,'2.6 Non-network'!E19,'2.6 Non-network'!E21,'2.6 Non-network'!E23,'2.6 Non-network'!E25,'2.6 Non-network'!E27,'2.6 Non-network'!E29,'2.6 Non-network'!E31,'2.6 Non-network'!E33,'2.6 Non-network'!E35,'2.6 Non-network'!E37) -> 48314.79918
A20: ED_EXP211_00005 | B20: capitalised network overheads | C20: =SUM('2.10 Overheads'!E71:E82) -> 33844.85387
A21: ED_EXP211_00006 | B21: capitalised corporate overheads | C21: =SUM('2.10 Overheads'!E154:E166) -> 33473.65117
A22: ED_EXP211_00007 | B22: Metering | C22: 0
A23: ED_EXP211_00008 | B23: Public Lighting | C23: 0
A24: ED_EXP211_00002
A25: ED_EXP211_00003
A26: ED_EXP211_00004
A27: ED_EXP211_00005
A28: ED_EXP211_00006
A29: ED_EXP211_00007
A30: ED_EXP211_00008
A31: ED_EXP211_00009 | B31: balancing item
B32: TOTAL GROSS CAPEX (includes capcons) | C32: =+SUM(C16:C31) -> 348082.5764
A33: ED_EXP211_00011 | B33: capcons | C33: 15845.16962
B35: TABLE 2.1.2 - STANDARD CONTROL SERVICES OPEX
C38: Actual ($000's)
C39: =CRY -> 2014
A40: ED_EXP212_00001 | B40: Vegetation management | C40: =SUM('2.7 Vegetation management'!P11:P172) -> 36044.9
A41: ED_EXP212_00002 | B41: Maintenance | C41: =SUM('2.8 Maintenance'!M13:N18,'2.8 Maintenance'!M21:N29,'2.8 Maintenance'!M32:N37) -> 47351.86295
A42: ED_EXP212_00003 | B42: Emergency response | C42: ='2.9 Emergency Response'!D11 -> 20594.94981
A43: ED_EXP212_00004 | B43: Non-network | C43: 0
A44: ED_EXP212_00005 | B44: network overheads | C44: =SUM('2.10 Overheads'!E13:E24)-C20 -> 46689.59943
A45: ED_EXP212_00006 | B45: corporate overheads | C45: =SUM('2.10 Overheads'!E110:E123)-C21 -> 24911.3275
A46: ED_EXP212_00007 | B46: Metering | C46: 0
A47: ED_EXP212_00008 | B47: Public Lighting | C47: 0
A48: ED_EXP211_00002
A49: ED_EXP211_00003
A50: ED_EXP211_00004
A51: ED_EXP211_00005
A52: ED_EXP211_00006
A53: ED_EXP211_00007
A54: ED_EXP211_00008
A55: ED_EXP212_00009 | B55: balancing item
B56: TOTAL OPEX | C56: =+SUM(C40:C55) -> 175592.6397
B58: TABLE 2.1.3 - ALTERNATIVE CONTROL SERVICES CAPEX
C61: Actual ($000's)
C62: =CRY -> 2014
A63: ED_EXP213_00001 | B63: Connections | C63: 0
A64: ED_EXP213_00002 | B64: capitalised network overheads | C64: 1687.39937
A65: ED_EXP213_00003 | B65: capitalised corporate overheads | C65: 2056.87529
A66: ED_EXP213_00004 | B66: Metering | C66: 20374.71268
A67: ED_EXP213_00005 | B67: Public lighting | C67: 8834.23999
A68: ED_EXP213_00006 | B68: Fee and quoted | C68: 0
A69: ED_EXP211_00002
A70: ED_EXP211_00003
A71: ED_EXP211_00004
A72: ED_EXP211_00005
A73: ED_EXP211_00006
A74: ED_EXP211_00007
A75: ED_EXP211_00008
A76: ED_EXP213_00007 | B76: balancing item
B77: TOTAL CAPEX | C77: =+SUM(C63:C76) -> 32953.22733
B79: TABLE 2.1.4 - ALTERNATIVE CONTROL SERVICES OPEX
C82: Actual ($000's)
C83: =CRY -> 2014
A84: ED_EXP214_00001 | B84: Connections | C84: 0
A85: ED_EXP214_00002 | B85: network overheads | C85: 3110.412417
A86: ED_EXP214_00003 | B86: corporate overheads | C86: 2590.787893
A87: ED_EXP214_00004 | B87: Metering | C87: 22037.05608
A88: ED_EXP214_00005 | B88: Public lighting | C88: 5159.604849
A89: ED_EXP214_00006 | B89: Fee and quoted | C89: 13662.43571
A90: ED_EXP211_00002
A91: ED_EXP211_00003
A92: ED_EXP211_00004
A93: ED_EXP211_00005
A94: ED_EXP211_00006
A95: ED_EXP211_00007
A96: ED_EXP211_00008
A97: ED_EXP214_00007 | B97: balancing item
B98: TOTAL OPEX | C98: =+SUM(C84:C97) -> 46560.29695
B100: TABLE 2.1.5 - DUAL FUNCTION ASSETS CAPEX
C103: Actual ($000's)
C104: =CRY -> 2014
A105: ED_EXP215_00001 | B105: Replacement expenditure | C105: 0
A106: ED_EXP215_00002 | B106: Connections | C106: 0
A107: ED_EXP215_00003 | B107: Augmentation Expenditure | C107: 0
A108: ED_EXP215_00004 | B108: Non-network | C108: 0
A109: ED_EXP215_00005 | B109: Capitalised network overheads | C109: 0
A110: ED_EXP215_00006 | B110: Capitalised corporate overheads | C110: 0
A111: ED_EXP211_00002
A112: ED_EXP211_00003
A113: ED_EXP211_00004
A114: ED_EXP211_00005
A115: ED_EXP211_00006
A116: ED_EXP211_00007
A117: ED_EXP211_00008
A118: ED_EXP215_00007 | B118: balancing item
B119: TOTAL GROSS CAPEX (includes capcons) | C119: =SUM(C105:C118) -> 0
A120: ED_EXP215_00009 | B120: capcons
B122: TABLE 2.1.6 - DUAL FUNCTION ASSETS OPEX
C125: Actual ($000's)
C126: =CRY -> 2014
A127: ED_EXP216_00001 | B127: Vegetation management | C127: 0
A128: ED_EXP216_00002 | B128: Maintenance | C128: 0
A129: ED_EXP216_00003 | B129: Emergency response | C129: 0
A130: ED_EXP216_00004 | B130: Non-network | C130: 0
A131: ED_EXP216_00005 | B131: Network overheads | C131: 0
A132: ED_EXP216_00006 | B132: Corporate overheads | C132: 0
A133: ED_EXP211_00002
A134: ED_EXP211_00003
A135: ED_EXP211_00004
A136: ED_EXP211_00005
A137: ED_EXP211_00006
A138: ED_EXP211_00007
A139: ED_EXP211_00008
A140: ED_EXP216_00007 | B140: balancing item
B141: TOTAL OPEX | C141: =SUM(C127:C140) -> 0

Sheet 2.2 Repex
B1: =Title -> REGULATORY REPORTING STATEMENT
B2: =TradingName -> Powercor Australia Ltd
B3: =CONCATENATE("Category Analysis RIN response ",CRY) -> Category Analysis RIN response 2014
B4: 2.2 REPEX
B6: TABLE 2.2.1 - REPLACEMENT EXPENDITURE, VOLUMES AND ASSET FAILURES BY ASSET CATEGORY | H6: Table 2.2.2 - SELECTED ASSET CHARACTERISTICS
B7: <<<GROUP-ROW>>>
D9: EXPENDITURE ($000'S) | E9: ASSET REPLACEMENTS | F9: ASSET FAILURES | J9: ASSET VOLUMES CURRENTLY IN COMMISSION | K9: ASSET REPLACEMENTS
B10: ASSET GROUP | C10: ASSET CATEGORY | D10: =CRY -> 2014 | E10: =CRY -> 2014 | F10: =CRY -> 2014 | H10: ASSET GROUP | I10: METRIC | J10: =CRY -> 2014 | K10: =CRY -> 2014
A11: ED_REP221_00001 | B11: POLES BY: HIGHEST OPERATING VOLTAGE ; MATERIAL TYPE; STAKING (IF WOOD) | C11: Staking of a wooden pole | D11: 1139.461 | E11: 1221 | F11: 0 | G11: ED_REP222_00001 | H11: TOTAL POLES BY: FEEDER TYPE | I11: Total CBD poles | J11: 0 | K11: 0
A12: ED_REP221_00002 | C12: ˂ = 1 kV; Wood | D12: 3865.057929 | E12: 325 | F12: 0 | G12: ED_REP222_00002 | I12: Total urban poles | J12: 70973 | K12: 95
A13: ED_REP221_00003 | C13: > 1 kV & < = 11 kV; Wood | D13: 11.976 | E13: 1 | F13: 0 | G13: ED_REP222_00003 | I13: Total rural long poles | J13: 280907 | K13: 1173
A14: ED_REP221_00004 | C14: ˃ 11 kV & < = 22 kV; Wood | D14: 14136.35573 | E14: 1184 | F14: 11 | G14: ED_REP222_00004 | I14: Total rural short poles | J14: 104005 | K14: 193
A15: ED_REP221_00005 | C15: > 22 kV & < = 66 kV; Wood | D15: 683.5938504 | E15: 46 | F15: 1 | G15: ED_REP222_00005 | H15: OVERHEAD CONDUCTORS BY: CONDUCTOR LENGTH BY FEEDER TYPE | I15: Conductors CBD (km) | J15: 0 | K15: 0
A16: ED_REP221_00006 | C16: > 66 kV & < = 132 kV; Wood | D16: 0 | E16: 0 | F16: 0 | G16: ED_REP222_00006 | I16: Conductors urban (km) | J16: 4046.34915 | K16: 9.17
A17: ED_REP221_00007 | C17: > 132 kV; Wood | D17: 0 | E17: 0 | F17: 0 | G17: ED_REP222_00007 | I17: Conductors rural long (km) | J17: 49612.93795 | K17: 21.774
A18: ED_REP221_00008 | C18: ˂ = 1 kV; Concrete | D18: 262.8313261 | E18: 16 | F18: 0 | G18: ED_REP222_00008 | I18: Conductors rural short (km) | J18: 11139.56868 | K18: 3.789
A19: ED_REP221_00009 | C19: > 1 kV & < = 11 kV; Concrete | D19: 0 | E19: 0 | F19: 0 | G19: ED_REP222_00009 | H19: OVERHEAD CONDUCTORS BY: CONDUCTOR LENGTH MATERIAL TYPE | I19: OH conductor LV ABC | J19: 1743.21221 | K19: 2.033
A20: ED_REP221_00010 | C20: ˃ 11 kV & < = 22 kV; Concrete | D20: 2902.159471 | E20: 183 | F20: 0 | G20: ED_REP222_00010 | I20: OH conductor steel | J20: 37610.20606 | K20: 29.671
A21: ED_REP221_00011 | C21: > 22 kV & < = 66 kV; Concrete | D21: 506.6104679 | E21: 21 | F21: 0 | G21: ED_REP222_00011 | I21: OH conductor ACSR | J21: 13505.40566 | K21: 3.029
A22: ED_REP221_00012 | C22: > 66 kV & < = 132 kV; Concrete | D22: 0 | E22: 0 | F22: 0 | G22: ED_REP222_00012 | I22: OH conductor AAAC | J22: 100.58395 | K22: 0
A23: ED_REP221_00013 | C23: > 132 kV; Concrete | D23: 0 | E23: 0 | F23: 0 | G23: ED_REP222_00013 | I23: OH conductor AAC | J23: 10875.47502 | K23: 0
A24: ED_REP221_00014 | C24: ˂ = 1 kV; Steel | D24: 47.906 | E24: 4 | F24: 4 | G24: ED_REP222_00014 | I24: OH conductor HDBC | J24: 2952.63168 | K24: 0
A25: ED_REP221_00015 | C25: > 1 kV & < = 11 kV; Steel | D25: 0 | E25: 0 | F25: 0 | I25: Unknown | J25: 2165.87314 | K25: 0
A26: ED_REP221_00016 | C26: ˃ 11 kV & < = 22 kV; Steel | D26: 0 | E26: 0 | F26: 0 | G26: ED_REP222_00015 | H26: UNDERGROUND CABLES BY: CABLE LENGTH BY FEEDER TYPE | I26: Cable CBD (km) | J26: 0 | K26: 0
A27: ED_REP221_00017 | C27: > 22 kV & < = 66 kV; Steel | D27: 0 | E27: 0 | F27: 0 | G27: ED_REP222_00016 | I27: Cable urban (km) | J27: 2342.87527 | K27: 7.6682
A28: ED_REP221_00018 | C28: > 66 kV & < = 132 kV; Steel | D28: 0 | E28: 0 | F28: 0 | G28: ED_REP222_00017 | I28: Cable rural long (km) | J28: 795.66369 | K28: 2.1671
A29: ED_REP221_00019 | C29: > 132 kV; Steel | D29: 0 | E29: 0 | F29: 0 | G29: ED_REP222_00018 | I29: Cable rural short (km) | J29: 1988.89241 | K29: 6.8347
A30: ED_REP221_00020 | C30: Other | D30: 253.112 | E30: 21 | F30: 1 | G30: ED_REP222_00019 | H30: TRANSFORMERS BY: TOTAL MVA | I30: Total MVA replaced | J30: 9962.17 | K30: 56.125
A31: ED_REP221_00021 | B31: POLE TOP STRUCTURES BY: HIGHEST OPERATING VOLTAGE | C31: ˂ = 1 kV | D31: 7258.089736 | E31: 3023 | F31: 57 | G31: ED_REP222_00020 | I31: Total MVA disposed of | J31: 0 | K31: 50.5125
A32: ED_REP221_00022 | C32: > 1 kV & < = 11 kV | D32: 19.654 | E32: 12 | F32: 1
A33: ED_REP221_00023 | C33: ˃ 11 kV & < = 22 kV | D33: 13529.38548 | E33: 5880 | F33: 95
A34: ED_REP221_00024 | C34: > 22 kV & < = 66 kV | D34: 748.290159 | E34: 327 | F34: 5
A35: ED_REP221_00025 | C35: > 66 kV & < = 132 kV | D35: 0 | E35: 0 | F35: 0
A36: ED_REP221_00026 | C36: > 132 kV | D36: 0 | E36: 0 | F36: 0
A37: ED_REP221_00027 | C37: Other | D37: 0 | E37: 0 | F37: 0
A38: ED_REP221_00028 | B38: OVERHEAD CONDUCTORS BY: HIGHEST OPERATING VOLTAGE; NUMBER OF PHASES (AT HV) | C38: ˂ = 1 kV | D38: 663.9563195 | E38: 4.504 | F38: 0.4
A39: ED_REP221_00029 | C39: > 1 kV & < = 11 kV | D39: 0 | E39: 0 | F39: 0
A40: ED_REP221_00030 | C40: ˃ 11 kV & < = 22 kV ; SWER | D40: 719.15503 | E40: 0 | F40: 1.89
A41: ED_REP221_00031 | C41: ˃ 11 kV & < = 22 kV ; Single-Phase | D41: 444.7985978 | E41: 29.95 | F41: 2.01
A42: ED_REP221_00032 | C42: ˃ 11 kV & < = 22 kV ; Multiple-Phase | D42: 1259.458656 | E42: 8.69 | F42: 3.58
A43: ED_REP221_00033 | C43: > 22 kV & < = 66 kV | D43: 1720.21509 | E43: 0 | F43: 0
A44: ED_REP221_00034 | C44: > 66 kV & < = 132 kV | D44: 0 | E44: 0 | F44: 0
A45: ED_REP221_00035 | C45: > 132 kV | D45: 0 | E45: 0 | F45: 0
A46: ED_REP221_00036 | C46: Other | D46: 0 | E46: 0 | F46: 0.08
A47: ED_REP221_00037 | B47: UNDERGROUND CABLES BY: HIGHEST OPERATING VOLTAGE | C47: ˂ = 1 kV | D47: 943.8296577 | E47: 15.333 | F47: 0.16
A48: ED_REP221_00038 | C48: > 1 kV & < = 11 kV | D48: 0 | E48: 0 | F48: 0
A49: ED_REP221_00039 | C49: > 11 kV & < = 22 kV | D49: 69.424 | E49: 4.14 | F49: 0.1
A50: ED_REP221_00040 | C50: > 22 kV & < = 33 kV | D50: 0 | E50: 0 | F50: 0
A51: ED_REP221_00041 | C51: > 33 kV & < = 66 kV | D51: 0 | E51: 0 | F51: 0
A52: ED_REP221_00042 | C52: > 66 kV & < = 132 kV | D52: 0 | E52: 0 | F52: 0
A53: ED_REP221_00043 | C53: > 132 kV | D53: 0 | E53: 0 | F53: 0
A54: ED_REP221_00044 | C54: Other | D54: 0 | E54: 0 | F54: 0.04
A55: ED_REP221_00045 | B55: SERVICE LINES BY: CONNECTION VOLTAGE; CUSTOMER TYPE; CONNECTION COMPLEXITY | C55: ˂ = 11 kV ; Residential ; Simple Type | D55: 4940.371743 | E55: 125.94 | F55: 37.568
A56: ED_REP221_00046 | C56: ˂ = 11 kV ; Commercial & Industrial ; Simple Type | D56: 0 | E56: 0 | F56: 0
A57: ED_REP221_00047 | C57: ˂ = 11 kV ; Residential ; Complex Type | D57: 0 | E57: 0 | F57: 0
A58: ED_REP221_00048 | C58: ˂ = 11 kV ; Commercial & Industrial ; Complex Type | D58: 0 | E58: 0 | F58: 0
A59: ED_REP221_00049 | C59: ˂ = 11 kV ; Subdivision ; Complex Type | D59: 0 | E59: 0 | F59: 0
A60: ED_REP221_00050 | C60: > 11 kV & < = 22 kV ; Commercial & Industrial | D60: 0 | E60: 0 | F60: 0
A61: ED_REP221_00051 | C61: > 11 kV & < = 22 kV ; Subdivision | D61: 0 | E61: 0 | F61: 0
A62: ED_REP221_00052 | C62: > 22 kV & < = 33 kV ; Commercial & Industrial | D62: 0 | E62: 0 | F62: 0
A63: ED_REP221_00053 | C63: > 22 kV & < = 33 kV ; Subdivision | D63: 0 | E63: 0 | F63: 0
A64: ED_REP221_00054 | C64: > 33 kV & < = 66 kV ; Commercial & Industrial | D64: 0 | E64: 0 | F64: 0
A65: ED_REP221_00055 | C65: > 33 kV & < = 66 kV ; Subdivision | D65: 0 | E65: 0 | F65: 0
A66: ED_REP221_00056 | C66: > 66 kV & < = 132 kV ; Commercial & Industrial | D66: 0 | E66: 0 | F66: 0
A67: ED_REP221_00057 | C67: > 66 kV & < = 132 kV ; Subdivision | D67: 0 | E67: 0 | F67: 0
A68: ED_REP221_00058 | C68: > 132 kV ; Commercial & Industrial | D68: 0 | E68: 0 | F68: 0
A69: ED_REP221_00059 | C69: > 132 kV ; Subdivision | D69: 0 | E69: 0 | F69: 0
A70: ED_REP221_00060 | C70: Other | D70: 0 | E70: 0 | F70: 0
A71: ED_REP221_00061 | B71: TRANSFORMERS BY: MOUNTING TYPE; HIGHEST OPERATING VOLTAGE ; AMPERE RATING; NUMBER OF PHASES (AT LV) | C71: Pole Mounted ; < = 22kV ; < = 60 kVA ; Single Phase | D71: 2372.375967 | E71: 518 | F71: 77
A72: ED_REP221_00062 | C72: Pole Mounted ; < = 22kV ; > 60 kVA and < = 600 kVA ; Single Phase | D72: 191.2640461 | E72: 10 | F72: 3
A73: ED_REP221_00063 | C73: Pole Mounted ; < = 22kV ; > 600 kVA ; Single Phase | D73: 0 | E73: 0 | F73: 0
A74: ED_REP221_00064 | C74: Pole Mounted ; < = 22kV ; < = 60 kVA ; Multiple Phase | D74: 267.300125 | E74: 27 | F74: 9
A75: ED_REP221_00065 | C75: Pole Mounted ; < = 22kV ; > 60 kVA and < = 600 kVA ; Multiple Phase | D75: 1092.981365 | E75: 93 | F75: 22
A76: ED_REP221_00066 | C76: Pole Mounted ; < = 22kV ; > 600 kVA ; Multiple Phase | D76: 582.4085819 | E76: 6 | F76: 0
A77: ED_REP221_00073 | C77: Kiosk Mounted ; < = 22kV ; < = 60 kVA ; Single Phase | D77: 49.051 | E77: 4 | F77: 0
A78: ED_REP221_00074 | C78: Kiosk Mounted ; < = 22kV ; > 60 kVA and < = 600 kVA ; Single Phase | D78: 0 | E78: 0 | F78: 0
A79: ED_REP221_00075 | C79: Kiosk Mounted ; < = 22kV ; > 600 kVA ; Single Phase | D79: 0 | E79: 0 | F79: 0
A80: ED_REP221_00076 | C80: Kiosk Mounted ; < = 22kV ; < = 60 kVA ; Multiple Phase | D80: 0 | E80: 0 | F80: 0
A81: ED_REP221_00077 | C81: Kiosk Mounted ; < = 22kV ; > 60 kVA and < = 600 kVA ; Multiple Phase | D81: 648.2101126 | E81: 9 | F81: 5
A82: ED_REP221_00078 | C82: Kiosk Mounted ; < = 22kV ; > 600 kVA ; Multiple Phase | D82: 100.427372 | E82: 1 | F82: 3
A83: ED_REP221_00085 | C83: Ground Outdoor / Indoor Chamber Mounted; ˂ 22 kV ; < = 60 kVA ; Single Phase | D83: 0 | E83: 0 | F83: 0
A84: ED_REP221_00086 | C84: Ground Outdoor / Indoor Chamber Mounted; ˂ 22 kV ; > 60 kVA and < = 600 kVA ; Single Phase | D84: 0 | E84: 0 | F84: 0
A85: ED_REP221_00087 | C85: Ground Outdoor / Indoor Chamber Mounted; ˂ 22 kV ; > 600 kVA ; Single Phase | D85: 0 | E85: 0 | F85: 0
A86: ED_REP221_00088 | C86: Ground Outdoor / Indoor Chamber Mounted; ˂ 22 kV ; < = 60 kVA ; Multiple Phase | D86: 0 | E86: 0 | F86: 0
A87: ED_REP221_00089 | C87: Ground Outdoor / Indoor Chamber Mounted; ˂ 22 kV ; > 60 kVA and < = 600 kVA ; Multiple Phase | D87: 0 | E87: 0 | F87: 0
A88: ED_REP221_00090 | C88: Ground Outdoor / Indoor Chamber Mounted; ˂ 22 kV ; > 600 kVA ; Multiple Phase | D88: 0 | E88: 0 | F88: 0
A89: ED_REP221_00091 | C89: Ground Outdoor / Indoor Chamber Mounted; > = 22 kV & < = 33 kV ; < = 15 MVA | D89: 0 | E89: 0 | F89: 0
A90: ED_REP221_00092 | C90: Ground Outdoor / Indoor Chamber Mounted; > = 22 kV & < = 33 kV ; > 15 MVA and < = 40 MVA | D90: 0 | E90: 0 | F90: 0
A91: ED_REP221_00093 | C91: Ground Outdoor / Indoor Chamber Mounted; > = 22 kV & < = 33 kV ; > 40 MVA | D91: 0 | E91: 0 | F91: 0
A92: ED_REP221_00094 | C92: Ground Outdoor / Indoor Chamber Mounted; > 33 kV & < = 66 kV ; < = 15 MVA | D92: 10.55 | E92: 0 | F92: 2
A93: ED_REP221_00095 | C93: Ground Outdoor / Indoor Chamber Mounted; > 33 kV & < = 66 kV ; > 15 MVA and < = 40 MVA | D93: 1356.631 | E93: 1 | F93: 0
A94: ED_REP221_00096 | C94: Ground Outdoor / Indoor Chamber Mounted; > 33 kV & < = 66 kV ; > 40 MVA | D94: 0 | E94: 0 | F94: 0
A95: ED_REP221_00097 | C95: Ground Outdoor / Indoor Chamber Mounted; > 66 kV & < = 132 kV ; < = 100 MVA | D95: 0 | E95: 0 | F95: 0
A96: ED_REP221_00098 | C96: Ground Outdoor / Indoor Chamber Mounted; > 66 kV & < = 132 kV ; > 100 MVA | D96: 0 | E96: 0 | F96: 0
A97: ED_REP221_00099 | C97: Ground Outdoor / Indoor Chamber Mounted; > 132 kV ; < = 100 MVA | D97: 0 | E97: 0 | F97: 0
A98: ED_REP221_00100 | C98: Ground Outdoor / Indoor Chamber Mounted; > 132 kV ; > 100 MVA | D98: 0 | E98: 0 | F98: 0
A99: ED_REP221_00101 | C99: Other | D99: 1011.941093 | E99: 54 | F99: 2
A100: ED_REP221_00102 | B100: SWITCHGEAR BY: HIGHEST OPERATING VOLTAGE ; SWITCH FUNCTION | C100: ˂ = 11 kV ; FUSE | D100: 0 | E100: 0 | F100: 0
A101: ED_REP221_00103 | C101: ˂ = 11 kV ; Switch | D101: 0 | E101: 0 | F101: 0
A102: ED_REP221_00104 | C102: ˂ = 11 kV ; Circuit Breaker | D102: 0 | E102: 0 | F102: 0
A103: ED_REP221_00105 | C103: > 11 kV & < = 22 kV ; Switch | D103: 601.1345982 | E103: 41 | F103: 0
A104: ED_REP221_00106 | C104: > 11 kV & < = 22 kV ; Circuit Breaker | D104: 647.051 | E104: 16 | F104: 4
A105: ED_REP221_00107 | C105: > 22 kV & < = 33 kV ; Switch | D105: 0 | E105: 0 | F105: 0
A106: ED_REP221_00108 | C106: > 22 kV & < = 33 kV ; Circuit Breaker | D106: 0 | E106: 0 | F106: 0
A107: ED_REP221_00109 | C107: > 33 kV & < = 66 kV ; Switch | D107: 0 | E107: 0 | F107: 0
A108: ED_REP221_00110 | C108: > 33 kV & < = 66 kV ; Circuit Breaker | D108: 2149.092 | E108: 10 | F108: 0
A109: ED_REP221_00111 | C109: > 66 kV & < = 132 kV ; Switch | D109: 0 | E109: 0 | F109: 0
A110: ED_REP221_00112 | C110: > 66 kV & < = 132 kV ; Circuit Breaker | D110: 0 | E110: 0 | F110: 0
A111: ED_REP221_00113 | C111: > 132 kV ; Switch | D111: 0 | E111: 0 | F111: 0
A112: ED_REP221_00114 | C112: > 132 kV ; Circuit Breaker | D112: 0 | E112: 0 | F112: 0
A113: ED_REP221_00115 | C113: Other | D113: 10559.93583 | E113: 4196 | F113: 181
A114: ED_REP221_00116 | B114: PUBLIC LIGHTING BY: ASSET TYPE ; LIGHTING OBLIGATION | C114: Luminaires ; Major Road | D114: 524 | E114: 144 | F114: 581
A115: ED_REP221_00117 | C115: Luminaires ; Minor Road | D115: 1250.1 | E115: 864 | F115: 1442
A116: ED_REP221_00118 | C116: Brackets ; Major Road | D116: 59.3 | E116: 144 | F116: 75
A117: ED_REP221_00119 | C117: Brackets ; Minor Road | D117: 0 | E117: 0 | F117: 0
A118: ED_REP221_00120 | C118: Lamps ; Major Road | D118: 0 | E118: 0 | F118: 0
A119: ED_REP221_00121 | C119: Lamps ; Minor Road | D119: 0 | E119: 0 | F119: 0
A120: ED_REP221_00122 | C120: Poles / Columns ; Major Road | D120: 1397.5 | E120: 130 | F120: 75
A121: ED_REP221_00123 | C121: Poles / Columns ; Minor Road | D121: 702.4 | E121: 95 | F121: 54
A122: ED_REP221_00124 | C122: Other | D122: 20.5 | E122: 0 | F122: 0
A123: ED_REP221_00125 | B123: SCADA, NETWORK CONTROL AND PROTECTION SYSTEMS BY: FUNCTION | C123: Field Devices | D123: 1063.5 | E123: 70 | F123: 15
A124: ED_REP221_00126 | C124: Local Network Wiring Assets | D124: 0 | E124: 0 | F124: 0
A125: ED_REP221_00127 | C125: Communications Network Assets | D125: 0 | E125: 0 | F125: 0
A126: ED_REP221_00128 | C126: Master Station Assets | D126: 0 | E126: 0 | F126: 0
A127: ED_REP221_00129 | C127: Communications Site Infrastructure | D127: 0 | E127: 0 | F127: 0
A128: ED_REP221_00130 | C128: Communications Linear Assets | D128: 0 | E128: 0 | F128: 0
A129: ED_REP221_00131 | C129: AFLC | D129: 0 | E129: 0 | F129: 0
A130: ED_REP221_00124 | C130: Other | D130: 178.4537 | E130: 0 | F130: 0
A131: ED_REP221_00132 | B131: OTHER BY: DNSP DEFINED | C131: RECOVERABLE WORK - FAULTS (*2011 - 2013 CA RIN are Quoted Opex) | D131: 0 | E131: 0 | F131: 0
A132: ED_REP221_00133 | C132: POLE CHEMICAL TREATMENT | D132: 2027.625 | E132: 71179 | F132: 0
A133: ED_REP221_00134 | C133: PLANT AND STATIONS MISCELLANEOUS | D133: 1124.237395 | E133: 0 | F133: 0
A134: ED_REP221_00135 | C134: MAJOR ZONE SUBSTATION REPLACEMENT WORKS | D134: 4803.361 | E134: 0 | F134: 0
A135: ED_REP221_00136 | C135: TV INTEREFERENCE RELATED EXPENDITURE | D135: 40.90986 | E135: 0 | F135: 0
A136: ED_REP221_00137 | C136: ENVIRONMENTAL RELATED REPLACEMENT EXPENDITURE | D136: 172.93609 | E136: 0 | F136: 0
A137: ED_REP221_00138 | C137: BUSHFIRE MITIGATION RELATED REPLACEMENT EXPENDITURE | D137: 93.53089 | E137: 0 | F137: 0
A138: ED_REP221_00139 | C138: LINES MISCELLANEOUS | D138: 4291.129726 | E138: 0 | F138: 0
A139: ED_REP221_00140 | C139: VBRC SWER ACRs | D139: 0 | E139: 0 | F139: 0
A140: ED_REP221_00141 | C140: POLES / COLUMNS ; MAJOR ROAD - Standard Control Service | D140: 22.017 | E140: 2 | F140: 0
A141: ED_REP221_00142
A142: ED_REP221_00143
A143: ED_REP221_00144
A144: ED_REP221_00145
A145: ED_REP221_00146
A146: ED_REP221_00147

Sheet 2.3 Augex
B1: =Title -> REGULATORY REPORTING STATEMENT | K1: New line on new route - single circuit | L1: New line on new route - dual circuit | O1: Worksheet navigation
B2: =TradingName -> Powercor Australia Ltd
B3: =CONCATENATE("Category Analysis RIN response ",CRY) -> Category Analysis RIN response 2014
B4: 2.3 AUGEX PROJECT DATA
B7: TABLE 2.3.1 - AUGEX ASSET DATA - SUBTRANSMISSION SUBSTATIONS, SWITCHING STATIONS AND ZONE SUBSTATIONS
B8: NOTE: DNSP MUST PROVIDE EXPENDITURE INFORMATION ON A PROJECT CLOSE BASIS.
A9: AUG231 | B9: AUG231_1 | M9: AUG231_2 | N9: AUG231_3 | O9: AUG231_4 | P9: AUG231_5 | Q9: AUG231_6 | R9: ED_AUG231_00001 | S9: ED_AUG231_00002 | T9: ED_AUG231_00003 | U9: ED_AUG231_00004 | V9: ED_AUG231_00005 | W9: ED_AUG231_00006 | X9: ED_AUG231_00007 | Y9: ED_AUG231_00008 | Z9: ED_AUG231_00009 | AK9: ED_AUG231_00010 | AL9: ED_AUG231_00011 | AM9: ED_AUG231_00012 | AN9: ED_AUG231_00013 | AO9: ED_AUG231_00014 | AP9: ED_AUG231_00015 | AQ9: ED_AUG231_00016 | AR9: ED_AUG231_00017 | AS9: ED_AUG231_00018 | AT9: ED_AUG231_00019 | AU9: ED_AUG231_00020 | AV9: ED_AUG231_00021 | AW9: ED_AUG231_00022 | AX9: ED_AUG231_00023
B10: PROJECT DESCRIPTION AND CHANGES | V10: PLANT AND EQUIPMENT EXPENDITURE AND VOLUME | AP10: OTHER EXPENDITURE | AR10: TOTAL DIRECT EXPENDITURE ($000'S) | AS10: YEARS INCURRED | AT10: ALL RELATED PARTY CONTRACTS | AW10: LAND AND EASEMENTS
B11: SUBSTATION ID | M11: SUBSTATION TYPE | N11: PROJECT ID | O11: PROJECT TYPE | P11: PROJECT TRIGGER | Q11: VOLTAGE (KV) | R11: SUBSTATION RATING NORMAL CYCLIC (MVA) | T11: SUBSTATION RATING N-1 EMERGENCY (MVA) | V11: TRANSFORMERS | Y11: SWITCHGEAR | AK11: CAPACITORS | AM11: OTHER PLANT ITEM | AN11: INSTALLATION (LABOUR) | AP11: CIVIL WORKS | AQ11: OTHER DIRECT | AT11: RELATED PARTY MARGINS | AU11: TOTAL | AV11: ALL NON RELATED PARTYCONTRACTS | AW11: LAND PURCHASE | AX11: EASEMENTS
R12: PRE | S12: POST | T12: PRE | U12: POST | V12: UNITS ADDED | W12: MVA ADDED | X12: EXPENDITURE ($000'S) | Y12: UNITS ADDED | Z12: EXPENDITURE ($000'S) | AK12: MVAR ADDED | AL12: EXPENDITURE ($000'S) | AM12: EXPENDITURE ($000'S) | AN12: VOLUME | AO12: EXPENDITURE ($000'S) | AP12: EXPENDITURE ($000'S) | AT12: EXPENDITURE ($000'S) | AW12: EXPENDITURE ($000'S)
A13: AUG231_1 | B13: SHP | C13: 0 | D13: 0 | E13: 0 | F13: 0 | G13: 0 | H13: 0 | I13: 0 | J13: 0 | K13: 0 | L13: 0 | M13: Zone substation | N13: 5065862 | O13: Substation upgrade - capacity | P13: Demand growth | Q13: 66/22 | R13: 33 | S13: 66 | T13: 0 | U13: 36.6 | V13: 1 | W13: 33 | X13: 587.47325 | Y13: 9 | Z13: 259.5698371 | AA13: 0 | AB13: 0 | AC13: 0 | AD13: 0 | AE13: 0 | AF13: 0 | AG13: 0 | AH13: 0 | AI13: 0 | AJ13: 0 | AK13: 0 | AL13: 0 | AM13: 288.5719019 | AN13: 9009.22 | AO13: 1004.150658 | AP13: 126.7606982 | AQ13: 129.3222229 | AR13: =SUM(X13,Z13,AL13,AM13,AO13,AP13,AQ13) -> 2395.848568 | AS13: 2010, 2011, 2012, 2013, 2014 | AW13: 0 | AX13: 0
A14: AUG231_2 | AR14: =SUM(X14,Z14,AL14,AM14,AO14,AP14,AQ14) -> 0
A15: AUG231_3 | AR15: 0
A16: AUG231_4 | AR16: 0
A17: AUG231_5 | AR17: 0
A18: AUG231_6 | AR18: 0
A19: AUG231_7 | AR19: 0
A20: AUG231_8 | AR20: 0
A21: AUG231_9 | AR21: 0
A22: AUG231_10 | AR22: 0
A23: AUG231_11 | AR23: 0
A24: AUG231_12 | AR24: 0
A25: AUG231_13 | AR25: 0
A26: AUG231_14 | AR26: 0
A27: AUG231_15 | AR27: 0
A28: AUG231_16 | AR28: 0
A29: AUG231_17 | AR29: 0
A30: AUG231_18 | AR30: 0
A31: AUG231_19 | AR31: 0
A32: AUG231_20 | AR32: 0
A33: AUG231_21 | AR33: 0
A34: AUG231_22 | AR34: 0
A35: AUG231_23 | AR35: 0
A36: AUG231_24 | AR36: 0
A37: AUG231_25 | AR37: 0
A38: AUG231_26 | AR38: 0
A39: AUG231_27 | AR39: 0
A40: AUG231_28 | AR40: 0
A41: AUG231_29 | AR41: 0
A42: AUG231_30 | AR42: 0
A43: AUG231_31 | AR43: 0
A44: AUG231_32 | AR44: 0
A45: AUG231_33 | AR45: 0
A46: AUG231_34 | AR46: 0
A47: AUG231_35 | AR47: 0
A48: AUG231_36 | AR48: 0
A49: AUG231_37 | AR49: 0
A50: AUG231_38 | AR50: 0
A51: AUG231_39 | AR51: 0
A52: AUG231_40 | AR52: 0
A53: AUG231_41 | AR53: 0
A54: AUG231_42 | AR54: 0
A55: AUG231_43 | AR55: 0
A56: AUG231_44 | AR56: 0
A57: AUG231_45 | AR57: 0
A58: AUG231_46 | AR58: 0
A59: AUG231_47 | AR59: 0
A60: AUG231_48 | AR60: 0
A61: AUG231_49 | AR61: 0
A62: AUG231_50 | AR62: 0
A63: AUG231_51 | AR63: 0
A64: AUG231_52 | AR64: 0
N65: Non material projects - [actual]
N66: Non material projects - [forecast]
A68: AUG232 | B68: AUG232_1 | C68: AUG232_2 | D68: AUG232_3 | E68: AUG232_4 | F68: AUG232_5 | G68: AUG232_6 | H68: AUG232_7 | I68: AUG232_8 | J68: AUG232_9 | K68: AUG232_10 | L68: AUG232_11 | M68: AUG232_2 | N68: AUG232_3 | O68: AUG232_4 | P68: AUG232_5 | Q68: AUG232_6 | R68: ED_AUG232_00001 | S68: ED_AUG232_00002 | T68: ED_AUG232_00003 | U68: ED_AUG232_00004 | V68: ED_AUG232_00005 | W68: ED_AUG232_00006 | X68: ED_AUG232_00007 | Y68: ED_AUG232_00008 | Z68: ED_AUG232_00009 | AK68: ED_AUG232_00010 | AL68: ED_AUG232_00011 | AM68: ED_AUG232_00012 | AN68: ED_AUG232_00013 | AO68: ED_AUG232_00014 | AP68: ED_AUG232_00015 | AQ68: ED_AUG232_00016 | AR68: ED_AUG232_00017 | AS68: ED_AUG232_00018 | AT68: ED_AUG232_00019 | AU68: ED_AUG232_00020 | AV68: ED_AUG232_00021
B69: TABLE 2.3.2 - AUGEX ASSET DATA - SUBTRANSMISSION LINES
B70: NOTE: DNSP MUST PROVIDE EXPENDITURE INFORMATION ON A PROJECT CLOSE BASIS.
B71: PROJECT DESCRIPTION AND CHANGES | R71: PLANT AND EQUIPMENT EXPENDITURE AND VOLUME | AN71: OTHER EXPENDITURE | AP71: TOTAL DIRECT EXPENDITURE ($000'S) | AQ71: YEARS INCURRED | AR71: ALL RELATED PARTY CONTRACTS | AU71: LAND AND EASEMENTS
B72: LINE ID | M72: PROJECT ID | N72: PROJECT TYPE | O72: PROJECT TRIGGER | P72: VOLTAGE (KV) | Q72: ROUTE LINE LENGTH ADDED | R72: POLES/TOWERS (INCLUDING STRUCTURES, AND CIVIL WORKS) | U72: OVERHEAD LINES | X72: UNDERGROUND CABLES | AK72: OTHER PLANT ITEM | AL72: INSTALLATION (LABOUR) | AN72: CIVIL WORKS | AO72: OTHER DIRECT | AR72: RELATED PARTY MARGINS | AS72: TOTAL | AT72: ALL NON RELATED PARTYCONTRACTS | AU72: LAND PURCHASE | AV72: EASEMENTS
Q73: KM ADDED | R73: POLES/TOWERS ADDED | S73: POLES/TOWERS UPGRADED | T73: EXPENDITURE ($000'S) | U73: CIRCUIT KM ADDED | V73: CIRCUIT KM UPGRADED | W73: EXPENDITURE ($000'S) | X73: CIRCUIT KM ADDED | Y73: CIRCUIT KM UPGRADED | Z73: EXPENDITURE ($000'S) | AK73: EXPENDITURE ($000'S) | AL73: VOLUME | AM73: EXPENDITURE ($000'S) | AN73: EXPENDITURE ($000'S) | AR73: EXPENDITURE ($000'S) | AU73: EXPENDITURE ($000'S)
A74: AUG232_1 | B74: BETS-CTN | C74: 0 | D74: 0 | E74: 0 | F74: 0 | G74: 0 | H74: 0 | I74: 0 | J74: 0 | K74: 0 | L74: 0 | M74: 5067643 | N74: New line on new route - dual circuit | O74: Demand growth | P74: 66 | Q74: 25.97 | R74: 176 | S74: 103 | T74: 1583.883135 | U74: 25.97 | V74: 0 | W74: 469.6530573 | X74: 0 | Y74: 0 | Z74: 0 | AA74: 0 | AB74: 0 | AC74: 0 | AD74: 0 | AE74: 0 | AF74: 0 | AG74: 0 | AH74: 0 | AI74: 0 | AJ74: 0 | AK74: 0 | AL74: 17420.81 | AM74: 2195.392891 | AN74: 0 | AO74: 1333.547317 | AP74: =SUM(T74,W74,Z74,AK74,AM74,AN74,AO74) -> 5582.476401 | AQ74: 2010, 2011, 2012, 2013, 2014 | AU74: 0 | AV74: 290.333392 | AX74: New line on new route - single circuit
A75: AUG232_2 | B75: GTS-GLE #1 | C75: 0 | D75: 0 | E75: 0 | F75: 0 | G75: 0 | H75: 0 | I75: 0 | J75: 0 | K75: 0 | L75: 0 | M75: 5072633 | N75: Reconductor - Dual circuit | O75: Demand growth | P75: 66 | Q75: 0 | R75: 12 | S75: 72 | T75: 300.7342933 | U75: 0 | V75: 19.89 | W75: 288.3866008 | X75: 0 | Y75: 0 | Z75: 0 | AA75: 0 | AB75: 0 | AC75: 0 | AD75: 0 | AE75: 0 | AF75: 0 | AG75: 0 | AH75: 0 | AI75: 0 | AJ75: 0 | AK75: 0 | AL75: 11545 | AM75: 1469.708075 | AN75: 0 | AO75: 488.9132845 | AP75: 2547.742253 | AQ75: 2011, 2012, 2013, 2014 | AU75: 0 | AV75: 0 | AX75: New line on new route - dual circuit
A76: AUG232_3 | AP76: 0 | AX76: New line on new route - other
A77: AUG232_4 | AP77: 0 | AX77: Line rebuild over existing route - single circuit
A78: AUG232_5 | AP78: 0 | AX78: Line rebuild over existing route - dual circuit
A79: AUG232_6 | AP79: 0 | AX79: Reconductor - Single circuit
A80: AUG232_7 | AP80: 0 | AX80: Reconductor - Dual circuit
A81: AUG232_8 | AP81: 0 | AX81: Reconductor - Other
A82: AUG232_9 | AP82: 0 | AX82: Line upgrade - raising/retensoring
A83: AUG232_10 | AP83: 0 | AX83: Line upgrade - voltage upgrade
A84: AUG232_11 | AP84: 0 | AX84: Line upgrade - capacity
A85: AUG232_12 | AP85: 0 | AX85: String spare circuit
A86: AUG232_13 | AP86: 0 | AX86: Other
A87: AUG232_14 | AP87: 0
A88: AUG232_15 | AP88: 0
A89: AUG232_16 | AP89: 0
A90: AUG232_17 | AP90: 0
A91: AUG232_18 | AP91: 0
A92: AUG232_19 | AP92: 0
A93: AUG232_20 | AP93: 0
A94: AUG232_21 | AP94: 0
A95: AUG232_22 | AP95: 0
A96: AUG232_23 | AP96: 0
A97: AUG232_24 | AP97: 0
A98: AUG232_25 | AP98: 0
A99: AUG232_26 | AP99: 0
A100: AUG232_27 | AP100: 0
A101: AUG232_28 | AP101: 0
A102: AUG232_29 | AP102: 0
A103: AUG232_30 | AP103: 0
A104: AUG232_31 | AP104: 0
A105: AUG232_32 | AP105: 0
A106: AUG232_33 | AP106: 0
A107: AUG232_34 | AP107: 0
A108: AUG232_35 | AP108: 0
A109: AUG232_36 | AP109: 0
A110: AUG232_37 | AP110: 0
A111: AUG232_38 | AP111: 0
A112: AUG232_39 | AP112: 0
A113: AUG232_40 | AP113: 0
A114: AUG232_41 | AP114: 0
A115: AUG232_42 | AP115: 0
A116: AUG232_43 | AP116: 0
A117: AUG232_44 | AP117: 0
A118: AUG232_45 | AP118: 0
A119: AUG232_46 | AP119: 0
A120: AUG232_47 | AP120: 0
A121: AUG232_48 | AP121: 0
A122: AUG232_49 | AP122: 0
A123: AUG232_50 | AP123: 0
A124: AUG232_51 | AP124: 0
A125: AUG232_52 | AP125: 0
A126: AUG232_53 | AP126: 0
A127: AUG232_54 | AP127: 0
M128: Non material projects - [actual]
M129: Non material projects - [forecast]
B132: TABLE 2.3.3 - AUGEX DATA - HV/LV FEEDERS AND DISTRIBUTION SUBSTATIONS
B133: NOTE: DNSP MUST PROVIDE EXPENDITURE INFORMATION ON AN AS INCURRED BASIS.
B134: Table 2.3.3.1 Descriptor Metrics
M137: UNITS ADDED | N137: UNITS ADDED | O137: UNITS ADDED | P137: UNITS ADDED | Q137: UNITS ADDED | AK137: UNITS UPGRADED | AL137: UNITS UPGRADED | AM137: UNITS UPGRADED | AN137: UNITS UPGRADED | AO137: UNITS UPGRADED
B138: PROJECT TYPE | M138: =Years -> 2014 | N138: 0 | O138: 0 | P138: 0 | Q138: 0 | Z138: PROJECT TYPE | AB138: DNSP NAME | AC138: SERVICE CATEGORY | AD138: SERVICE SUB-CATEGORY | AE138: ASSET CATEGORY | AF138: ASSET SUB-CATEGORY | AG138: DATA TYPE | AH138: MEASUREMENT | AI138: DENOMINATION | AK138: =Years -> 2014 | AL138: 0 | AM138: 0 | AN138: 0 | AO138: 0
A139: ED_AUG2331_00001 | B139: HV Feeder Augmentations - Overhead Lines (Circuit Line Length in KM) | M139: 11.68 | Y139: ED_AUG2333_00001 | Z139: HV Feeder Augmentations - Overhead Lines (Circuit Line Length in KM) | AB139: DNSP NAME | AC139: AUGMENTATION | AD139: HV FEEDER PROJECTS | AE139: HV FEEDERS | AF139: OVERHEAD | AG139: DESCRIPTOR METRIC | AH139: KM UPGRADED | AI139: 000'S | AK139: 4.13
A140: ED_AUG2331_00002 | B140: HV Feeder Augmentations - Underground Cables (Circuit Line Length in KM) | M140: 0.74 | Y140: ED_AUG2333_00002 | Z140: HV Feeder Augmentations - Underground Cables (Circuit Line Length in KM) | AB140: DNSP NAME | AC140: AUGMENTATION | AD140: HV FEEDER PROJECTS | AE140: HV FEEDERS | AF140: UNDERGROUND | AG140: DESCRIPTOR METRIC | AH140: KM UPGRADED | AI140: 000'S | AK140: 0
A141: ED_AUG2331_00003 | B141: LV Feeder Augmentations - Overhead Lines (Circuit Line Length in KM) | M141: 0 | Y141: ED_AUG2333_00003 | Z141: LV Feeder Augmentations - Overhead Lines (Circuit Line Length in KM) | AB141: DNSP NAME | AC141: AUGMENTATION | AD141: LV FEEDER PROJECTS | AE141: HV FEEDERS | AF141: OVERHEAD | AG141: DESCRIPTOR METRIC | AH141: KM UPGRADED | AI141: 000'S | AK141: 0.88
A142: ED_AUG2331_00004 | B142: LV Feeder Augmentations - Underground Cables (Circuit Line Length in KM) | M142: 0 | Y142: ED_AUG2333_00004 | Z142: LV Feeder Augmentations - Underground Cables (Circuit Line Length in KM) | AB142: DNSP NAME | AC142: AUGMENTATION | AD142: LV FEEDER PROJECTS | AE142: HV FEEDERS | AF142: UNDERGROUND | AG142: DESCRIPTOR METRIC | AH142: KM UPGRADED | AI142: 000'S | AK142: 0
A143: ED_AUG2331_00005 | B143: Distribution Substation Augmentations - Pole Mounted | M143: 12 | Y143: ED_AUG2333_00005 | Z143: Distribution Substation Augmentations - Pole Mounted | AB143: DNSP NAME | AC143: AUGMENTATION | AD143: SUBSTATION AUGMENTATIONS | AE143: SUBSTATIONS | AF143: POLE MOUNTED | AG143: DESCRIPTOR METRIC | AH143: VOLUME UPGRADED | AI143: 000'S | AK143: 17
A144: ED_AUG2331_00006 | B144: Distribution Substation Augmentations - Ground Mounted | M144: 1 | Y144: ED_AUG2333_00006 | Z144: Distribution Substation Augmentations - Ground Mounted | AB144: DNSP NAME | AC144: AUGMENTATION | AD144: SUBSTATION AUGMENTATIONS | AE144: SUBSTATIONS | AF144: GROUND MOUNTED | AG144: DESCRIPTOR METRIC | AH144: VOLUME UPGRADED | AI144: 000'S | AK144: 0
A145: ED_AUG2331_00007 | B145: Distribution Substation Augmentations - Indoor | M145: 0 | Y145: ED_AUG2333_00007 | Z145: Distribution Substation Augmentations - Indoor | AB145: DNSP NAME | AC145: AUGMENTATION | AD145: SUBSTATION AUGMENTATIONS | AE145: SUBSTATIONS | AF145: INDOOR | AG145: DESCRIPTOR METRIC | AH145: VOLUME UPGRADED | AI145: 000'S | AK145: 0
B147: Table 2.3.3.2 Cost Metrics
M150: TOTAL DIRECT EXPENDITURE ($000's) | N150: TOTAL DIRECT EXPENDITURE ($000) | O150: TOTAL DIRECT EXPENDITURE ($000) | P150: TOTAL DIRECT EXPENDITURE ($000) | Q150: TOTAL DIRECT EXPENDITURE ($000)
B151: PROJECT TYPE | M151: =Years -> 2014 | N151: 0 | O151: 0 | P151: 0 | Q151: 0
A152: ED_AUG2332_00001 | B152: HV Feeder Augmentations - Overhead Lines | M152: 31.09567
A153: ED_AUG2332_00002 | B153: HV Feeder Augmentations - Underground Cables | M153: 0
A154: ED_AUG2332_00003 | B154: HV Feeder Non-Material Projects | M154: 8582.843779
A155: ED_AUG2332_00004 | B155: LV Feeder Augmentations - Overhead Lines | M155: 171.31121
A156: ED_AUG2332_00005 | B156: LV Feeder Augmentations - Underground Cables | M156: 0
A157: ED_AUG2332_00006 | B157: LV Feeder Non-Material Projects | M157: 470.7621689
A158: ED_AUG2332_00007 | B158: Distribution Substation Augmentations - Pole Mounted | M158: 935.3191761
A159: ED_AUG2332_00008 | B159: Distribution Substation Augmentations - Ground Mounted | M159: 176.591425
A160: ED_AUG2332_00009 | B160: Distribution Substation Augmentations - Indoor | M160: 0
B168: TABLE 2.3.4 - AUGEX DATA - TOTAL EXPENDITURE
B170: AUGMENTATION CAPEX | M170: Expenditure ($000's) | N170: Expenditure ($000's) | O170: Expenditure ($000's) | P170: Expenditure ($000's) | Q170: Expenditure ($000's)
B171: AS INCURRED ($000's) | M171: =Years -> 2014 | N171: 0 | O171: 0 | P171: 0 | Q171: 0
A172: ED_AUG234_00001 | B172: Subtransmission Substations, Switching Stations, Zone Substations | M172: 6362.00025 | N172: 71083.88939 | O172: 57955.46557 | P172: 52247.39458 | Q172: 41900.94965
A173: ED_AUG234_00002 | B173: Subtransmission Lines | M173: 795.4643608 | N173: 27358.06424 | O173: 12990.61252 | P173: 10581.1499 | Q173: 9425.253806
A174: ED_AUG234_00003 | B174: HV Feeders | M174: 8613.939 | N174: 33123.55587 | O174: 32531.51908 | P174: 53870.6688 | Q174: 54323.56439
A175: ED_AUG234_00004 | B175: HV Feeders - Land Purchases and Easements | M175: 0 | N175: 0 | O175: 0 | P175: 0 | Q175: 0
A176: ED_AUG234_00005 | B176: Distribution Substations | M176: 1111.910601 | N176: 11149.89743 | O176: 13130.04214 | P176: 14613.64282 | Q176: 12708.52275
A177: ED_AUG234_00006 | B177: Distribution Substations - Land Purchases And Easements | M177: 0 | N177: 0 | O177: 0 | P177: 0 | Q177: 0
A178: ED_AUG234_00007 | B178: LV Feeders | M178: 642.0733789 | N178: 1905.285112 | O178: 2440.497866 | P178: 2398.729119 | Q178: 3027.248054
A179: ED_AUG234_00008 | B179: LV Feeders - Land Purchases And Easements | M179: 0 | N179: 0 | O179: 0 | P179: 0 | Q179: 0
A180: ED_AUG234_00009 | B180: Other Assets | M180: 35865.05762

Sheet 2.5 Connections
B1: =Title -> REGULATORY REPORTING STATEMENT
B2: =TradingName -> Powercor Australia Ltd
B3: =CONCATENATE("Category Analysis RIN response ",CRY) -> Category Analysis RIN response 2014
B4: 2.5 CONNECTIONS
B9: TABLE 2.5.1 DESCRIPTOR METRICS | F9: TABLE 2.5.2 COST METRICS BY CONNECTION CLASSIFICATION
B10: <<<GROUP-ROW>>>
D12: VOLUMES AND EXPENDITURE | H12: EXPENDITURE ($000's) | J12: VOLUMES (000s)
B13: CONNECTION SUBCATEGORY | C13: DESCRIPTOR METRIC | D13: =CRY -> 2014 | F13: CONNECTION SUBCATEGORY | G13: CONNECTION CLASSICIATION | H13: =CRY -> 2014 | J13: =CRY -> 2014
A14: ED_CON251_00001 | B14: RESIDENTIAL | C14: Underground connections (000's) | D14: 12.34 | E14: ED_CON252_00001 | F14: RESIDENTIAL | G14: Simple connection LV | H14: 4223.321 | J14: 12.58868
A15: ED_CON251_00002 | C15: Overhead connections (000's) | D15: 0.393 | E15: ED_CON252_00002 | G15: Complex connection LV | H15: 19508.022 | J15: 3.264320938
A16: ED_CON251_00003 | C16: Distribution substation installed (MVA added) | D16: 145.1252311 | E16: ED_CON252_00003 | G16: Complex connection HV | H16: 7890.929 | J16: 0.3060302958
A17: ED_CON251_00004 | C17: Distribution substations installed (000's) | D17: 0.2790496769 | E17: ED_CON252_00004 | F17: COMMERCIAL/INDUSTRIAL | G17: Simple connection LV | H17: 689.033 | J17: 2.115977818
A18: ED_CON251_00005 | C18: Distribution substation installed (total spend $000's) | D18: 12960.59295 | E18: ED_CON252_00005 | G18: Complex connection HV (customer connected at LV, minor HV works) | H18: 0 | J18: 0
A19: ED_CON251_00006 | C19: Augmentation HV (net circuit KM added) | D19: 33.72047439 | E19: ED_CON252_00006 | G19: Complex connection HV (customer connected at LV, upstream asset works) | H19: 26029.726 | J19: 0.3327662565
A20: ED_CON251_00007 | C20: Augmentation HV (total spend $000's) | D20: 14599.13462 | E20: ED_CON252_00007 | G20: Complex connection HV (customer connected at HV) | H20: 3103.653 | J20: 0.004101748707
A21: ED_CON251_00008 | C21: Augmentation LV (net circuit KM added) | D21: 79.08900316 | E21: ED_CON252_00008 | G21: Complex connection sub-transmission | H21: 0 | J21: 0
A22: ED_CON251_00009 | C22: Augmentation LV (total spend $000's) | D22: 3910.339018 | E22: ED_CON252_00009 | F22: SUBDIVISION | G22: Complex connection LV | H22: 0 | J22: 0
A23: ED_CON251_00010 | C23: Mean days to connect residential customer with LV single phase connection (0's) | D23: 6 | E23: ED_CON252_00010 | G23: Complex connection HV (no upstream asset works) | H23: 0 | J23: 0
A24: ED_CON251_00011 | C24: Volume of GSL breaches for residential customers (0's) | D24: 80 | E24: ED_CON252_00011 | G24: Complex connection HV (with upstream asset works) | H24: 9256.57 | J24: 0.3100301087
A25: ED_CON251_00012 | C25: Volume of customer complaints relating to connection services (0's) | D25: 26 | E25: ED_CON252_00012 | F25: EMBEDDED GENERATION | G25: Simple connection LV | H25: 0 | J25: 0
A26: ED_CON251_00013 | C26: GSL payments ($000's) | D26: 12.97 | E26: ED_CON252_00013 | G26: Complex connection HV (small capacity) | H26: 1570.826 | J26: 0.007010290411
A27: ED_CON251_00014 | B27: COMMERCIAL/INDUSTRIAL | C27: Underground connections (000's) | D27: 1.35 | E27: ED_CON252_00014 | G27: Complex connection HV (large capacity) | H27: 0 | J27: 0
A28: ED_CON251_00015 | C28: Overhead connections (000's) | D28: 0.555
A29: ED_CON251_00016 | C29: Distribution substation installed (MVA added) | D29: 93.42655869
A30: ED_CON251_00017 | C30: Distribution substations installed (000's) | D30: 0.1796424427
A31: ED_CON251_00018 | C31: Distribution substation installed total spend ($000's) | D31: 4830.440399
A32: ED_CON251_00019 | C32: Augmentation HV (net circuit KM added) | D32: 80.37174641
A33: ED_CON251_00020 | C33: Augmentation HV (total spend $000's) | D33: 20145.18556
A34: ED_CON251_00021 | C34: Augmentation LV (net circuit KM added) | D34: 168.7539662
A35: ED_CON251_00022 | C35: Augmentation LV (total spend $000's) | D35: 4830.440399
A36: ED_CON251_00023 | B36: SUBDIVISION | C36: Underground connections (000's) | D36: 0
A37: ED_CON251_00024 | C37: Overhead connections (000's) | D37: 0
A38: ED_CON251_00025 | C38: Distribution substation installed (MVA added) | D38: 36.76431533
A39: ED_CON251_00026 | C39: Distribution substations installed (000's) | D39: 0.07069115572
A40: ED_CON251_00027 | C40: Distribution substation installed (total spend $000's) | D40: 1380.030936
A41: ED_CON251_00028 | C41: Augmentation HV (net circuit KM added) | D41: 18.87000157
A42: ED_CON251_00029 | C42: Augmentation HV (total spend $000's) | D42: 3433.885162
A43: ED_CON251_00030 | C43: Augmentation LV (net circuit KM added) | D43: 213.7783846
A44: ED_CON251_00031 | C44: Augmentation LV (total spend $000's) | D44: 4442.654031
A45: ED_CON251_00032 | C45: Cost per lot ($) | D45: 917
A46: ED_CON251_00033 | B46: EMBEDDED GENERATION | C46: Underground connections (000's) | D46: 0
A47: ED_CON251_00034 | C47: Overhead connections (000's) | D47: 0
A48: ED_CON251_00035 | C48: Distribution substation installed (MVA added) | D48: 16.44289483
A49: ED_CON251_00036 | C49: Distribution substations installed (000's) | D49: 0.03161672476
A50: ED_CON251_00037 | C50: Distribution substation installed (total spend $000's) | D50: 955.3885386
A51: ED_CON251_00038 | C51: Augmentation HV (net circuit KM added) | D51: 1.91197763
A52: ED_CON251_00039 | C52: Augmentation HV (total spend $000's) | D52: 538.5624201
A53: ED_CON251_00040 | C53: Augmentation LV (net circuit KM added) | D53: 2.389845944
A54: ED_CON251_00041 | C54: Augmentation LV (total spend $000's) | D54: 76.87551132

Sheet 2.6 Non-network
B1: =Title -> REGULATORY REPORTING STATEMENT
B2: =TradingName -> Powercor Australia Ltd
B3: =CONCATENATE("Category Analysis RIN response ",CRY) -> Category Analysis RIN response 2014
B4: 2.6 NON NETWORK EXPENDITURE
B9: TABLE 2.6.1 NON-NETWORK EXPENDITURE | G9: TABLE 2.6.2 ANNUAL DESCRIPTOR METRICS - IT & COMMUNICATIONS EXPENDITURE | K9: TABLE 2.6.3 ANNUAL DESCRIPTOR METRICS - MOTOR VEHICLES
B10: <<<GROUP-ROW>>>
E12: EXPENDITURE ($000's) | I12: VOLUMES | L12: ASSET REPORTING CATEGORY | N12: VOLUMES / %
A13: ED_NON261_00001 | B13: SERVICE SUBCATEGORY | C13: ASSET CATEGORY | D13: ASSET REPORTING CATEGORY | E13: =CRY -> 2014 | G13: NON-NETWORK CATEGORY | H13: DESCRIPTOR METRIC | I13: =CRY -> 2014 | K13: NON-NETWORK CATEGORY | L13: ASSET CATEGORY | M13: DESCRIPTOR METRIC | N13: =CRY -> 2014
A14: ED_NON261_00002 | B14: IT & COMMUNICATIONS | C14: Client device expenditure | D14: Opex | E14: 4589.997164 | F14: ED_NON262_00001 | G14: IT & COMMUNICATIONS | H14: Employee numbers | I14: 1516 | J14: ED_NON263_00001 | K14: MOTOR VEHICLES | L14: CAR | M14: Average kilometres travelled (000's) | N14: 29
A15: ED_NON261_00003 | D15: Capex | E15: 174.96724 | F15: ED_NON262_00002 | H15: User numbers | I15: 1430 | J15: ED_NON263_00002 | M15: Number purchased | N15: 71
A16: ED_NON261_00004 | C16: Recurrent expenditure | D16: Opex | E16: 20606.0152 | F16: ED_NON262_00003 | H16: Number of devices | I16: 3034 | J16: ED_NON263_00003 | M16: Number leased | N16: 0
A17: ED_NON261_00005 | D17: Capex | E17: 11564.56748 | J17: ED_NON263_00004 | M17: Number in fleet | N17: 344.5
A18: ED_NON261_00006 | C18: Non-recurrent expenditure | D18: Opex | E18: 0 | J18: ED_NON263_00005 | M18: Proportion of total fleet expenditure allocated as regulatory expenditure (%) | N18: 1
A19: ED_NON261_00007 | D19: Capex | E19: 8037.15518 | J19: ED_NON263_00006 | L19: LIGHT COMMERCIAL VEHICLE | M19: Average kilometres travelled (000's) | N19: 28
A20: ED_NON261_00008 | B20: MOTOR VEHICLES | C20: Car | D20: Opex | E20: 2116.947 | J20: ED_NON263_00007 | M20: Number purchased | N20: 63
A21: ED_NON261_00009 | D21: Capex | E21: 2150.468 | J21: ED_NON263_00008 | M21: Number leased | N21: 0
A22: ED_NON261_00010 | C22: Light commercial vehicle | D22: Opex | E22: 1540.845 | J22: ED_NON263_00009 | M22: Number in fleet | N22: 197
A23: ED_NON261_00011 | D23: Capex | E23: 1749.017 | J23: ED_NON263_00010 | M23: Proportion of total fleet expenditure allocated as regulatory expenditure (%) | N23: 1
A24: ED_NON261_00012 | C24: Elevated work platform (LCV) | D24: Opex | E24: 443.156 | J24: ED_NON263_00011 | L24: ELEVATED WORK PLATFORM (LCV) | M24: Average kilometres travelled (000's) | N24: 32
A25: ED_NON261_00013 | D25: Capex | E25: 180.607 | J25: ED_NON263_00012 | M25: Number purchased | N25: 0
A26: ED_NON261_00014 | C26: Elevated work platform (HCV) | D26: Opex | E26: 1087.57 | J26: ED_NON263_00013 | M26: Number leased | N26: 0
A27: ED_NON261_00015 | D27: Capex | E27: 3691.417 | J27: ED_NON263_00014 | M27: Number in fleet | N27: 19
A28: ED_NON261_00016 | C28: Heavy commercial vehicle | D28: Opex | E28: 2121.109 | J28: ED_NON263_00015 | M28: Proportion of total fleet expenditure allocated as regulatory expenditure (%) | N28: 1
A29: ED_NON261_00017 | D29: Capex | E29: 3874.611 | J29: ED_NON263_00016 | L29: ELEVATED WORK PLATFORM (HCV) | M29: Average kilometres travelled (000's) | N29: 18
A30: ED_NON261_00018 | B30: BUILDINGS AND PROPERTY | C30: Total buildings and property expenditure | D30: Opex | E30: 7610.86 | J30: ED_NON263_00017 | M30: Number purchased | N30: 8
A31: ED_NON261_00019 | D31: Capex | E31: 14200.38 | J31: ED_NON263_00018 | M31: Number leased | N31: 0
A32: ED_NON261_00020 | B32: OTHER | C32: Other expenditure | D32: Opex | E32: 0 | J32: ED_NON263_00019 | M32: Number in fleet | N32: 57.5
A33: ED_NON261_00021 | D33: Capex | E33: 2691.60928 | J33: ED_NON263_00020 | M33: Proportion of total fleet expenditure allocated as regulatory expenditure (%) | N33: 1
A34: ED_NON261_00022 | B34: OTHER - DNSP nominated | C34: < Enter description for nominated category > | D34: Opex | J34: ED_NON263_00021 | L34: HEAVY COMMERCIAL VEHICLE | M34: Average kilometres travelled (000's) | N34: 7
A35: ED_NON261_00023 | D35: Capex | J35: ED_NON263_00022 | M35: Number purchased | N35: 44
A36: ED_NON261_00024 | D36: Opex | J36: ED_NON263_00023 | M36: Number leased | N36: 0
A37: ED_NON261_00025 | D37: Capex | J37: ED_NON263_00024 | M37: Number in fleet | N37: 390.5
A38: ED_NON261_00026 | D38: Opex | J38: ED_NON263_00025 | M38: Proportion of total fleet expenditure allocated as regulatory expenditure (%) | N38: 1
A39: ED_NON261_00027 | D39: Capex
A40: ED_NON261_00028 | D40: Opex
A41: ED_NON261_00029 | D41: Capex
A42: ED_NON261_00030 | D42: Opex
A43: ED_NON261_00031 | D43: Capex
A44: ED_NON261_00032 | D44: Opex
A45: ED_NON261_00033 | D45: Capex
A46: ED_NON261_00034 | D46: Opex
A47: ED_NON261_00035 | D47: Capex
A48: ED_NON261_00036 | D48: Opex
A49: ED_NON261_00037 | D49: Capex
A50: ED_NON261_00038 | D50: Opex
A51: ED_NON261_00039 | D51: Capex
A52: ED_NON261_00040 | D52: Opex
A53: ED_NON261_00041 | D53: Capex
A54: ED_NON261_00042 | D54: Opex
A55: ED_NON261_00043 | D55: Capex

Sheet 2.7 Vegetation management
B1: =Title -> REGULATORY REPORTING STATEMENT
B2: =TradingName -> Powercor Australia Ltd
B3: =CONCATENATE("Category Analysis RIN response ",CRY) -> Category Analysis RIN response 2014
B4: 2.7 VEGETATION MANAGEMENT
B6: TABLE 2.7.3 - DESCRIPTOR METRICS ACROSS ALL ZONES - UNPLANNED VEGETATION EVENTS | I6: TABLE 2.7.1 - DESCRIPTOR METRICS BY ZONE | N6: TABLE 2.7.2 - EXPENDITURE METRICS BY ZONE
C9: VOLUMES | D9: VOLUMES | E9: VOLUMES | F9: VOLUMES | G9: VOLUMES | L9: VOLUMES | P9: EXPENDITURE ($000's)
B10: DESCRIPTOR METRIC | C10: =Years -> 2014 | D10: 0 | E10: 0 | F10: 0 | G10: 0 | I10: ZONES | J10: ASSET | K10: ASSET SUBCATEGORY | L10: =CRY -> 2014 | N10: ZONES | O10: SERVICE SUBCATEGORY | P10: =CRY -> 2014
A11: ED_VEG273_00001 | B11: Number of fire starts caused by vegetation grow-ins (NSP responsibility) (0's) | C11: 1 | H11: ED_VEG271_00001 | I11: ZONE (DNSP to nominate) | J11: Route line length within zone (KM) | K11: Urban and CBD | L11: 5348.821117 | M11: ED_VEG272_00001 | N11: =I11 -> ZONE (DNSP to nominate) | O11: Tree trimming (excluding hazard trees) | P11: 29225.33968
A12: ED_VEG273_00002 | B12: Number of fire starts caused by vegetation blow-ins and fall-ins (NSP responsibility) (0's) | C12: 12 | H12: ED_VEG271_00002 | K12: Rural | L12: 61657.2879 | M12: ED_VEG272_00002 | O12: Hazard tree cutting | P12: 0
A13: ED_VEG273_00003 | B13: Number of fire starts caused by vegetation grow-ins (other party responsibility) (0's) | C13: 1 | H13: ED_VEG271_00003 | J13: Number of maintenance spans (0's) | K13: Urban and CBD | L13: 4415 | M13: ED_VEG272_00003 | O13: Ground clearance | P13: 0
A14: ED_VEG273_00004 | B14: Number of fire starts caused by vegetation blow-ins and fall-ins (other party responsibility) (0's) | C14: 2 | H14: ED_VEG271_00004 | K14: Rural | L14: 41590 | M14: ED_VEG272_00004 | O14: Vegetation corridor clearance | P14: 1092
H15: ED_VEG271_00005 | J15: Total length of maintenance spans (KM) | K15: Urban and CBD | L15: 388 | M15: ED_VEG272_00005 | O15: Inspection | P15: 5391.16032
H16: ED_VEG271_00006 | K16: Rural | L16: 5034 | M16: ED_VEG272_00006 | O16: Audit | P16: 0
H17: ED_VEG271_00007 | J17: Length of vegetation corridors (KM) | K17: Urban and CBD | L17: 145 | M17: ED_VEG272_00007 | O17: Contractor liaison expenditure | P17: 336.4
H18: ED_VEG271_00008 | K18: Rural | L18: 0 | M18: ED_VEG272_00008 | O18: Tree replacement program costs | P18: 0
H19: ED_VEG271_00009 | J19: Average number of trees per maintenance span (0's) | K19: Urban and CBD | L19: 2.079 | M19: ED_VEG272_00009 | O19: Other vegetation management costs not specified in sheet | P19: 0
H20: ED_VEG271_00010 | K20: Rural | L20: 5.558 | M20: ED_VEG272_00010 | N20: =I23 -> ZONE (DNSP to nominate) | O20: Tree trimming (excluding hazard trees)
H21: ED_VEG271_00011 | J21: Average frequency of cutting cycle (years) | K21: Urban and CBD | L21: 1.85 | M21: ED_VEG272_00011 | O21: Hazard tree cutting
H22: ED_VEG271_00012 | K22: Rural | L22: 1.92 | M22: ED_VEG272_00012 | O22: Ground clearance
H23: ED_VEG271_00013 | I23: ZONE (DNSP to nominate) | J23: Route line length within zone (KM) | K23: Urban and CBD | M23: ED_VEG272_00013 | O23: Vegetation corridor clearance
H24: ED_VEG271_00014 | K24: Rural | M24: ED_VEG272_00014 | O24: Inspection
H25: ED_VEG271_00015 | J25: Number of maintenance spans (0's) | K25: Urban and CBD | M25: ED_VEG272_00015 | O25: Audit
H26: ED_VEG271_00016 | K26: Rural | M26: ED_VEG272_00016 | O26: Contractor liaison expenditure
H27: ED_VEG271_00017 | J27: Total length of maintenance spans (KM) | K27: Urban and CBD | M27: ED_VEG272_00017 | O27: Tree replacement program costs
H28: ED_VEG271_00018 | K28: Rural | M28: ED_VEG272_00018 | O28: Other vegetation management costs not specified in sheet
H29: ED_VEG271_00019 | J29: Length of vegetation corridors (KM) | K29: Urban and CBD | M29: ED_VEG272_00019 | N29: =I35 -> ZONE (DNSP to nominate) | O29: Tree trimming (excluding hazard trees)
H30: ED_VEG271_00020 | K30: Rural | M30: ED_VEG272_00020 | O30: Hazard tree cutting
H31: ED_VEG271_00021 | J31: Average number of trees per maintenance span (0's) | K31: Urban and CBD | M31: ED_VEG272_00021 | O31: Ground clearance
H32: ED_VEG271_00022 | K32: Rural | M32: ED_VEG272_00022 | O32: Vegetation corridor clearance
H33: ED_VEG271_00023 | J33: Average frequency of cutting cycle (years) | K33: Urban and CBD | M33: ED_VEG272_00023 | O33: Inspection
H34: ED_VEG271_00024 | K34: Rural | M34: ED_VEG272_00024 | O34: Audit
H35: ED_VEG271_00025 | I35: ZONE (DNSP to nominate) | J35: Route line length within zone (KM) | K35: Urban and CBD | M35: ED_VEG272_00025 | O35: Contractor liaison expenditure
H36: ED_VEG271_00026 | K36: Rural | M36: ED_VEG272_00026 | O36: Tree replacement program costs
H37: ED_VEG271_00027 | J37: Number of maintenance spans (0's) | K37: Urban and CBD | M37: ED_VEG272_00027 | O37: Other vegetation management costs not specified in sheet
H38: ED_VEG271_00028 | K38: Rural | M38: ED_VEG272_00028 | N38: =I47 -> ZONE (DNSP to nominate) | O38: Tree trimming (excluding hazard trees)
H39: ED_VEG271_00029 | J39: Total length of maintenance spans (KM) | K39: Urban and CBD | M39: ED_VEG272_00029 | O39: Hazard tree cutting
H40: ED_VEG271_00030 | K40: Rural | M40: ED_VEG272_00030 | O40: Ground clearance
H41: ED_VEG271_00031 | J41: Length of vegetation corridors (KM) | K41: Urban and CBD | M41: ED_VEG272_00031 | O41: Vegetation corridor clearance
H42: ED_VEG271_00032 | K42: Rural | M42: ED_VEG272_00032 | O42: Inspection
H43: ED_VEG271_00033 | J43: Average number of trees per maintenance span (0's) | K43: Urban and CBD | M43: ED_VEG272_00033 | O43: Audit
H44: ED_VEG271_00034 | K44: Rural | M44: ED_VEG272_00034 | O44: Contractor liaison expenditure
H45: ED_VEG271_00035 | J45: Average frequency of cutting cycle (years) | K45: Urban and CBD | M45: ED_VEG272_00035 | O45: Tree replacement program costs
H46: ED_VEG271_00036 | K46: Rural | M46: ED_VEG272_00036 | O46: Other vegetation management costs not specified in sheet
H47: ED_VEG271_00037 | I47: ZONE (DNSP to nominate) | J47: Route line length within zone (KM) | K47: Urban and CBD | M47: ED_VEG272_00037 | N47: =I59 -> ZONE (DNSP to nominate) | O47: Tree trimming (excluding hazard trees)
H48: ED_VEG271_00038 | K48: Rural | M48: ED_VEG272_00038 | O48: Hazard tree cutting
H49: ED_VEG271_00039 | J49: Number of maintenance spans (0's) | K49: Urban and CBD | M49: ED_VEG272_00039 | O49: Ground clearance
H50: ED_VEG271_00040 | K50: Rural | M50: ED_VEG272_00040 | O50: Vegetation corridor clearance
H51: ED_VEG271_00041 | J51: Total length of maintenance spans (KM) | K51: Urban and CBD | M51: ED_VEG272_00041 | O51: Inspection
H52: ED_VEG271_00042 | K52: Rural | M52: ED_VEG272_00042 | O52: Audit
H53: ED_VEG271_00043 | J53: Length of vegetation corridors (KM) | K53: Urban and CBD | M53: ED_VEG272_00043 | O53: Contractor liaison expenditure
H54: ED_VEG271_00044 | K54: Rural | M54: ED_VEG272_00044 | O54: Tree replacement program costs
H55: ED_VEG271_00045 | J55: Average number of trees per maintenance span (0's) | K55: Urban and CBD | M55: ED_VEG272_00045 | O55: Other vegetation management costs not specified in sheet
H56: ED_VEG271_00046 | K56: Rural | M56: ED_VEG272_00046 | N56: =I71 -> ZONE (DNSP to nominate) | O56: Tree trimming (excluding hazard trees)
H57: ED_VEG271_00047 | J57: Average frequency of cutting cycle (years) | K57: Urban and CBD | M57: ED_VEG272_00047 | O57: Hazard tree cutting
H58: ED_VEG271_00048 | K58: Rural | M58: ED_VEG272_00048 | O58: Ground clearance
H59: ED_VEG271_00049 | I59: ZONE (DNSP to nominate) | J59: Route line length within zone (KM) | K59: Urban and CBD | M59: ED_VEG272_00049 | O59: Vegetation corridor clearance
H60: ED_VEG271_00050 | K60: Rural | M60: ED_VEG272_00050 | O60: Inspection
H61: ED_VEG271_00051 | J61: Number of maintenance spans (0's) | K61: Urban and CBD | M61: ED_VEG272_00051 | O61: Audit
H62: ED_VEG271_00052 | K62: Rural | M62: ED_VEG272_00052 | O62: Contractor liaison expenditure
H63: ED_VEG271_00053 | J63: Total length of maintenance spans (KM) | K63: Urban and CBD | M63: ED_VEG272_00053 | O63: Tree replacement program costs
H64: ED_VEG271_00054 | K64: Rural | M64: ED_VEG272_00054 | O64: Other vegetation management costs not specified in sheet
H65: ED_VEG271_00055 | J65: Length of vegetation corridors (KM) | K65: Urban and CBD | M65: ED_VEG272_00055 | N65: =I83 -> ZONE (DNSP to nominate) | O65: Tree trimming (excluding hazard trees)
H66: ED_VEG271_00056 | K66: Rural | M66: ED_VEG272_00056 | O66: Hazard tree cutting
H67: ED_VEG271_00057 | J67: Average number of trees per maintenance span (0's) | K67: Urban and CBD | M67: ED_VEG272_00057 | O67: Ground clearance
H68: ED_VEG271_00058 | K68: Rural | M68: ED_VEG272_00058 | O68: Vegetation corridor clearance
H69: ED_VEG271_00059 | J69: Average frequency of cutting cycle (years) | K69: Urban and CBD | M69: ED_VEG272_00059 | O69: Inspection
H70: ED_VEG271_00060 | K70: Rural | M70: ED_VEG272_00060 | O70: Audit
H71: ED_VEG271_00061 | I71: ZONE (DNSP to nominate) | J71: Route line length within zone (KM) | K71: Urban and CBD | M71: ED_VEG272_00061 | O71: Contractor liaison expenditure
H72: ED_VEG271_00062 | K72: Rural | M72: ED_VEG272_00062 | O72: Tree replacement program costs
H73: ED_VEG271_00063 | J73: Number of maintenance spans (0's) | K73: Urban and CBD | M73: ED_VEG272_00063 | O73: Other vegetation management costs not specified in sheet
H74: ED_VEG271_00064 | K74: Rural | M74: ED_VEG272_00064 | N74: =I95 -> ZONE (DNSP to nominate) | O74: Tree trimming (excluding hazard trees)
H75: ED_VEG271_00065 | J75: Total length of maintenance spans (KM) | K75: Urban and CBD | M75: ED_VEG272_00065 | O75: Hazard tree cutting
H76: ED_VEG271_00066 | K76: Rural | M76: ED_VEG272_00066 | O76: Ground clearance
H77: ED_VEG271_00067 | J77: Length of vegetation corridors (KM) | K77: Urban and CBD | M77: ED_VEG272_00067 | O77: Vegetation corridor clearance
H78: ED_VEG271_00068 | K78: Rural | M78: ED_VEG272_00068 | O78: Inspection
H79: ED_VEG271_00069 | J79: Average number of trees per maintenance span (0's) | K79: Urban and CBD | M79: ED_VEG272_00069 | O79: Audit
H80: ED_VEG271_00070 | K80: Rural | M80: ED_VEG272_00070 | O80: Contractor liaison expenditure
H81: ED_VEG271_00071 | J81: Average frequency of cutting cycle (years) | K81: Urban and CBD | M81: ED_VEG272_00071 | O81: Tree replacement program costs
H82: ED_VEG271_00072 | K82: Rural | M82: ED_VEG272_00072 | O82: Other vegetation management costs not specified in sheet
H83: ED_VEG271_00073 | I83: ZONE (DNSP to nominate) | J83: Route line length within zone (KM) | K83: Urban and CBD | M83: ED_VEG272_00073 | N83: =I107 -> ZONE (DNSP to nominate) | O83: Tree trimming (excluding hazard trees)
H84: ED_VEG271_00074 | K84: Rural | M84: ED_VEG272_00074 | O84: Hazard tree cutting
H85: ED_VEG271_00075 | J85: Number of maintenance spans (0's) | K85: Urban and CBD | M85: ED_VEG272_00075 | O85: Ground clearance
H86: ED_VEG271_00076 | K86: Rural | M86: ED_VEG272_00076 | O86: Vegetation corridor clearance
H87: ED_VEG271_00077 | J87: Total length of maintenance spans (KM) | K87: Urban and CBD | M87: ED_VEG272_00077 | O87: Inspection
H88: ED_VEG271_00078 | K88: Rural | M88: ED_VEG272_00078 | O88: Audit
H89: ED_VEG271_00079 | J89: Length of vegetation corridors (KM) | K89: Urban and CBD | M89: ED_VEG272_00079 | O89: Contractor liaison expenditure
H90: ED_VEG271_00080 | K90: Rural | M90: ED_VEG272_00080 | O90: Tree replacement program costs
H91: ED_VEG271_00081 | J91: Average number of trees per maintenance span (0's) | K91: Urban and CBD | M91: ED_VEG272_00081 | O91: Other vegetation management costs not specified in sheet
H92: ED_VEG271_00082 | K92: Rural | M92: ED_VEG272_00082 | N92: =I119 -> ZONE (DNSP to nominate) | O92: Tree trimming (excluding hazard trees)
H93: ED_VEG271_00083 | J93: Average frequency of cutting cycle (years) | K93: Urban and CBD | M93: ED_VEG272_00083 | O93: Hazard tree cutting
H94: ED_VEG271_00084 | K94: Rural | M94: ED_VEG272_00084 | O94: Ground clearance
H95: ED_VEG271_00085 | I95: ZONE (DNSP to nominate) | J95: Route line length within zone (KM) | K95: Urban and CBD | M95: ED_VEG272_00085 | O95: Vegetation corridor clearance
H96: ED_VEG271_00086 | K96: Rural | M96: ED_VEG272_00086 | O96: Inspection
H97: ED_VEG271_00087 | J97: Number of maintenance spans (0's) | K97: Urban and CBD | M97: ED_VEG272_00087 | O97: Audit
H98: ED_VEG271_00088 | K98: Rural | M98: ED_VEG272_00088 | O98: Contractor liaison expenditure
H99: ED_VEG271_00089 | J99: Total length of maintenance spans (KM) | K99: Urban and CBD | M99: ED_VEG272_00089 | O99: Tree replacement program costs
H100: ED_VEG271_00090 | K100: Rural | M100: ED_VEG272_00090 | O100: Other vegetation management costs not specified in sheet
H101: ED_VEG271_00091 | J101: Length of vegetation corridors (KM) | K101: Urban and CBD | M101: ED_VEG272_00091 | N101: =I131 -> ZONE (DNSP to nominate) | O101: Tree trimming (excluding hazard trees)
H102: ED_VEG271_00092 | K102: Rural | M102: ED_VEG272_00092 | O102: Hazard tree cutting
H103: ED_VEG271_00093 | J103: Average number of trees per maintenance span (0's) | K103: Urban and CBD | M103: ED_VEG272_00093 | O103: Ground clearance
H104: ED_VEG271_00094 | K104: Rural | M104: ED_VEG272_00094 | O104: Vegetation corridor clearance
H105: ED_VEG271_00095 | J105: Average frequency of cutting cycle (years) | K105: Urban and CBD | M105: ED_VEG272_00095 | O105: Inspection
H106: ED_VEG271_00096 | K106: Rural | M106: ED_VEG272_00096 | O106: Audit
H107: ED_VEG271_00097 | I107: ZONE (DNSP to nominate) | J107: Route line length within zone (KM) | K107: Urban and CBD | M107: ED_VEG272_00097 | O107: Contractor liaison expenditure
H108: ED_VEG271_00098 | K108: Rural | M108: ED_VEG272_00098 | O108: Tree replacement program costs
H109: ED_VEG271_00099 | J109: Number of maintenance spans (0's) | K109: Urban and CBD | M109: ED_VEG272_00099 | O109: Other vegetation management costs not specified in sheet
H110: ED_VEG271_00100 | K110: Rural | M110: ED_VEG272_00100 | N110: =I143 -> ZONE (DNSP to nominate) | O110: Tree trimming (excluding hazard trees)
H111: ED_VEG271_00101 | J111: Total length of maintenance spans (KM) | K111: Urban and CBD | M111: ED_VEG272_00101 | O111: Hazard tree cutting
H112: ED_VEG271_00102 | K112: Rural | M112: ED_VEG272_00102 | O112: Ground clearance
H113: ED_VEG271_00103 | J113: Length of vegetation corridors (KM) | K113: Urban and CBD | M113: ED_VEG272_00103 | O113: Vegetation corridor clearance
H114: ED_VEG271_00104 | K114: Rural | M114: ED_VEG272_00104 | O114: Inspection
H115: ED_VEG271_00105 | J115: Average number of trees per maintenance span (0's) | K115: Urban and CBD | M115: ED_VEG272_00105 | O115: Audit
H116: ED_VEG271_00106 | K116: Rural | M116: ED_VEG272_00106 | O116: Contractor liaison expenditure
H117: ED_VEG271_00107 | J117: Average frequency of cutting cycle (years) | K117: Urban and CBD | M117: ED_VEG272_00107 | O117: Tree replacement program costs
H118: ED_VEG271_00108 | K118: Rural | M118: ED_VEG272_00108 | O118: Other vegetation management costs not specified in sheet
H119: ED_VEG271_00109 | I119: ZONE (DNSP to nominate) | J119: Route line length within zone (KM) | K119: Urban and CBD | M119: ED_VEG272_00109 | N119: =I155 -> ZONE (DNSP to nominate) | O119: Tree trimming (excluding hazard trees)
H120: ED_VEG271_00110 | K120: Rural | M120: ED_VEG272_00110 | O120: Hazard tree cutting
H121: ED_VEG271_00111 | J121: Number of maintenance spans (0's) | K121: Urban and CBD | M121: ED_VEG272_00111 | O121: Ground clearance
H122: ED_VEG271_00112 | K122: Rural | M122: ED_VEG272_00112 | O122: Vegetation corridor clearance
H123: ED_VEG271_00113 | J123: Total length of maintenance spans (KM) | K123: Urban and CBD | M123: ED_VEG272_00113 | O123: Inspection
H124: ED_VEG271_00114 | K124: Rural | M124: ED_VEG272_00114 | O124: Audit
H125: ED_VEG271_00115 | J125: Length of vegetation corridors (KM) | K125: Urban and CBD | M125: ED_VEG272_00115 | O125: Contractor liaison expenditure
H126: ED_VEG271_00116 | K126: Rural | M126: ED_VEG272_00116 | O126: Tree replacement program costs
H127: ED_VEG271_00117 | J127: Average number of trees per maintenance span (0's) | K127: Urban and CBD | M127: ED_VEG272_00117 | O127: Other vegetation management costs not specified in sheet
H128: ED_VEG271_00118 | K128: Rural | M128: ED_VEG272_00118 | N128: =I167 -> ZONE (DNSP to nominate) | O128: Tree trimming (excluding hazard trees)
H129: ED_VEG271_00119 | J129: Average frequency of cutting cycle (years) | K129: Urban and CBD | M129: ED_VEG272_00119 | O129: Hazard tree cutting
H130: ED_VEG271_00120 | K130: Rural | M130: ED_VEG272_00120 | O130: Ground clearance
H131: ED_VEG271_00121 | I131: ZONE (DNSP to nominate) | J131: Route line length within zone (KM) | K131: Urban and CBD | M131: ED_VEG272_00121 | O131: Vegetation corridor clearance
H132: ED_VEG271_00122 | K132: Rural | M132: ED_VEG272_00122 | O132: Inspection
H133: ED_VEG271_00123 | J133: Number of maintenance spans (0's) | K133: Urban and CBD | M133: ED_VEG272_00123 | O133: Audit
H134: ED_VEG271_00124 | K134: Rural | M134: ED_VEG272_00124 | O134: Contractor liaison expenditure
H135: ED_VEG271_00125 | J135: Total length of maintenance spans (KM) | K135: Urban and CBD | M135: ED_VEG272_00125 | O135: Tree replacement program costs
H136: ED_VEG271_00126 | K136: Rural | M136: ED_VEG272_00126 | O136: Other vegetation management costs not specified in sheet
H137: ED_VEG271_00127 | J137: Length of vegetation corridors (KM) | K137: Urban and CBD | M137: ED_VEG272_00127 | N137: =I179 -> ZONE (DNSP to nominate) | O137: Tree trimming (excluding hazard trees)
H138: ED_VEG271_00128 | K138: Rural | M138: ED_VEG272_00128 | O138: Hazard tree cutting
H139: ED_VEG271_00129 | J139: Average number of trees per maintenance span (0's) | K139: Urban and CBD | M139: ED_VEG272_00129 | O139: Ground clearance
H140: ED_VEG271_00130 | K140: Rural | M140: ED_VEG272_00130 | O140: Vegetation corridor clearance
H141: ED_VEG271_00131 | J141: Average frequency of cutting cycle (years) | K141: Urban and CBD | M141: ED_VEG272_00131 | O141: Inspection
H142: ED_VEG271_00132 | K142: Rural | M142: ED_VEG272_00132 | O142: Audit
H143: ED_VEG271_00133 | I143: ZONE (DNSP to nominate) | J143: Route line length within zone (KM) | K143: Urban and CBD | M143: ED_VEG272_00133 | O143: Contractor liaison expenditure
H144: ED_VEG271_00134 | K144: Rural | M144: ED_VEG272_00134 | O144: Tree replacement program costs
H145: ED_VEG271_00135 | J145: Number of maintenance spans (0's) | K145: Urban and CBD | M145: ED_VEG272_00135 | O145: Other vegetation management costs not specified in sheet
H146: ED_VEG271_00136 | K146: Rural | M146: ED_VEG272_00136 | N146: =I191 -> ZONE (DNSP to nominate) | O146: Tree trimming (excluding hazard trees)
H147: ED_VEG271_00137 | J147: Total length of maintenance spans (KM) | K147: Urban and CBD | M147: ED_VEG272_00137 | O147: Hazard tree cutting
H148: ED_VEG271_00138 | K148: Rural | M148: ED_VEG272_00138 | O148: Ground clearance
H149: ED_VEG271_00139 | J149: Length of vegetation corridors (KM) | K149: Urban and CBD | M149: ED_VEG272_00139 | O149: Vegetation corridor clearance
H150: ED_VEG271_00140 | K150: Rural | M150: ED_VEG272_00140 | O150: Inspection
H151: ED_VEG271_00141 | J151: Average number of trees per maintenance span (0's) | K151: Urban and CBD | M151: ED_VEG272_00141 | O151: Audit
H152: ED_VEG271_00142 | K152: Rural | M152: ED_VEG272_00142 | O152: Contractor liaison expenditure
H153: ED_VEG271_00143 | J153: Average frequency of cutting cycle (years) | K153: Urban and CBD | M153: ED_VEG272_00143 | O153: Tree replacement program costs
H154: ED_VEG271_00144 | K154: Rural | M154: ED_VEG272_00144 | O154: Other vegetation management costs not specified in sheet
H155: ED_VEG271_00145 | I155: ZONE (DNSP to nominate) | J155: Route line length within zone (KM) | K155: Urban and CBD | M155: ED_VEG272_00145 | N155: =I203 -> ZONE (DNSP to nominate) | O155: Tree trimming (excluding hazard trees)
H156: ED_VEG271_00146 | K156: Rural | M156: ED_VEG272_00146 | O156: Hazard tree cutting
H157: ED_VEG271_00147 | J157: Number of maintenance spans (0's) | K157: Urban and CBD | M157: ED_VEG272_00147 | O157: Ground clearance
H158: ED_VEG271_00148 | K158: Rural | M158: ED_VEG272_00148 | O158: Vegetation corridor clearance
H159: ED_VEG271_00149 | J159: Total length of maintenance spans (KM) | K159: Urban and CBD | M159: ED_VEG272_00149 | O159: Inspection
H160: ED_VEG271_00150 | K160: Rural | M160: ED_VEG272_00150 | O160: Audit
H161: ED_VEG271_00151 | J161: Length of vegetation corridors (KM) | K161: Urban and CBD | M161: ED_VEG272_00151 | O161: Contractor liaison expenditure
H162: ED_VEG271_00152 | K162: Rural | M162: ED_VEG272_00152 | O162: Tree replacement program costs
H163: ED_VEG271_00153 | J163: Average number of trees per maintenance span (0's) | K163: Urban and CBD | M163: ED_VEG272_00153 | O163: Other vegetation management costs not specified in sheet
H164: ED_VEG271_00154 | K164: Rural | M164: ED_VEG272_00154 | N164: =I215 -> ZONE (DNSP to nominate) | O164: Tree trimming (excluding hazard trees)
H165: ED_VEG271_00155 | J165: Average frequency of cutting cycle (years) | K165: Urban and CBD | M165: ED_VEG272_00155 | O165: Hazard tree cutting
H166: ED_VEG271_00156 | K166: Rural | M166: ED_VEG272_00156 | O166: Ground clearance
H167: ED_VEG271_00157 | I167: ZONE (DNSP to nominate) | J167: Route line length within zone (KM) | K167: Urban and CBD | M167: ED_VEG272_00157 | O167: Vegetation corridor clearance
H168: ED_VEG271_00158 | K168: Rural | M168: ED_VEG272_00158 | O168: Inspection
H169: ED_VEG271_00159 | J169: Number of maintenance spans (0's) | K169: Urban and CBD | M169: ED_VEG272_00159 | O169: Audit
H170: ED_VEG271_00160 | K170: Rural | M170: ED_VEG272_00160 | O170: Contractor liaison expenditure
H171: ED_VEG271_00161 | J171: Total length of maintenance spans (KM) | K171: Urban and CBD | M171: ED_VEG272_00161 | O171: Tree replacement program costs
H172: ED_VEG271_00162 | K172: Rural | M172: ED_VEG272_00162 | O172: Other vegetation management costs not specified in sheet
H173: ED_VEG271_00163 | J173: Length of vegetation corridors (KM) | K173: Urban and CBD
H174: ED_VEG271_00164 | K174: Rural
H175: ED_VEG271_00165 | J175: Average number of trees per maintenance span (0's) | K175: Urban and CBD
H176: ED_VEG271_00166 | K176: Rural
H177: ED_VEG271_00167 | J177: Average frequency of cutting cycle (years) | K177: Urban and CBD
H178: ED_VEG271_00168 | K178: Rural
H179: ED_VEG271_00169 | I179: ZONE (DNSP to nominate) | J179: Route line length within zone (KM) | K179: Urban and CBD
H180: ED_VEG271_00170 | K180: Rural
H181: ED_VEG271_00171 | J181: Number of maintenance spans (0's) | K181: Urban and CBD
H182: ED_VEG271_00172 | K182: Rural
H183: ED_VEG271_00173 | J183: Total length of maintenance spans (KM) | K183: Urban and CBD
H184: ED_VEG271_00174 | K184: Rural
H185: ED_VEG271_00175 | J185: Length of vegetation corridors (KM) | K185: Urban and CBD
H186: ED_VEG271_00176 | K186: Rural
H187: ED_VEG271_00177 | J187: Average number of trees per maintenance span (0's) | K187: Urban and CBD
H188: ED_VEG271_00178 | K188: Rural
H189: ED_VEG271_00179 | J189: Average frequency of cutting cycle (years) | K189: Urban and CBD
H190: ED_VEG271_00180 | K190: Rural
H191: ED_VEG271_00181 | I191: ZONE (DNSP to nominate) | J191: Route line length within zone (KM) | K191: Urban and CBD
H192: ED_VEG271_00182 | K192: Rural
H193: ED_VEG271_00183 | J193: Number of maintenance spans (0's) | K193: Urban and CBD
H194: ED_VEG271_00184 | K194: Rural
H195: ED_VEG271_00185 | J195: Total length of maintenance spans (KM) | K195: Urban and CBD
H196: ED_VEG271_00186 | K196: Rural
H197: ED_VEG271_00187 | J197: Length of vegetation corridors (KM) | K197: Urban and CBD
H198: ED_VEG271_00188 | K198: Rural
H199: ED_VEG271_00189 | J199: Average number of trees per maintenance span (0's) | K199: Urban and CBD
H200: ED_VEG271_00190 | K200: Rural
H201: ED_VEG271_00191 | J201: Average frequency of cutting cycle (years) | K201: Urban and CBD
H202: ED_VEG271_00192 | K202: Rural
H203: ED_VEG271_00193 | I203: ZONE (DNSP to nominate) | J203: Route line length within zone (KM) | K203: Urban and CBD
... 23 more rows

Sheet 2.8 Maintenance
B1: =Title -> REGULATORY REPORTING STATEMENT
B2: =TradingName -> Powercor Australia Ltd
B3: =CONCATENATE("Category Analysis RIN response ",CRY) -> Category Analysis RIN response 2014
B4: 2.8 MAINTENANCE
B8: TABLE 2.8.1 - DESCRIPTOR METRICS FOR ROUTINE AND NON-ROUTINE MAINTENANCE | K8: TABLE 2.8.2 - COST METRICS FOR ROUTINE AND NON-ROUTINE MAINTENANCE
B9: <<<GROUP-ROW>>>
E11: ASSET QUANTITY - AT YEAR END (000s) | F11: ASSET QUANTITY - INSPECTED/ MAINTAINED | G11: AVERAGE AGE OF ASSET GROUP | H11: INSPECTION CYCLE (YEARS) | I11: MAINTENANCE CYCLE (YEARS) | M11: ROUTINE MAINTENANCE EXPENDITURE ($000'S) | N11: NON-ROUTINE MAINTENANCE EXPENDITURE ($000'S)
B12: MAINTENANCE ACTIVITY | C12: MAINTENANCE ASSET CATEGORY | D12: UNIT OF MEASURE - ASSET QUANTITY | E12: =CRY -> 2014 | F12: =CRY -> 2014 | G12: =CRY -> 2014 | K12: MAINTENANCE ACTIVITY | L12: MAINTENANCE ASSET CATEGORY | M12: =CRY -> 2014 | N12: =CRY -> 2014
A13: ED_MAI281_00001 | B13: Pole top, overhead line & service line maintenance | C13: Pole tops and overhead lines | D13: Number of poles | E13: 487.786 | F13: 20.87 | G13: 34.91 | H13: 5 | I13: 5 | J13: ED_MAI282_00001 | K13: Pole top, overhead line & service line maintenance | L13: Pole tops and overhead lines | M13: 0 | N13: 12138.514
A14: ED_MAI281_00002 | C14: Service lines | D14: Number of customers | E14: 765.241 | F14: 1.481 | G14: 36.58 | H14: 5 | I14: 5 | J14: ED_MAI282_00002 | L14: Service lines | M14: 0 | N14: 861.387
A15: ED_MAI281_00003 | B15: Pole inspection and treatment | C15: All poles | D15: Number of poles | E15: 487.786 | F15: 182.028 | G15: 34.91 | H15: 5 | I15: 5 | J15: ED_MAI282_00003 | K15: Pole inspection and treatment | L15: All poles | M15: 9805.924 | N15: 0
A16: ED_MAI281_00004 | B16: Overhead asset inspection | C16: All overhead assets | D16: Line patrolled (route KM) | E16: 9.450860444 | F16: 9.450860444 | G16: 36.07 | H16: 1 | I16: 1 | J16: ED_MAI282_00004 | K16: Overhead asset inspection | L16: All overhead assets | M16: 302.868 | N16: 0
A17: ED_MAI281_00005 | B17: Network underground cable maintenance: by voltage | C17: LV - 11 to 22 KV | D17: Length (KM) | E17: 5.24482361 | F17: 0.052 | G17: 13.1 | H17: 5 | I17: 5 | J17: ED_MAI282_00005 | K17: Network underground cable maintenance: by voltage | L17: LV - 11 to 22 KV | M17: 489.81 | N17: 13.51
A18: ED_MAI281_00006 | C18: 33 KV and above | D18: Length (KM) | E18: 0.00358225 | F18: 0.01 | G18: 10.8 | H18: 2 | I18: 2 | J18: ED_MAI282_00006 | L18: 33 KV and above | M18: 103.37 | N18: 2.61
A19: ED_MAI281_00007 | B19: Network underground cable maintenance: by location | C19: Cbd | D19: Length (KM) | E19: 0 | F19: 0 | G19: 0 | H19: 0 | I19: 0 | J19: ED_MAI282_00007 | K19: Network underground cable maintenance: by location | L19: CBD | M19: 0 | N19: 0
A20: ED_MAI281_00008 | C20: Non-CBD | D20: Length (KM) | E20: 5.24840586 | F20: 0.062 | G20: 13.1 | H20: 5 | I20: 5 | J20: ED_MAI282_00008 | L20: Non-CBD | M20: 593.18 | N20: 16.12
A21: ED_MAI281_00009 | B21: Distribution substation equipment & property maintenance | C21: Distribution substation transformers | D21: Number of installed transformers | E21: 83.761 | F21: 0.192 | G21: 25 | H21: 0 | I21: 0 | J21: ED_MAI282_00009 | K21: Distribution substation equipment & property maintenance | L21: Distribution substation transformers | M21: 919.1 | N21: 296.81
A22: ED_MAI281_00010 | C22: Distribution substation switchgear (within-substations and stand-alone switchgear) | D22: Number of switches | E22: 17.77 | F22: 0.364 | G22: 19 | H22: 10 | I22: 10 | J22: ED_MAI282_00010 | L22: Distribution substation switchgear (within-substations and stand-alone switchgear) | M22: 2486.4 | N22: 1379.95
A23: ED_MAI281_00011 | C23: Distribution substation - other equipment | D23: Earth mat | E23: 0 | F23: 0 | G23: 0 | H23: 0 | I23: 0 | J23: ED_MAI282_00011 | L23: Distribution substation - other equipment | M23: 0 | N23: 0
A24: ED_MAI281_00012 | C24: Distribution substation - property | D24: Number of distribution substation properties maintained | E24: 4.705 | F24: 0.067 | G24: 25 | H24: 0.5 | I24: 0.5 | J24: ED_MAI282_00012 | L24: Distribution substation - property | M24: 452.02 | N24: 35.11
A25: ED_MAI281_00013 | B25: Zone substation equipment maintenance | C25: Transformers - zone substation | D25: Number of zone substation transformers | E25: 0.211 | F25: 0.165 | G25: 40 | H25: 0 | I25: 0 | J25: ED_MAI282_00013 | K25: Zone substation equipment maintenance | L25: Transformers - zone substation | M25: 576.55 | N25: 197.51
A26: ED_MAI281_00014 | C26: Transformers - distribution | D26: Number of distribution transformers within zone substations | E26: 0 | F26: 0 | G26: 0 | H26: 0 | I26: 0 | J26: ED_MAI282_00014 | L26: Transformers - distribution | M26: 0 | N26: 0
A27: ED_MAI281_00015 | C27: Transformers - HV | D27: Number of HV transformers | E27: 0 | F27: 0 | G27: 0 | H27: 0 | I27: 0 | J27: ED_MAI282_00015 | L27: Transformers - HV | M27: 0 | N27: 0
A28: ED_MAI281_00016 | C28: Zone substation - other equipment | D28: DNSP to nominate | E28: 0.911 | F28: 0.543 | G28: 39 | H28: 8 | I28: 8 | J28: ED_MAI282_00016 | L28: Zone substation - other equipment | M28: 792.26 | N28: 1077.1
A29: ED_MAI281_00017 | B29: Zone substation property maintenance | C29: All zone substation properties | D29: Number of zone substation properties maintained | E29: 0.089 | F29: 0.13 | G29: 40 | H29: 0.08 | I29: 0.08 | J29: ED_MAI282_00017 | K29: Zone substation property maintenance | L29: All zone substation properties | M29: 2965.74 | N29: 67.73
A30: ED_MAI281_00018 | B30: Public lighting maintenance | C30: Minor roads | D30: Number of public lights maintained | E30: 136.687 | F30: 40.42975 | G30: 15 | H30: 4 | I30: 0 | J30: ED_MAI282_00018 | K30: Public lighting maintenance | L30: Minor roads | M30: 1366.9 | N30: 2834.6
A31: ED_MAI281_00019 | C31: Major roads | D31: Number of public lights maintained | E31: 22.542 | F31: 1.427 | G31: 18 | H31: 0 | I31: 0.3333 | J31: ED_MAI282_00019 | L31: Major roads | M31: 311.7 | N31: 646.4
A32: ED_MAI281_00020 | B32: SCADA & network control maintenance | C32: SCADA & network control maintenance | D32: Number of systems | E32: 0.24 | F32: 0.003 | G32: 15 | H32: 0 | I32: 0 | J32: ED_MAI282_00020 | K32: SCADA & network control maintenance | L32: SCADA & network control maintenance | M32: 0 | N32: 18.75
A33: ED_MAI281_00021 | B33: Protection systems maintenance | C33: Protection systems maintenance | D33: Number of systems | E33: 3.39 | F33: 0.992 | G33: 23.33333333 | H33: 6 | I33: 6 | J33: ED_MAI282_00021 | K33: Protection systems maintenance | L33: Protection systems maintenance | M33: 1211.26 | N33: 598.72
A34: ED_MAI281_00022 | B34: Subtransmission asset maintenance - for DNSPs with dual function assets | C34: Subtransmission asset maintenance - for DNSPs with dual function assets | D34: <DNSP to nominate> | E34: 0 | F34: 0 | G34: 0 | H34: 0 | I34: 0 | J34: ED_MAI282_00022 | K34: Subtransmission asset maintenance - for DNSPs with dual function assets | L34: Subtransmission asset maintenance - for DNSPs with dual function assets | M34: 0 | N34: 0
A35: ED_MAI281_00023 | B35: Various assets | C35: includes rates, electricity, communications equip, metering | D35: Units not quoted as various UOM | E35: 0 | F35: 0 | G35: 0 | H35: 0 | I35: 0 | J35: ED_MAI282_00023 | K35: Various assets | L35: includes rates, electricity, communications equip, metering | M35: 0 | N35: 0
A36: ED_MAI281_00024 | B36: Ground clearance - access tracks | C36: Ground clearance - access tracks | D36: Units not quoted | E36: 0 | F36: 0 | G36: 0 | H36: 0 | I36: 0 | J36: ED_MAI282_00024 | K36: Ground clearance - access tracks | L36: Ground clearance - access tracks | M36: 0 | N36: 0
A37: ED_MAI281_00025 | B37: Other | C37: < DNSP to nominate > | D37: < DNSP to nominate > | E37: 0 | F37: 0 | G37: 0 | H37: 0 | I37: 0 | J37: ED_MAI282_00025 | K37: Other | L37: < DNSP to nominate > | M37: 2865.49402 | N37: 7693.365926

Sheet 2.9 Emergency Response
B1: =Title -> REGULATORY REPORTING STATEMENT
B2: =TradingName -> Powercor Australia Ltd
B3: =CONCATENATE("Category Analysis RIN response ",CRY) -> Category Analysis RIN response 2014
B4: 2.9 EMERGENCY RESPONSE
B6: TABLE 2.9.1 - EMERGENCY RESPONSE EXPENDITURE (OPEX)
B7: <<<GROUP-ROW>>>
D9: EXPENDITURE ($000's)
D10: =CRY -> 2014
A11: ED_EME291_99999 | B11: (A) TOTAL EMERGENCY RESPONSE EXPENDITURE ($000'S) | C11: Total Expenditure | D11: 20594.94981
A12: ED_EME291_00002 | B12: (B) MAJOR EVENTS O&M EXPENDITURE ($000'S) | C12: Major Storm (Enter name of storm)
A13: ED_EME291_00003
A14: ED_EME291_00004
A15: ED_EME291_00005
A16: ED_EME291_00006
A17: ED_EME291_00007
A18: ED_EME291_00008
A19: ED_EME291_00009
A20: ED_EME291_00010
A21: ED_EME291_00011
A22: ED_EME291_00012
A23: ED_EME291_00013
A24: ED_EME291_00014
A25: ED_EME291_00015
A26: ED_EME291_00016
A27: ED_EME291_00017
A28: ED_EME291_00018
A29: ED_EME291_00019
A30: ED_EME291_00020
A31: ED_EME291_00021
A32: ED_EME291_00022
A33: ED_EME291_00023
A34: ED_EME291_00024
A35: ED_EME291_00025
A36: ED_EME291_00026
A37: ED_EME291_00027
A38: ED_EME291_00028
A39: ED_EME291_00029
A40: ED_EME291_00030
A41: ED_EME291_00031
A42: ED_EME291_00032
A43: ED_EME291_00033
A44: ED_EME291_00034
A45: ED_EME291_00035
A46: ED_EME291_00036
A47: ED_EME291_00037
A48: ED_EME291_00038
A49: ED_EME291_00039
A50: ED_EME291_00040
A51: ED_EME291_00041
A52: ED_EME291_00042
A53: ED_EME291_00043
A54: ED_EME291_00044
A55: ED_EME291_00045 | B55: (C) MAJOR EVENT DAYS O&M EXPENDITURE ($000'S) | C55: 2013-07-01
A56: ED_EME291_00046 | C56: 2013-07-02
A57: ED_EME291_00047 | C57: 2013-07-03
A58: ED_EME291_00048 | C58: 2013-07-04
A59: ED_EME291_00049 | C59: 2013-07-05
A60: ED_EME291_00050 | C60: 2013-07-06
A61: ED_EME291_00051 | C61: 2013-07-07
A62: ED_EME291_00052 | C62: 2013-07-08
A63: ED_EME291_00053 | C63: 2013-07-09
A64: ED_EME291_00054 | C64: 2013-07-10
A65: ED_EME291_00055 | C65: 2013-07-11
A66: ED_EME291_00056 | C66: 2013-07-12
A67: ED_EME291_00057 | C67: 2013-07-13
A68: ED_EME291_00058 | C68: 2013-07-14
A69: ED_EME291_00059 | C69: 2013-07-15
A70: ED_EME291_00060 | C70: 2013-07-16
A71: ED_EME291_00061 | C71: 2013-07-17
A72: ED_EME291_00062 | C72: 2013-07-18
A73: ED_EME291_00063 | C73: 2013-07-19
A74: ED_EME291_00064 | C74: 2013-07-20
A75: ED_EME291_00065 | C75: 2013-07-21
A76: ED_EME291_00066 | C76: 2013-07-22
A77: ED_EME291_00067 | C77: 2013-07-23
A78: ED_EME291_00068 | C78: 2013-07-24
A79: ED_EME291_00069 | C79: 2013-07-25
A80: ED_EME291_00070 | C80: 2013-07-26
A81: ED_EME291_00071 | C81: 2013-07-27
A82: ED_EME291_00072 | C82: 2013-07-28
A83: ED_EME291_00073 | C83: 2013-07-29
A84: ED_EME291_00074 | C84: 2013-07-30
A85: ED_EME291_00075 | C85: 2013-07-31
A86: ED_EME291_00076 | C86: 2013-08-01
A87: ED_EME291_00077 | C87: 2013-08-02
A88: ED_EME291_00078 | C88: 2013-08-03
A89: ED_EME291_00079 | C89: 2013-08-04
A90: ED_EME291_00080 | C90: 2013-08-05
A91: ED_EME291_00081 | C91: 2013-08-06
A92: ED_EME291_00082 | C92: 2013-08-07
A93: ED_EME291_00083 | C93: 2013-08-08
A94: ED_EME291_00084 | C94: 2013-08-09
A95: ED_EME291_00085 | C95: 2013-08-10
A96: ED_EME291_00086 | C96: 2013-08-11
A97: ED_EME291_00087 | C97: 2013-08-12
A98: ED_EME291_00088 | C98: 2013-08-13
A99: ED_EME291_00089 | C99: 2013-08-14
A100: ED_EME291_00090 | C100: 2013-08-15
A101: ED_EME291_00091 | C101: 2013-08-16
A102: ED_EME291_00092 | C102: 2013-08-17
A103: ED_EME291_00093 | C103: 2013-08-18
A104: ED_EME291_00094 | C104: 2013-08-19
A105: ED_EME291_00095 | C105: 2013-08-20
A106: ED_EME291_00096 | C106: 2013-08-21
A107: ED_EME291_00097 | C107: 2013-08-22
A108: ED_EME291_00098 | C108: 2013-08-23
A109: ED_EME291_00099 | C109: 2013-08-24
A110: ED_EME291_00100 | C110: 2013-08-25
A111: ED_EME291_00101 | C111: 2013-08-26
A112: ED_EME291_00102 | C112: 2013-08-27
A113: ED_EME291_00103 | C113: 2013-08-28
A114: ED_EME291_00104 | C114: 2013-08-29
A115: ED_EME291_00105 | C115: 2013-08-30
A116: ED_EME291_00106 | C116: 2013-08-31
A117: ED_EME291_00107 | C117: 2013-09-01
A118: ED_EME291_00108 | C118: 2013-09-02
A119: ED_EME291_00109 | C119: 2013-09-03
A120: ED_EME291_00110 | C120: 2013-09-04
A121: ED_EME291_00111 | C121: 2013-09-05
A122: ED_EME291_00112 | C122: 2013-09-06
A123: ED_EME291_00113 | C123: 2013-09-07
A124: ED_EME291_00114 | C124: 2013-09-08
A125: ED_EME291_00115 | C125: 2013-09-09
A126: ED_EME291_00116 | C126: 2013-09-10
A127: ED_EME291_00117 | C127: 2013-09-11
A128: ED_EME291_00118 | C128: 2013-09-12
A129: ED_EME291_00119 | C129: 2013-09-13
A130: ED_EME291_00120 | C130: 2013-09-14
A131: ED_EME291_00121 | C131: 2013-09-15
A132: ED_EME291_00122 | C132: 2013-09-16
A133: ED_EME291_00123 | C133: 2013-09-17
A134: ED_EME291_00124 | C134: 2013-09-18
A135: ED_EME291_00125 | C135: 2013-09-19
A136: ED_EME291_00126 | C136: 2013-09-20
A137: ED_EME291_00127 | C137: 2013-09-21
A138: ED_EME291_00128 | C138: 2013-09-22
A139: ED_EME291_00129 | C139: 2013-09-23
A140: ED_EME291_00130 | C140: 2013-09-24
A141: ED_EME291_00131 | C141: 2013-09-25
A142: ED_EME291_00132 | C142: 2013-09-26
A143: ED_EME291_00133 | C143: 2013-09-27
A144: ED_EME291_00134 | C144: 2013-09-28
A145: ED_EME291_00135 | C145: 2013-09-29
A146: ED_EME291_00136 | C146: 2013-09-30
A147: ED_EME291_00137 | C147: 2013-10-01
A148: ED_EME291_00138 | C148: 2013-10-02
A149: ED_EME291_00139 | C149: 2013-10-03
A150: ED_EME291_00140 | C150: 2013-10-04
A151: ED_EME291_00141 | C151: 2013-10-05
A152: ED_EME291_00142 | C152: 2013-10-06
A153: ED_EME291_00143 | C153: 2013-10-07
A154: ED_EME291_00144 | C154: 2013-10-08
A155: ED_EME291_00145 | C155: 2013-10-09
A156: ED_EME291_00146 | C156: 2013-10-10
A157: ED_EME291_00147 | C157: 2013-10-11
A158: ED_EME291_00148 | C158: 2013-10-12
A159: ED_EME291_00149 | C159: 2013-10-13
A160: ED_EME291_00150 | C160: 2013-10-14
A161: ED_EME291_00151 | C161: 2013-10-15
A162: ED_EME291_00152 | C162: 2013-10-16
A163: ED_EME291_00153 | C163: 2013-10-17
A164: ED_EME291_00154 | C164: 2013-10-18
A165: ED_EME291_00155 | C165: 2013-10-19
A166: ED_EME291_00156 | C166: 2013-10-20
A167: ED_EME291_00157 | C167: 2013-10-21
A168: ED_EME291_00158 | C168: 2013-10-22
A169: ED_EME291_00159 | C169: 2013-10-23
A170: ED_EME291_00160 | C170: 2013-10-24
A171: ED_EME291_00161 | C171: 2013-10-25
A172: ED_EME291_00162 | C172: 2013-10-26
A173: ED_EME291_00163 | C173: 2013-10-27
A174: ED_EME291_00164 | C174: 2013-10-28
A175: ED_EME291_00165 | C175: 2013-10-29
A176: ED_EME291_00166 | C176: 2013-10-30
A177: ED_EME291_00167 | C177: 2013-10-31
A178: ED_EME291_00168 | C178: 2013-11-01
A179: ED_EME291_00169 | C179: 2013-11-02
A180: ED_EME291_00170 | C180: 2013-11-03
A181: ED_EME291_00171 | C181: 2013-11-04
A182: ED_EME291_00172 | C182: 2013-11-05
A183: ED_EME291_00173 | C183: 2013-11-06
A184: ED_EME291_00174 | C184: 2013-11-07
A185: ED_EME291_00175 | C185: 2013-11-08
A186: ED_EME291_00176 | C186: 2013-11-09
A187: ED_EME291_00177 | C187: 2013-11-10
A188: ED_EME291_00178 | C188: 2013-11-11
A189: ED_EME291_00179 | C189: 2013-11-12
A190: ED_EME291_00180 | C190: 2013-11-13
A191: ED_EME291_00181 | C191: 2013-11-14
A192: ED_EME291_00182 | C192: 2013-11-15
A193: ED_EME291_00183 | C193: 2013-11-16
A194: ED_EME291_00184 | C194: 2013-11-17
A195: ED_EME291_00185 | C195: 2013-11-18
A196: ED_EME291_00186 | C196: 2013-11-19
A197: ED_EME291_00187 | C197: 2013-11-20
A198: ED_EME291_00188 | C198: 2013-11-21
A199: ED_EME291_00189 | C199: 2013-11-22
A200: ED_EME291_00190 | C200: 2013-11-23
A201: ED_EME291_00191 | C201: 2013-11-24
A202: ED_EME291_00192 | C202: 2013-11-25
... 401 more rows

Sheet 2.10 Overheads
B1: =Title -> REGULATORY REPORTING STATEMENT
B2: =TradingName -> Powercor Australia Ltd
B3: =CONCATENATE("Category Analysis RIN response ",CRY) -> Category Analysis RIN response 2014
B4: 2.10 OVERHEADS
B8: TABLE 2.10.1 - NETWORK OVERHEADS EXPENDITURE
E10: EXPENDITURE ($000's)
A11: OVE2101 | E11: =CRY -> 2014
A12: ED_OVE2101_00001 | B12: NETWORK OVERHEADS | C12: Total Overhead Expenditure - Standard Control Services | D12: Expenditure categories currently reported under annual RIN
A13: ED_OVE2101_00002 | D13: NETWORK MANAGEMENT | E13: 19418.00203
A14: ED_OVE2101_00003 | D14: NETWORK PLANNING | E14: 8178.929221
A15: ED_OVE2101_00004 | D15: NETWORK CONTROL AND OPERATIONAL SWITCHING | E15: 11801.02645
A16: ED_OVE2101_00005 | D16: QUALITY AND STANDARD FUNCTIONS | E16: 1585.710767
A17: ED_OVE2101_00006 | D17: PROJECT GOVERNANCE AND RELATED FUNCTIONS | E17: 83.45846144
A18: ED_OVE2101_00007 | D18: FLEET & PROPERTY OVERHEAD | E18: 11761.443
A19: ED_OVE2101_00008 | D19: PNS OVERHEAD | E19: 10455.65443
A20: ED_OVE2101_00009 | D20: LEVIES | E20: 2033.13773
A21: ED_OVE2101_00010 | D21: GSL PAYMENTS | E21: 2116.685756
A22: ED_OVE2101_00011 | D22: ADVERTISING | E22: 11.9197881
A23: ED_OVE2101_00012 | D23: OTHER | E23: 13088.48567
A24: ED_OVE2101_00013
A25: ED_OVE2101_00014
A26: ED_OVE2101_00015
A27: ED_OVE2101_00016
A28: ED_OVE2101_00017
A29: ED_OVE2101_00018
A30: ED_OVE2101_00019
A31: ED_OVE2101_00020
A32: ED_OVE2101_00021
A33: ED_OVE2101_00022
A34: ED_OVE2101_00023
A35: ED_OVE2101_00024
A36: ED_OVE2101_00025
A37: ED_OVE2101_00026
A38: ED_OVE2101_00027
A39: ED_OVE2101_00028
A40: ED_OVE2101_00029 | B40: NETWORK OVERHEADS | C40: Total Overhead Expenditure - Alternative Control Services | D40: Expenditure categories currently reported under annual RIN
A41: ED_OVE2101_00030 | D41: NETWORK MANAGEMENT | E41: 773.3156688
A42: ED_OVE2101_00031 | D42: NETWORK PLANNING | E42: 325.7232186
A43: ED_OVE2101_00032 | D43: NETWORK CONTROL AND OPERATIONAL SWITCHING | E43: 469.9720726
A44: ED_OVE2101_00033 | D44: QUALITY AND STANDARD FUNCTIONS | E44: 63.15041994
A45: ED_OVE2101_00034 | D45: PROJECT GOVERNANCE AND RELATED FUNCTIONS | E45: 3.323706313
A46: ED_OVE2101_00035 | D46: FLEET & PROPERTY OVERHEAD | E46: 800.3954457
A47: ED_OVE2101_00036 | D47: PNS OVERHEAD | E47: 704.9094309
A48: ED_OVE2101_00037 | D48: LEVIES | E48: 0
A49: ED_OVE2101_00038 | D49: GSL PAYMENTS | E49: 0
A50: ED_OVE2101_00039 | D50: ADVERTISING | E50: 1.600356582
A51: ED_OVE2101_00040 | D51: OTHER | E51: 1655.421467
A52: ED_OVE2101_00041
A53: ED_OVE2101_00042
A54: ED_OVE2101_00043
A55: ED_OVE2101_00044
A56: ED_OVE2101_00045
A57: ED_OVE2101_00046
A58: ED_OVE2101_00047
A59: ED_OVE2101_00048
A60: ED_OVE2101_00049
A61: ED_OVE2101_00050
A62: ED_OVE2101_00051
A63: ED_OVE2101_00052
A64: ED_OVE2101_00053
A65: ED_OVE2101_00054
A66: ED_OVE2101_00055
A67: ED_OVE2101_00056
A68: ED_OVE2101_00057 | B68: NETWORK OVERHEADS | C68: Total Overhead Expenditure - Negotiated Services | D68: Total | E68: 0
A69: ED_OVE2101_00058 | B69: NETWORK OVERHEADS | C69: Total Overhead Expenditure - Unregulated Services | D69: Total | E69: 0
A70: ED_OVE2101_00059 | B70: NETWORK OVERHEADS | C70: Capitalised Overheads - Standard Control Services | D70: Expenditure categories currently reported under annual RIN
A71: ED_OVE2101_00060 | D71: NETWORK MANAGEMENT | E71: 7615.078
A72: ED_OVE2101_00061 | D72: NETWORK PLANNING | E72: 3207.497037
A73: ED_OVE2101_00062 | D73: NETWORK CONTROL AND OPERATIONAL SWITCHING | E73: 4627.960011
A74: ED_OVE2101_00063 | D74: QUALITY AND STANDARD FUNCTIONS | E74: 621.8616705
A75: ED_OVE2101_00064 | D75: PROJECT GOVERNANCE AND RELATED FUNCTIONS | E75: 32.7295616
A76: ED_OVE2101_00065 | D76: FLEET & PROPERTY OVERHEAD | E76: 9255.068274
A77: ED_OVE2101_00066 | D77: PNS OVERHEAD | E77: 8484.659316
A78: ED_OVE2101_00067 | D78: LEVIES | E78: 0
A79: ED_OVE2101_00068 | D79: GSL PAYMENTS | E79: 0
A80: ED_OVE2101_00069 | D80: ADVERTISING | E80: 0
A81: ED_OVE2101_00070 | D81: OTHER | E81: 0
A82: ED_OVE2101_00071
A83: ED_OVE2101_00072
A84: ED_OVE2101_00073
A85: ED_OVE2101_00074
A86: ED_OVE2101_00075
A87: ED_OVE2101_00076
A88: ED_OVE2101_00077
A89: ED_OVE2101_00078
A90: ED_OVE2101_00079
A91: ED_OVE2101_00080
A92: ED_OVE2101_00081
A93: ED_OVE2101_00082
A94: ED_OVE2101_00083
A95: ED_OVE2101_00084
A96: ED_OVE2101_00085
A97: ED_OVE2101_00086
B105: TABLE 2.10.2 - CORPORATE OVERHEADS EXPENDITURE
E107: EXPENDITURE ($000's)
A108: OVE2102 | E108: =CRY -> 2014
A109: ED_OVE2102_00002 | B109: CORPORATE OVERHEADS | C109: Total Overhead Expenditure - Standard Control Services | D109: Expenditure categories currently reported under annual RIN
A110: ED_OVE2102_00003 | D110: DEBT RAISING COSTS | E110: 230.0682476
A111: ED_OVE2102_00004 | D111: REGULATORY PRICE RESET | E111: 1096.48337
A112: ED_OVE2102_00005 | D112: FINANCE | E112: 13529.74669
A113: ED_OVE2102_00006 | D113: LEGAL & SECRETARIAT | E113: 3673.344265
A114: ED_OVE2102_00007 | D114: REGULATORY | E114: 4383.287515
A115: ED_OVE2102_00008 | D115: HUMAN RESOURCES | E115: 4236.665243
A116: ED_OVE2102_00009 | D116: IT | E116: 18398.21842
A117: ED_OVE2102_00010 | D117: OFFICE OF THE CEO | E117: 2499.925141
A118: ED_OVE2102_00011 | D118: INSURANCE | E118: 6355.15175
A119: ED_OVE2102_00012 | D119: SELF INSURANCE | E119: 0
A120: ED_OVE2102_00013 | D120: EQUITY RAISING COSTS | E120: 0
A121: ED_OVE2102_00014 | D121: OTHER | E121: 3982.088032
A122: ED_OVE2102_00015
A123: ED_OVE2102_00016
A124: ED_OVE2102_00017
A125: ED_OVE2102_00018
A126: ED_OVE2102_00019
A127: ED_OVE2102_00020
A128: ED_OVE2102_00021
A129: ED_OVE2102_00022
A130: ED_OVE2102_00023 | B130: CORPORATE OVERHEADS | C130: Total Overhead Expenditure - Alternative Control Services | D130: Expenditure categories currently reported under annual RIN
A131: ED_OVE2102_00024 | D131: DEBT RAISING COSTS | E131: 28.39747239
A132: ED_OVE2102_00025 | D132: REGULATORY PRICE RESET | E132: 0
A133: ED_OVE2102_00026 | D133: FINANCE | E133: 1443.584825
A134: ED_OVE2102_00027 | D134: LEGAL & SECRETARIAT | E134: 267.373976
A135: ED_OVE2102_00028 | D135: REGULATORY | E135: 455.2406301
A136: ED_OVE2102_00029 | D136: HUMAN RESOURCES | E136: 448.3821005
A137: ED_OVE2102_00030 | D137: IT | E137: 1684.026046
A138: ED_OVE2102_00031 | D138: OFFICE OF THE CEO | E138: 137.6334831
A139: ED_OVE2102_00032 | D139: INSURANCE | E139: 0
A140: ED_OVE2102_00033 | D140: SELF INSURANCE | E140: 0
A141: ED_OVE2102_00034 | D141: EQUITY RAISING COSTS | E141: 0
A142: ED_OVE2102_00035 | D142: OTHER | E142: 183.0246499
A143: ED_OVE2102_00036
A144: ED_OVE2102_00037
A145: ED_OVE2102_00038
A146: ED_OVE2102_00039
A147: ED_OVE2102_00040
A148: ED_OVE2102_00041
A149: ED_OVE2102_00042
A150: ED_OVE2102_00043
A151: ED_OVE2102_00044 | B151: CORPORATE OVERHEADS | C151: Total Overhead Expenditure - Negotiated Services | D151: Total | E151: 0
A152: ED_OVE2102_00045 | B152: CORPORATE OVERHEADS | C152: Total Overhead Expenditure - Unregulated Services | D152: Total | E152: 0
A153: ED_OVE2102_00046 | B153: CORPORATE OVERHEADS | C153: Capitalised Overheads - Standard Control Services | D153: Expenditure categories currently reported under annual RIN
A154: ED_OVE2102_00047 | D154: DEBT RAISING COSTS | E154: 0
A155: ED_OVE2102_00048 | D155: REGULATORY PRICE RESET | E155: 0
A156: ED_OVE2102_00049 | D156: FINANCE | E156: 9537.788681
A157: ED_OVE2102_00050 | D157: LEGAL & SECRETARIAT | E157: 2692.401759
A158: ED_OVE2102_00051 | D158: REGULATORY | E158: 3129.295105
A159: ED_OVE2102_00052 | D159: HUMAN RESOURCES | E159: 3018.198065
A160: ED_OVE2102_00053 | D160: IT | E160: 12923.51675
A161: ED_OVE2102_00054 | D161: OFFICE OF THE CEO | E161: 884.7330893
A162: ED_OVE2102_00055 | D162: INSURANCE | E162: 0
A163: ED_OVE2102_00056 | D163: SELF INSURANCE | E163: 0
A164: ED_OVE2102_00057 | D164: EQUITY RAISING COSTS | E164: 0
A165: ED_OVE2102_00058 | D165: OTHER | E165: 1287.717717
A166: ED_OVE2102_00059
A167: ED_OVE2102_00060
A168: ED_OVE2102_00061
A169: ED_OVE2102_00062
A170: ED_OVE2102_00063
A171: ED_OVE2102_00064
A172: ED_OVE2102_00065
A173: ED_OVE2102_00066

Sheet 2.11 Labour
B1: =Title -> REGULATORY REPORTING STATEMENT
B2: =TradingName -> Powercor Australia Ltd
B3: =CONCATENATE("Category Analysis RIN response ",CRY) -> Category Analysis RIN response 2014
B4: 2.11 LABOUR
B6: TABLE 2.11.1 - COST METRICS PER ANNUM | J6: TABLE 2.11.2 - EXTRA DESCRIPTOR METRICS FOR CURRENT YEAR
B7: <<<GROUP-ROW>>>
E10: ASL (0'S) | F10: TOTAL LABOUR EXPENDITURE ($000'S) | G10: AVERAGE PRODUCTIVE WORK HOURS PER ASL (0'S) | H10: STAND-DOWN OCCURENCES PER ASL (0'S) | M10: AVERAGE PRODUCTIVE WORK HOURS ORDINARY TIME (0's) | O10: AVERAGE PRODUCTIVE WORK HOURS OVERTIME (0's)
M11: PER ASL | N11: HOURLY RATE PER ASL | O11: PER ASL | P11: HOURLY RATE PER ASL
E12: =CRY -> 2014 | F12: =CRY -> 2014 | G12: =CRY -> 2014 | H12: =CRY -> 2014 | M12: =CRY -> 2014 | N12: =CRY -> 2014 | O12: =CRY -> 2014 | P12: =CRY -> 2014
A13: ED_LAB2111_00001 | B13: CORPORATE OVERHEADS INTERNAL LABOUR COSTS | C13: LABOUR CLASSIFICATION LEVEL | D13: Executive manager | E13: 4.566628233 | F13: 3109.042551 | G13: 1624.73251 | H13: 0 | I13: ED_LAB2112_00001 | J13: CORPORATE OVERHEADS INTERNAL LABOUR COSTS | K13: LABOUR CLASSIFICATION LEVEL | L13: Executive manager | M13: 1624.73251 | N13: 419.0338798 | O13: 0 | P13: 0
A14: ED_LAB2111_00002 | D14: Employee (optional) | E14: 0 | F14: 0 | G14: 0 | H14: 0 | I14: ED_LAB2112_00002 | L14: Employee (optional) | M14: 0 | N14: 0 | O14: 0 | P14: 0
A15: ED_LAB2111_00003 | D15: Labour hire (optional) | E15: 0 | F15: 0 | G15: 0 | H15: 0 | I15: ED_LAB2112_00003 | L15: Labour hire (optional) | M15: 0 | N15: 0 | O15: 0 | P15: 0
A16: ED_LAB2111_00004 | D16: Senior manager | E16: 12.41363677 | F16: 3763.186465 | G16: 1624.73251 | H16: 0 | I16: ED_LAB2112_00004 | L16: Senior manager | M16: 1624.73251 | N16: 186.5841869 | O16: 0 | P16: 0
A17: ED_LAB2111_00005 | D17: Employee (optional) | E17: 0 | F17: 0 | G17: 0 | H17: 0 | I17: ED_LAB2112_00005 | L17: Employee (optional) | M17: 0 | N17: 0 | O17: 0 | P17: 0
A18: ED_LAB2111_00006 | D18: Labour hire (optional) | E18: 0 | F18: 0 | G18: 0 | H18: 0 | I18: ED_LAB2112_00006 | L18: Labour hire (optional) | M18: 0 | N18: 0 | O18: 0 | P18: 0
A19: ED_LAB2111_00007 | D19: Manager | E19: 28.84590346 | F19: 6477.166302 | G19: 1624.73251 | H19: 0 | I19: ED_LAB2112_00007 | L19: Manager | M19: 1624.73251 | N19: 138.2034968 | O19: 0 | P19: 0
A20: ED_LAB2111_00008 | D20: Employee (optional) | E20: 0 | F20: 0 | G20: 0 | H20: 0 | I20: ED_LAB2112_00008 | L20: Employee (optional) | M20: 0 | N20: 0 | O20: 0 | P20: 0
A21: ED_LAB2111_00009 | D21: Labour hire (optional) | E21: 0 | F21: 0 | G21: 0 | H21: 0 | I21: ED_LAB2112_00009 | L21: Labour hire (optional) | M21: 0 | N21: 0 | O21: 0 | P21: 0
A22: ED_LAB2111_00010 | D22: Professional | E22: 109.9972619 | F22: 18387.32526 | G22: 1624.73251 | H22: 0 | I22: ED_LAB2112_00010 | L22: Professional | M22: 1624.73251 | N22: 102.8856518 | O22: 0 | P22: 0
A23: ED_LAB2111_00011 | D23: Employee (optional) | E23: 0 | F23: 0 | G23: 0 | H23: 0 | I23: ED_LAB2112_00011 | L23: Employee (optional) | M23: 0 | N23: 0 | O23: 0 | P23: 0
A24: ED_LAB2111_00012 | D24: Labour hire (optional) | E24: 0 | F24: 0 | G24: 0 | H24: 0 | I24: ED_LAB2112_00012 | L24: Labour hire (optional) | M24: 0 | N24: 0 | O24: 0 | P24: 0
A25: ED_LAB2111_00013 | D25: Semi professional | E25: 21.08024869 | F25: 3210.553144 | G25: 1624.73251 | H25: 0 | I25: ED_LAB2112_00013 | L25: Semi professional | M25: 1624.73251 | N25: 93.73942012 | O25: 0 | P25: 0
A26: ED_LAB2111_00014 | D26: Employee (optional) | E26: 0 | F26: 0 | G26: 0 | H26: 0 | I26: ED_LAB2112_00014 | L26: Employee (optional) | M26: 0 | N26: 0 | O26: 0 | P26: 0
A27: ED_LAB2111_00015 | D27: Labour hire (optional) | E27: 0 | F27: 0 | G27: 0 | H27: 0 | I27: ED_LAB2112_00015 | L27: Labour hire (optional) | M27: 0 | N27: 0 | O27: 0 | P27: 0
A28: ED_LAB2111_00016 | D28: Support staff | E28: 25.13709054 | F28: 2674.270458 | G28: 1624.73251 | H28: 0 | I28: ED_LAB2112_00016 | L28: Support staff | M28: 1624.73251 | N28: 65.47996627 | O28: 0 | P28: 0
A29: ED_LAB2111_00017 | D29: Employee (optional) | E29: 0 | F29: 0 | G29: 0 | H29: 0 | I29: ED_LAB2112_00017 | L29: Employee (optional) | M29: 0 | N29: 0 | O29: 0 | P29: 0
A30: ED_LAB2111_00018 | D30: Labour hire (optional) | E30: 0 | F30: 0 | G30: 0 | H30: 0 | I30: ED_LAB2112_00018 | L30: Labour hire (optional) | M30: 0 | N30: 0 | O30: 0 | P30: 0
A31: ED_LAB2111_00019 | D31: Intern, junior staff, apprentice | E31: 0.6431870751 | F31: 56.24606071 | G31: 1624.73251 | H31: 0 | I31: ED_LAB2112_00019 | L31: Intern, junior staff, apprentice | M31: 1624.73251 | N31: 53.82362355 | O31: 0 | P31: 0
A32: ED_LAB2111_00020 | D32: Employee (optional) | E32: 0 | F32: 0 | G32: 0 | H32: 0 | I32: ED_LAB2112_00020 | L32: Employee (optional) | M32: 0 | N32: 0 | O32: 0 | P32: 0
A33: ED_LAB2111_00021 | D33: Labour hire (optional) | E33: 0 | F33: 0 | G33: 0 | H33: 0 | I33: ED_LAB2112_00021 | L33: Labour hire (optional) | M33: 0 | N33: 0 | O33: 0 | P33: 0
A34: ED_LAB2111_00022 | B34: NETWORK OVERHEADS INTERNAL LABOUR COSTS | C34: LABOUR CLASSIFICATION LEVEL | D34: Executive manager | E34: 1.284697535 | F34: 641.514045 | G34: 1624.73251 | H34: 0 | I34: ED_LAB2112_00022 | J34: NETWORK OVERHEADS INTERNAL LABOUR COSTS | K34: LABOUR CLASSIFICATION LEVEL | L34: Executive manager | M34: 1624.73251 | N34: 307.3430579 | O34: 0 | P34: 0
A35: ED_LAB2111_00023 | D35: Employee (optional) | E35: 0 | F35: 0 | G35: 0 | H35: 0 | I35: ED_LAB2112_00023 | L35: Employee (optional) | M35: 0 | N35: 0 | O35: 0 | P35: 0
A36: ED_LAB2111_00024 | D36: Labour hire (optional) | E36: 0 | F36: 0 | G36: 0 | H36: 0 | I36: ED_LAB2112_00024 | L36: Labour hire (optional) | M36: 0 | N36: 0 | O36: 0 | P36: 0
A37: ED_LAB2111_00025 | D37: Senior manager | E37: 10.67281832 | F37: 2373.067497 | G37: 1624.73251 | H37: 0 | I37: ED_LAB2112_00025 | L37: Senior manager | M37: 1624.73251 | N37: 136.8513557 | O37: 0 | P37: 0
A38: ED_LAB2111_00026 | D38: Employee (optional) | E38: 0 | F38: 0 | G38: 0 | H38: 0 | I38: ED_LAB2112_00026 | L38: Employee (optional) | M38: 0 | N38: 0 | O38: 0 | P38: 0
A39: ED_LAB2111_00027 | D39: Labour hire (optional) | E39: 0 | F39: 0 | G39: 0 | H39: 0 | I39: ED_LAB2112_00027 | L39: Labour hire (optional) | M39: 0 | N39: 0 | O39: 0 | P39: 0
A40: ED_LAB2111_00028 | D40: Manager | E40: 40.25237713 | F40: 6629.285227 | G40: 1624.73251 | H40: 0 | I40: ED_LAB2112_00028 | L40: Manager | M40: 1624.73251 | N40: 101.3662316 | O40: 0 | P40: 0
A41: ED_LAB2111_00029 | D41: Employee (optional) | E41: 0 | F41: 0 | G41: 0 | H41: 0 | I41: ED_LAB2112_00029 | L41: Employee (optional) | M41: 0 | N41: 0 | O41: 0 | P41: 0
A42: ED_LAB2111_00030 | D42: Labour hire (optional) | E42: 0 | F42: 0 | G42: 0 | H42: 0 | I42: ED_LAB2112_00030 | L42: Labour hire (optional) | M42: 0 | N42: 0 | O42: 0 | P42: 0
A43: ED_LAB2111_00031 | D43: Professional | E43: 93.13160281 | F43: 11418.47304 | G43: 1624.73251 | H43: 0 | I43: ED_LAB2112_00031 | L43: Professional | M43: 1624.73251 | N43: 75.46213412 | O43: 0 | P43: 0
A44: ED_LAB2111_00032 | D44: Employee (optional) | E44: 0 | F44: 0 | G44: 0 | H44: 0 | I44: ED_LAB2112_00032 | L44: Employee (optional) | M44: 0 | N44: 0 | O44: 0 | P44: 0
A45: ED_LAB2111_00033 | D45: Labour hire (optional) | E45: 0 | F45: 0 | G45: 0 | H45: 0 | I45: ED_LAB2112_00033 | L45: Labour hire (optional) | M45: 0 | N45: 0 | O45: 0 | P45: 0
A46: ED_LAB2111_00034 | D46: Semi professional | E46: 83.25611808 | F46: 9300.248659 | G46: 1624.73251 | H46: 0 | I46: ED_LAB2112_00034 | L46: Semi professional | M46: 1624.73251 | N46: 68.75377245 | O46: 0 | P46: 0
A47: ED_LAB2111_00035 | D47: Employee (optional) | E47: 0 | F47: 0 | G47: 0 | H47: 0 | I47: ED_LAB2112_00035 | L47: Employee (optional) | M47: 0 | N47: 0 | O47: 0 | P47: 0
A48: ED_LAB2111_00036 | D48: Labour hire (optional) | E48: 0 | F48: 0 | G48: 0 | H48: 0 | I48: ED_LAB2112_00036 | L48: Labour hire (optional) | M48: 0 | N48: 0 | O48: 0 | P48: 0
A49: ED_LAB2111_00037 | D49: Support staff | E49: 47.70981449 | F49: 3722.822373 | G49: 1624.73251 | H49: 0 | I49: ED_LAB2112_00037 | L49: Support staff | M49: 1624.73251 | N49: 48.02669673 | O49: 0 | P49: 0
A50: ED_LAB2111_00038 | D50: Employee (optional) | E50: 0 | F50: 0 | G50: 0 | H50: 0 | I50: ED_LAB2112_00038 | L50: Employee (optional) | M50: 0 | N50: 0 | O50: 0 | P50: 0
A51: ED_LAB2111_00039 | D51: Labour hire (optional) | E51: 0 | F51: 0 | G51: 0 | H51: 0 | I51: ED_LAB2112_00039 | L51: Labour hire (optional) | M51: 0 | N51: 0 | O51: 0 | P51: 0
A52: ED_LAB2111_00040 | D52: Intern, junior staff, apprentice | E52: 2.141162558 | F52: 137.3342034 | G52: 1624.73251 | H52: 0 | I52: ED_LAB2112_00040 | L52: Intern, junior staff, apprentice | M52: 1624.73251 | N52: 39.47727819 | O52: 0 | P52: 0
A53: ED_LAB2111_00041 | D53: Employee (optional) | E53: 0 | F53: 0 | G53: 0 | H53: 0 | I53: ED_LAB2112_00041 | L53: Employee (optional) | M53: 0 | N53: 0 | O53: 0 | P53: 0
A54: ED_LAB2111_00042 | D54: Labour hire (optional) | E54: 0 | F54: 0 | G54: 0 | H54: 0 | I54: ED_LAB2112_00042 | L54: Labour hire (optional) | M54: 0 | N54: 0 | O54: 0 | P54: 0
A55: ED_LAB2111_00043 | B55: TOTAL DIRECT NETWORK LABOUR INTERNAL LABOUR COSTS | C55: LABOUR CLASSIFICATION LEVEL | D55: Skilled electrical worker | E55: 538.3280115 | F55: 108114.9698 | G55: 1656.010652 | H55: 5.333651937 | I55: ED_LAB2112_00043 | J55: TOTAL DIRECT NETWORK LABOUR INTERNAL LABOUR COSTS | K55: LABOUR CLASSIFICATION LEVEL | L55: Skilled electrical worker | M55: 1340.837001 | N55: 101.8853217 | O55: 315.1736504 | P55: 203.7706433
A56: ED_LAB2111_00044 | D56: Employee (optional) | E56: 0 | F56: 0 | G56: 0 | H56: 0 | I56: ED_LAB2112_00044 | L56: Employee (optional) | M56: 0 | N56: 0 | O56: 0 | P56: 0
A57: ED_LAB2111_00045 | D57: Labour hire (optional) | E57: 0 | F57: 0 | G57: 0 | H57: 0 | I57: ED_LAB2112_00045 | L57: Labour hire (optional) | M57: 0 | N57: 0 | O57: 0 | P57: 0
A58: ED_LAB2111_00046 | D58: Skilled non electical worker | E58: 341.8875313 | F58: 53110.82077 | G58: 1456.166999 | H58: 0 | I58: ED_LAB2112_00046 | L58: Skilled non electical worker | M58: 1381.579179 | N58: 101.4831912 | O58: 74.58781983 | P58: 202.9663825
A59: ED_LAB2111_00047 | D59: Employee (optional) | E59: 0 | F59: 0 | G59: 0 | H59: 0 | I59: ED_LAB2112_00047 | L59: Employee (optional) | M59: 0 | N59: 0 | O59: 0 | P59: 0
A60: ED_LAB2111_00048 | D60: Labour hire (optional) | E60: 0 | F60: 0 | G60: 0 | H60: 0 | I60: ED_LAB2112_00048 | L60: Labour hire (optional) | M60: 0 | N60: 0 | O60: 0 | P60: 0
A61: ED_LAB2111_00049 | D61: Apprentice | E61: 74.77954138 | F61: 5546.710988 | G61: 1624.73251 | H61: 0 | I61: ED_LAB2112_00049 | L61: Apprentice | M61: 1440.355239 | N61: 41.00037404 | O61: 184.3772707 | P61: 82.00074808
A62: ED_LAB2111_00050 | D62: Employee (optional) | E62: 0 | F62: 0 | G62: 0 | H62: 0 | I62: ED_LAB2112_00050 | L62: Employee (optional) | M62: 0 | N62: 0 | O62: 0 | P62: 0
A63: ED_LAB2111_00051 | D63: Labour hire (optional) | E63: 0 | F63: 0 | G63: 0 | H63: 0 | I63: ED_LAB2112_00051 | L63: Labour hire (optional) | M63: 0 | N63: 0 | O63: 0 | P63: 0
A64: ED_LAB2111_00052 | D64: Unskilled worker | E64: 69.65295284 | F64: 5100.911027 | G64: 1559.74135 | H64: 0 | I64: ED_LAB2112_00052 | L64: Unskilled worker | M64: 1559.74135 | N64: 46.95216581 | O64: 0 | P64: 0
A65: ED_LAB2111_00053 | D65: Employee (optional) | E65: 0 | F65: 0 | G65: 0 | H65: 0 | I65: ED_LAB2112_00053 | L65: Employee (optional) | M65: 0 | N65: 0 | O65: 0 | P65: 0
A66: ED_LAB2111_00054 | D66: Labour hire (optional) | E66: 0 | F66: 0 | G66: 0 | H66: 0 | I66: ED_LAB2112_00054 | L66: Labour hire (optional) | M66: 0 | N66: 0 | O66: 0 | P66: 0

Sheet 2.12 Input tables
B1: =Title -> REGULATORY REPORTING STATEMENT
B2: =TradingName -> Powercor Australia Ltd
B3: =CONCATENATE("Category Analysis RIN response ",CRY) -> Category Analysis RIN response 2014
B4: 2.12 INPUT TABLES
E5: 1
M7: DIRECT MATERIAL EXPENDITURE | N7: DIRECT LABOUR EXPENDITURE | O7: CONTRACT EXPENDITURE | P7: OTHER EXPENDITURE | Q7: RELATED PARTY CONTRACT EXPENDITURE | R7: RELATED PARTY CONTRACT MARGIN EXPENDITURE
E8: DNSP NAME | F8: SERVICE | G8: SERVICE SUBCATEGORY | H8: DATA CATEGORY | I8: DATA SUBCATEGORY | J8: MEASUREMENT | K8: DENOMINATION | M8: =CRY -> 2014 | N8: 2014 | O8: 2014 | P8: 2014 | Q8: 2014 | R8: 2014
A9: ED_INP212_00001 | B9: VEGETATION MANAGEMENT | C9: Zone - DNSP to nominate | E9: DNSP NAME | F9: INPUT COSTS | G9: VEGETATION MANAGEMENT | H9: DIRECT MATERIAL COST | I9: =$C$9 -> Zone - DNSP to nominate | J9: EXPENDITURE | K9: $000'S | M9: 0.2949607799 | N9: 335.6441548 | O9: 35708.94934 | P9: 0
A10: ED_INP212_00002 | C10: Zone - DNSP to nominate | E10: DNSP NAME | F10: INPUT COSTS | G10: VEGETATION MANAGEMENT | H10: DIRECT MATERIAL COST | I10: =$C$10 -> Zone - DNSP to nominate | J10: EXPENDITURE | K10: $000'S | M10: 0 | N10: 0 | O10: 0 | P10: 0
A11: ED_INP212_00003 | C11: Zone - DNSP to nominate | E11: DNSP NAME | F11: INPUT COSTS | G11: VEGETATION MANAGEMENT | H11: DIRECT MATERIAL COST | I11: =$C$11 -> Zone - DNSP to nominate | J11: EXPENDITURE | K11: $000'S | M11: 0 | N11: 0 | O11: 0 | P11: 0
A12: ED_INP212_00004 | C12: Zone - DNSP to nominate | E12: DNSP NAME | F12: INPUT COSTS | G12: VEGETATION MANAGEMENT | H12: DIRECT MATERIAL COST | I12: =$C$12 -> Zone - DNSP to nominate | J12: EXPENDITURE | K12: $000'S | M12: 0 | N12: 0 | O12: 0 | P12: 0
A13: ED_INP212_00005 | C13: Zone - DNSP to nominate | E13: DNSP NAME | F13: INPUT COSTS | G13: VEGETATION MANAGEMENT | H13: DIRECT MATERIAL COST | I13: =$C$13 -> Zone - DNSP to nominate | J13: EXPENDITURE | K13: $000'S | M13: 0 | N13: 0 | O13: 0 | P13: 0
A14: ED_INP212_00006 | C14: Zone - DNSP to nominate | E14: DNSP NAME | F14: INPUT COSTS | G14: VEGETATION MANAGEMENT | H14: DIRECT MATERIAL COST | I14: =$C$14 -> Zone - DNSP to nominate | J14: EXPENDITURE | K14: $000'S | M14: 0 | N14: 0 | O14: 0 | P14: 0
A15: ED_INP212_00007 | C15: Zone - DNSP to nominate | E15: DNSP NAME | F15: INPUT COSTS | G15: VEGETATION MANAGEMENT | H15: DIRECT MATERIAL COST | I15: =$C$15 -> Zone - DNSP to nominate | J15: EXPENDITURE | K15: $000'S | M15: 0 | N15: 0 | O15: 0 | P15: 0
A16: ED_INP212_00008 | C16: Zone - DNSP to nominate | E16: DNSP NAME | F16: INPUT COSTS | G16: VEGETATION MANAGEMENT | H16: DIRECT MATERIAL COST | I16: =$C$16 -> Zone - DNSP to nominate | J16: EXPENDITURE | K16: $000'S | M16: 0 | N16: 0 | O16: 0 | P16: 0
A17: ED_INP212_00009 | C17: Zone - DNSP to nominate | E17: DNSP NAME | F17: INPUT COSTS | G17: VEGETATION MANAGEMENT | H17: DIRECT MATERIAL COST | I17: =$C$17 -> Zone - DNSP to nominate | J17: EXPENDITURE | K17: $000'S | M17: 0 | N17: 0 | O17: 0 | P17: 0
A18: ED_INP212_00010 | C18: Zone - DNSP to nominate | E18: DNSP NAME | F18: INPUT COSTS | G18: VEGETATION MANAGEMENT | H18: DIRECT MATERIAL COST | I18: =$C$18 -> Zone - DNSP to nominate | J18: EXPENDITURE | K18: $000'S | M18: 0 | N18: 0 | O18: 0 | P18: 0
A19: ED_INP212_00011 | C19: Zone - DNSP to nominate | E19: DNSP NAME | F19: INPUT COSTS | G19: VEGETATION MANAGEMENT | H19: DIRECT MATERIAL COST | I19: =$C$19 -> Zone - DNSP to nominate | J19: EXPENDITURE | K19: $000'S | M19: 0 | N19: 0 | O19: 0 | P19: 0
A20: ED_INP212_00012 | C20: Zone - DNSP to nominate | E20: DNSP NAME | F20: INPUT COSTS | G20: VEGETATION MANAGEMENT | H20: DIRECT MATERIAL COST | I20: =$C$20 -> Zone - DNSP to nominate | J20: EXPENDITURE | K20: $000'S | M20: 0 | N20: 0 | O20: 0 | P20: 0
A21: ED_INP212_00013 | C21: Zone - DNSP to nominate | E21: DNSP NAME | F21: INPUT COSTS | G21: VEGETATION MANAGEMENT | H21: DIRECT MATERIAL COST | I21: =$C$21 -> Zone - DNSP to nominate | J21: EXPENDITURE | K21: $000'S | M21: 0 | N21: 0 | O21: 0 | P21: 0
A22: ED_INP212_00014 | C22: Zone - DNSP to nominate | E22: DNSP NAME | F22: INPUT COSTS | G22: VEGETATION MANAGEMENT | H22: DIRECT MATERIAL COST | I22: =$C$22 -> Zone - DNSP to nominate | J22: EXPENDITURE | K22: $000'S | M22: 0 | N22: 0 | O22: 0 | P22: 0
A23: ED_INP212_00015 | C23: Zone - DNSP to nominate | E23: DNSP NAME | F23: INPUT COSTS | G23: VEGETATION MANAGEMENT | H23: DIRECT MATERIAL COST | I23: =$C$23 -> Zone - DNSP to nominate | J23: EXPENDITURE | K23: $000'S | M23: 0 | N23: 0 | O23: 0 | P23: 0
A24: ED_INP212_00016 | C24: Zone - DNSP to nominate | E24: DNSP NAME | F24: INPUT COSTS | G24: VEGETATION MANAGEMENT | H24: DIRECT MATERIAL COST | I24: =$C$24 -> Zone - DNSP to nominate | J24: EXPENDITURE | K24: $000'S | M24: 0 | N24: 0 | O24: 0 | P24: 0
A25: ED_INP212_00017 | C25: Zone - DNSP to nominate | E25: DNSP NAME | F25: INPUT COSTS | G25: VEGETATION MANAGEMENT | H25: DIRECT MATERIAL COST | I25: =$C$25 -> Zone - DNSP to nominate | J25: EXPENDITURE | K25: $000'S | M25: 0 | N25: 0 | O25: 0 | P25: 0
A26: ED_INP212_00018 | C26: Zone - DNSP to nominate | E26: DNSP NAME | F26: INPUT COSTS | G26: VEGETATION MANAGEMENT | H26: DIRECT MATERIAL COST | I26: =$C$26 -> Zone - DNSP to nominate | J26: EXPENDITURE | K26: $000'S | M26: 0 | N26: 0 | O26: 0 | P26: 0
A27: ED_INP212_00019 | B27: ROUTINE MAINTENANCE | C27: Pole top, overhead line & service line maintenance | E27: DNSP NAME | F27: INPUT COSTS | G27: ROUTINE MAINTENANCE | H27: DIRECT MATERIAL COST | I27: =$C$27 -> Pole top, overhead line & service line maintenance | J27: EXPENDITURE | K27: $000'S | M27: 0 | N27: 0 | O27: 0 | P27: 0
A28: ED_INP212_00020 | C28: Pole inspection and treatment | E28: DNSP NAME | F28: INPUT COSTS | G28: ROUTINE MAINTENANCE | H28: DIRECT MATERIAL COST | I28: =$C$28 -> Pole inspection and treatment | J28: EXPENDITURE | K28: $000'S | M28: 26.91967588 | N28: 669.7049619 | O28: 9110.738902 | P28: 0
A29: ED_INP212_00021 | C29: Overhead asset inspection | E29: DNSP NAME | F29: INPUT COSTS | G29: ROUTINE MAINTENANCE | H29: DIRECT MATERIAL COST | I29: =$C$29 -> Overhead asset inspection | J29: EXPENDITURE | K29: $000'S | M29: 0 | N29: 0 | O29: 302.8679 | P29: 0
A30: ED_INP212_00022 | C30: Network underground cable maintenance | E30: DNSP NAME | F30: INPUT COSTS | G30: ROUTINE MAINTENANCE | H30: DIRECT MATERIAL COST | I30: =$C$30 -> Network underground cable maintenance | J30: EXPENDITURE | K30: $000'S | M30: 41.93678851 | N30: 451.0334972 | O30: 100.1534192 | P30: 0
A31: ED_INP212_00023 | C31: Distribution substation equipment & property maintenance | E31: DNSP NAME | F31: INPUT COSTS | G31: ROUTINE MAINTENANCE | H31: DIRECT MATERIAL COST | I31: =$C$31 -> Distribution substation equipment & property maintenance | J31: EXPENDITURE | K31: $000'S | M31: 272.7199171 | N31: 2933.124408 | O31: 651.3095813 | P31: 0
A32: ED_INP212_00024 | C32: Zone substation equipment maintenance | E32: DNSP NAME | F32: INPUT COSTS | G32: ROUTINE MAINTENANCE | H32: DIRECT MATERIAL COST | I32: =$C$32 -> Zone substation equipment maintenance | J32: EXPENDITURE | K32: $000'S | M32: 96.7724729 | N32: 1040.795646 | O32: 231.1119756 | P32: 0
A33: ED_INP212_00025 | C33: Zone substation property maintenance | E33: DNSP NAME | F33: INPUT COSTS | G33: ROUTINE MAINTENANCE | H33: DIRECT MATERIAL COST | I33: =$C$33 -> Zone substation property maintenance | J33: EXPENDITURE | K33: $000'S | M33: 209.6726308 | N33: 2255.045828 | O33: 500.7400811 | P33: 0
A34: ED_INP212_00026 | C34: Public lighting maintenance | E34: DNSP NAME | F34: INPUT COSTS | G34: ROUTINE MAINTENANCE | H34: DIRECT MATERIAL COST | I34: =$C$34 -> Public lighting maintenance | J34: EXPENDITURE | K34: $000'S | M34: 154.1980573 | N34: 1279.876345 | O34: 244.5213132 | P34: 0
A35: ED_INP212_00027 | C35: Scada & network control maintenance | E35: DNSP NAME | F35: INPUT COSTS | G35: ROUTINE MAINTENANCE | H35: DIRECT MATERIAL COST | I35: =$C$35 -> Scada & network control maintenance | J35: EXPENDITURE | K35: $000'S | M35: 0 | N35: 0 | O35: 0 | P35: 0
A36: ED_INP212_00028 | C36: Protection systems maintenance | E36: DNSP NAME | F36: INPUT COSTS | G36: ROUTINE MAINTENANCE | H36: DIRECT MATERIAL COST | I36: =$C$36 -> Protection systems maintenance | J36: EXPENDITURE | K36: $000'S | M36: 85.63396346 | N36: 921.0000908 | O36: 204.5109924 | P36: 0
A37: ED_INP212_00029 | C37: Subtransmission asset maintenance - for dnsps with dual function assets | E37: DNSP NAME | F37: INPUT COSTS | G37: ROUTINE MAINTENANCE | H37: DIRECT MATERIAL COST | I37: =$C$37 -> Subtransmission asset maintenance - for dnsps with dual function assets | J37: EXPENDITURE | K37: $000'S | M37: 0 | N37: 0 | O37: 0 | P37: 0
A38: ED_INP212_00031 | C38: Other | E38: DNSP NAME | F38: INPUT COSTS | G38: ROUTINE MAINTENANCE | H38: DIRECT MATERIAL COST | I38: =$C$38 -> Other | J38: EXPENDITURE | K38: $000'S | M38: 89.82621 | N38: 2502.029459 | O38: 272.338351 | P38: 0
A39: ED_INP212_00032 | B39: NON-ROUTINE MAINTENANCE | C39: Pole top, overhead line & service line maintenance | E39: DNSP NAME | F39: INPUT COSTS | G39: NON-ROUTINE MAINTENANCE | H39: DIRECT MATERIAL COST | I39: =$C$39 -> Pole top, overhead line & service line maintenance | J39: EXPENDITURE | K39: $000'S | M39: 1472.871922 | N39: 8902.016468 | O39: 2626.1882 | P39: 0
A40: ED_INP212_00033 | C40: Pole inspection and treatment | E40: DNSP NAME | F40: INPUT COSTS | G40: NON-ROUTINE MAINTENANCE | H40: DIRECT MATERIAL COST | I40: =$C$40 -> Pole inspection and treatment | J40: EXPENDITURE | K40: $000'S | M40: 0 | N40: 0 | O40: 0 | P40: 0
A41: ED_INP212_00034 | C41: Overhead asset inspection | E41: DNSP NAME | F41: INPUT COSTS | G41: NON-ROUTINE MAINTENANCE | H41: DIRECT MATERIAL COST | I41: =$C$41 -> Overhead asset inspection | J41: EXPENDITURE | K41: $000'S | M41: 0 | N41: 0 | O41: 0 | P41: 0
A42: ED_INP212_00035 | C42: Network underground cable maintenance | E42: DNSP NAME | F42: INPUT COSTS | G42: NON-ROUTINE MAINTENANCE | H42: DIRECT MATERIAL COST | I42: =$C$42 -> Network underground cable maintenance | J42: EXPENDITURE | K42: $000'S | M42: 1.139655806 | N42: 12.25708887 | O42: 2.721725474 | P42: 0
A43: ED_INP212_00036 | C43: Distribution substation equipment & property maintenance | E43: DNSP NAME | F43: INPUT COSTS | G43: NON-ROUTINE MAINTENANCE | H43: DIRECT MATERIAL COST | I43: =$C$43 -> Distribution substation equipment & property maintenance | J43: EXPENDITURE | K43: $000'S | M43: 121.0262149 | N43: 1301.646571 | O43: 289.0347511 | P43: 0
A44: ED_INP212_00037 | C44: Zone substation equipment maintenance | E44: DNSP NAME | F44: INPUT COSTS | G44: NON-ROUTINE MAINTENANCE | H44: DIRECT MATERIAL COST | I44: =$C$44 -> Zone substation equipment maintenance | J44: EXPENDITURE | K44: $000'S | M44: 90.11269766 | N44: 969.1692335 | O44: 215.2071034 | P44: 0
A45: ED_INP212_00038 | C45: Zone substation property maintenance | E45: DNSP NAME | F45: INPUT COSTS | G45: NON-ROUTINE MAINTENANCE | H45: DIRECT MATERIAL COST | I45: =$C$45 -> Zone substation property maintenance | J45: EXPENDITURE | K45: $000'S | M45: 4.788392538 | N45: 51.49954275 | O45: 11.43563687 | P45: 0
A46: ED_INP212_00039 | C46: Public lighting maintenance | E46: DNSP NAME | F46: INPUT COSTS | G46: NON-ROUTINE MAINTENANCE | H46: DIRECT MATERIAL COST | I46: =$C$46 -> Public lighting maintenance | J46: EXPENDITURE | K46: $000'S | M46: 319.7685199 | N46: 2654.146048 | O46: 507.0765466 | P46: 0
A47: ED_INP212_00040 | C47: SCADA & network control maintenance | E47: DNSP NAME | F47: INPUT COSTS | G47: NON-ROUTINE MAINTENANCE | H47: DIRECT MATERIAL COST | I47: =$C$47 -> SCADA & network control maintenance | J47: EXPENDITURE | K47: $000'S | M47: 1.325592206 | N47: 14.25684965 | O47: 3.1657787 | P47: 0
A48: ED_INP212_00041 | C48: Protection systems maintenance | E48: DNSP NAME | F48: INPUT COSTS | G48: NON-ROUTINE MAINTENANCE | H48: DIRECT MATERIAL COST | I48: =$C$48 -> Protection systems maintenance | J48: EXPENDITURE | K48: $000'S | M48: 42.32845682 | N48: 455.2459211 | O48: 101.0888012 | P48: 0
A49: ED_INP212_00042 | C49: Subtransmission asset maintenance - for DNSP with dual function assets | E49: DNSP NAME | F49: INPUT COSTS | G49: NON-ROUTINE MAINTENANCE | H49: DIRECT MATERIAL COST | I49: =$C$49 -> Subtransmission asset maintenance - for DNSP with dual function assets | J49: EXPENDITURE | K49: $000'S | M49: 0 | N49: 0 | O49: 0 | P49: 0
A50: ED_INP212_00044 | C50: Other | E50: DNSP NAME | F50: INPUT COSTS | G50: NON-ROUTINE MAINTENANCE | H50: DIRECT MATERIAL COST | I50: =$C$50 -> Other | J50: EXPENDITURE | K50: $000'S | M50: 244.8982021 | N50: 6551.940112 | O50: 896.5276115 | P50: 0
A51: ED_INP212_00045 | B51: OVERHEADS | C51: Network overheads | E51: DNSP NAME | F51: INPUT COSTS | G51: OVERHEADS | H51: DIRECT MATERIAL COST | I51: =$C$51 -> Network overheads | J51: EXPENDITURE | K51: $000'S | M51: 222.7765669 | N51: 48162.51303 | O51: 36946.97549 | P51: 0
A52: ED_INP212_00046 | C52: Corporate overheads | E52: DNSP NAME | F52: INPUT COSTS | G52: OVERHEADS | H52: DIRECT MATERIAL COST | I52: =$C$52 -> Corporate overheads | J52: EXPENDITURE | K52: $000'S | M52: 336.8274776 | N52: 29020.59103 | O52: 33675.22334 | P52: 0
A53: ED_INP212_00047 | B53: AUGMENTATION | C53: Subtransmission substations, switching stations, zone substations | E53: DNSP NAME | F53: INPUT COSTS | G53: AUGMENTATION | H53: DIRECT MATERIAL COST | I53: =$C$53 -> Subtransmission substations, switching stations, zone substations | J53: EXPENDITURE | K53: $000'S | M53: 1874.382838 | N53: 3401.988802 | O53: 1085.641731 | P53: 0
A54: ED_INP212_00048 | C54: Subtransmission lines | E54: DNSP NAME | F54: INPUT COSTS | G54: AUGMENTATION | H54: DIRECT MATERIAL COST | I54: =$C$54 -> Subtransmission lines | J54: EXPENDITURE | K54: $000'S | M54: 234.3610009 | N54: 425.36321 | O54: 135.7417906 | P54: 0
A55: ED_INP212_00049 | C55: HV feeders | E55: DNSP NAME | F55: INPUT COSTS | G55: AUGMENTATION | H55: DIRECT MATERIAL COST | I55: =$C$55 -> HV feeders | J55: EXPENDITURE | K55: $000'S | M55: 2567.255356 | N55: 4659.54649 | O55: 1486.953194 | P55: 0
A56: ED_INP212_00050 | C56: Distribution substations | E56: DNSP NAME | F56: INPUT COSTS | G56: AUGMENTATION | H56: DIRECT MATERIAL COST | I56: =$C$56 -> Distribution substations | J56: EXPENDITURE | K56: $000'S | M56: 327.5929057 | N56: 594.578319 | O56: 189.7416696 | P56: 0
A57: ED_INP212_00051 | C57: LV feeders | E57: DNSP NAME | F57: INPUT COSTS | G57: AUGMENTATION | H57: DIRECT MATERIAL COST | I57: =$C$57 -> LV feeders | J57: EXPENDITURE | K57: $000'S | M57: 189.1687008 | N57: 343.3395724 | O57: 109.5664299 | P57: 0
A58: ED_INP212_00052 | C58: Other assets | E58: DNSP NAME | F58: INPUT COSTS | G58: AUGMENTATION | H58: DIRECT MATERIAL COST | I58: =$C$58 -> Other assets | J58: EXPENDITURE | K58: $000'S | M58: 2471.704359 | N58: 4308.710336 | O58: 29084.64796 | P58: 0
A59: ED_INP212_00053 | B59: CONNECTIONS | C59: Simple and complex customer connections | E59: DNSP NAME | F59: INPUT COSTS | G59: CONNECTIONS | H59: DIRECT MATERIAL COST | I59: =$C$59 -> Simple and complex customer connections | J59: EXPENDITURE | K59: $000'S | M59: 17836.0623 | N59: 34464.47221 | O59: 19971.54524 | P59: 0
A60: ED_INP212_00054 | B60: EMERGENCY RESPONSE | C60: Major storms | E60: DNSP NAME | F60: INPUT COSTS | G60: EMERGENCY RESPONSE | H60: DIRECT MATERIAL COST | I60: =$C$60 -> Major storms | J60: EXPENDITURE | K60: $000'S | M60: 0 | N60: 0 | O60: 0 | P60: 0
A61: ED_INP212_00055 | C61: Major event days | E61: DNSP NAME | F61: INPUT COSTS | G61: EMERGENCY RESPONSE | H61: DIRECT MATERIAL COST | I61: =$C$61 -> Major event days | J61: EXPENDITURE | K61: $000'S | M61: 7785.298547 | N61: 12062.99961 | O61: 746.6516565 | P61: 0
A62: ED_INP212_00056 | B62: PUBLIC LIGHTING | C62: All public lighting services | E62: DNSP NAME | F62: INPUT COSTS | G62: PUBLIC LIGHTING | H62: DIRECT MATERIAL COST | I62: =$C$62 -> All public lighting services | J62: EXPENDITURE | K62: $000'S | M62: 1924.395915 | N62: 10419.54763 | O62: 6106.336731 | P62: 0
A63: ED_INP212_00057 | B63: METERING | C63: All metering services | E63: DNSP NAME | F63: INPUT COSTS | G63: METERING | H63: DIRECT MATERIAL COST | I63: =$C$63 -> All metering services | J63: EXPENDITURE | K63: $000'S | M63: 5656.420085 | N63: 26810.66162 | O63: 13386.45058 | P63: 0
A64: ED_INP212_00058 | B64: FEE-BASED SERVICES | C64: All fee-based services | E64: DNSP NAME | F64: INPUT COSTS | G64: FEE-BASED SERVICES | H64: DIRECT MATERIAL COST | I64: =$C$64 -> All fee-based services | J64: EXPENDITURE | K64: $000'S | M64: 24.73976411 | N64: 6542.441473 | O64: 2851.787385 | P64: 0
A65: ED_INP212_00059 | B65: QUOTED SERVICES | C65: All quoted services | E65: DNSP NAME | F65: INPUT COSTS | G65: QUOTED SERVICES | H65: DIRECT MATERIAL COST | I65: =$C$65 -> All quoted services | J65: EXPENDITURE | K65: $000'S | M65: 1317.931891 | N65: 17607.37857 | O65: 1886.816675 | P65: 0
A66: ED_INP212_00060 | B66: REPLACEMENT | C66: Poles | E66: DNSP NAME | F66: INPUT COSTS | G66: REPLACEMENT | H66: DIRECT MATERIAL COST | I66: =$C$66 -> Poles | J66: EXPENDITURE | K66: $000'S | M66: 4786.788445 | N66: 14923.95612 | O66: 4098.319204 | P66: 0
A67: ED_INP212_00061 | C67: Pole top structures | E67: DNSP NAME | F67: INPUT COSTS | G67: REPLACEMENT | H67: DIRECT MATERIAL COST | I67: =$C$67 -> Pole top structures | J67: EXPENDITURE | K67: $000'S | M67: 4333.695494 | N67: 13511.33064 | O67: 3710.393235 | P67: 0
A68: ED_INP212_00062 | C68: Overhead conductors | E68: DNSP NAME | F68: INPUT COSTS | G68: REPLACEMENT | H68: DIRECT MATERIAL COST | I68: =$C$68 -> Overhead conductors | J68: EXPENDITURE | K68: $000'S | M68: 966.5598905 | N68: 3013.481285 | O68: 827.5425176 | P68: 0
A69: ED_INP212_00063 | C69: Underground cables | E69: DNSP NAME | F69: INPUT COSTS | G69: REPLACEMENT | H69: DIRECT MATERIAL COST | I69: =$C$69 -> Underground cables | J69: EXPENDITURE | K69: $000'S | M69: 203.7136339 | N69: 635.125903 | O69: 174.4141207 | P69: 0
A70: ED_INP212_00064 | C70: Service lines | E70: DNSP NAME | F70: INPUT COSTS | G70: REPLACEMENT | H70: DIRECT MATERIAL COST | I70: =$C$70 -> Service lines | J70: EXPENDITURE | K70: $000'S | M70: 993.256795 | N70: 3096.71526 | O70: 850.3996873 | P70: 0
A71: ED_INP212_00065 | C71: Transformers | E71: DNSP NAME | F71: INPUT COSTS | G71: REPLACEMENT | H71: DIRECT MATERIAL COST | I71: =$C$71 -> Transformers | J71: EXPENDITURE | K71: $000'S | M71: 1544.687742 | N71: 4815.932926 | O71: 1322.519996 | P71: 0
A72: ED_INP212_00066 | C72: Switchgear | E72: DNSP NAME | F72: INPUT COSTS | G72: REPLACEMENT | H72: DIRECT MATERIAL COST | I72: =$C$72 -> Switchgear | J72: EXPENDITURE | K72: $000'S | M72: 2806.083793 | N72: 8748.636352 | O72: 2402.493285 | P72: 0
A73: ED_INP212_00067 | C73: Public lighting | E73: DNSP NAME | F73: INPUT COSTS | G73: REPLACEMENT | H73: DIRECT MATERIAL COST | I73: =$C$74 -> SCADA network control and protection systems | J73: EXPENDITURE | K73: $000'S | M73: 909.95557 | N73: 1675.471414 | O73: 1368.463596 | P73: 0
A74: ED_INP212_00068 | C74: SCADA network control and protection systems | E74: DNSP NAME | F74: INPUT COSTS | G74: REPLACEMENT | H74: DIRECT MATERIAL COST | I74: =$C$74 -> SCADA network control and protection systems | J74: EXPENDITURE | K74: $000'S | M74: 249.6935485 | N74: 778.4792675 | O74: 213.7808839 | P74: 0
A75: ED_INP212_00069 | C75: Other | E75: DNSP NAME | F75: INPUT COSTS | G75: REPLACEMENT | H75: DIRECT MATERIAL COST | I75: =$C$75 -> Other | J75: EXPENDITURE | K75: $000'S | M75: 2528.341342 | N75: 7882.707932 | O75: 2164.697687 | P75: 0
A76: ED_INP212_00070 | B76: NON-NETWORK EXPENDITURE | C76: IT and communications | E76: DNSP NAME | F76: INPUT COSTS | G76: NON-NETWORK | H76: DIRECT MATERIAL COST | I76: =$C$76 -> IT and communications | J76: EXPENDITURE | K76: $000'S | M76: 2830.646139 | N76: 29216.4157 | O76: 12925.56637 | P76: 0
A77: ED_INP212_00071 | C77: Motor vehicles | E77: DNSP NAME | F77: INPUT COSTS | G77: NON-NETWORK | H77: DIRECT MATERIAL COST | I77: =$C$77 -> Motor vehicles | J77: EXPENDITURE | K77: $000'S | M77: 15227.83748 | N77: 0 | O77: 3727.90977 | P77: 0
A78: ED_INP212_00072 | C78: Buildings and property | E78: DNSP NAME | F78: INPUT COSTS | G78: NON-NETWORK | H78: DIRECT MATERIAL COST | I78: =$C$78 -> Buildings and property | J78: EXPENDITURE | K78: $000'S | M78: 3104.58017 | N78: 283.72061 | O78: 18422.94018 | P78: 0
A79: ED_INP212_00073 | C79: Other | E79: DNSP NAME | F79: INPUT COSTS | G79: NON-NETWORK | H79: DIRECT MATERIAL COST | I79: =$C$79 -> Other | J79: EXPENDITURE | K79: $000'S | M79: 2075.35762 | N79: 562.10922 | O79: 54.14244 | P79: 0

Sheet 4.1 Public lighting
B1: =Title -> REGULATORY REPORTING STATEMENT
B2: =TradingName -> Powercor Australia Ltd
B3: =CONCATENATE("Category Analysis RIN response ",CRY) -> Category Analysis RIN response 2014
B4: 4.1 PUBLIC LIGHTING
B6: TABLE 4.1.1 - DESCRIPTOR METRICS OVER 2013-14 YEAR
B7: <<<GROUP-ROW>>>
C9: LIGHT TYPE | D9: VOLUME (000'S)
A10: PUB411 | C10: =Years -> 2014 | D10: =CRY -> 2014
A11: ED_PUB411_00001 | B11: POPULATION OF LIGHTS | C11: CC Mercury Vapour 50W | D11: 0.306
A12: ED_PUB411_00002 | C12: CC Mercury Vapour 80W | D12: 88.974
A13: ED_PUB411_00003 | C13: CC Mercury Vapour 125W | D13: 1.17
A14: ED_PUB411_00004 | C14: CC Mercury Vapour 250W | D14: 0.287
A15: ED_PUB411_00005 | C15: CC Mercury Vapour 400W | D15: 0.102
A16: ED_PUB411_00006 | C16: Fluorescent Compact 32W | D16: 3.092
A17: ED_PUB411_00007 | C17: Fluorescent Compact 42W | D17: 4.139
A18: ED_PUB411_00008 | C18: Fluorescent T5 2 x 14 | D18: 10.327
A19: ED_PUB411_00009 | C19: Fluorescent T5 2 x 24 | D19: 0.819
A20: ED_PUB411_00010 | C20: HP Sodium 70W | D20: 0.002
A21: ED_PUB411_00011 | C21: HP Sodium 150W | D21: 27.857
A22: ED_PUB411_00012 | C22: HP Sodium 250W | D22: 12.943
A23: ED_PUB411_00013 | C23: HP Sodium 400W | D23: 0.774
A24: ED_PUB411_00014 | C24: Metal Halide - 70W | D24: 0.007
A25: ED_PUB411_00015 | C25: Metal Halide - 150W | D25: 0.047
A26: ED_PUB411_00016 | C26: Metal Halide - 250W | D26: 0.366
A27: ED_PUB411_00017 | C27: LED (Solind State Device) 18W | D27: 8.017
A28: ED_PUB411_00018
A29: ED_PUB411_00019
A30: ED_PUB411_00020
A31: ED_PUB411_00021
A32: ED_PUB411_00022
A33: ED_PUB411_00023
A34: ED_PUB411_00024
A35: ED_PUB411_00025
A36: ED_PUB411_00026
A37: ED_PUB411_00027
A38: ED_PUB411_00028
A39: ED_PUB411_00029
A40: ED_PUB411_00030
A41: ED_PUB411_00031
A42: ED_PUB411_00032
A43: ED_PUB411_00033
A44: ED_PUB411_00034
A45: ED_PUB411_00035
A46: ED_PUB411_00036
A47: ED_PUB411_00037
A48: ED_PUB411_00038
A49: ED_PUB411_00039
A50: ED_PUB411_00040
A51: ED_PUB411_00041
A52: ED_PUB411_00042
A53: ED_PUB411_00043
A54: ED_PUB411_00044
A55: ED_PUB411_00045
A56: ED_PUB411_00046
A57: ED_PUB411_00047
A58: ED_PUB411_00048
A59: ED_PUB411_00049
A60: ED_PUB411_00050
A61: ED_PUB411_00051
A62: ED_PUB411_00052
A63: ED_PUB411_00053
A64: ED_PUB411_00054
A65: ED_PUB411_00055
A66: ED_PUB411_00056
A67: ED_PUB411_00057
A68: ED_PUB411_00058
A69: ED_PUB411_00059
A70: ED_PUB411_00060
A71: ED_PUB411_00061
A72: ED_PUB411_00062
A73: ED_PUB411_00063
A74: ED_PUB411_00064
A75: ED_PUB411_00065
A76: ED_PUB411_00066
A77: ED_PUB411_00067
A78: ED_PUB411_00068
A79: ED_PUB411_00069
A80: ED_PUB411_00070
A81: ED_PUB411_00071
A82: ED_PUB411_00072
A83: ED_PUB411_00073
A84: ED_PUB411_00074
A85: ED_PUB411_00075
A86: ED_PUB411_00076
A87: ED_PUB411_00077
A88: ED_PUB411_00078
A89: ED_PUB411_00079
A90: ED_PUB411_00080
A91: ED_PUB411_00081
A92: ED_PUB411_00082
A93: ED_PUB411_00083
A94: ED_PUB411_00084
A95: ED_PUB411_00085
A96: ED_PUB411_00086
A97: ED_PUB411_00087
A98: ED_PUB411_00088
A99: ED_PUB411_00089
A100: ED_PUB411_00090
A101: ED_PUB411_00091
A102: ED_PUB411_00092
A103: ED_PUB411_00093
A104: ED_PUB411_00094
A105: ED_PUB411_00095
A106: ED_PUB411_00096
A107: ED_PUB411_00097
A108: ED_PUB411_00098
A109: ED_PUB411_00099
A110: ED_PUB411_00100
A111: ED_PUB411_00101
A112: ED_PUB411_00102
B117: TABLE 4.1.2 - DESCRIPTOR METRICS ANNUALLY
B118: <<<GROUP-ROW>>>
D120: VOLUMES & EXPENDITURE
A121: PUB412 | B121: SERVICE/SERVICE QUALITY - Volumes and Expenditure | C121: DESCRIPTOR METRIC | D121: =CRY -> 2014
A122: ED_PUB412_00001 | B122: LIGHT INSTALLATION | C122: Major road light installation (volume) | D122: 1.529
A123: ED_PUB412_00002 | C123: Minor road light installation (volume) | D123: 0.932
A124: ED_PUB412_00003 | C124: Number of poles installed | D124: 1.554
A125: ED_PUB412_00004 | C125: Total cost ($000's) | D125: 6487.554712
A126: ED_PUB412_00005 | B126: LIGHT REPLACEMENT | C126: Major road light installation (volume) | D126: 0.7094883721
A127: ED_PUB412_00006 | C127: Minor road light installation (volume) | D127: 1.537472
A128: ED_PUB412_00007 | C128: Number of poles installed | D128: 0.3529603721
A129: ED_PUB412_00008 | C129: Total cost ($000's) | D129: 5032.201558
A130: ED_PUB412_00009 | B130: LIGHT MAINTENANCE | C130: Major road light installation (volume) | D130: 1.427
A131: ED_PUB412_00010 | C131: Minor road light installation (volume) | D131: 46.68775
A132: ED_PUB412_00011 | C132: Number of poles installed | D132: 0
A133: ED_PUB412_00012 | C133: Total cost ($000's) | D133: 6930.542029
A134: ED_PUB412_00013 | B134: QUALITY OF SUPPLY | C134: Mean days to rectify/replace public lighting assets (days) | D134: 2.15
A135: ED_PUB412_00014 | C135: GSO breaches (volume 0's) | D135: 105
A136: ED_PUB412_00015 | C136: GSL payments ($000's) | D136: 4.2
A137: ED_PUB412_00016 | C137: Customer complaints (volume 0's) | D137: 0
B143: TABLE 4.1.3 - COST METRICS
B144: <<<GROUP-ROW>>>
D146: AVERAGE UNIT COST ($)
A147: PUB413 | B147: ROAD TYPE | C147: LIGHT TYPE | D147: =CRY -> 2014
A148: PUB413_00001 | B148: LIGHT INSTALLATION - Major Road | C148: Major | D148: 1,136.800
A149: PUB413_00002
A150: PUB413_00003
A151: PUB413_00004
A152: PUB413_00005
A153: PUB413_00006
A154: PUB413_00007
A155: PUB413_00008
A156: PUB413_00009
A157: PUB413_00010
A158: PUB413_00011
A159: PUB413_00012
A160: PUB413_00013
A161: PUB413_00014
A162: PUB413_00015
A163: PUB413_00010 | B163: LIGHT INSTALLATION - Minor Road | C163: Minor | D163: 675.2
A164: PUB413_00011
A165: PUB413_00012
A166: PUB413_00013
A167: PUB413_00014
A168: PUB413_00014
A169: PUB413_00015
A170: PUB413_00016
A171: PUB413_00017
A172: PUB413_00018
A173: PUB413_00019
A174: PUB413_00020
A175: PUB413_00021
A176: PUB413_00022
A177: PUB413_00023
A178: PUB413_00024 | B178: LIGHT REPLACEMENT - Major Road | C178: Major | D178: 826.8
A179: PUB413_00025
A180: PUB413_00026
A181: PUB413_00027
A182: PUB413_00028
A183: PUB413_00029
A184: PUB413_00030
A185: PUB413_00025
A186: PUB413_00026
A187: PUB413_00027
A188: PUB413_00028
A189: PUB413_00029
A190: PUB413_00030
A191: PUB413_00025
A192: PUB413_00031
A193: PUB413_00032 | B193: LIGHT REPLACEMENT - Minor Road | C193: Minor | D193: 675.2
A194: PUB413_00033
A195: PUB413_00034
A196: PUB413_00035
A197: PUB413_00036
A198: PUB413_00036
A199: PUB413_00033
A200: PUB413_00034
A201: PUB413_00035
A202: PUB413_00036
A203: PUB413_00033
A204: PUB413_00034
A205: PUB413_00035
A206: PUB413_00036
A207: PUB413_00037
A208: PUB413_00038 | B208: LIGHT MAINTENANCE - Major Road | C208: Major/Minor - Routine Maintenance | D208: 47.941
A209: PUB413_00039
A210: PUB413_00040
A211: PUB413_00041
A212: PUB413_00042
A213: PUB413_00043
... 24 more rows

Sheet 4.2 Metering
B1: =Title -> REGULATORY REPORTING STATEMENT
B2: =TradingName -> Powercor Australia Ltd
B3: =CONCATENATE("Category Analysis RIN response ",CRY) -> Category Analysis RIN response 2014
B4: 4.2 METERING
B7: TABLE 4.2.1 - METERING DESCRIPTOR METRIC | F7: TABLE 4.2.2 - COST METRICS
B8: <<<GROUP-ROW>>>
D10: VOLUMES (000s) | H10: EXPENDITURE ($000's) | J10: VOLUMES (000s)
B11: ASSET CATEGORY | C11: ASSET SUBCATEGORY | D11: =CRY -> 2014 | F11: SERVICE SUBCATEGORY | G11: METER TYPE | H11: =CRY -> 2014 | J11: =CRY -> 2014
A12: ED_MET421_00001 | B12: Meter Type 4 | C12: Single phase meter population | D12: 669 | E12: ED_MET422_00001 | F12: Meter purchase | G12: Meter Type 4 | H12: 2063 | I12: ED_MET422_00001 | J12: 9
A13: ED_MET421_00002 | C13: Multi phase meter population | D13: 131 | E13: ED_MET422_00002 | G13: Meter Type 5 | H13: 0 | I13: ED_MET422_00002 | J13: 0
A14: ED_MET421_00003 | C14: Current transformer connected meter population | D14: 5 | E14: ED_MET422_00003 | G14: Meter Type 6 | H14: 0 | I14: ED_MET422_00003 | J14: 0
A15: ED_MET421_00004 | C15: Direct connect meter population | D15: 794 | E15: ED_MET422_00004 | F15: Meter testing | G15: Meter Type 4 | H15: 1641 | I15: ED_MET422_00004 | J15: 3
A16: ED_MET421_00005 | B16: Meter Type 5 | C16: Single phase meter population | D16: 1 | E16: ED_MET422_00005 | G16: Meter Type 5 | H16: 1 | I16: ED_MET422_00005 | J16: 0
A17: ED_MET421_00006 | C17: Multi phase meter population | D17: 1 | E17: ED_MET422_00006 | G17: Meter Type 6 | H17: 10 | I17: ED_MET422_00006 | J17: 0
A18: ED_MET421_00007 | C18: Current transformer connected meter population | D18: 0 | E18: ED_MET422_00007 | F18: Meter investigation | G18: Meter Type 4 | H18: 246 | I18: ED_MET422_00007 | J18: 1
A19: ED_MET421_00008 | C19: Direct connect meter population | D19: 2 | E19: ED_MET422_00008 | G19: Meter Type 5 | H19: 0 | I19: ED_MET422_00008 | J19: 0
A20: ED_MET421_00009 | B20: Meter Type 6 | C20: Single phase meter population | D20: 26 | E20: ED_MET422_00009 | G20: Meter Type 6 | H20: 9 | I20: ED_MET422_00009 | J20: 0
A21: ED_MET421_00010 | C21: Multi phase meter population | D21: 10 | E21: ED_MET422_00010 | F21: Scheduled meter reading | G21: Meter Type 4 | H21: 0 | I21: ED_MET422_00010 | J21: 0
A22: ED_MET421_00011 | C22: Current transformer connected meter population | D22: 0 | E22: ED_MET422_00011 | G22: Meter Type 5 | H22: 286 | I22: ED_MET422_00011 | J22: 39
A23: ED_MET421_00012 | C23: Direct connect meter population | D23: 36 | E23: ED_MET422_00012 | G23: Meter Type 6 | H23: 1351 | I23: ED_MET422_00012 | J23: 186
E24: ED_MET422_00013 | F24: Special meter reading | G24: Meter Type 4 | H24: 56 | I24: ED_MET422_00013 | J24: 2
E25: ED_MET422_00014 | G25: Meter Type 5 | H25: 0 | I25: ED_MET422_00014 | J25: 0
E26: ED_MET422_00015 | G26: Meter Type 6 | H26: 2 | I26: ED_MET422_00015 | J26: 0
E27: ED_MET422_00016 | F27: New meter installation | G27: Meter Type 4 | H27: 5815 | I27: ED_MET422_00016 | J27: 15
E28: ED_MET422_00017 | G28: Meter Type 5 | H28: 0 | I28: ED_MET422_00017 | J28: 0
E29: ED_MET422_00018 | G29: Meter Type 6 | H29: 0 | I29: ED_MET422_00018 | J29: 0
E30: ED_MET422_00019 | F30: Meter replacement | G30: Meter Type 4 | H30: 9292 | I30: ED_MET422_00019 | J30: 18
E31: ED_MET422_00020 | G31: Meter Type 5 | H31: 15 | I31: ED_MET422_00020 | J31: 0
E32: ED_MET422_00021 | G32: Meter Type 6 | H32: 0 | I32: ED_MET422_00021 | J32: 0
E33: ED_MET422_00022 | F33: Meter maintenance | G33: Meter Type 4 | H33: 0 | I33: ED_MET422_00022 | J33: 0
E34: ED_MET422_00023 | G34: Meter Type 5 | H34: 0 | I34: ED_MET422_00023 | J34: 0
E35: ED_MET422_00024 | G35: Meter Type 6 | H35: 0 | I35: ED_MET422_00024 | J35: 0
E36: ED_MET422_00025 | F36: Remote meter reading | G36: Meter Type 4 | H36: 6553 | I36: ED_MET422_00025 | J36: 782
E37: ED_MET422_00026 | F37: Remote meter re-configuration | G37: Meter Type 4 | H37: 319 | I37: ED_MET422_00026 | J37: 11
E38: ED_MET422_00027 | F38: Other metering | G38: Meter Type 4 | H38: 931.7995291 | J38: 0
E39: ED_MET422_00028 | G39: Meter Type 5 | H39: 3 | J39: 0
E40: ED_MET422_00029 | G40: Meter Type 6 | H40: 54 | J40: 0
E41: ED_MET422_00030 | G41: Meter Type 7 | H41: 1 | J41: 0
E42: ED_MET422_00031 | F42: IT infrastructure capex | G42: Meter Type 4 | H42: 4981.82825 | J42: 0
E43: ED_MET422_00032 | F43: IT infrastructure opex | G43: Meter Type 4 | H43: 7070.9045 | J43: 0
E44: ED_MET422_00033 | F44: Communications infrastructure capex | G44: Meter Type 4 | H44: 5082 | J44: 0
E45: ED_MET422_00034 | F45: Communications infrastructure opex | G45: Meter Type 4 | H45: 70 | J45: 0

Sheet 4.3 Fee-based services
B1: =Title -> REGULATORY REPORTING STATEMENT
B2: =TradingName -> Powercor Australia Ltd
B3: =CONCATENATE("Category Analysis RIN response ",CRY) -> Category Analysis RIN response 2014
B4: 4.3 ANCILLARY SERVICES - FEE BASED SERVICES
B6: TABLE 4.3.1 - COST METRICS FOR FEE-BASED SERVICES
D9: EXPENDITURE ($000'S) | F9: VOLUMES (000's)
B10: SERVICE | C10: SERVICE SUBCATEGORY | D10: =CRY -> 2014 | F10: =CRY -> 2014
A11: ED_FEE431_00001 | B11: Common Fee-Based Services | C11: Energisation | D11: 0 | E11: ED_FEE431_00001 | F11: 0
A12: ED_FEE431_00002 | B12: Common Fee-Based Services | C12: De-energisation | D12: 1110.748893 | E12: ED_FEE431_00002 | F12: 30.42797176
A13: ED_FEE431_00003 | B13: Common Fee-Based Services | C13: Re-energisation | D13: 1801.339091 | E13: ED_FEE431_00003 | F13: 48.78420647
A14: ED_FEE431_00004 | B14: Miscellaneous Fee-Based Services | C14: PV INSTALLATION | D14: 2296.281726 | E14: ED_FEE431_00004 | F14: 11.03377341
A15: ED_FEE431_00005 | B15: Miscellaneous Fee-Based Services | C15: REMOTE DE - ENERGISATION | D15: 274.3227842 | E15: ED_FEE431_00005 | F15: 48.78849065
A16: ED_FEE431_00006 | B16: Miscellaneous Fee-Based Services | C16: REMOTE RE - ENERGISATION | D16: 198.5016773 | E16: ED_FEE431_00006 | F16: 36.66702688
A17: ED_FEE431_00007 | B17: Miscellaneous Fee-Based Services | C17: WASTED TRUCK VISITS | D17: 114.6070277 | E17: ED_FEE431_00007 | F17: 0.376
A18: ED_FEE431_00008 | B18: Miscellaneous Fee-Based Services | C18: SERVICE TRUCK VISITS | D18: 3416.296336 | E18: ED_FEE431_00008 | F18: 2.396
A19: ED_FEE431_00009 | B19: Miscellaneous Fee-Based Services | C19: RESERVE FEEDER | D19: 206.8710864 | E19: ED_FEE431_00009 | F19: 0.008
A20: ED_FEE431_00010 | B20: Miscellaneous Fee-Based Services | E20: ED_FEE431_00010
A21: ED_FEE431_00011 | B21: Miscellaneous Fee-Based Services | E21: ED_FEE431_00011
A22: ED_FEE431_00012 | B22: Miscellaneous Fee-Based Services | E22: ED_FEE431_00012
A23: ED_FEE431_00013 | B23: Miscellaneous Fee-Based Services | E23: ED_FEE431_00013
A24: ED_FEE431_00014 | B24: Miscellaneous Fee-Based Services | E24: ED_FEE431_00014
A25: ED_FEE431_00015 | B25: Miscellaneous Fee-Based Services | E25: ED_FEE431_00015
A26: ED_FEE431_00016 | B26: Miscellaneous Fee-Based Services | E26: ED_FEE431_00016
A27: ED_FEE431_00017 | B27: Miscellaneous Fee-Based Services | E27: ED_FEE431_00017
A28: ED_FEE431_00018 | B28: Miscellaneous Fee-Based Services | E28: ED_FEE431_00018
A29: ED_FEE431_00019 | B29: Miscellaneous Fee-Based Services | E29: ED_FEE431_00019
A30: ED_FEE431_00020 | B30: Miscellaneous Fee-Based Services | E30: ED_FEE431_00020
A31: ED_FEE431_00021 | B31: Miscellaneous Fee-Based Services | E31: ED_FEE431_00021
A32: ED_FEE431_00022 | B32: Miscellaneous Fee-Based Services | E32: ED_FEE431_00022
A33: ED_FEE431_00023 | B33: Miscellaneous Fee-Based Services | E33: ED_FEE431_00023
A34: ED_FEE431_00024 | B34: Miscellaneous Fee-Based Services | E34: ED_FEE431_00024
A35: ED_FEE431_00025 | B35: Miscellaneous Fee-Based Services | E35: ED_FEE431_00025
A36: ED_FEE431_00026 | B36: Miscellaneous Fee-Based Services | E36: ED_FEE431_00026
A37: ED_FEE431_00027 | B37: Miscellaneous Fee-Based Services | E37: ED_FEE431_00027
A38: ED_FEE431_00028 | B38: Miscellaneous Fee-Based Services | E38: ED_FEE431_00028
A39: ED_FEE431_00029 | B39: Miscellaneous Fee-Based Services | E39: ED_FEE431_00029
A40: ED_FEE431_00030 | B40: Miscellaneous Fee-Based Services | E40: ED_FEE431_00030
A41: ED_FEE431_00031 | B41: Miscellaneous Fee-Based Services | E41: ED_FEE431_00031
A42: ED_FEE431_00032 | B42: Miscellaneous Fee-Based Services | E42: ED_FEE431_00032
A43: ED_FEE431_00033 | B43: Miscellaneous Fee-Based Services | E43: ED_FEE431_00033
A44: ED_FEE431_00034 | B44: Miscellaneous Fee-Based Services | E44: ED_FEE431_00034
A45: ED_FEE431_00035 | B45: Miscellaneous Fee-Based Services | E45: ED_FEE431_00035
A46: ED_FEE431_00036 | B46: Miscellaneous Fee-Based Services | E46: ED_FEE431_00036
A47: ED_FEE431_00037 | B47: Miscellaneous Fee-Based Services | E47: ED_FEE431_00037
A48: ED_FEE431_00038 | B48: Miscellaneous Fee-Based Services | E48: ED_FEE431_00038
A49: ED_FEE431_00039 | B49: Miscellaneous Fee-Based Services | E49: ED_FEE431_00039
A50: ED_FEE431_00040 | B50: Miscellaneous Fee-Based Services | E50: ED_FEE431_00040
A51: ED_FEE431_00041 | B51: Miscellaneous Fee-Based Services | E51: ED_FEE431_00041
A52: ED_FEE431_00042 | B52: Miscellaneous Fee-Based Services | E52: ED_FEE431_00042
A53: ED_FEE431_00043 | B53: Miscellaneous Fee-Based Services | E53: ED_FEE431_00043
A54: ED_FEE431_00044 | B54: Miscellaneous Fee-Based Services | E54: ED_FEE431_00044
A55: ED_FEE431_00045 | B55: Miscellaneous Fee-Based Services | E55: ED_FEE431_00045
A56: ED_FEE431_00046 | B56: Miscellaneous Fee-Based Services | E56: ED_FEE431_00046
A57: ED_FEE431_00047 | B57: Miscellaneous Fee-Based Services | E57: ED_FEE431_00047
A58: ED_FEE431_00048 | B58: Miscellaneous Fee-Based Services | E58: ED_FEE431_00048
A59: ED_FEE431_00049 | B59: Miscellaneous Fee-Based Services | E59: ED_FEE431_00049
A60: ED_FEE431_00050 | B60: Miscellaneous Fee-Based Services | E60: ED_FEE431_00050
A61: ED_FEE431_00051 | B61: Miscellaneous Fee-Based Services | E61: ED_FEE431_00051
A62: ED_FEE431_00052 | B62: Miscellaneous Fee-Based Services | E62: ED_FEE431_00052
A63: ED_FEE431_00053 | B63: Miscellaneous Fee-Based Services | E63: ED_FEE431_00053
A64: ED_FEE431_00054 | B64: Miscellaneous Fee-Based Services | E64: ED_FEE431_00054
A65: ED_FEE431_00055 | B65: Miscellaneous Fee-Based Services | E65: ED_FEE431_00055
A66: ED_FEE431_00056 | B66: Miscellaneous Fee-Based Services | E66: ED_FEE431_00056
A67: ED_FEE431_00057 | B67: Miscellaneous Fee-Based Services | E67: ED_FEE431_00057
A68: ED_FEE431_00058 | B68: Miscellaneous Fee-Based Services | E68: ED_FEE431_00058
A69: ED_FEE431_00059 | B69: Miscellaneous Fee-Based Services | E69: ED_FEE431_00059
A70: ED_FEE431_00060 | B70: Miscellaneous Fee-Based Services | E70: ED_FEE431_00060
A71: ED_FEE431_00061 | B71: Miscellaneous Fee-Based Services | E71: ED_FEE431_00061
A72: ED_FEE431_00062 | B72: Miscellaneous Fee-Based Services | E72: ED_FEE431_00062
A73: ED_FEE431_00063 | B73: Miscellaneous Fee-Based Services | E73: ED_FEE431_00063
A74: ED_FEE431_00064 | B74: Miscellaneous Fee-Based Services | E74: ED_FEE431_00064
A75: ED_FEE431_00065 | B75: Miscellaneous Fee-Based Services | E75: ED_FEE431_00065
A76: ED_FEE431_00066 | B76: Miscellaneous Fee-Based Services | E76: ED_FEE431_00066
A77: ED_FEE431_00067 | B77: Miscellaneous Fee-Based Services | E77: ED_FEE431_00067
A78: ED_FEE431_00068 | B78: Miscellaneous Fee-Based Services | E78: ED_FEE431_00068
A79: ED_FEE431_00069 | B79: Miscellaneous Fee-Based Services | E79: ED_FEE431_00069
A80: ED_FEE431_00070 | B80: Miscellaneous Fee-Based Services | E80: ED_FEE431_00070
A81: ED_FEE431_00071 | B81: Miscellaneous Fee-Based Services | E81: ED_FEE431_00071
A82: ED_FEE431_00072 | B82: Miscellaneous Fee-Based Services | E82: ED_FEE431_00072
A83: ED_FEE431_00073 | B83: Miscellaneous Fee-Based Services | E83: ED_FEE431_00073
A84: ED_FEE431_00074 | B84: Miscellaneous Fee-Based Services | E84: ED_FEE431_00074
A85: ED_FEE431_00075 | B85: Miscellaneous Fee-Based Services | E85: ED_FEE431_00075
A86: ED_FEE431_00076 | B86: Miscellaneous Fee-Based Services | E86: ED_FEE431_00076
A87: ED_FEE431_00077 | B87: Miscellaneous Fee-Based Services | E87: ED_FEE431_00077
A88: ED_FEE431_00078 | B88: Miscellaneous Fee-Based Services | E88: ED_FEE431_00078
A89: ED_FEE431_00079 | B89: Miscellaneous Fee-Based Services | E89: ED_FEE431_00079
A90: ED_FEE431_00080 | B90: Miscellaneous Fee-Based Services | E90: ED_FEE431_00080
A91: ED_FEE431_00081 | B91: Miscellaneous Fee-Based Services | E91: ED_FEE431_00081
A92: ED_FEE431_00082 | B92: Miscellaneous Fee-Based Services | E92: ED_FEE431_00082
A93: ED_FEE431_00083 | B93: Miscellaneous Fee-Based Services | E93: ED_FEE431_00083
A94: ED_FEE431_00084 | B94: Miscellaneous Fee-Based Services | E94: ED_FEE431_00084
A95: ED_FEE431_00085 | B95: Miscellaneous Fee-Based Services | E95: ED_FEE431_00085
A96: ED_FEE431_00086 | B96: Miscellaneous Fee-Based Services | E96: ED_FEE431_00086
A97: ED_FEE431_00087 | B97: Miscellaneous Fee-Based Services | E97: ED_FEE431_00087
A98: ED_FEE431_00088 | B98: Miscellaneous Fee-Based Services | E98: ED_FEE431_00088
A99: ED_FEE431_00089 | B99: Miscellaneous Fee-Based Services | E99: ED_FEE431_00089
A100: ED_FEE431_00090 | B100: Miscellaneous Fee-Based Services | E100: ED_FEE431_00090
A101: ED_FEE431_00091 | B101: Miscellaneous Fee-Based Services | E101: ED_FEE431_00091
A102: ED_FEE431_00092 | B102: Miscellaneous Fee-Based Services | E102: ED_FEE431_00092
A103: ED_FEE431_00093 | B103: Miscellaneous Fee-Based Services | E103: ED_FEE431_00093
A104: ED_FEE431_00094 | B104: Miscellaneous Fee-Based Services | E104: ED_FEE431_00094
A105: ED_FEE431_00095 | B105: Miscellaneous Fee-Based Services | E105: ED_FEE431_00095
A106: ED_FEE431_00096 | B106: Miscellaneous Fee-Based Services | E106: ED_FEE431_00096
A107: ED_FEE431_00097 | B107: Miscellaneous Fee-Based Services | E107: ED_FEE431_00097
A108: ED_FEE431_00098 | B108: Miscellaneous Fee-Based Services | E108: ED_FEE431_00098
A109: ED_FEE431_00099 | B109: Miscellaneous Fee-Based Services | E109: ED_FEE431_00099
A110: ED_FEE431_00100 | B110: Miscellaneous Fee-Based Services | E110: ED_FEE431_00100
A111: ED_FEE431_00101 | B111: Miscellaneous Fee-Based Services | E111: ED_FEE431_00101
A112: ED_FEE431_00102 | B112: Miscellaneous Fee-Based Services | E112: ED_FEE431_00102
A113: ED_FEE431_00103 | B113: Miscellaneous Fee-Based Services | E113: ED_FEE431_00103
A114: ED_FEE431_00104 | B114: Miscellaneous Fee-Based Services | E114: ED_FEE431_00104
A115: ED_FEE431_00105 | B115: Miscellaneous Fee-Based Services | E115: ED_FEE431_00105
A116: ED_FEE431_00106 | B116: Miscellaneous Fee-Based Services | E116: ED_FEE431_00106
A117: ED_FEE431_00107 | B117: Miscellaneous Fee-Based Services | E117: ED_FEE431_00107
A118: ED_FEE431_00108 | B118: Miscellaneous Fee-Based Services | E118: ED_FEE431_00108
A119: ED_FEE431_00109 | B119: Miscellaneous Fee-Based Services | E119: ED_FEE431_00109
A120: ED_FEE431_00110 | B120: Miscellaneous Fee-Based Services | E120: ED_FEE431_00110
A121: ED_FEE431_00111 | B121: Miscellaneous Fee-Based Services | E121: ED_FEE431_00111
A122: ED_FEE431_00112 | B122: Miscellaneous Fee-Based Services | E122: ED_FEE431_00112
A123: ED_FEE431_00113 | B123: Miscellaneous Fee-Based Services | E123: ED_FEE431_00113
A124: ED_FEE431_00114 | B124: Miscellaneous Fee-Based Services | E124: ED_FEE431_00114
A125: ED_FEE431_00115 | B125: Miscellaneous Fee-Based Services | E125: ED_FEE431_00115
A126: ED_FEE431_00116 | B126: Miscellaneous Fee-Based Services | E126: ED_FEE431_00116
A127: ED_FEE431_00117 | B127: Miscellaneous Fee-Based Services | E127: ED_FEE431_00117
A128: ED_FEE431_00118 | B128: Miscellaneous Fee-Based Services | E128: ED_FEE431_00118
A129: ED_FEE431_00119 | B129: Miscellaneous Fee-Based Services | E129: ED_FEE431_00119
A130: ED_FEE431_00120 | B130: Miscellaneous Fee-Based Services | E130: ED_FEE431_00120
A131: ED_FEE431_00121 | B131: Miscellaneous Fee-Based Services | E131: ED_FEE431_00121
A132: ED_FEE431_00122 | B132: Miscellaneous Fee-Based Services | E132: ED_FEE431_00122
A133: ED_FEE431_00123 | B133: Miscellaneous Fee-Based Services | E133: ED_FEE431_00123
A134: ED_FEE431_00124 | B134: Miscellaneous Fee-Based Services | E134: ED_FEE431_00124
A135: ED_FEE431_00125 | B135: Miscellaneous Fee-Based Services | E135: ED_FEE431_00125
A136: ED_FEE431_00126 | B136: Miscellaneous Fee-Based Services | E136: ED_FEE431_00126
A137: ED_FEE431_00127 | B137: Miscellaneous Fee-Based Services | E137: ED_FEE431_00127
A138: ED_FEE431_00128 | B138: Miscellaneous Fee-Based Services | E138: ED_FEE431_00128
A139: ED_FEE431_00129 | B139: Miscellaneous Fee-Based Services | E139: ED_FEE431_00129
A140: ED_FEE431_00130 | B140: Miscellaneous Fee-Based Services | E140: ED_FEE431_00130
A141: ED_FEE431_00131 | B141: Miscellaneous Fee-Based Services | E141: ED_FEE431_00131
A142: ED_FEE431_00132 | B142: Miscellaneous Fee-Based Services | E142: ED_FEE431_00132
A143: ED_FEE431_00133 | B143: Miscellaneous Fee-Based Services | E143: ED_FEE431_00133
A144: ED_FEE431_00134 | B144: Miscellaneous Fee-Based Services | E144: ED_FEE431_00134
A145: ED_FEE431_00135 | B145: Miscellaneous Fee-Based Services | E145: ED_FEE431_00135
A146: ED_FEE431_00136 | B146: Miscellaneous Fee-Based Services | E146: ED_FEE431_00136
A147: ED_FEE431_00137 | B147: Miscellaneous Fee-Based Services | E147: ED_FEE431_00137
A148: ED_FEE431_00138 | B148: Miscellaneous Fee-Based Services | E148: ED_FEE431_00138
A149: ED_FEE431_00139 | B149: Miscellaneous Fee-Based Services | E149: ED_FEE431_00139
A150: ED_FEE431_00140 | B150: Miscellaneous Fee-Based Services | E150: ED_FEE431_00140
A151: ED_FEE431_00141 | B151: Miscellaneous Fee-Based Services | E151: ED_FEE431_00141
A152: ED_FEE431_00142 | B152: Miscellaneous Fee-Based Services | E152: ED_FEE431_00142
A153: ED_FEE431_00143 | B153: Miscellaneous Fee-Based Services | E153: ED_FEE431_00143
A154: ED_FEE431_00144 | B154: Miscellaneous Fee-Based Services | E154: ED_FEE431_00144
A155: ED_FEE431_00145 | B155: Miscellaneous Fee-Based Services | E155: ED_FEE431_00145
A156: ED_FEE431_00146 | B156: Miscellaneous Fee-Based Services | E156: ED_FEE431_00146
A157: ED_FEE431_00147 | B157: Miscellaneous Fee-Based Services | E157: ED_FEE431_00147
A158: ED_FEE431_00148 | B158: Miscellaneous Fee-Based Services | E158: ED_FEE431_00148
A159: ED_FEE431_00149 | B159: Miscellaneous Fee-Based Services | E159: ED_FEE431_00149
A160: ED_FEE431_00150 | B160: Miscellaneous Fee-Based Services | E160: ED_FEE431_00150
A161: ED_FEE431_00151 | B161: Miscellaneous Fee-Based Services | E161: ED_FEE431_00151
A162: ED_FEE431_00152 | B162: Miscellaneous Fee-Based Services | E162: ED_FEE431_00152
A163: ED_FEE431_00153 | B163: Miscellaneous Fee-Based Services | E163: ED_FEE431_00153
A164: ED_FEE431_00154 | B164: Miscellaneous Fee-Based Services | E164: ED_FEE431_00154
A165: ED_FEE431_00155 | B165: Miscellaneous Fee-Based Services | E165: ED_FEE431_00155
A166: ED_FEE431_00156 | B166: Miscellaneous Fee-Based Services | E166: ED_FEE431_00156
A167: ED_FEE431_00157 | B167: Miscellaneous Fee-Based Services | E167: ED_FEE431_00157
A168: ED_FEE431_00158 | B168: Miscellaneous Fee-Based Services | E168: ED_FEE431_00158
A169: ED_FEE431_00159 | B169: Miscellaneous Fee-Based Services | E169: ED_FEE431_00159
A170: ED_FEE431_00160 | B170: Miscellaneous Fee-Based Services | E170: ED_FEE431_00160
A171: ED_FEE431_00161 | B171: Miscellaneous Fee-Based Services | E171: ED_FEE431_00161
A172: ED_FEE431_00162 | B172: Miscellaneous Fee-Based Services | E172: ED_FEE431_00162
A173: ED_FEE431_00163 | B173: Miscellaneous Fee-Based Services | E173: ED_FEE431_00163
A174: ED_FEE431_00164 | B174: Miscellaneous Fee-Based Services | E174: ED_FEE431_00164
A175: ED_FEE431_00165 | B175: Miscellaneous Fee-Based Services | E175: ED_FEE431_00165
A176: ED_FEE431_00166 | B176: Miscellaneous Fee-Based Services | E176: ED_FEE431_00166
A177: ED_FEE431_00167 | B177: Miscellaneous Fee-Based Services | E177: ED_FEE431_00167
A178: ED_FEE431_00168 | B178: Miscellaneous Fee-Based Services | E178: ED_FEE431_00168
A179: ED_FEE431_00169 | B179: Miscellaneous Fee-Based Services | E179: ED_FEE431_00169
A180: ED_FEE431_00170 | B180: Miscellaneous Fee-Based Services | E180: ED_FEE431_00170
A181: ED_FEE431_00171 | B181: Miscellaneous Fee-Based Services | E181: ED_FEE431_00171
A182: ED_FEE431_00172 | B182: Miscellaneous Fee-Based Services | E182: ED_FEE431_00172
A183: ED_FEE431_00173 | B183: Miscellaneous Fee-Based Services | E183: ED_FEE431_00173
A184: ED_FEE431_00174 | B184: Miscellaneous Fee-Based Services | E184: ED_FEE431_00174
A185: ED_FEE431_00175 | B185: Miscellaneous Fee-Based Services | E185: ED_FEE431_00175
A186: ED_FEE431_00176 | B186: Miscellaneous Fee-Based Services | E186: ED_FEE431_00176
A187: ED_FEE431_00177 | B187: Miscellaneous Fee-Based Services | E187: ED_FEE431_00177
A188: ED_FEE431_00178 | B188: Miscellaneous Fee-Based Services | E188: ED_FEE431_00178
A189: ED_FEE431_00179 | B189: Miscellaneous Fee-Based Services | E189: ED_FEE431_00179
A190: ED_FEE431_00180 | B190: Miscellaneous Fee-Based Services | E190: ED_FEE431_00180
A191: ED_FEE431_00181 | B191: Miscellaneous Fee-Based Services | E191: ED_FEE431_00181
A192: ED_FEE431_00182 | B192: Miscellaneous Fee-Based Services | E192: ED_FEE431_00182
A193: ED_FEE431_00183 | B193: Miscellaneous Fee-Based Services | E193: ED_FEE431_00183
A194: ED_FEE431_00184 | B194: Miscellaneous Fee-Based Services | E194: ED_FEE431_00184
A195: ED_FEE431_00185 | B195: Miscellaneous Fee-Based Services | E195: ED_FEE431_00185
A196: ED_FEE431_00186 | B196: Miscellaneous Fee-Based Services | E196: ED_FEE431_00186
A197: ED_FEE431_00187 | B197: Miscellaneous Fee-Based Services | E197: ED_FEE431_00187
A198: ED_FEE431_00188 | B198: Miscellaneous Fee-Based Services | E198: ED_FEE431_00188
A199: ED_FEE431_00189 | B199: Miscellaneous Fee-Based Services | E199: ED_FEE431_00189
A200: ED_FEE431_00190 | B200: Miscellaneous Fee-Based Services | E200: ED_FEE431_00190
A201: ED_FEE431_00191 | B201: Miscellaneous Fee-Based Services | E201: ED_FEE431_00191
A202: ED_FEE431_00192 | B202: Miscellaneous Fee-Based Services | E202: ED_FEE431_00192
A203: ED_FEE431_00193 | B203: Miscellaneous Fee-Based Services | E203: ED_FEE431_00193
... 278 more rows

Sheet 4.4 Quoted services.
B1: =Title -> REGULATORY REPORTING STATEMENT
B2: =TradingName -> Powercor Australia Ltd
B3: =CONCATENATE("Category Analysis RIN response ",CRY) -> Category Analysis RIN response 2014
B4: 4.4 ANCILLARY SERVICES - QUOTED SERVICES
B6: TABLE 4.4.1 - COST METRICS FOR QUOTED SERVICES
D9: EXPENDITURE ($000'S) | F9: VOLUMES (000'S)
B10: SERVICE | C10: SERVICE SUBCATEGORY | D10: =CRY -> 2014 | F10: =CRY -> 2014
A11: ED_QUO441_00001 | B11: Quoted Services | C11: Recoverable Works - Connections Standard Control | D11: 15203 | E11: ED_QUO441_00002 | F11: 0.1844269
A12: ED_QUO441_00002 | B12: Quoted Services | C12: Emergency Recoverable Works | D12: 1804.874821 | E12: ED_QUO441_00003 | F12: 0.237
A13: ED_QUO441_00003 | B13: Quoted Services | C13: After hours truck by appointment | D13: 9.498471071 | E13: ED_QUO441_00004 | F13: 0.04698520345
A14: ED_QUO441_00004 | B14: Quoted Services | C14: Supply abolishment | D14: 588.5757562 | E14: ED_QUO441_00005 | F14: 1.199958333
A15: ED_QUO441_00005 | B15: Quoted Services | C15: Audit Design & Construction Charge | D15: 1028.166111 | E15: ED_QUO441_00006 | F15: 0.564
A16: ED_QUO441_00006 | B16: Quoted Services | C16: Specification & Design Enquiry Charge | D16: 1694.564931 | E16: ED_QUO441_00007 | F16: 0.115
A17: ED_QUO441_00007 | B17: Quoted Services | C17: High Load Escorts | D17: 22.97913565 | E17: ED_QUO441_00008 | F17: 0.012
A18: ED_QUO441_00008 | B18: Quoted Services | C18: Low Voltage Mains | D18: 460.4679111 | E18: ED_QUO441_00009 | F18: 0.265
A19: ED_QUO441_00009 | B19: Quoted Services | C19: Regulated Fee | D19: 0 | E19: ED_QUO441_00010 | F19: 0
A20: ED_QUO441_00010 | B20: Quoted Services | E20: ED_QUO441_00010
A21: ED_QUO441_00011 | B21: Quoted Services | E21: ED_QUO441_00011
A22: ED_QUO441_00012 | B22: Quoted Services | E22: ED_QUO441_00012
A23: ED_QUO441_00013 | B23: Quoted Services | E23: ED_QUO441_00013
A24: ED_QUO441_00014 | B24: Quoted Services | E24: ED_QUO441_00014
A25: ED_QUO441_00015 | B25: Quoted Services | E25: ED_QUO441_00015
A26: ED_QUO441_00016 | B26: Quoted Services | E26: ED_QUO441_00016
A27: ED_QUO441_00017 | B27: Quoted Services | E27: ED_QUO441_00017
A28: ED_QUO441_00018 | B28: Quoted Services | E28: ED_QUO441_00018
A29: ED_QUO441_00019 | B29: Quoted Services | E29: ED_QUO441_00019
A30: ED_QUO441_00020 | B30: Quoted Services | E30: ED_QUO441_00020
A31: ED_QUO441_00021 | B31: Quoted Services | E31: ED_QUO441_00021
A32: ED_QUO441_00022 | B32: Quoted Services | E32: ED_QUO441_00022
A33: ED_QUO441_00023 | B33: Quoted Services | E33: ED_QUO441_00023
A34: ED_QUO441_00024 | B34: Quoted Services | E34: ED_QUO441_00024
A35: ED_QUO441_00025 | B35: Quoted Services | E35: ED_QUO441_00025
A36: ED_QUO441_00026 | B36: Quoted Services | E36: ED_QUO441_00026
A37: ED_QUO441_00027 | B37: Quoted Services | E37: ED_QUO441_00027
A38: ED_QUO441_00028 | B38: Quoted Services | E38: ED_QUO441_00028
A39: ED_QUO441_00029 | B39: Quoted Services | E39: ED_QUO441_00029
A40: ED_QUO441_00030 | B40: Quoted Services | E40: ED_QUO441_00030
A41: ED_QUO441_00031 | B41: Quoted Services | E41: ED_QUO441_00031
A42: ED_QUO441_00032 | B42: Quoted Services | E42: ED_QUO441_00032
A43: ED_QUO441_00033 | B43: Quoted Services | E43: ED_QUO441_00033
A44: ED_QUO441_00034 | B44: Quoted Services | E44: ED_QUO441_00034
A45: ED_QUO441_00035 | B45: Quoted Services | E45: ED_QUO441_00035
A46: ED_QUO441_00036 | B46: Quoted Services | E46: ED_QUO441_00036
A47: ED_QUO441_00037 | B47: Quoted Services | E47: ED_QUO441_00037
A48: ED_QUO441_00038 | B48: Quoted Services | E48: ED_QUO441_00038
A49: ED_QUO441_00039 | B49: Quoted Services | E49: ED_QUO441_00039
A50: ED_QUO441_00040 | B50: Quoted Services | E50: ED_QUO441_00040
A51: ED_QUO441_00041 | B51: Quoted Services | E51: ED_QUO441_00041
A52: ED_QUO441_00042 | B52: Quoted Services | E52: ED_QUO441_00042
A53: ED_QUO441_00043 | B53: Quoted Services | E53: ED_QUO441_00043
A54: ED_QUO441_00044 | B54: Quoted Services | E54: ED_QUO441_00044
A55: ED_QUO441_00045 | B55: Quoted Services | E55: ED_QUO441_00045
A56: ED_QUO441_00046 | B56: Quoted Services | E56: ED_QUO441_00046
A57: ED_QUO441_00047 | B57: Quoted Services | E57: ED_QUO441_00047
A58: ED_QUO441_00048 | B58: Quoted Services | E58: ED_QUO441_00048
A59: ED_QUO441_00049 | B59: Quoted Services | E59: ED_QUO441_00049
A60: ED_QUO441_00050 | B60: Quoted Services | E60: ED_QUO441_00050
A61: ED_QUO441_00051 | B61: Quoted Services | E61: ED_QUO441_00051
A62: ED_QUO441_00052 | B62: Quoted Services | E62: ED_QUO441_00052
A63: ED_QUO441_00053 | B63: Quoted Services | E63: ED_QUO441_00053
A64: ED_QUO441_00054 | B64: Quoted Services | E64: ED_QUO441_00054
A65: ED_QUO441_00055 | B65: Quoted Services | E65: ED_QUO441_00055
A66: ED_QUO441_00056 | B66: Quoted Services | E66: ED_QUO441_00056
A67: ED_QUO441_00057 | B67: Quoted Services | E67: ED_QUO441_00057
A68: ED_QUO441_00058 | B68: Quoted Services | E68: ED_QUO441_00058
A69: ED_QUO441_00059 | B69: Quoted Services | E69: ED_QUO441_00059
A70: ED_QUO441_00060 | B70: Quoted Services | E70: ED_QUO441_00060
A71: ED_QUO441_00061 | B71: Quoted Services | E71: ED_QUO441_00061
A72: ED_QUO441_00062 | B72: Quoted Services | E72: ED_QUO441_00062
A73: ED_QUO441_00063 | B73: Quoted Services | E73: ED_QUO441_00063
A74: ED_QUO441_00064 | B74: Quoted Services | E74: ED_QUO441_00064
A75: ED_QUO441_00065 | B75: Quoted Services | E75: ED_QUO441_00065
A76: ED_QUO441_00066 | B76: Quoted Services | E76: ED_QUO441_00066
A77: ED_QUO441_00067 | B77: Quoted Services | E77: ED_QUO441_00067
A78: ED_QUO441_00068 | B78: Quoted Services | E78: ED_QUO441_00068
A79: ED_QUO441_00069 | B79: Quoted Services | E79: ED_QUO441_00069
A80: ED_QUO441_00070 | B80: Quoted Services | E80: ED_QUO441_00070
A81: ED_QUO441_00071 | B81: Quoted Services | E81: ED_QUO441_00071
A82: ED_QUO441_00072 | B82: Quoted Services | E82: ED_QUO441_00072
A83: ED_QUO441_00073 | B83: Quoted Services | E83: ED_QUO441_00073
A84: ED_QUO441_00074 | B84: Quoted Services | E84: ED_QUO441_00074
A85: ED_QUO441_00075 | B85: Quoted Services | E85: ED_QUO441_00075
A86: ED_QUO441_00076 | B86: Quoted Services | E86: ED_QUO441_00076
A87: ED_QUO441_00077 | B87: Quoted Services | E87: ED_QUO441_00077
A88: ED_QUO441_00078 | B88: Quoted Services | E88: ED_QUO441_00078
A89: ED_QUO441_00079 | B89: Quoted Services | E89: ED_QUO441_00079
A90: ED_QUO441_00080 | B90: Quoted Services | E90: ED_QUO441_00080
A91: ED_QUO441_00081 | B91: Quoted Services | E91: ED_QUO441_00081
A92: ED_QUO441_00082 | B92: Quoted Services | E92: ED_QUO441_00082
A93: ED_QUO441_00083 | B93: Quoted Services | E93: ED_QUO441_00083
A94: ED_QUO441_00084 | B94: Quoted Services | E94: ED_QUO441_00084
A95: ED_QUO441_00085 | B95: Quoted Services | E95: ED_QUO441_00085
A96: ED_QUO441_00086 | B96: Quoted Services | E96: ED_QUO441_00086
A97: ED_QUO441_00087 | B97: Quoted Services | E97: ED_QUO441_00087
A98: ED_QUO441_00088 | B98: Quoted Services | E98: ED_QUO441_00088
A99: ED_QUO441_00089 | B99: Quoted Services | E99: ED_QUO441_00089
A100: ED_QUO441_00090 | B100: Quoted Services | E100: ED_QUO441_00090
A101: ED_QUO441_00091 | B101: Quoted Services | E101: ED_QUO441_00091
A102: ED_QUO441_00092 | B102: Quoted Services | E102: ED_QUO441_00092
A103: ED_QUO441_00093 | B103: Quoted Services | E103: ED_QUO441_00093
A104: ED_QUO441_00094 | B104: Quoted Services | E104: ED_QUO441_00094
A105: ED_QUO441_00095 | B105: Quoted Services | E105: ED_QUO441_00095
A106: ED_QUO441_00096 | B106: Quoted Services | E106: ED_QUO441_00096
A107: ED_QUO441_00097 | B107: Quoted Services | E107: ED_QUO441_00097
A108: ED_QUO441_00098 | B108: Quoted Services | E108: ED_QUO441_00098
A109: ED_QUO441_00099 | B109: Quoted Services | E109: ED_QUO441_00099
A110: ED_QUO441_00100 | B110: Quoted Services | E110: ED_QUO441_00100
A111: ED_QUO441_00101 | B111: Quoted Services | E111: ED_QUO441_00101
A112: ED_QUO441_00102 | B112: Quoted Services | E112: ED_QUO441_00102
A113: ED_QUO441_00103 | B113: Quoted Services | E113: ED_QUO441_00103
A114: ED_QUO441_00104 | B114: Quoted Services | E114: ED_QUO441_00104
A115: ED_QUO441_00105 | B115: Quoted Services | E115: ED_QUO441_00105
A116: ED_QUO441_00106 | B116: Quoted Services | E116: ED_QUO441_00106
A117: ED_QUO441_00107 | B117: Quoted Services | E117: ED_QUO441_00107
A118: ED_QUO441_00108 | B118: Quoted Services | E118: ED_QUO441_00108
A119: ED_QUO441_00109 | B119: Quoted Services | E119: ED_QUO441_00109
A120: ED_QUO441_00110 | B120: Quoted Services | E120: ED_QUO441_00110
A121: ED_QUO441_00111 | B121: Quoted Services | E121: ED_QUO441_00111
A122: ED_QUO441_00112 | B122: Quoted Services | E122: ED_QUO441_00112
A123: ED_QUO441_00113 | B123: Quoted Services | E123: ED_QUO441_00113
A124: ED_QUO441_00114 | B124: Quoted Services | E124: ED_QUO441_00114
A125: ED_QUO441_00115 | B125: Quoted Services | E125: ED_QUO441_00115
A126: ED_QUO441_00116 | B126: Quoted Services | E126: ED_QUO441_00116
A127: ED_QUO441_00117 | B127: Quoted Services | E127: ED_QUO441_00117
A128: ED_QUO441_00118 | B128: Quoted Services | E128: ED_QUO441_00118
A129: ED_QUO441_00119 | B129: Quoted Services | E129: ED_QUO441_00119
A130: ED_QUO441_00120 | B130: Quoted Services | E130: ED_QUO441_00120
A131: ED_QUO441_00121 | B131: Quoted Services | E131: ED_QUO441_00121
A132: ED_QUO441_00122 | B132: Quoted Services | E132: ED_QUO441_00122
A133: ED_QUO441_00123 | B133: Quoted Services | E133: ED_QUO441_00123
A134: ED_QUO441_00124 | B134: Quoted Services | E134: ED_QUO441_00124
A135: ED_QUO441_00125 | B135: Quoted Services | E135: ED_QUO441_00125
A136: ED_QUO441_00126 | B136: Quoted Services | E136: ED_QUO441_00126
A137: ED_QUO441_00127 | B137: Quoted Services | E137: ED_QUO441_00127
A138: ED_QUO441_00128 | B138: Quoted Services | E138: ED_QUO441_00128
A139: ED_QUO441_00129 | B139: Quoted Services | E139: ED_QUO441_00129
A140: ED_QUO441_00130 | B140: Quoted Services | E140: ED_QUO441_00130
A141: ED_QUO441_00131 | B141: Quoted Services | E141: ED_QUO441_00131
A142: ED_QUO441_00132 | B142: Quoted Services | E142: ED_QUO441_00132
A143: ED_QUO441_00133 | B143: Quoted Services | E143: ED_QUO441_00133
A144: ED_QUO441_00134 | B144: Quoted Services | E144: ED_QUO441_00134
A145: ED_QUO441_00135 | B145: Quoted Services | E145: ED_QUO441_00135
A146: ED_QUO441_00136 | B146: Quoted Services | E146: ED_QUO441_00136
A147: ED_QUO441_00137 | B147: Quoted Services | E147: ED_QUO441_00137
A148: ED_QUO441_00138 | B148: Quoted Services | E148: ED_QUO441_00138
A149: ED_QUO441_00139 | B149: Quoted Services | E149: ED_QUO441_00139
A150: ED_QUO441_00140 | B150: Quoted Services | E150: ED_QUO441_00140
A151: ED_QUO441_00141 | B151: Quoted Services | E151: ED_QUO441_00141
A152: ED_QUO441_00142 | B152: Quoted Services | E152: ED_QUO441_00142
A153: ED_QUO441_00143 | B153: Quoted Services | E153: ED_QUO441_00143
A154: ED_QUO441_00144 | B154: Quoted Services | E154: ED_QUO441_00144
A155: ED_QUO441_00145 | B155: Quoted Services | E155: ED_QUO441_00145
A156: ED_QUO441_00146 | B156: Quoted Services | E156: ED_QUO441_00146
A157: ED_QUO441_00147 | B157: Quoted Services | E157: ED_QUO441_00147
A158: ED_QUO441_00148 | B158: Quoted Services | E158: ED_QUO441_00148
A159: ED_QUO441_00149 | B159: Quoted Services | E159: ED_QUO441_00149
A160: ED_QUO441_00150 | B160: Quoted Services | E160: ED_QUO441_00150
A161: ED_QUO441_00151 | B161: Quoted Services | E161: ED_QUO441_00151
A162: ED_QUO441_00152 | B162: Quoted Services | E162: ED_QUO441_00152
A163: ED_QUO441_00153 | B163: Quoted Services | E163: ED_QUO441_00153
A164: ED_QUO441_00154 | B164: Quoted Services | E164: ED_QUO441_00154
A165: ED_QUO441_00155 | B165: Quoted Services | E165: ED_QUO441_00155
A166: ED_QUO441_00156 | B166: Quoted Services | E166: ED_QUO441_00156
A167: ED_QUO441_00157 | B167: Quoted Services | E167: ED_QUO441_00157
A168: ED_QUO441_00158 | B168: Quoted Services | E168: ED_QUO441_00158
A169: ED_QUO441_00159 | B169: Quoted Services | E169: ED_QUO441_00159
A170: ED_QUO441_00160 | B170: Quoted Services | E170: ED_QUO441_00160
A171: ED_QUO441_00161 | B171: Quoted Services | E171: ED_QUO441_00161
A172: ED_QUO441_00162 | B172: Quoted Services | E172: ED_QUO441_00162
A173: ED_QUO441_00163 | B173: Quoted Services | E173: ED_QUO441_00163
A174: ED_QUO441_00164 | B174: Quoted Services | E174: ED_QUO441_00164
A175: ED_QUO441_00165 | B175: Quoted Services | E175: ED_QUO441_00165
A176: ED_QUO441_00166 | B176: Quoted Services | E176: ED_QUO441_00166
A177: ED_QUO441_00167 | B177: Quoted Services | E177: ED_QUO441_00167
A178: ED_QUO441_00168 | B178: Quoted Services | E178: ED_QUO441_00168
A179: ED_QUO441_00169 | B179: Quoted Services | E179: ED_QUO441_00169
A180: ED_QUO441_00170 | B180: Quoted Services | E180: ED_QUO441_00170
A181: ED_QUO441_00171 | B181: Quoted Services | E181: ED_QUO441_00171
A182: ED_QUO441_00172 | B182: Quoted Services | E182: ED_QUO441_00172
A183: ED_QUO441_00173 | B183: Quoted Services | E183: ED_QUO441_00173
A184: ED_QUO441_00174 | B184: Quoted Services | E184: ED_QUO441_00174
A185: ED_QUO441_00175 | B185: Quoted Services | E185: ED_QUO441_00175
A186: ED_QUO441_00176 | B186: Quoted Services | E186: ED_QUO441_00176
A187: ED_QUO441_00177 | B187: Quoted Services | E187: ED_QUO441_00177
A188: ED_QUO441_00178 | B188: Quoted Services | E188: ED_QUO441_00178
A189: ED_QUO441_00179 | B189: Quoted Services | E189: ED_QUO441_00179
A190: ED_QUO441_00180 | B190: Quoted Services | E190: ED_QUO441_00180
A191: ED_QUO441_00181 | B191: Quoted Services | E191: ED_QUO441_00181
A192: ED_QUO441_00182 | B192: Quoted Services | E192: ED_QUO441_00182
A193: ED_QUO441_00183 | B193: Quoted Services | E193: ED_QUO441_00183
A194: ED_QUO441_00184 | B194: Quoted Services | E194: ED_QUO441_00184
A195: ED_QUO441_00185 | B195: Quoted Services | E195: ED_QUO441_00185
A196: ED_QUO441_00186 | B196: Quoted Services | E196: ED_QUO441_00186
A197: ED_QUO441_00187 | B197: Quoted Services | E197: ED_QUO441_00187
A198: ED_QUO441_00188 | B198: Quoted Services | E198: ED_QUO441_00188
A199: ED_QUO441_00189 | B199: Quoted Services | E199: ED_QUO441_00189
A200: ED_QUO441_00190 | B200: Quoted Services | E200: ED_QUO441_00190
A201: ED_QUO441_00191 | B201: Quoted Services | E201: ED_QUO441_00191
A202: ED_QUO441_00192 | B202: Quoted Services | E202: ED_QUO441_00192
A203: ED_QUO441_00193 | B203: Quoted Services | E203: ED_QUO441_00193
... 280 more rows

Sheet 5.2 Asset Age Profile
B1: =Title -> REGULATORY REPORTING STATEMENT
B2: =TradingName -> Powercor Australia Ltd
B3: =CONCATENATE("Category Analysis RIN response ",CRY) -> Category Analysis RIN response 2014
B4: 5.2 ASSET AGE PROFILE
B6: TABLE 5.2.1 - ASSET AGE PROFILE
E7: 1 | P7: 2 | AA7: 3
N9: ECONOMIC LIFE (YEARS) | AJ9: INSTALLED ASSETS -˃ QUANTITY CURRENTLY IN COMMISSION BY YEAR
B10: ASSET GROUP | C10: ASSET CATEGORY | E10: DNSP NAME | F10: SERVICE | G10: ASSET GROUP | H10: ASSET CATEGORY | I10: DATA TYPE | J10: DATA TYPE SUBCATEGORY | K10: MEASUREMENT | L10: DENOMINATION | N10: MEAN | P10: DNSP NAME | Q10: SERVICE | R10: ASSET GROUP | S10: ASSET CATEGORY | T10: DATA TYPE | U10: DATA TYPE SUBCATEGORY | V10: MEASUREMENT | W10: DENOMINATION | Y10: STANDARD DEVIATION | AA10: DNSP NAME | AB10: SERVICE | AC10: ASSET GROUP | AD10: ASSET CATEGORY | AE10: DATA TYPE | AF10: DATA TYPE SUBCATEGORY | AG10: MEASUREMENT | AH10: DENOMINATION | AJ10: 2013-14 | AK10: 2012-13 | AL10: 2011-12 | AM10: 2010-11 | AN10: 2009-10 | AO10: 2008-09 | AP10: 2007-08 | AQ10: 2006-07 | AR10: 2005-06 | AS10: 2004-05 | AT10: 2003-04 | AU10: 2002-03 | AV10: 2001-02 | AW10: 2000-01 | AX10: 1999-00 | AY10: 1998-99 | AZ10: 1997-98 | BA10: 1996-97 | BB10: 1995-96 | BC10: 1994-95 | BD10: 1993-94 | BE10: 1992-93 | BF10: 1991-92 | BG10: 1990-91 | BH10: 1989-90 | BI10: 1988-89 | BJ10: 1987-88 | BK10: 1986-87 | BL10: 1985-86 | BM10: 1984-85 | BN10: 1983-84 | BO10: 1982-83 | BP10: 1981-82 | BQ10: 1980-81 | BR10: 1979-80 | BS10: 1978-79 | BT10: 1977-78 | BU10: 1976-77 | BV10: 1975-76 | BW10: 1974-75 | BX10: 1973-74 | BY10: 1972-73 | BZ10: 1971-72 | CA10: 1970-71 | CB10: 1969-70 | CC10: 1968-69 | CD10: 1967-68 | CE10: 1966-67 | CF10: 1965-66 | CG10: 1964-65 | CH10: 1963-64 | CI10: 1962-63 | CJ10: 1961-62 | CK10: 1960-61 | CL10: 1959-60 | CM10: 1958-59 | CN10: 1957-58 | CO10: 1956-57 | CP10: 1955-56 | CQ10: 1954-55 | CR10: 1953-54 | CS10: 1952-53 | CT10: 1951-52 | CU10: 1950-51 | CV10: 1949-50 | CW10: 1948-49 | CX10: 1947-48 | CY10: 1946-47 | CZ10: 1945-46 | DA10: 1944-45 | DB10: 1943-44 | DC10: 1942-43 | DD10: 1941-42 | DE10: 1940-41 | DF10: 1939-40 | DG10: 1938-39 | DH10: 1937-38 | DI10: 1936-37 | DJ10: 1935-36 | DK10: 1934-35 | DL10: 1933-34 | DM10: 1932-33 | DN10: 1931-32 | DO10: 1930-31 | DP10: 1929-30 | DQ10: 1928-29 | DR10: 1927-28 | DS10: 1926-27 | DT10: 1925-26 | DU10: 1924-25 | DV10: 1923-24 | DW10: 1922-23 | DX10: 1921-22 | DY10: 1920-21 | DZ10: 1919-20 | EA10: 1918-19 | EB10: 1917-18 | EC10: 1916-17 | ED10: 1915-16 | EE10: 1914-15 | EF10: 1913-14 | EG10: 1912-13 | EH10: 1911-12 | EI10: 1910-11
A11: ED_ASS521_00001 | B11: POLES BY: HIGHEST OPERATING VOLTAGE ; MATERIAL TYPE; STAKING (IF WOOD) | C11: Staking of a wooden pole | E11: DNSP NAME | F11: REPEX | G11: POLES | H11: =C11 -> Staking of a wooden pole | I11: DESCRIPTOR METRIC | J11: MEAN ECONOMIC LIFE | K11: YEARS | L11: NUMBER | N11: 38.9 | O11: 0 | P11: DNSP NAME | Q11: REPEX | R11: POLES | S11: STAKING OF A WOODEN POLE | T11: DESCRIPTOR METRIC | U11: STANDARD DEVIATION ECONOMIC LIFE | V11: YEARS | W11: NUMBER | X11: 0 | Y11: 12.1 | Z11: 0 | AA11: 0 | AB11: 0 | AC11: 0 | AD11: 0 | AE11: 0 | AF11: 0 | AG11: 0 | AH11: 0 | AI11: 0 | AJ11: 1066 | AK11: 1309 | AL11: 1133 | AM11: 847 | AN11: 802 | AO11: 512 | AP11: 698 | AQ11: 1061 | AR11: 869 | AS11: 966 | AT11: 658 | AU11: 607 | AV11: 560 | AW11: 366 | AX11: 209 | AY11: 231 | AZ11: 163 | BA11: 1679 | BB11: 1495 | BC11: 789 | BD11: 690 | BE11: 495 | BF11: 571 | BG11: 967 | BH11: 1070 | BI11: 1660 | BJ11: 415 | BK11: 146 | BL11: 75 | BM11: 103 | BN11: 59 | BO11: 52 | BP11: 55 | BQ11: 56 | BR11: 58 | BS11: 0 | BT11: 0 | BU11: 0 | BV11: 0 | BW11: 0 | BX11: 0 | BY11: 0 | BZ11: 0 | CA11: 0 | CB11: 0 | CC11: 0 | CD11: 0 | CE11: 0 | CF11: 0 | CG11: 0 | CH11: 0 | CI11: 0 | CJ11: 0 | CK11: 0 | CL11: 0 | CM11: 0 | CN11: 0 | CO11: 0 | CP11: 0 | CQ11: 0 | CR11: 0 | CS11: 0 | CT11: 0 | CU11: 0 | CV11: 0 | CW11: 0 | CX11: 0 | CY11: 0 | CZ11: 0 | DA11: 0 | DB11: 0 | DC11: 0 | DD11: 0 | DE11: 0 | DF11: 0 | DG11: 0 | DH11: 0 | DI11: 0 | DJ11: 0 | DK11: 0 | DL11: 0 | DM11: 0 | DN11: 0 | DO11: 0 | DP11: 0 | DQ11: 0 | DR11: 0 | DS11: 0 | DT11: 0 | DU11: 0 | DV11: 0 | DW11: 0 | DX11: 0 | DY11: 0 | DZ11: 0 | EA11: 0 | EB11: 0 | EC11: 0 | ED11: 0 | EE11: 0 | EF11: 0 | EG11: 0 | EH11: 0 | EI11: 0
A12: ED_ASS521_00002 | C12: ˂ = 1 kV; Wood | E12: TNSP NAME | F12: REPEX | G12: POLES | H12: =C12 -> ˂ = 1 kV; Wood | I12: DESCRIPTOR METRIC | J12: MEAN ECONOMIC LIFE | K12: YEARS | L12: NUMBER | N12: 38.9 | O12: 0 | P12: TNSP NAME | Q12: REPEX | R12: POLES | S12: ˂ = 1 kV; WOOD | T12: DESCRIPTOR METRIC | U12: STANDARD DEVIATION ECONOMIC LIFE | V12: YEARS | W12: NUMBER | X12: 0 | Y12: 12.1 | Z12: 0 | AA12: 0 | AB12: 0 | AC12: 0 | AD12: 0 | AE12: 0 | AF12: 0 | AG12: 0 | AH12: 0 | AI12: 0 | AJ12: 300 | AK12: 417 | AL12: 449 | AM12: 289 | AN12: 393 | AO12: 663 | AP12: 383 | AQ12: 463 | AR12: 459 | AS12: 630 | AT12: 592 | AU12: 568 | AV12: 482 | AW12: 758 | AX12: 653 | AY12: 438 | AZ12: 50 | BA12: 20 | BB12: 15 | BC12: 8 | BD12: 4 | BE12: 20 | BF12: 17 | BG12: 38 | BH12: 395 | BI12: 1249 | BJ12: 1233 | BK12: 1090 | BL12: 3214 | BM12: 2147 | BN12: 2523 | BO12: 1927 | BP12: 1846 | BQ12: 2016 | BR12: 3695 | BS12: 1879 | BT12: 2259 | BU12: 1849 | BV12: 3538 | BW12: 3185 | BX12: 2581 | BY12: 3219 | BZ12: 2705 | CA12: 2159 | CB12: 2378 | CC12: 3236 | CD12: 3156 | CE12: 3253 | CF12: 2241 | CG12: 2575 | CH12: 2581 | CI12: 1548 | CJ12: 1788 | CK12: 1581 | CL12: 1484 | CM12: 1185 | CN12: 1115 | CO12: 1181 | CP12: 322 | CQ12: 469 | CR12: 420 | CS12: 463 | CT12: 594 | CU12: 446 | CV12: 768 | CW12: 298 | CX12: 198 | CY12: 150 | CZ12: 136 | DA12: 105 | DB12: 35 | DC12: 29 | DD12: 130 | DE12: 400 | DF12: 918 | DG12: 496 | DH12: 857 | DI12: 234 | DJ12: 181 | DK12: 68 | DL12: 137 | DM12: 71 | DN12: 28 | DO12: 16 | DP12: 21 | DQ12: 0 | DR12: 0 | DS12: 0 | DT12: 0 | DU12: 0 | DV12: 0 | DW12: 0 | DX12: 0 | DY12: 0 | DZ12: 0 | EA12: 0 | EB12: 0 | EC12: 0 | ED12: 0 | EE12: 0 | EF12: 0 | EG12: 0 | EH12: 0 | EI12: 0
A13: ED_ASS521_00003 | C13: > 1 kV & < = 11 kV; Wood | E13: TNSP NAME | F13: REPEX | G13: POLES | H13: > 1 kV & < = 11 kV; Wood | I13: DESCRIPTOR METRIC | J13: MEAN ECONOMIC LIFE | K13: YEARS | L13: NUMBER | N13: 38.9 | O13: 0 | P13: TNSP NAME | Q13: REPEX | R13: POLES | S13: > 1 kV & < = 11 kV; WOOD | T13: DESCRIPTOR METRIC | U13: STANDARD DEVIATION ECONOMIC LIFE | V13: YEARS | W13: NUMBER | X13: 0 | Y13: 12.1 | Z13: 0 | AA13: 0 | AB13: 0 | AC13: 0 | AD13: 0 | AE13: 0 | AF13: 0 | AG13: 0 | AH13: 0 | AI13: 0 | AJ13: 12 | AK13: 19 | AL13: 10 | AM13: 7 | AN13: 2 | AO13: 7 | AP13: 10 | AQ13: 7 | AR13: 10 | AS13: 5 | AT13: 13 | AU13: 7 | AV13: 5 | AW13: 10 | AX13: 6 | AY13: 2 | AZ13: 2 | BA13: 3 | BB13: 8 | BC13: 3 | BD13: 0 | BE13: 9 | BF13: 0 | BG13: 6 | BH13: 33 | BI13: 15 | BJ13: 7 | BK13: 8 | BL13: 4 | BM13: 20 | BN13: 20 | BO13: 19 | BP13: 3 | BQ13: 4 | BR13: 16 | BS13: 5 | BT13: 30 | BU13: 11 | BV13: 3 | BW13: 9 | BX13: 12 | BY13: 9 | BZ13: 18 | CA13: 7 | CB13: 22 | CC13: 9 | CD13: 17 | CE13: 13 | CF13: 33 | CG13: 18 | CH13: 5 | CI13: 11 | CJ13: 15 | CK13: 20 | CL13: 11 | CM13: 23 | CN13: 10 | CO13: 4 | CP13: 0 | CQ13: 0 | CR13: 7 | CS13: 2 | CT13: 0 | CU13: 2 | CV13: 4 | CW13: 0 | CX13: 0 | CY13: 0 | CZ13: 2 | DA13: 0 | DB13: 0 | DC13: 0 | DD13: 0 | DE13: 9 | DF13: 3 | DG13: 3 | DH13: 3 | DI13: 0 | DJ13: 0 | DK13: 0 | DL13: 0 | DM13: 0 | DN13: 0 | DO13: 0 | DP13: 0 | DQ13: 0 | DR13: 0 | DS13: 0 | DT13: 0 | DU13: 0 | DV13: 0 | DW13: 0 | DX13: 0 | DY13: 0 | DZ13: 0 | EA13: 0 | EB13: 0 | EC13: 0 | ED13: 0 | EE13: 0 | EF13: 0 | EG13: 0 | EH13: 0 | EI13: 0
A14: ED_ASS521_00004 | C14: ˃ 11 kV & < = 22 kV; Wood | E14: DNSP NAME | F14: REPEX | G14: POLES | H14: ˃ 11 kV & < = 22 kV; Wood | I14: DESCRIPTOR METRIC | J14: MEAN ECONOMIC LIFE | K14: YEARS | L14: NUMBER | N14: 38.9 | O14: 0 | P14: DNSP NAME | Q14: REPEX | R14: POLES | S14: ˃ 11 kV & < = 22 kV; WOOD | T14: DESCRIPTOR METRIC | U14: STANDARD DEVIATION ECONOMIC LIFE | V14: YEARS | W14: NUMBER | X14: 0 | Y14: 12.1 | Z14: 0 | AA14: 0 | AB14: 0 | AC14: 0 | AD14: 0 | AE14: 0 | AF14: 0 | AG14: 0 | AH14: 0 | AI14: 0 | AJ14: 814 | AK14: 1394 | AL14: 1568 | AM14: 1215 | AN14: 1199 | AO14: 1729 | AP14: 1615 | AQ14: 1750 | AR14: 1821 | AS14: 2674 | AT14: 3196 | AU14: 2715 | AV14: 2103 | AW14: 3721 | AX14: 3292 | AY14: 1915 | AZ14: 356 | BA14: 164 | BB14: 122 | BC14: 171 | BD14: 157 | BE14: 540 | BF14: 111 | BG14: 589 | BH14: 1606 | BI14: 1494 | BJ14: 2785 | BK14: 1506 | BL14: 4591 | BM14: 4411 | BN14: 5583 | BO14: 5142 | BP14: 5227 | BQ14: 7037 | BR14: 6981 | BS14: 2630 | BT14: 4653 | BU14: 7206 | BV14: 7223 | BW14: 5543 | BX14: 4057 | BY14: 3664 | BZ14: 3564 | CA14: 3076 | CB14: 4992 | CC14: 7775 | CD14: 8127 | CE14: 8285 | CF14: 9833 | CG14: 11681 | CH14: 11431 | CI14: 5134 | CJ14: 4826 | CK14: 4781 | CL14: 4065 | CM14: 3689 | CN14: 3660 | CO14: 3603 | CP14: 846 | CQ14: 1815 | CR14: 1378 | CS14: 1001 | CT14: 1169 | CU14: 1165 | CV14: 1219 | CW14: 665 | CX14: 240 | CY14: 182 | CZ14: 236 | DA14: 266 | DB14: 220 | DC14: 84 | DD14: 337 | DE14: 588 | DF14: 1677 | DG14: 1321 | DH14: 2577 | DI14: 648 | DJ14: 313 | DK14: 162 | DL14: 84 | DM14: 61 | DN14: 35 | DO14: 7 | DP14: 8 | DQ14: 0 | DR14: 0 | DS14: 0 | DT14: 0 | DU14: 0 | DV14: 0 | DW14: 0 | DX14: 0 | DY14: 0 | DZ14: 0 | EA14: 0 | EB14: 0 | EC14: 0 | ED14: 0 | EE14: 0 | EF14: 0 | EG14: 0 | EH14: 0 | EI14: 0
A15: ED_ASS521_00005 | C15: > 22 kV & < = 66 kV; Wood | E15: DNSP NAME | F15: REPEX | G15: POLES | H15: > 22 kV & < = 66 kV; Wood | I15: DESCRIPTOR METRIC | J15: MEAN ECONOMIC LIFE | K15: YEARS | L15: NUMBER | N15: 38.9 | O15: 0 | P15: DNSP NAME | Q15: REPEX | R15: POLES | S15: > 22 kV & < = 66 kV; WOOD | T15: DESCRIPTOR METRIC | U15: STANDARD DEVIATION ECONOMIC LIFE | V15: YEARS | W15: NUMBER | X15: 0 | Y15: 12.1 | Z15: 0 | AA15: 0 | AB15: 0 | AC15: 0 | AD15: 0 | AE15: 0 | AF15: 0 | AG15: 0 | AH15: 0 | AI15: 0 | AJ15: 45 | AK15: 208 | AL15: 463 | AM15: 292 | AN15: 343 | AO15: 87 | AP15: 314 | AQ15: 290 | AR15: 378 | AS15: 214 | AT15: 668 | AU15: 268 | AV15: 274 | AW15: 343 | AX15: 271 | AY15: 287 | AZ15: 27 | BA15: 13 | BB15: 13 | BC15: 26 | BD15: 10 | BE15: 44 | BF15: 8 | BG15: 35 | BH15: 281 | BI15: 175 | BJ15: 56 | BK15: 42 | BL15: 46 | BM15: 86 | BN15: 293 | BO15: 132 | BP15: 123 | BQ15: 360 | BR15: 201 | BS15: 129 | BT15: 44 | BU15: 430 | BV15: 757 | BW15: 817 | BX15: 388 | BY15: 226 | BZ15: 338 | CA15: 209 | CB15: 753 | CC15: 556 | CD15: 165 | CE15: 446 | CF15: 397 | CG15: 332 | CH15: 497 | CI15: 256 | CJ15: 192 | CK15: 291 | CL15: 127 | CM15: 150 | CN15: 43 | CO15: 482 | CP15: 332 | CQ15: 57 | CR15: 18 | CS15: 62 | CT15: 27 | CU15: 51 | CV15: 34 | CW15: 21 | CX15: 21 | CY15: 7 | CZ15: 7 | DA15: 4 | DB15: 2 | DC15: 266 | DD15: 68 | DE15: 183 | DF15: 62 | DG15: 26 | DH15: 21 | DI15: 5 | DJ15: 4 | DK15: 56 | DL15: 26 | DM15: 2 | DN15: 0 | DO15: 0 | DP15: 2 | DQ15: 0 | DR15: 0 | DS15: 0 | DT15: 0 | DU15: 0 | DV15: 0 | DW15: 0 | DX15: 0 | DY15: 0 | DZ15: 0 | EA15: 0 | EB15: 0 | EC15: 0 | ED15: 0 | EE15: 0 | EF15: 0 | EG15: 0 | EH15: 0 | EI15: 0
A16: ED_ASS521_00006 | C16: > 66 kV & < = 132 kV; Wood | E16: DNSP NAME | F16: REPEX | G16: POLES | H16: > 66 kV & < = 132 kV; Wood | I16: DESCRIPTOR METRIC | J16: MEAN ECONOMIC LIFE | K16: YEARS | L16: NUMBER | N16: 0 | O16: 0 | P16: DNSP NAME | Q16: REPEX | R16: POLES | S16: > 66 kV & < = 132 kV; WOOD | T16: DESCRIPTOR METRIC | U16: STANDARD DEVIATION ECONOMIC LIFE | V16: YEARS | W16: NUMBER | X16: 0 | Y16: 0 | Z16: 0 | AA16: 0 | AB16: 0 | AC16: 0 | AD16: 0 | AE16: 0 | AF16: 0 | AG16: 0 | AH16: 0 | AI16: 0 | AJ16: 0 | AK16: 0 | AL16: 0 | AM16: 0 | AN16: 0 | AO16: 0 | AP16: 0 | AQ16: 0 | AR16: 0 | AS16: 0 | AT16: 0 | AU16: 0 | AV16: 0 | AW16: 0 | AX16: 0 | AY16: 0 | AZ16: 0 | BA16: 0 | BB16: 0 | BC16: 0 | BD16: 0 | BE16: 0 | BF16: 0 | BG16: 0 | BH16: 0 | BI16: 0 | BJ16: 0 | BK16: 0 | BL16: 0 | BM16: 0 | BN16: 0 | BO16: 0 | BP16: 0 | BQ16: 0 | BR16: 0 | BS16: 0 | BT16: 0 | BU16: 0 | BV16: 0 | BW16: 0 | BX16: 0 | BY16: 0 | BZ16: 0 | CA16: 0 | CB16: 0 | CC16: 0 | CD16: 0 | CE16: 0 | CF16: 0 | CG16: 0 | CH16: 0 | CI16: 0 | CJ16: 0 | CK16: 0 | CL16: 0 | CM16: 0 | CN16: 0 | CO16: 0 | CP16: 0 | CQ16: 0 | CR16: 0 | CS16: 0 | CT16: 0 | CU16: 0 | CV16: 0 | CW16: 0 | CX16: 0 | CY16: 0 | CZ16: 0 | DA16: 0 | DB16: 0 | DC16: 0 | DD16: 0 | DE16: 0 | DF16: 0 | DG16: 0 | DH16: 0 | DI16: 0 | DJ16: 0 | DK16: 0 | DL16: 0 | DM16: 0 | DN16: 0 | DO16: 0 | DP16: 0 | DQ16: 0 | DR16: 0 | DS16: 0 | DT16: 0 | DU16: 0 | DV16: 0 | DW16: 0 | DX16: 0 | DY16: 0 | DZ16: 0 | EA16: 0 | EB16: 0 | EC16: 0 | ED16: 0 | EE16: 0 | EF16: 0 | EG16: 0 | EH16: 0 | EI16: 0
A17: ED_ASS521_00007 | C17: > 132 kV; Wood | E17: DNSP NAME | F17: REPEX | G17: POLES | H17: > 132 kV; Wood | I17: DESCRIPTOR METRIC | J17: MEAN ECONOMIC LIFE | K17: YEARS | L17: NUMBER | N17: 0 | O17: 0 | P17: DNSP NAME | Q17: REPEX | R17: POLES | S17: > 132 kV; WOOD | T17: DESCRIPTOR METRIC | U17: STANDARD DEVIATION ECONOMIC LIFE | V17: YEARS | W17: NUMBER | X17: 0 | Y17: 0 | Z17: 0 | AA17: 0 | AB17: 0 | AC17: 0 | AD17: 0 | AE17: 0 | AF17: 0 | AG17: 0 | AH17: 0 | AI17: 0 | AJ17: 0 | AK17: 0 | AL17: 0 | AM17: 0 | AN17: 0 | AO17: 0 | AP17: 0 | AQ17: 0 | AR17: 0 | AS17: 0 | AT17: 0 | AU17: 0 | AV17: 0 | AW17: 0 | AX17: 0 | AY17: 0 | AZ17: 0 | BA17: 0 | BB17: 0 | BC17: 0 | BD17: 0 | BE17: 0 | BF17: 0 | BG17: 0 | BH17: 0 | BI17: 0 | BJ17: 0 | BK17: 0 | BL17: 0 | BM17: 0 | BN17: 0 | BO17: 0 | BP17: 0 | BQ17: 0 | BR17: 0 | BS17: 0 | BT17: 0 | BU17: 0 | BV17: 0 | BW17: 0 | BX17: 0 | BY17: 0 | BZ17: 0 | CA17: 0 | CB17: 0 | CC17: 0 | CD17: 0 | CE17: 0 | CF17: 0 | CG17: 0 | CH17: 0 | CI17: 0 | CJ17: 0 | CK17: 0 | CL17: 0 | CM17: 0 | CN17: 0 | CO17: 0 | CP17: 0 | CQ17: 0 | CR17: 0 | CS17: 0 | CT17: 0 | CU17: 0 | CV17: 0 | CW17: 0 | CX17: 0 | CY17: 0 | CZ17: 0 | DA17: 0 | DB17: 0 | DC17: 0 | DD17: 0 | DE17: 0 | DF17: 0 | DG17: 0 | DH17: 0 | DI17: 0 | DJ17: 0 | DK17: 0 | DL17: 0 | DM17: 0 | DN17: 0 | DO17: 0 | DP17: 0 | DQ17: 0 | DR17: 0 | DS17: 0 | DT17: 0 | DU17: 0 | DV17: 0 | DW17: 0 | DX17: 0 | DY17: 0 | DZ17: 0 | EA17: 0 | EB17: 0 | EC17: 0 | ED17: 0 | EE17: 0 | EF17: 0 | EG17: 0 | EH17: 0 | EI17: 0
A18: ED_ASS521_00008 | C18: ˂ = 1 kV; Concrete | E18: DNSP NAME | F18: REPEX | G18: POLES | H18: ˂ = 1 kV; Concrete | I18: DESCRIPTOR METRIC | J18: MEAN ECONOMIC LIFE | K18: YEARS | L18: NUMBER | N18: 38.9 | O18: 0 | P18: DNSP NAME | Q18: REPEX | R18: POLES | S18: ˂ = 1 kV; CONCRETE | T18: DESCRIPTOR METRIC | U18: STANDARD DEVIATION ECONOMIC LIFE | V18: YEARS | W18: NUMBER | X18: 0 | Y18: 12.1 | Z18: 0 | AA18: 0 | AB18: 0 | AC18: 0 | AD18: 0 | AE18: 0 | AF18: 0 | AG18: 0 | AH18: 0 | AI18: 0 | AJ18: 235 | AK18: 355 | AL18: 302 | AM18: 244 | AN18: 277 | AO18: 258 | AP18: 158 | AQ18: 440 | AR18: 247 | AS18: 85 | AT18: 8 | AU18: 3 | AV18: 2 | AW18: 7 | AX18: 16 | AY18: 81 | AZ18: 228 | BA18: 346 | BB18: 129 | BC18: 532 | BD18: 776 | BE18: 1498 | BF18: 1310 | BG18: 880 | BH18: 1175 | BI18: 1985 | BJ18: 2158 | BK18: 1523 | BL18: 1401 | BM18: 1500 | BN18: 788 | BO18: 653 | BP18: 96 | BQ18: 635 | BR18: 744 | BS18: 6 | BT18: 795 | BU18: 401 | BV18: 251 | BW18: 69 | BX18: 77 | BY18: 381 | BZ18: 201 | CA18: 2 | CB18: 3 | CC18: 3 | CD18: 2 | CE18: 0 | CF18: 0 | CG18: 0 | CH18: 0 | CI18: 0 | CJ18: 2 | CK18: 0 | CL18: 0 | CM18: 0 | CN18: 3 | CO18: 0 | CP18: 0 | CQ18: 0 | CR18: 0 | CS18: 0 | CT18: 0 | CU18: 0 | CV18: 0 | CW18: 2 | CX18: 0 | CY18: 0 | CZ18: 2 | DA18: 0 | DB18: 0 | DC18: 0 | DD18: 0 | DE18: 0 | DF18: 0 | DG18: 0 | DH18: 0 | DI18: 0 | DJ18: 0 | DK18: 0 | DL18: 0 | DM18: 0 | DN18: 0 | DO18: 0 | DP18: 0 | DQ18: 0 | DR18: 0 | DS18: 0 | DT18: 0 | DU18: 0 | DV18: 0 | DW18: 0 | DX18: 0 | DY18: 0 | DZ18: 0 | EA18: 0 | EB18: 0 | EC18: 0 | ED18: 0 | EE18: 0 | EF18: 0 | EG18: 0 | EH18: 0 | EI18: 0
A19: ED_ASS521_00009 | C19: > 1 kV & < = 11 kV; Concrete | E19: DNSP NAME | F19: REPEX | G19: POLES | H19: > 1 kV & < = 11 kV; Concrete | I19: DESCRIPTOR METRIC | J19: MEAN ECONOMIC LIFE | K19: YEARS | L19: NUMBER | N19: 38.9 | O19: 0 | P19: DNSP NAME | Q19: REPEX | R19: POLES | S19: > 1 kV & < = 11 kV; CONCRETE | T19: DESCRIPTOR METRIC | U19: STANDARD DEVIATION ECONOMIC LIFE | V19: YEARS | W19: NUMBER | X19: 0 | Y19: 12.1 | Z19: 0 | AA19: 0 | AB19: 0 | AC19: 0 | AD19: 0 | AE19: 0 | AF19: 0 | AG19: 0 | AH19: 0 | AI19: 0 | AJ19: 0 | AK19: 0 | AL19: 2 | AM19: 0 | AN19: 0 | AO19: 0 | AP19: 0 | AQ19: 0 | AR19: 0 | AS19: 0 | AT19: 0 | AU19: 0 | AV19: 0 | AW19: 0 | AX19: 0 | AY19: 0 | AZ19: 11 | BA19: 6 | BB19: 4 | BC19: 5 | BD19: 3 | BE19: 3 | BF19: 3 | BG19: 3 | BH19: 4 | BI19: 2 | BJ19: 3 | BK19: 1 | BL19: 1 | BM19: 2 | BN19: 6 | BO19: 3 | BP19: 2 | BQ19: 0 | BR19: 0 | BS19: 0 | BT19: 1 | BU19: 0 | BV19: 0 | BW19: 0 | BX19: 0 | BY19: 0 | BZ19: 0 | CA19: 0 | CB19: 0 | CC19: 0 | CD19: 0 | CE19: 0 | CF19: 0 | CG19: 0 | CH19: 0 | CI19: 0 | CJ19: 0 | CK19: 0 | CL19: 0 | CM19: 0 | CN19: 0 | CO19: 0 | CP19: 0 | CQ19: 0 | CR19: 0 | CS19: 0 | CT19: 0 | CU19: 0 | CV19: 0 | CW19: 0 | CX19: 0 | CY19: 0 | CZ19: 0 | DA19: 0 | DB19: 0 | DC19: 0 | DD19: 0 | DE19: 0 | DF19: 0 | DG19: 0 | DH19: 0 | DI19: 0 | DJ19: 0 | DK19: 0 | DL19: 0 | DM19: 0 | DN19: 0 | DO19: 0 | DP19: 0 | DQ19: 0 | DR19: 0 | DS19: 0 | DT19: 0 | DU19: 0 | DV19: 0 | DW19: 0 | DX19: 0 | DY19: 0 | DZ19: 0 | EA19: 0 | EB19: 0 | EC19: 0 | ED19: 0 | EE19: 0 | EF19: 0 | EG19: 0 | EH19: 0 | EI19: 0
A20: ED_ASS521_00010 | C20: ˃ 11 kV & < = 22 kV; Concrete | E20: DNSP NAME | F20: REPEX | G20: POLES | H20: ˃ 11 kV & < = 22 kV; Concrete | I20: DESCRIPTOR METRIC | J20: MEAN ECONOMIC LIFE | K20: YEARS | L20: NUMBER | N20: 38.9 | O20: 0 | P20: DNSP NAME | Q20: REPEX | R20: POLES | S20: ˃ 11 kV & < = 22 kV; CONCRETE | T20: DESCRIPTOR METRIC | U20: STANDARD DEVIATION ECONOMIC LIFE | V20: YEARS | W20: NUMBER | X20: 0 | Y20: 12.1 | Z20: 0 | AA20: 0 | AB20: 0 | AC20: 0 | AD20: 0 | AE20: 0 | AF20: 0 | AG20: 0 | AH20: 0 | AI20: 0 | AJ20: 1065 | AK20: 1961 | AL20: 1555 | AM20: 1252 | AN20: 1519 | AO20: 1421 | AP20: 1070 | AQ20: 2479 | AR20: 1479 | AS20: 443 | AT20: 11 | AU20: 2 | AV20: 6 | AW20: 15 | AX20: 39 | AY20: 619 | AZ20: 1428 | BA20: 2019 | BB20: 1732 | BC20: 2152 | BD20: 3133 | BE20: 4479 | BF20: 3597 | BG20: 3422 | BH20: 5934 | BI20: 6374 | BJ20: 7402 | BK20: 5533 | BL20: 4676 | BM20: 5248 | BN20: 4917 | BO20: 2134 | BP20: 728 | BQ20: 2371 | BR20: 2015 | BS20: 11 | BT20: 1306 | BU20: 681 | BV20: 267 | BW20: 82 | BX20: 9 | BY20: 103 | BZ20: 34 | CA20: 2 | CB20: 9 | CC20: 0 | CD20: 0 | CE20: 0 | CF20: 0 | CG20: 0 | CH20: 4 | CI20: 0 | CJ20: 2 | CK20: 2 | CL20: 0 | CM20: 2 | CN20: 4 | CO20: 0 | CP20: 0 | CQ20: 0 | CR20: 0 | CS20: 0 | CT20: 0 | CU20: 0 | CV20: 0 | CW20: 2 | CX20: 0 | CY20: 0 | CZ20: 0 | DA20: 0 | DB20: 0 | DC20: 0 | DD20: 0 | DE20: 0 | DF20: 0 | DG20: 0 | DH20: 0 | DI20: 0 | DJ20: 0 | DK20: 0 | DL20: 0 | DM20: 0 | DN20: 0 | DO20: 0 | DP20: 0 | DQ20: 0 | DR20: 0 | DS20: 0 | DT20: 0 | DU20: 0 | DV20: 0 | DW20: 0 | DX20: 0 | DY20: 0 | DZ20: 0 | EA20: 0 | EB20: 0 | EC20: 0 | ED20: 0 | EE20: 0 | EF20: 0 | EG20: 0 | EH20: 0 | EI20: 0
A21: ED_ASS521_00011 | C21: > 22 kV & < = 66 kV; Concrete | N21: 38.9 | O21: 0 | P21: DNSP NAME | Q21: REPEX | R21: POLES | S21: > 22 kV & < = 66 kV; CONCRETE | T21: DESCRIPTOR METRIC | U21: STANDARD DEVIATION ECONOMIC LIFE | V21: YEARS | W21: NUMBER | X21: 0 | Y21: 12.1 | Z21: 0 | AA21: 0 | AB21: 0 | AC21: 0 | AD21: 0 | AE21: 0 | AF21: 0 | AG21: 0 | AH21: 0 | AI21: 0 | AJ21: 33 | AK21: 30 | AL21: 337 | AM21: 186 | AN21: 489 | AO21: 283 | AP21: 208 | AQ21: 233 | AR21: 31 | AS21: 113 | AT21: 132 | AU21: 6 | AV21: 3 | AW21: 2 | AX21: 12 | AY21: 19 | AZ21: 22 | BA21: 66 | BB21: 44 | BC21: 168 | BD21: 368 | BE21: 144 | BF21: 109 | BG21: 59 | BH21: 272 | BI21: 584 | BJ21: 372 | BK21: 467 | BL21: 301 | BM21: 285 | BN21: 1013 | BO21: 688 | BP21: 503 | BQ21: 866 | BR21: 721 | BS21: 26 | BT21: 545 | BU21: 234 | BV21: 40 | BW21: 0 | BX21: 7 | BY21: 19 | BZ21: 26 | CA21: 0 | CB21: 3 | CC21: 0 | CD21: 2 | CE21: 0 | CF21: 0 | CG21: 0 | CH21: 0 | CI21: 0 | CJ21: 0 | CK21: 0 | CL21: 0 | CM21: 0 | CN21: 0 | CO21: 0 | CP21: 0 | CQ21: 0 | CR21: 0 | CS21: 0 | CT21: 0 | CU21: 0 | CV21: 0 | CW21: 0 | CX21: 0 | CY21: 0 | CZ21: 0 | DA21: 0 | DB21: 0 | DC21: 0 | DD21: 0 | DE21: 0 | DF21: 0 | DG21: 0 | DH21: 0 | DI21: 0 | DJ21: 0 | DK21: 0 | DL21: 0 | DM21: 0 | DN21: 0 | DO21: 0 | DP21: 0 | DQ21: 0 | DR21: 0 | DS21: 0 | DT21: 0 | DU21: 0 | DV21: 0 | DW21: 0 | DX21: 0 | DY21: 0 | DZ21: 0 | EA21: 0 | EB21: 0 | EC21: 0 | ED21: 0 | EE21: 0 | EF21: 0 | EG21: 0 | EH21: 0 | EI21: 0
A22: ED_ASS521_00012 | C22: > 66 kV & < = 132 kV; Concrete | N22: 0 | O22: 0 | P22: DNSP NAME | Q22: REPEX | R22: POLES | S22: > 66 kV & < = 132 kV; CONCRETE | T22: DESCRIPTOR METRIC | U22: STANDARD DEVIATION ECONOMIC LIFE | V22: YEARS | W22: NUMBER | X22: 0 | Y22: 0 | Z22: 0 | AA22: 0 | AB22: 0 | AC22: 0 | AD22: 0 | AE22: 0 | AF22: 0 | AG22: 0 | AH22: 0 | AI22: 0 | AJ22: 0 | AK22: 0 | AL22: 0 | AM22: 0 | AN22: 0 | AO22: 0 | AP22: 0 | AQ22: 0 | AR22: 0 | AS22: 0 | AT22: 0 | AU22: 0 | AV22: 0 | AW22: 0 | AX22: 0 | AY22: 0 | AZ22: 0 | BA22: 0 | BB22: 0 | BC22: 0 | BD22: 0 | BE22: 0 | BF22: 0 | BG22: 0 | BH22: 0 | BI22: 0 | BJ22: 0 | BK22: 0 | BL22: 0 | BM22: 0 | BN22: 0 | BO22: 0 | BP22: 0 | BQ22: 0 | BR22: 0 | BS22: 0 | BT22: 0 | BU22: 0 | BV22: 0 | BW22: 0 | BX22: 0 | BY22: 0 | BZ22: 0 | CA22: 0 | CB22: 0 | CC22: 0 | CD22: 0 | CE22: 0 | CF22: 0 | CG22: 0 | CH22: 0 | CI22: 0 | CJ22: 0 | CK22: 0 | CL22: 0 | CM22: 0 | CN22: 0 | CO22: 0 | CP22: 0 | CQ22: 0 | CR22: 0 | CS22: 0 | CT22: 0 | CU22: 0 | CV22: 0 | CW22: 0 | CX22: 0 | CY22: 0 | CZ22: 0 | DA22: 0 | DB22: 0 | DC22: 0 | DD22: 0 | DE22: 0 | DF22: 0 | DG22: 0 | DH22: 0 | DI22: 0 | DJ22: 0 | DK22: 0 | DL22: 0 | DM22: 0 | DN22: 0 | DO22: 0 | DP22: 0 | DQ22: 0 | DR22: 0 | DS22: 0 | DT22: 0 | DU22: 0 | DV22: 0 | DW22: 0 | DX22: 0 | DY22: 0 | DZ22: 0 | EA22: 0 | EB22: 0 | EC22: 0 | ED22: 0 | EE22: 0 | EF22: 0 | EG22: 0 | EH22: 0 | EI22: 0
A23: ED_ASS521_00013 | C23: > 132 kV; Concrete | N23: 0 | O23: 0 | P23: DNSP NAME | Q23: REPEX | R23: POLES | S23: > 132 kV; CONCRETE | T23: DESCRIPTOR METRIC | U23: STANDARD DEVIATION ECONOMIC LIFE | V23: YEARS | W23: NUMBER | X23: 0 | Y23: 0 | Z23: 0 | AA23: 0 | AB23: 0 | AC23: 0 | AD23: 0 | AE23: 0 | AF23: 0 | AG23: 0 | AH23: 0 | AI23: 0 | AJ23: 0 | AK23: 0 | AL23: 0 | AM23: 0 | AN23: 0 | AO23: 0 | AP23: 0 | AQ23: 0 | AR23: 0 | AS23: 0 | AT23: 0 | AU23: 0 | AV23: 0 | AW23: 0 | AX23: 0 | AY23: 0 | AZ23: 0 | BA23: 0 | BB23: 0 | BC23: 0 | BD23: 0 | BE23: 0 | BF23: 0 | BG23: 0 | BH23: 0 | BI23: 0 | BJ23: 0 | BK23: 0 | BL23: 0 | BM23: 0 | BN23: 0 | BO23: 0 | BP23: 0 | BQ23: 0 | BR23: 0 | BS23: 0 | BT23: 0 | BU23: 0 | BV23: 0 | BW23: 0 | BX23: 0 | BY23: 0 | BZ23: 0 | CA23: 0 | CB23: 0 | CC23: 0 | CD23: 0 | CE23: 0 | CF23: 0 | CG23: 0 | CH23: 0 | CI23: 0 | CJ23: 0 | CK23: 0 | CL23: 0 | CM23: 0 | CN23: 0 | CO23: 0 | CP23: 0 | CQ23: 0 | CR23: 0 | CS23: 0 | CT23: 0 | CU23: 0 | CV23: 0 | CW23: 0 | CX23: 0 | CY23: 0 | CZ23: 0 | DA23: 0 | DB23: 0 | DC23: 0 | DD23: 0 | DE23: 0 | DF23: 0 | DG23: 0 | DH23: 0 | DI23: 0 | DJ23: 0 | DK23: 0 | DL23: 0 | DM23: 0 | DN23: 0 | DO23: 0 | DP23: 0 | DQ23: 0 | DR23: 0 | DS23: 0 | DT23: 0 | DU23: 0 | DV23: 0 | DW23: 0 | DX23: 0 | DY23: 0 | DZ23: 0 | EA23: 0 | EB23: 0 | EC23: 0 | ED23: 0 | EE23: 0 | EF23: 0 | EG23: 0 | EH23: 0 | EI23: 0
A24: ED_ASS521_00014 | C24: ˂ = 1 kV; Steel | N24: 38.9 | O24: 0 | P24: DNSP NAME | Q24: REPEX | R24: POLES | S24: ˂ = 1 kV; STEEL | T24: DESCRIPTOR METRIC | U24: STANDARD DEVIATION ECONOMIC LIFE | V24: YEARS | W24: NUMBER | X24: 0 | Y24: 12.1 | Z24: 0 | AA24: 0 | AB24: 0 | AC24: 0 | AD24: 0 | AE24: 0 | AF24: 0 | AG24: 0 | AH24: 0 | AI24: 0 | AJ24: 0 | AK24: 11 | AL24: 6 | AM24: 3 | AN24: 35 | AO24: 68 | AP24: 8 | AQ24: 4 | AR24: 7 | AS24: 8 | AT24: 4 | AU24: 7 | AV24: 7 | AW24: 4 | AX24: 39 | AY24: 85 | AZ24: 4 | BA24: 6 | BB24: 3 | BC24: 3 | BD24: 7 | BE24: 4 | BF24: 0 | BG24: 3 | BH24: 6 | BI24: 6 | BJ24: 11 | BK24: 12 | BL24: 11 | BM24: 5 | BN24: 0 | BO24: 3 | BP24: 0 | BQ24: 0 | BR24: 6 | BS24: 0 | BT24: 0 | BU24: 0 | BV24: 3 | BW24: 0 | BX24: 0 | BY24: 21 | BZ24: 4 | CA24: 0 | CB24: 4 | CC24: 0 | CD24: 3 | CE24: 0 | CF24: 0 | CG24: 29 | CH24: 0 | CI24: 0 | CJ24: 0 | CK24: 25 | CL24: 13 | CM24: 3 | CN24: 0 | CO24: 0 | CP24: 4 | CQ24: 3 | CR24: 0 | CS24: 0 | CT24: 0 | CU24: 0 | CV24: 0 | CW24: 0 | CX24: 0 | CY24: 0 | CZ24: 0 | DA24: 0 | DB24: 0 | DC24: 0 | DD24: 0 | DE24: 0 | DF24: 3 | DG24: 0 | DH24: 0 | DI24: 0 | DJ24: 0 | DK24: 0 | DL24: 0 | DM24: 0 | DN24: 0 | DO24: 0 | DP24: 0 | DQ24: 0 | DR24: 0 | DS24: 0 | DT24: 0 | DU24: 0 | DV24: 0 | DW24: 0 | DX24: 0 | DY24: 0 | DZ24: 0 | EA24: 0 | EB24: 0 | EC24: 0 | ED24: 0 | EE24: 0 | EF24: 0 | EG24: 0 | EH24: 0 | EI24: 0
A25: ED_ASS521_00015 | C25: > 1 kV & < = 11 kV; Steel | N25: 38.9 | O25: 0 | P25: DNSP NAME | Q25: REPEX | R25: POLES | S25: > 1 kV & < = 11 kV; STEEL | T25: DESCRIPTOR METRIC | U25: STANDARD DEVIATION ECONOMIC LIFE | V25: YEARS | W25: NUMBER | X25: 0 | Y25: 12.1 | Z25: 0 | AA25: 0 | AB25: 0 | AC25: 0 | AD25: 0 | AE25: 0 | AF25: 0 | AG25: 0 | AH25: 0 | AI25: 0 | AJ25: 0 | AK25: 0 | AL25: 0 | AM25: 0 | AN25: 0 | AO25: 0 | AP25: 0 | AQ25: 0 | AR25: 0 | AS25: 0 | AT25: 0 | AU25: 0 | AV25: 0 | AW25: 0 | AX25: 0 | AY25: 0 | AZ25: 0 | BA25: 0 | BB25: 0 | BC25: 0 | BD25: 0 | BE25: 0 | BF25: 0 | BG25: 0 | BH25: 0 | BI25: 0 | BJ25: 0 | BK25: 0 | BL25: 0 | BM25: 0 | BN25: 0 | BO25: 0 | BP25: 0 | BQ25: 0 | BR25: 0 | BS25: 0 | BT25: 0 | BU25: 0 | BV25: 0 | BW25: 0 | BX25: 0 | BY25: 0 | BZ25: 0 | CA25: 0 | CB25: 0 | CC25: 0 | CD25: 0 | CE25: 0 | CF25: 0 | CG25: 0 | CH25: 0 | CI25: 0 | CJ25: 0 | CK25: 0 | CL25: 0 | CM25: 0 | CN25: 0 | CO25: 0 | CP25: 0 | CQ25: 0 | CR25: 0 | CS25: 0 | CT25: 0 | CU25: 0 | CV25: 0 | CW25: 0 | CX25: 0 | CY25: 0 | CZ25: 0 | DA25: 0 | DB25: 0 | DC25: 0 | DD25: 0 | DE25: 0 | DF25: 0 | DG25: 0 | DH25: 0 | DI25: 0 | DJ25: 0 | DK25: 0 | DL25: 0 | DM25: 0 | DN25: 0 | DO25: 0 | DP25: 0 | DQ25: 0 | DR25: 0 | DS25: 0 | DT25: 0 | DU25: 0 | DV25: 0 | DW25: 0 | DX25: 0 | DY25: 0 | DZ25: 0 | EA25: 0 | EB25: 0 | EC25: 0 | ED25: 0 | EE25: 0 | EF25: 0 | EG25: 0 | EH25: 0 | EI25: 0
A26: ED_ASS521_00016 | C26: ˃ 11 kV & < = 22 kV; Steel | N26: 38.9 | O26: 0 | P26: DNSP NAME | Q26: REPEX | R26: POLES | S26: ˃ 11 kV & < = 22 kV; STEEL | T26: DESCRIPTOR METRIC | U26: STANDARD DEVIATION ECONOMIC LIFE | V26: YEARS | W26: NUMBER | X26: 0 | Y26: 12.1 | Z26: 0 | AA26: 0 | AB26: 0 | AC26: 0 | AD26: 0 | AE26: 0 | AF26: 0 | AG26: 0 | AH26: 0 | AI26: 0 | AJ26: 0 | AK26: 0 | AL26: 2 | AM26: 0 | AN26: 0 | AO26: 2 | AP26: 3 | AQ26: 11 | AR26: 2 | AS26: 0 | AT26: 0 | AU26: 0 | AV26: 2 | AW26: 0 | AX26: 0 | AY26: 2 | AZ26: 0 | BA26: 0 | BB26: 0 | BC26: 0 | BD26: 0 | BE26: 0 | BF26: 5 | BG26: 0 | BH26: 4 | BI26: 5 | BJ26: 1 | BK26: 0 | BL26: 3 | BM26: 2 | BN26: 0 | BO26: 2 | BP26: 0 | BQ26: 0 | BR26: 4 | BS26: 1 | BT26: 3 | BU26: 0 | BV26: 135 | BW26: 0 | BX26: 2 | BY26: 97 | BZ26: 28 | CA26: 98 | CB26: 5 | CC26: 0 | CD26: 0 | CE26: 0 | CF26: 0 | CG26: 3 | CH26: 2 | CI26: 0 | CJ26: 5 | CK26: 2 | CL26: 2 | CM26: 0 | CN26: 0 | CO26: 0 | CP26: 0 | CQ26: 0 | CR26: 0 | CS26: 0 | CT26: 0 | CU26: 0 | CV26: 0 | CW26: 0 | CX26: 0 | CY26: 0 | CZ26: 0 | DA26: 0 | DB26: 0 | DC26: 0 | DD26: 0 | DE26: 0 | DF26: 0 | DG26: 0 | DH26: 0 | DI26: 0 | DJ26: 0 | DK26: 0 | DL26: 0 | DM26: 0 | DN26: 0 | DO26: 0 | DP26: 0 | DQ26: 0 | DR26: 0 | DS26: 0 | DT26: 0 | DU26: 0 | DV26: 0 | DW26: 0 | DX26: 0 | DY26: 0 | DZ26: 0 | EA26: 0 | EB26: 0 | EC26: 0 | ED26: 0 | EE26: 0 | EF26: 0 | EG26: 0 | EH26: 0 | EI26: 0
A27: ED_ASS521_00017 | C27: > 22 kV & < = 66 kV; Steel | N27: 38.9 | O27: 0 | P27: DNSP NAME | Q27: REPEX | R27: POLES | S27: > 22 kV & < = 66 kV; STEEL | T27: DESCRIPTOR METRIC | U27: STANDARD DEVIATION ECONOMIC LIFE | V27: YEARS | W27: NUMBER | X27: 0 | Y27: 12.1 | Z27: 0 | AA27: 0 | AB27: 0 | AC27: 0 | AD27: 0 | AE27: 0 | AF27: 0 | AG27: 0 | AH27: 0 | AI27: 0 | AJ27: 0 | AK27: 0 | AL27: 0 | AM27: 0 | AN27: 0 | AO27: 9 | AP27: 0 | AQ27: 0 | AR27: 0 | AS27: 0 | AT27: 0 | AU27: 0 | AV27: 0 | AW27: 3 | AX27: 0 | AY27: 4 | AZ27: 3 | BA27: 0 | BB27: 0 | BC27: 0 | BD27: 0 | BE27: 0 | BF27: 0 | BG27: 0 | BH27: 0 | BI27: 0 | BJ27: 0 | BK27: 0 | BL27: 0 | BM27: 4 | BN27: 0 | BO27: 0 | BP27: 0 | BQ27: 0 | BR27: 3 | BS27: 0 | BT27: 0 | BU27: 0 | BV27: 4 | BW27: 0 | BX27: 30 | BY27: 2 | BZ27: 0 | CA27: 0 | CB27: 6 | CC27: 0 | CD27: 0 | CE27: 0 | CF27: 17 | CG27: 0 | CH27: 0 | CI27: 0 | CJ27: 0 | CK27: 3 | CL27: 2 | CM27: 0 | CN27: 2 | CO27: 0 | CP27: 0 | CQ27: 0 | CR27: 2 | CS27: 0 | CT27: 0 | CU27: 0 | CV27: 3 | CW27: 0 | CX27: 0 | CY27: 0 | CZ27: 0 | DA27: 0 | DB27: 0 | DC27: 0 | DD27: 0 | DE27: 0 | DF27: 0 | DG27: 0 | DH27: 0 | DI27: 0 | DJ27: 0 | DK27: 0 | DL27: 0 | DM27: 0 | DN27: 0 | DO27: 0 | DP27: 0 | DQ27: 0 | DR27: 0 | DS27: 0 | DT27: 0 | DU27: 0 | DV27: 0 | DW27: 0 | DX27: 0 | DY27: 0 | DZ27: 0 | EA27: 0 | EB27: 0 | EC27: 0 | ED27: 0 | EE27: 0 | EF27: 0 | EG27: 0 | EH27: 0 | EI27: 0
A28: ED_ASS521_00018 | C28: > 66 kV & < = 132 kV; Steel | N28: 0 | O28: 0 | P28: DNSP NAME | Q28: REPEX | R28: POLES | S28: > 66 kV & < = 132 kV; STEEL | T28: DESCRIPTOR METRIC | U28: STANDARD DEVIATION ECONOMIC LIFE | V28: YEARS | W28: NUMBER | X28: 0 | Y28: 0 | Z28: 0 | AA28: 0 | AB28: 0 | AC28: 0 | AD28: 0 | AE28: 0 | AF28: 0 | AG28: 0 | AH28: 0 | AI28: 0 | AJ28: 0 | AK28: 0 | AL28: 0 | AM28: 0 | AN28: 0 | AO28: 0 | AP28: 0 | AQ28: 0 | AR28: 0 | AS28: 0 | AT28: 0 | AU28: 0 | AV28: 0 | AW28: 0 | AX28: 0 | AY28: 0 | AZ28: 0 | BA28: 0 | BB28: 0 | BC28: 0 | BD28: 0 | BE28: 0 | BF28: 0 | BG28: 0 | BH28: 0 | BI28: 0 | BJ28: 0 | BK28: 0 | BL28: 0 | BM28: 0 | BN28: 0 | BO28: 0 | BP28: 0 | BQ28: 0 | BR28: 0 | BS28: 0 | BT28: 0 | BU28: 0 | BV28: 0 | BW28: 0 | BX28: 0 | BY28: 0 | BZ28: 0 | CA28: 0 | CB28: 0 | CC28: 0 | CD28: 0 | CE28: 0 | CF28: 0 | CG28: 0 | CH28: 0 | CI28: 0 | CJ28: 0 | CK28: 0 | CL28: 0 | CM28: 0 | CN28: 0 | CO28: 0 | CP28: 0 | CQ28: 0 | CR28: 0 | CS28: 0 | CT28: 0 | CU28: 0 | CV28: 0 | CW28: 0 | CX28: 0 | CY28: 0 | CZ28: 0 | DA28: 0 | DB28: 0 | DC28: 0 | DD28: 0 | DE28: 0 | DF28: 0 | DG28: 0 | DH28: 0 | DI28: 0 | DJ28: 0 | DK28: 0 | DL28: 0 | DM28: 0 | DN28: 0 | DO28: 0 | DP28: 0 | DQ28: 0 | DR28: 0 | DS28: 0 | DT28: 0 | DU28: 0 | DV28: 0 | DW28: 0 | DX28: 0 | DY28: 0 | DZ28: 0 | EA28: 0 | EB28: 0 | EC28: 0 | ED28: 0 | EE28: 0 | EF28: 0 | EG28: 0 | EH28: 0 | EI28: 0
A29: ED_ASS521_00019 | C29: > 132 kV; Steel | N29: 0 | O29: 0 | P29: DNSP NAME | Q29: REPEX | R29: POLES | S29: > 132 kV; STEEL | T29: DESCRIPTOR METRIC | U29: STANDARD DEVIATION ECONOMIC LIFE | V29: YEARS | W29: NUMBER | X29: 0 | Y29: 0 | Z29: 0 | AA29: 0 | AB29: 0 | AC29: 0 | AD29: 0 | AE29: 0 | AF29: 0 | AG29: 0 | AH29: 0 | AI29: 0 | AJ29: 0 | AK29: 0 | AL29: 0 | AM29: 0 | AN29: 0 | AO29: 0 | AP29: 0 | AQ29: 0 | AR29: 0 | AS29: 0 | AT29: 0 | AU29: 0 | AV29: 0 | AW29: 0 | AX29: 0 | AY29: 0 | AZ29: 0 | BA29: 0 | BB29: 0 | BC29: 0 | BD29: 0 | BE29: 0 | BF29: 0 | BG29: 0 | BH29: 0 | BI29: 0 | BJ29: 0 | BK29: 0 | BL29: 0 | BM29: 0 | BN29: 0 | BO29: 0 | BP29: 0 | BQ29: 0 | BR29: 0 | BS29: 0 | BT29: 0 | BU29: 0 | BV29: 0 | BW29: 0 | BX29: 0 | BY29: 0 | BZ29: 0 | CA29: 0 | CB29: 0 | CC29: 0 | CD29: 0 | CE29: 0 | CF29: 0 | CG29: 0 | CH29: 0 | CI29: 0 | CJ29: 0 | CK29: 0 | CL29: 0 | CM29: 0 | CN29: 0 | CO29: 0 | CP29: 0 | CQ29: 0 | CR29: 0 | CS29: 0 | CT29: 0 | CU29: 0 | CV29: 0 | CW29: 0 | CX29: 0 | CY29: 0 | CZ29: 0 | DA29: 0 | DB29: 0 | DC29: 0 | DD29: 0 | DE29: 0 | DF29: 0 | DG29: 0 | DH29: 0 | DI29: 0 | DJ29: 0 | DK29: 0 | DL29: 0 | DM29: 0 | DN29: 0 | DO29: 0 | DP29: 0 | DQ29: 0 | DR29: 0 | DS29: 0 | DT29: 0 | DU29: 0 | DV29: 0 | DW29: 0 | DX29: 0 | DY29: 0 | DZ29: 0 | EA29: 0 | EB29: 0 | EC29: 0 | ED29: 0 | EE29: 0 | EF29: 0 | EG29: 0 | EH29: 0 | EI29: 0
A30: ED_ASS521_99000 | C30: Other | E30: DNSP NAME | F30: REPEX | G30: POLES | H30: Other | I30: DESCRIPTOR METRIC | J30: MEAN ECONOMIC LIFE | K30: YEARS | L30: NUMBER | N30: 38.9 | O30: 0 | P30: DNSP NAME | Q30: REPEX | R30: POLES | S30: STAY POLES (AERIAL GUYS) | T30: DESCRIPTOR METRIC | U30: STANDARD DEVIATION ECONOMIC LIFE | V30: YEARS | W30: NUMBER | X30: 0 | Y30: 12.1 | Z30: 0 | AA30: 0 | AB30: 0 | AC30: 0 | AD30: 0 | AE30: 0 | AF30: 0 | AG30: 0 | AH30: 0 | AI30: 0 | AJ30: 24 | AK30: 31 | AL30: 28 | AM30: 27 | AN30: 40 | AO30: 53 | AP30: 28 | AQ30: 39 | AR30: 36 | AS30: 33 | AT30: 39 | AU30: 26 | AV30: 21 | AW30: 42 | AX30: 41 | AY30: 18 | AZ30: 13 | BA30: 15 | BB30: 7 | BC30: 9 | BD30: 38 | BE30: 70 | BF30: 41 | BG30: 32 | BH30: 63 | BI30: 110 | BJ30: 119 | BK30: 83 | BL30: 132 | BM30: 107 | BN30: 104 | BO30: 98 | BP30: 53 | BQ30: 90 | BR30: 155 | BS30: 65 | BT30: 97 | BU30: 92 | BV30: 118 | BW30: 116 | BX30: 73 | BY30: 83 | BZ30: 104 | CA30: 67 | CB30: 77 | CC30: 110 | CD30: 156 | CE30: 123 | CF30: 71 | CG30: 90 | CH30: 76 | CI30: 45 | CJ30: 53 | CK30: 67 | CL30: 50 | CM30: 34 | CN30: 18 | CO30: 57 | CP30: 24 | CQ30: 22 | CR30: 21 | CS30: 25 | CT30: 50 | CU30: 35 | CV30: 35 | CW30: 14 | CX30: 7 | CY30: 6 | CZ30: 6 | DA30: 4 | DB30: 2 | DC30: 3 | DD30: 8 | DE30: 25 | DF30: 46 | DG30: 17 | DH30: 40 | DI30: 6 | DJ30: 9 | DK30: 4 | DL30: 9 | DM30: 0 | DN30: 2 | DO30: 0 | DP30: 2 | DQ30: 0 | DR30: 0 | DS30: 0 | DT30: 0 | DU30: 0 | DV30: 0 | DW30: 0 | DX30: 0 | DY30: 0 | DZ30: 0 | EA30: 0 | EB30: 0 | EC30: 0 | ED30: 0 | EE30: 0 | EF30: 0 | EG30: 0 | EH30: 0 | EI30: 0
A31: ED_ASS521_00021 | B31: OVERHEAD CONDUCTORS BY: HIGHEST OPERATING VOLTAGE; NUMBER OF PHASES (AT HV) | C31: ˂ = 1 kV | E31: DNSP NAME | F31: REPEX | G31: OVERHEAD CONDUCTORS | H31: ˂ = 1 kV | I31: DESCRIPTOR METRIC | J31: MEAN ECONOMIC LIFE | K31: YEARS | L31: NUMBER | N31: 40.9 | O31: 0 | P31: DNSP NAME | Q31: REPEX | R31: OVERHEAD CONDUCTORS | S31: ˂ = 1 kV | T31: DESCRIPTOR METRIC | U31: STANDARD DEVIATION ECONOMIC LIFE | V31: YEARS | W31: NUMBER | X31: 0 | Y31: 13.4 | Z31: 0 | AA31: 0 | AB31: 0 | AC31: 0 | AD31: 0 | AE31: 0 | AF31: 0 | AG31: 0 | AH31: 0 | AI31: 0 | AJ31: 76.3 | AK31: 102.2 | AL31: 35.3 | AM31: 52.8 | AN31: 59.3 | AO31: 60.8 | AP31: 48.1 | AQ31: 67.1 | AR31: 60.5 | AS31: 61.2 | AT31: 51 | AU31: 49.9 | AV31: 42.4 | AW31: 68.1 | AX31: 61.9 | AY31: 50.5 | AZ31: 23.1 | BA31: 30.7 | BB31: 12.8 | BC31: 45.2 | BD31: 66.6 | BE31: 129.9 | BF31: 113 | BG31: 78 | BH31: 134 | BI31: 275.5 | BJ31: 290.2 | BK31: 226.6 | BL31: 397.6 | BM31: 311.1 | BN31: 280.2 | BO31: 221.4 | BP31: 165.2 | BQ31: 227.9 | BR31: 383.3 | BS31: 165.5 | BT31: 267.3 | BU31: 196 | BV31: 333.6 | BW31: 287.1 | BX31: 232.7 | BY31: 315.6 | BZ31: 257.3 | CA31: 192.5 | CB31: 206 | CC31: 285 | CD31: 276.7 | CE31: 290.1 | CF31: 196.2 | CG31: 229.3 | CH31: 226.9 | CI31: 134.9 | CJ31: 155.1 | CK31: 137.6 | CL31: 128 | CM31: 102.4 | CN31: 88.4 | CO31: 95.4 | CP31: 22.5 | CQ31: 36.3 | CR31: 26.6 | CS31: 35.6 | CT31: 45.6 | CU31: 36.5 | CV31: 54.9 | CW31: 21.8 | CX31: 11.4 | CY31: 8.3 | CZ31: 6.7 | DA31: 3.4 | DB31: 2.8 | DC31: 2.4 | DD31: 6.8 | DE31: 26.8 | DF31: 40.4 | DG31: 28.9 | DH31: 44.7 | DI31: 14.8 | DJ31: 11.5 | DK31: 0 | DL31: 7.2 | DM31: 3.6 | DN31: 2.2 | DO31: 1.3 | DP31: 1.9 | DQ31: 0 | DR31: 0 | DS31: 0 | DT31: 0 | DU31: 0 | DV31: 0 | DW31: 0 | DX31: 0 | DY31: 0 | DZ31: 0 | EA31: 0 | EB31: 0 | EC31: 0 | ED31: 0 | EE31: 0 | EF31: 0 | EG31: 0 | EH31: 0 | EI31: 0
A32: ED_ASS521_00022 | C32: > 1 kV & < = 11 kV | E32: DNSP NAME | F32: REPEX | G32: OVERHEAD CONDUCTORS | H32: > 1 kV & < = 11 kV | I32: DESCRIPTOR METRIC | J32: MEAN ECONOMIC LIFE | K32: YEARS | L32: NUMBER | N32: 40.9 | O32: 0 | P32: DNSP NAME | Q32: REPEX | R32: OVERHEAD CONDUCTORS | S32: > 1 kV & < = 11 kV | T32: DESCRIPTOR METRIC | U32: STANDARD DEVIATION ECONOMIC LIFE | V32: YEARS | W32: NUMBER | X32: 0 | Y32: 13.4 | Z32: 0 | AA32: 0 | AB32: 0 | AC32: 0 | AD32: 0 | AE32: 0 | AF32: 0 | AG32: 0 | AH32: 0 | AI32: 0 | AJ32: 0.1 | AK32: 2 | AL32: 0.2 | AM32: 0.4 | AN32: 0.4 | AO32: 0.4 | AP32: 0.4 | AQ32: 0.6 | AR32: 0.5 | AS32: 0.5 | AT32: 0.5 | AU32: 0.5 | AV32: 0.4 | AW32: 0.6 | AX32: 0.5 | AY32: 0.4 | AZ32: 0.3 | BA32: 0.3 | BB32: 0.3 | BC32: 0.4 | BD32: 0.5 | BE32: 0.8 | BF32: 0.6 | BG32: 0.6 | BH32: 1.1 | BI32: 1.2 | BJ32: 1.5 | BK32: 1.1 | BL32: 1.4 | BM32: 1.5 | BN32: 1.6 | BO32: 1.1 | BP32: 0.9 | BQ32: 1.4 | BR32: 1.4 | BS32: 0.4 | BT32: 0.9 | BU32: 1.2 | BV32: 1.2 | BW32: 0.9 | BX32: 0.7 | BY32: 0.7 | BZ32: 0.7 | CA32: 0.6 | CB32: 0.9 | CC32: 1.3 | CD32: 1.4 | CE32: 1.4 | CF32: 1.6 | CG32: 1.9 | CH32: 1.9 | CI32: 0.9 | CJ32: 0.9 | CK32: 0.8 | CL32: 0.8 | CM32: 0.8 | CN32: 0.8 | CO32: 0.8 | CP32: 0.3 | CQ32: 0.5 | CR32: 0.4 | CS32: 0.3 | CT32: 0.4 | CU32: 0.2 | CV32: 0.1 | CW32: 0.1 | CX32: 0 | CY32: 0 | CZ32: 0 | DA32: 0 | DB32: 0 | DC32: 0 | DD32: 0 | DE32: 0.1 | DF32: 0.2 | DG32: 0.2 | DH32: 0.4 | DI32: 0.1 | DJ32: 0.1 | DK32: 0 | DL32: 0 | DM32: 0 | DN32: 0 | DO32: 0 | DP32: 0 | DQ32: 0 | DR32: 0 | DS32: 0 | DT32: 0 | DU32: 0 | DV32: 0 | DW32: 0 | DX32: 0 | DY32: 0 | DZ32: 0 | EA32: 0 | EB32: 0 | EC32: 0 | ED32: 0 | EE32: 0 | EF32: 0 | EG32: 0 | EH32: 0 | EI32: 0
A33: ED_ASS521_00023 | C33: ˃ 11 kV & < = 22 kV ; SWER | N33: 40.9 | O33: 0 | P33: DNSP NAME | Q33: REPEX | R33: OVERHEAD CONDUCTORS | S33: ˃ 11 kV & < = 22 kV ; SWER | T33: DESCRIPTOR METRIC | U33: STANDARD DEVIATION ECONOMIC LIFE | V33: YEARS | W33: NUMBER | X33: 0 | Y33: 13.4 | Z33: 0 | AA33: 0 | AB33: 0 | AC33: 0 | AD33: 0 | AE33: 0 | AF33: 0 | AG33: 0 | AH33: 0 | AI33: 0 | AJ33: 104.4 | AK33: 77.1 | AL33: 79 | AM33: 118.2 | AN33: 132.8 | AO33: 136 | AP33: 107.6 | AQ33: 150.2 | AR33: 135.4 | AS33: 136.9 | AT33: 114.2 | AU33: 111.7 | AV33: 94.9 | AW33: 152.5 | AX33: 138.6 | AY33: 113.1 | AZ33: 51.7 | BA33: 68.7 | BB33: 28.6 | BC33: 101.1 | BD33: 149.1 | BE33: 290.7 | BF33: 252.8 | BG33: 174.6 | BH33: 300 | BI33: 625.6 | BJ33: 649.4 | BK33: 507.2 | BL33: 898.9 | BM33: 696.2 | BN33: 631.6 | BO33: 500 | BP33: 374.2 | BQ33: 509.6 | BR33: 861.9 | BS33: 367.5 | BT33: 597.6 | BU33: 438.2 | BV33: 743.1 | BW33: 642 | BX33: 520.4 | BY33: 710.3 | BZ33: 575.3 | CA33: 430.4 | CB33: 460.5 | CC33: 637.4 | CD33: 618.7 | CE33: 651.2 | CF33: 440.8 | CG33: 514.9 | CH33: 509.6 | CI33: 303.7 | CJ33: 346.5 | CK33: 312.2 | CL33: 294.8 | CM33: 237.6 | CN33: 206.4 | CO33: 221.9 | CP33: 57 | CQ33: 87.9 | CR33: 66.3 | CS33: 86.4 | CT33: 103.7 | CU33: 88.4 | CV33: 124.5 | CW33: 50.1 | CX33: 31.2 | CY33: 24.4 | CZ33: 20.8 | DA33: 13.4 | DB33: 5.3 | DC33: 5.3 | DD33: 12 | DE33: 63.5 | DF33: 118.7 | DG33: 81.7 | DH33: 128.1 | DI33: 34.3 | DJ33: 24.7 | DK33: 11.8 | DL33: 17.3 | DM33: 10.5 | DN33: 3.9 | DO33: 1.8 | DP33: 3.4 | DQ33: 0 | DR33: 0 | DS33: 0 | DT33: 0 | DU33: 0 | DV33: 0 | DW33: 0 | DX33: 0 | DY33: 0 | DZ33: 0 | EA33: 0 | EB33: 0 | EC33: 0 | ED33: 0 | EE33: 0 | EF33: 0 | EG33: 0 | EH33: 0 | EI33: 0
A34: ED_ASS521_00024 | C34: ˃ 11 kV & < = 22 kV ; Single-Phase | N34: 0 | O34: 0 | P34: DNSP NAME | Q34: REPEX | R34: OVERHEAD CONDUCTORS | S34: ˃ 11 kV & < = 22 kV ; SINGLE-PHASE | T34: DESCRIPTOR METRIC | U34: STANDARD DEVIATION ECONOMIC LIFE | V34: YEARS | W34: NUMBER | X34: 0 | Y34: 0 | Z34: 0 | AA34: 0 | AB34: 0 | AC34: 0 | AD34: 0 | AE34: 0 | AF34: 0 | AG34: 0 | AH34: 0 | AI34: 0 | AJ34: 0 | AK34: 0 | AL34: 0 | AM34: 0 | AN34: 0 | AO34: 0 | AP34: 0 | AQ34: 0 | AR34: 0 | AS34: 0 | AT34: 0 | AU34: 0 | AV34: 0 | AW34: 0 | AX34: 0 | AY34: 0 | AZ34: 0 | BA34: 0 | BB34: 0 | BC34: 0 | BD34: 0 | BE34: 0 | BF34: 0 | BG34: 0 | BH34: 0 | BI34: 0 | BJ34: 0 | BK34: 0 | BL34: 0 | BM34: 0 | BN34: 0 | BO34: 0 | BP34: 0 | BQ34: 0 | BR34: 0 | BS34: 0 | BT34: 0 | BU34: 0 | BV34: 0 | BW34: 0 | BX34: 0 | BY34: 0 | BZ34: 0 | CA34: 0 | CB34: 0 | CC34: 0 | CD34: 0 | CE34: 0 | CF34: 0 | CG34: 0 | CH34: 0 | CI34: 0 | CJ34: 0 | CK34: 0 | CL34: 0 | CM34: 0 | CN34: 0 | CO34: 0 | CP34: 0 | CQ34: 0 | CR34: 0 | CS34: 0 | CT34: 0 | CU34: 0 | CV34: 0 | CW34: 0 | CX34: 0 | CY34: 0 | CZ34: 0 | DA34: 0 | DB34: 0 | DC34: 0 | DD34: 0 | DE34: 0 | DF34: 0 | DG34: 0 | DH34: 0 | DI34: 0 | DJ34: 0 | DK34: 0 | DL34: 0 | DM34: 0 | DN34: 0 | DO34: 0 | DP34: 0 | DQ34: 0 | DR34: 0 | DS34: 0 | DT34: 0 | DU34: 0 | DV34: 0 | DW34: 0 | DX34: 0 | DY34: 0 | DZ34: 0 | EA34: 0 | EB34: 0 | EC34: 0 | ED34: 0 | EE34: 0 | EF34: 0 | EG34: 0 | EH34: 0 | EI34: 0
A35: ED_ASS521_00025 | C35: ˃ 11 kV & < = 22 kV ; Multiple-Phase | N35: 40.9 | O35: 0 | P35: DNSP NAME | Q35: REPEX | R35: OVERHEAD CONDUCTORS | S35: ˃ 11 kV & < = 22 kV ; MULTIPLE-PHASE | T35: DESCRIPTOR METRIC | U35: STANDARD DEVIATION ECONOMIC LIFE | V35: YEARS | W35: NUMBER | X35: 0 | Y35: 13.4 | Z35: 0 | AA35: 0 | AB35: 0 | AC35: 0 | AD35: 0 | AE35: 0 | AF35: 0 | AG35: 0 | AH35: 0 | AI35: 0 | AJ35: 281.3 | AK35: 431.5 | AL35: 158.8 | AM35: 292.5 | AN35: 287.6 | AO35: 316 | AP35: 273.4 | AQ35: 405.5 | AR35: 355.1 | AS35: 338 | AT35: 362.3 | AU35: 377.4 | AV35: 302.9 | AW35: 404.9 | AX35: 388.3 | AY35: 274.9 | AZ35: 187.6 | BA35: 233 | BB35: 199.3 | BC35: 249 | BD35: 351.9 | BE35: 538 | BF35: 396.4 | BG35: 433.7 | BH35: 810.4 | BI35: 841.6 | BJ35: 1094.3 | BK35: 757 | BL35: 997.9 | BM35: 1032.7 | BN35: 1119.4 | BO35: 768.9 | BP35: 643.8 | BQ35: 1015 | BR35: 970.5 | BS35: 286.4 | BT35: 651.6 | BU35: 862.2 | BV35: 830 | BW35: 619.6 | BX35: 446.9 | BY35: 428.6 | BZ35: 399.1 | CA35: 361.8 | CB35: 547 | CC35: 866.3 | CD35: 898.8 | CE35: 923.8 | CF35: 1098.8 | CG35: 1293.9 | CH35: 1269.9 | CI35: 569.6 | CJ35: 534.9 | CK35: 517.1 | CL35: 455.6 | CM35: 414 | CN35: 406.4 | CO35: 371.3 | CP35: 77.8 | CQ35: 171.9 | CR35: 121 | CS35: 80.3 | CT35: 106.5 | CU35: 104.9 | CV35: 89.7 | CW35: 56.1 | CX35: 17.2 | CY35: 16.5 | CZ35: 14 | DA35: 19.3 | DB35: 20.6 | DC35: 5.5 | DD35: 29.4 | DE35: 57.9 | DF35: 136 | DG35: 111.6 | DH35: 189.6 | DI35: 63.8 | DJ35: 33.3 | DK35: 6.3 | DL35: 6.2 | DM35: 5.4 | DN35: 2.7 | DO35: 0.5 | DP35: 0.6 | DQ35: 0 | DR35: 0 | DS35: 0 | DT35: 0 | DU35: 0 | DV35: 0 | DW35: 0 | DX35: 0 | DY35: 0 | DZ35: 0 | EA35: 0 | EB35: 0 | EC35: 0 | ED35: 0 | EE35: 0 | EF35: 0 | EG35: 0 | EH35: 0 | EI35: 0
A36: ED_ASS521_00026 | C36: > 22 kV & < = 66 kV | N36: 40.9 | O36: 0 | P36: DNSP NAME | Q36: REPEX | R36: OVERHEAD CONDUCTORS | S36: > 22 kV & < = 66 kV | T36: DESCRIPTOR METRIC | U36: STANDARD DEVIATION ECONOMIC LIFE | V36: YEARS | W36: NUMBER | X36: 0 | Y36: 13.4 | Z36: 0 | AA36: 0 | AB36: 0 | AC36: 0 | AD36: 0 | AE36: 0 | AF36: 0 | AG36: 0 | AH36: 0 | AI36: 0 | AJ36: 29.4 | AK36: 37.8 | AL36: 31.4 | AM36: 57.6 | AN36: 102.2 | AO36: 56.6 | AP36: 52.9 | AQ36: 82.9 | AR36: 56.6 | AS36: 43.6 | AT36: 123.2 | AU36: 37.5 | AV36: 37.4 | AW36: 76.2 | AX36: 29.5 | AY36: 39.1 | AZ36: 5.6 | BA36: 9.4 | BB36: 7 | BC36: 22.4 | BD36: 45.4 | BE36: 25 | BF36: 14.1 | BG36: 12.1 | BH36: 68.7 | BI36: 91.1 | BJ36: 52.9 | BK36: 60.2 | BL36: 42.3 | BM36: 44.8 | BN36: 155.9 | BO36: 92.6 | BP36: 71.3 | BQ36: 140.3 | BR36: 102.1 | BS36: 16.8 | BT36: 64.6 | BU36: 73.8 | BV36: 90.2 | BW36: 94.7 | BX36: 51.1 | BY36: 26.3 | BZ36: 40.8 | CA36: 24.3 | CB36: 85.2 | CC36: 64.6 | CD36: 17.4 | CE36: 50.7 | CF36: 47.3 | CG36: 37.8 | CH36: 57.2 | CI36: 29.4 | CJ36: 23.8 | CK36: 35.4 | CL36: 13 | CM36: 16.5 | CN36: 3.7 | CO36: 59.4 | CP36: 36.8 | CQ36: 6.3 | CR36: 2.4 | CS36: 6.5 | CT36: 2.8 | CU36: 4 | CV36: 4.4 | CW36: 1.8 | CX36: 2.5 | CY36: 0.5 | CZ36: 0.8 | DA36: 0.4 | DB36: 0 | DC36: 21.5 | DD36: 4.8 | DE36: 13.6 | DF36: 1.9 | DG36: 0.8 | DH36: 0.5 | DI36: 0.5 | DJ36: 0.4 | DK36: 0.4 | DL36: 0.2 | DM36: 0.1 | DN36: 0 | DO36: 0 | DP36: 0 | DQ36: 0 | DR36: 0 | DS36: 0 | DT36: 0 | DU36: 0 | DV36: 0 | DW36: 0 | DX36: 0 | DY36: 0 | DZ36: 0 | EA36: 0 | EB36: 0 | EC36: 0 | ED36: 0 | EE36: 0 | EF36: 0 | EG36: 0 | EH36: 0 | EI36: 0
A37: ED_ASS521_00027 | C37: > 66 kV & < = 132 kV | N37: 0 | O37: 0 | P37: DNSP NAME | Q37: REPEX | R37: OVERHEAD CONDUCTORS | S37: > 66 kV & < = 132 kV | T37: DESCRIPTOR METRIC | U37: STANDARD DEVIATION ECONOMIC LIFE | V37: YEARS | W37: NUMBER | X37: 0 | Y37: 0 | Z37: 0 | AA37: 0 | AB37: 0 | AC37: 0 | AD37: 0 | AE37: 0 | AF37: 0 | AG37: 0 | AH37: 0 | AI37: 0 | AJ37: 0 | AK37: 0 | AL37: 0 | AM37: 0 | AN37: 0 | AO37: 0 | AP37: 0 | AQ37: 0 | AR37: 0 | AS37: 0 | AT37: 0 | AU37: 0 | AV37: 0 | AW37: 0 | AX37: 0 | AY37: 0 | AZ37: 0 | BA37: 0 | BB37: 0 | BC37: 0 | BD37: 0 | BE37: 0 | BF37: 0 | BG37: 0 | BH37: 0 | BI37: 0 | BJ37: 0 | BK37: 0 | BL37: 0 | BM37: 0 | BN37: 0 | BO37: 0 | BP37: 0 | BQ37: 0 | BR37: 0 | BS37: 0 | BT37: 0 | BU37: 0 | BV37: 0 | BW37: 0 | BX37: 0 | BY37: 0 | BZ37: 0 | CA37: 0 | CB37: 0 | CC37: 0 | CD37: 0 | CE37: 0 | CF37: 0 | CG37: 0 | CH37: 0 | CI37: 0 | CJ37: 0 | CK37: 0 | CL37: 0 | CM37: 0 | CN37: 0 | CO37: 0 | CP37: 0 | CQ37: 0 | CR37: 0 | CS37: 0 | CT37: 0 | CU37: 0 | CV37: 0 | CW37: 0 | CX37: 0 | CY37: 0 | CZ37: 0 | DA37: 0 | DB37: 0 | DC37: 0 | DD37: 0 | DE37: 0 | DF37: 0 | DG37: 0 | DH37: 0 | DI37: 0 | DJ37: 0 | DK37: 0 | DL37: 0 | DM37: 0 | DN37: 0 | DO37: 0 | DP37: 0 | DQ37: 0 | DR37: 0 | DS37: 0 | DT37: 0 | DU37: 0 | DV37: 0 | DW37: 0 | DX37: 0 | DY37: 0 | DZ37: 0 | EA37: 0 | EB37: 0 | EC37: 0 | ED37: 0 | EE37: 0 | EF37: 0 | EG37: 0 | EH37: 0 | EI37: 0
A38: ED_ASS521_00028 | C38: > 132 kV | N38: 0 | O38: 0 | P38: DNSP NAME | Q38: REPEX | R38: OVERHEAD CONDUCTORS | S38: > 132 kV | T38: DESCRIPTOR METRIC | U38: STANDARD DEVIATION ECONOMIC LIFE | V38: YEARS | W38: NUMBER | X38: 0 | Y38: 0 | Z38: 0 | AA38: 0 | AB38: 0 | AC38: 0 | AD38: 0 | AE38: 0 | AF38: 0 | AG38: 0 | AH38: 0 | AI38: 0 | AJ38: 0 | AK38: 0 | AL38: 0 | AM38: 0 | AN38: 0 | AO38: 0 | AP38: 0 | AQ38: 0 | AR38: 0 | AS38: 0 | AT38: 0 | AU38: 0 | AV38: 0 | AW38: 0 | AX38: 0 | AY38: 0 | AZ38: 0 | BA38: 0 | BB38: 0 | BC38: 0 | BD38: 0 | BE38: 0 | BF38: 0 | BG38: 0 | BH38: 0 | BI38: 0 | BJ38: 0 | BK38: 0 | BL38: 0 | BM38: 0 | BN38: 0 | BO38: 0 | BP38: 0 | BQ38: 0 | BR38: 0 | BS38: 0 | BT38: 0 | BU38: 0 | BV38: 0 | BW38: 0 | BX38: 0 | BY38: 0 | BZ38: 0 | CA38: 0 | CB38: 0 | CC38: 0 | CD38: 0 | CE38: 0 | CF38: 0 | CG38: 0 | CH38: 0 | CI38: 0 | CJ38: 0 | CK38: 0 | CL38: 0 | CM38: 0 | CN38: 0 | CO38: 0 | CP38: 0 | CQ38: 0 | CR38: 0 | CS38: 0 | CT38: 0 | CU38: 0 | CV38: 0 | CW38: 0 | CX38: 0 | CY38: 0 | CZ38: 0 | DA38: 0 | DB38: 0 | DC38: 0 | DD38: 0 | DE38: 0 | DF38: 0 | DG38: 0 | DH38: 0 | DI38: 0 | DJ38: 0 | DK38: 0 | DL38: 0 | DM38: 0 | DN38: 0 | DO38: 0 | DP38: 0 | DQ38: 0 | DR38: 0 | DS38: 0 | DT38: 0 | DU38: 0 | DV38: 0 | DW38: 0 | DX38: 0 | DY38: 0 | DZ38: 0 | EA38: 0 | EB38: 0 | EC38: 0 | ED38: 0 | EE38: 0 | EF38: 0 | EG38: 0 | EH38: 0 | EI38: 0
A39: ED_ASS521_99001 | C39: Other | E39: DNSP NAME | F39: REPEX | G39: OVERHEAD CONDUCTORS | H39: Other | I39: DESCRIPTOR METRIC | J39: MEAN ECONOMIC LIFE | K39: YEARS | L39: NUMBER | N39: 40.9 | O39: 0 | P39: 0 | Q39: 0 | R39: 0 | S39: 0 | T39: 0 | U39: 0 | V39: 0 | W39: 0 | X39: 0 | Y39: 13.4 | Z39: 0 | AA39: 0 | AB39: 0 | AC39: 0 | AD39: 0 | AE39: 0 | AF39: 0 | AG39: 0 | AH39: 0 | AI39: 0 | AJ39: 0.7 | AK39: 1 | AL39: 0.1 | AM39: 0.1 | AN39: 0.1 | AO39: 0.1 | AP39: 0.1 | AQ39: 0.1 | AR39: 0.1 | AS39: 0.1 | AT39: 0.1 | AU39: 0.1 | AV39: 0.15 | AW39: 0.15 | AX39: 0.15 | AY39: 0.15 | AZ39: 0.05 | BA39: 0.15 | BB39: 0.05 | BC39: 0.15 | BD39: 0.15 | BE39: 0.25 | BF39: 0.25 | BG39: 0.15 | BH39: 0.25 | BI39: 0.55 | BJ39: 0.55 | BK39: 0.45 | BL39: 0.75 | BM39: 0.65 | BN39: 0.65 | BO39: 0.55 | BP39: 0.45 | BQ39: 0.55 | BR39: 0.9 | BS39: 0.3 | BT39: 0.5 | BU39: 0.3 | BV39: 0.6 | BW39: 0.5 | BX39: 0.4 | BY39: 0.7 | BZ39: 0.5 | CA39: 0.3 | CB39: 0.4 | CC39: 0.5 | CD39: 0.5 | CE39: 0.5 | CF39: 0.3 | CG39: 0.4 | CH39: 0.4 | CI39: 0.2 | CJ39: 0.3 | CK39: 0.2 | CL39: 0.2 | CM39: 0.2 | CN39: 0.2 | CO39: 0.2 | CP39: 0 | CQ39: 0.1 | CR39: 0.1 | CS39: 0.1 | CT39: 0.1 | CU39: 0.1 | CV39: 0.1 | CW39: 0 | CX39: 0 | CY39: 0 | CZ39: 0 | DA39: 0 | DB39: 0 | DC39: 0 | DD39: 0 | DE39: 0.1 | DF39: 0.1 | DG39: 0.1 | DH39: 0.1 | DI39: 0 | DJ39: 0 | DK39: 0 | DL39: 0 | DM39: 0 | DN39: 0 | DO39: 0 | DP39: 0 | DQ39: 0 | DR39: 0 | DS39: 0 | DT39: 0 | DU39: 0 | DV39: 0 | DW39: 0 | DX39: 0 | DY39: 0 | DZ39: 0 | EA39: 0 | EB39: 0 | EC39: 0 | ED39: 0 | EE39: 0 | EF39: 0 | EG39: 0 | EH39: 0 | EI39: 0
A40: ED_ASS521_00030 | B40: UNDERGROUND CABLES BY: HIGHEST OPERATING VOLTAGE | C40: ˂ = 1 kV | E40: DNSP NAME | F40: REPEX | G40: UNDERGROUND CABLES | H40: ˂ = 1 kV | I40: DESCRIPTOR METRIC | J40: MEAN ECONOMIC LIFE | K40: YEARS | L40: NUMBER | N40: 70 | O40: 0 | P40: DNSP NAME | Q40: REPEX | R40: UNDERGROUND CABLES | S40: ˂ = 1 kV | T40: DESCRIPTOR METRIC | U40: STANDARD DEVIATION ECONOMIC LIFE | V40: YEARS | W40: NUMBER | X40: 0 | Y40: 8.37 | Z40: 0 | AA40: 0 | AB40: 0 | AC40: 0 | AD40: 0 | AE40: 0 | AF40: 0 | AG40: 0 | AH40: 0 | AI40: 0 | AJ40: 88.86146 | AK40: 112.1102836 | AL40: 158.6459115 | AM40: 237.5103531 | AN40: 266.7533696 | AO40: 60.52387377 | AP40: 198.4857005 | AQ40: 159.0534797 | AR40: 166.3897068 | AS40: 175.8656669 | AT40: 157.9326672 | AU40: 227.728717 | AV40: 227.830609 | AW40: 121.6590998 | AX40: 141.7318323 | AY40: 146.6226504 | AZ40: 107.0885376 | BA40: 68.5733452 | BB40: 42.59087413 | BC40: 48.60250469 | BD40: 61.5427942 | BE40: 73.9736235 | BF40: 57.36522042 | BG40: 56.1425159 | BH40: 63.47874303 | BI40: 60.72765786 | BJ40: 50.94602169 | BK40: 33.42059023 | BL40: 37.8019481 | BM40: 25.88057902 | BN40: 19.46138029 | BO40: 6.826766907 | BP40: 11.5138009 | BQ40: 8.151363471 | BR40: 15.28380651 | BS40: 16.50651103 | BT40: 12.73650542 | BU40: 26.18625515 | BV40: 36.98681175 | BW40: 8.049471427 | BX40: 2.139732911 | BY40: 12.94028951 | BZ40: 1.834056781 | CA40: 1.324596564 | CB40: 1.018920434 | CC40: 0.7132443037 | CD40: 0.1018920434 | CE40: 0.2037840868 | CF40: 1.732164738 | CG40: 1.018920434 | CH40: 0.1018920434 | CI40: 0 | CJ40: 0 | CK40: 0 | CL40: 0 | CM40: 0 | CN40: 0 | CO40: 0 | CP40: 0.8151363471 | CQ40: 0 | CR40: 0 | CS40: 0 | CT40: 0 | CU40: 0 | CV40: 0 | CW40: 0 | CX40: 0 | CY40: 0 | CZ40: 0 | DA40: 0 | DB40: 0 | DC40: 0 | DD40: 0 | DE40: 0 | DF40: 0 | DG40: 0 | DH40: 0 | DI40: 0 | DJ40: 0 | DK40: 0 | DL40: 0 | DM40: 0 | DN40: 0 | DO40: 0 | DP40: 0 | DQ40: 0 | DR40: 0 | DS40: 0 | DT40: 0 | DU40: 0 | DV40: 0 | DW40: 0 | DX40: 0 | DY40: 0 | DZ40: 0 | EA40: 0 | EB40: 0 | EC40: 0 | ED40: 0 | EE40: 0 | EF40: 0 | EG40: 0 | EH40: 0 | EI40: 0
A41: ED_ASS521_00031 | C41: > 1 kV & < = 11 kV | N41: 70 | O41: 0 | P41: DNSP NAME | Q41: REPEX | R41: UNDERGROUND CABLES | S41: > 1 kV & < = 11 kV | T41: DESCRIPTOR METRIC | U41: STANDARD DEVIATION ECONOMIC LIFE | V41: YEARS | W41: NUMBER | X41: 0 | Y41: 8.37 | Z41: 0 | AA41: 0 | AB41: 0 | AC41: 0 | AD41: 0 | AE41: 0 | AF41: 0 | AG41: 0 | AH41: 0 | AI41: 0 | AJ41: 0.32147 | AK41: 0.1734054057 | AL41: 0 | AM41: 0 | AN41: 0 | AO41: 0.3030661799 | AP41: 0.7071544198 | AQ41: 0.3030661799 | AR41: 0.6061323598 | AS41: 0.2020441199 | AT41: 0.7071544198 | AU41: 0 | AV41: 0 | AW41: 0 | AX41: 5.051102998 | AY41: 0 | AZ41: 0.3030661799 | BA41: 3.232705919 | BB41: 0.10102206 | BC41: 0 | BD41: 0.10102206 | BE41: 0 | BF41: 0 | BG41: 0.4040882399 | BH41: 0 | BI41: 0.2020441199 | BJ41: 0.10102206 | BK41: 0 | BL41: 1.717375019 | BM41: 0 | BN41: 0 | BO41: 0 | BP41: 0 | BQ41: 0.10102206 | BR41: 0 | BS41: 1.717375019 | BT41: 0.10102206 | BU41: 0 | BV41: 0 | BW41: 0 | BX41: 0 | BY41: 0.2020441199 | BZ41: 0 | CA41: 0 | CB41: 0 | CC41: 0 | CD41: 0 | CE41: 0 | CF41: 0 | CG41: 0 | CH41: 0 | CI41: 0 | CJ41: 0 | CK41: 0 | CL41: 0 | CM41: 0 | CN41: 0 | CO41: 0 | CP41: 0 | CQ41: 0 | CR41: 0 | CS41: 0 | CT41: 0 | CU41: 0 | CV41: 0 | CW41: 0 | CX41: 0 | CY41: 0 | CZ41: 0 | DA41: 0 | DB41: 0 | DC41: 0 | DD41: 0 | DE41: 0 | DF41: 0 | DG41: 0 | DH41: 0 | DI41: 0 | DJ41: 0 | DK41: 0 | DL41: 0 | DM41: 0 | DN41: 0 | DO41: 0 | DP41: 0 | DQ41: 0 | DR41: 0 | DS41: 0 | DT41: 0 | DU41: 0 | DV41: 0 | DW41: 0 | DX41: 0 | DY41: 0 | DZ41: 0 | EA41: 0 | EB41: 0 | EC41: 0 | ED41: 0 | EE41: 0 | EF41: 0 | EG41: 0 | EH41: 0 | EI41: 0
A42: ED_ASS521_00032 | C42: > 11 kV & < = 22 kV | N42: 70 | O42: 0 | P42: DNSP NAME | Q42: REPEX | R42: UNDERGROUND CABLES | S42: > 11 kV & < = 22 kV | T42: DESCRIPTOR METRIC | U42: STANDARD DEVIATION ECONOMIC LIFE | V42: YEARS | W42: NUMBER | X42: 0 | Y42: 8.37 | Z42: 0 | AA42: 0 | AB42: 0 | AC42: 0 | AD42: 0 | AE42: 0 | AF42: 0 | AG42: 0 | AH42: 0 | AI42: 0 | AJ42: 69.105284 | AK42: 76.18327879 | AL42: 44.8267122 | AM42: 82.51733345 | AN42: 81.21072525 | AO42: 39.90180436 | AP42: 112.4688138 | AQ42: 80.90920028 | AR42: 83.32140004 | AS42: 87.24122465 | AT42: 67.74260992 | AU42: 82.51733345 | AV42: 70.85836795 | AW42: 52.36483645 | AX42: 73.87361765 | AY42: 72.06446783 | AZ42: 47.64094526 | BA42: 44.8267122 | BB42: 32.76571341 | BC42: 24.22250592 | BD42: 37.28858796 | BE42: 31.05707191 | BF42: 16.58387335 | BG42: 21.20725622 | BH42: 19.69963137 | BI42: 16.08133173 | BJ42: 22.71488107 | BK42: 11.35744054 | BL42: 14.17167359 | BM42: 11.75947383 | BN42: 9.64879904 | BO42: 5.326941136 | BP42: 5.025416166 | BQ42: 4.020332933 | BR42: 5.42744946 | BS42: 6.834565986 | BT42: 4.924907843 | BU42: 8.14117419 | BV42: 9.548290716 | BW42: 0.8040665866 | BX42: 3.517791317 | BY42: 0.8040665866 | BZ42: 0.7035582633 | CA42: 0.90457491 | CB42: 1.20609988 | CC42: 0.7035582633 | CD42: 3.0152497 | CE42: 0.2010166467 | CF42: 6.131007723 | CG42: 0.1005083233 | CH42: 0 | CI42: 0.1005083233 | CJ42: 0 | CK42: 0 | CL42: 0.1005083233 | CM42: 0 | CN42: 0.1005083233 | CO42: 0 | CP42: 0.7035582633 | CQ42: 0 | CR42: 0 | CS42: 0 | CT42: 0.1005083233 | CU42: 0 | CV42: 0 | CW42: 0.1005083233 | CX42: 0 | CY42: 0 | CZ42: 0 | DA42: 0 | DB42: 0 | DC42: 0 | DD42: 0 | DE42: 0 | DF42: 0 | DG42: 0 | DH42: 0 | DI42: 0 | DJ42: 0 | DK42: 0 | DL42: 0 | DM42: 0 | DN42: 0 | DO42: 0 | DP42: 0 | DQ42: 0 | DR42: 0 | DS42: 0 | DT42: 0 | DU42: 0 | DV42: 0 | DW42: 0 | DX42: 0 | DY42: 0 | DZ42: 0 | EA42: 0 | EB42: 0 | EC42: 0 | ED42: 0 | EE42: 0 | EF42: 0 | EG42: 0 | EH42: 0 | EI42: 0
A43: ED_ASS521_00033 | C43: > 22 kV & < = 33 kV | N43: 0 | O43: 0 | P43: DNSP NAME | Q43: REPEX | R43: UNDERGROUND CABLES | S43: > 22 kV & < = 33 kV | T43: DESCRIPTOR METRIC | U43: STANDARD DEVIATION ECONOMIC LIFE | V43: YEARS | W43: NUMBER | X43: 0 | Y43: 0 | Z43: 0 | AA43: 0 | AB43: 0 | AC43: 0 | AD43: 0 | AE43: 0 | AF43: 0 | AG43: 0 | AH43: 0 | AI43: 0 | AJ43: 0 | AK43: 0 | AL43: 0 | AM43: 0 | AN43: 0 | AO43: 0 | AP43: 0 | AQ43: 0 | AR43: 0 | AS43: 0 | AT43: 0 | AU43: 0 | AV43: 0 | AW43: 0 | AX43: 0 | AY43: 0 | AZ43: 0 | BA43: 0 | BB43: 0 | BC43: 0 | BD43: 0 | BE43: 0 | BF43: 0 | BG43: 0 | BH43: 0 | BI43: 0 | BJ43: 0 | BK43: 0 | BL43: 0 | BM43: 0 | BN43: 0 | BO43: 0 | BP43: 0 | BQ43: 0 | BR43: 0 | BS43: 0 | BT43: 0 | BU43: 0 | BV43: 0 | BW43: 0 | BX43: 0 | BY43: 0 | BZ43: 0 | CA43: 0 | CB43: 0 | CC43: 0 | CD43: 0 | CE43: 0 | CF43: 0 | CG43: 0 | CH43: 0 | CI43: 0 | CJ43: 0 | CK43: 0 | CL43: 0 | CM43: 0 | CN43: 0 | CO43: 0 | CP43: 0 | CQ43: 0 | CR43: 0 | CS43: 0 | CT43: 0 | CU43: 0 | CV43: 0 | CW43: 0 | CX43: 0 | CY43: 0 | CZ43: 0 | DA43: 0 | DB43: 0 | DC43: 0 | DD43: 0 | DE43: 0 | DF43: 0 | DG43: 0 | DH43: 0 | DI43: 0 | DJ43: 0 | DK43: 0 | DL43: 0 | DM43: 0 | DN43: 0 | DO43: 0 | DP43: 0 | DQ43: 0 | DR43: 0 | DS43: 0 | DT43: 0 | DU43: 0 | DV43: 0 | DW43: 0 | DX43: 0 | DY43: 0 | DZ43: 0 | EA43: 0 | EB43: 0 | EC43: 0 | ED43: 0 | EE43: 0 | EF43: 0 | EG43: 0 | EH43: 0 | EI43: 0
A44: ED_ASS521_00034 | C44: > 33 kV & < = 66 kV | N44: 70 | O44: 0 | P44: DNSP NAME | Q44: REPEX | R44: UNDERGROUND CABLES | S44: > 33 kV & < = 66 kV | T44: DESCRIPTOR METRIC | U44: STANDARD DEVIATION ECONOMIC LIFE | V44: YEARS | W44: NUMBER | X44: 0 | Y44: 8.37 | Z44: 0 | AA44: 0 | AB44: 0 | AC44: 0 | AD44: 0 | AE44: 0 | AF44: 0 | AG44: 0 | AH44: 0 | AI44: 0 | AJ44: 0.414207 | AK44: 0 | AL44: 0 | AM44: 0 | AN44: 0 | AO44: 0 | AP44: 0 | AQ44: 0.1056014333 | AR44: 0 | AS44: 0.3168043 | AT44: 2.2176301 | AU44: 0.3168043 | AV44: 0 | AW44: 0 | AX44: 0 | AY44: 0 | AZ44: 0 | BA44: 0 | BB44: 0 | BC44: 0 | BD44: 0 | BE44: 0 | BF44: 0 | BG44: 0 | BH44: 0 | BI44: 0 | BJ44: 0 | BK44: 0 | BL44: 0.2112028667 | BM44: 0 | BN44: 0 | BO44: 0 | BP44: 0 | BQ44: 0 | BR44: 0 | BS44: 0 | BT44: 0 | BU44: 0 | BV44: 0 | BW44: 0 | BX44: 0 | BY44: 0 | BZ44: 0 | CA44: 0 | CB44: 0 | CC44: 0 | CD44: 0 | CE44: 0 | CF44: 0 | CG44: 0 | CH44: 0 | CI44: 0 | CJ44: 0 | CK44: 0 | CL44: 0 | CM44: 0 | CN44: 0 | CO44: 0 | CP44: 0 | CQ44: 0 | CR44: 0 | CS44: 0 | CT44: 0 | CU44: 0 | CV44: 0 | CW44: 0 | CX44: 0 | CY44: 0 | CZ44: 0 | DA44: 0 | DB44: 0 | DC44: 0 | DD44: 0 | DE44: 0 | DF44: 0 | DG44: 0 | DH44: 0 | DI44: 0 | DJ44: 0 | DK44: 0 | DL44: 0 | DM44: 0 | DN44: 0 | DO44: 0 | DP44: 0 | DQ44: 0 | DR44: 0 | DS44: 0 | DT44: 0 | DU44: 0 | DV44: 0 | DW44: 0 | DX44: 0 | DY44: 0 | DZ44: 0 | EA44: 0 | EB44: 0 | EC44: 0 | ED44: 0 | EE44: 0 | EF44: 0 | EG44: 0 | EH44: 0 | EI44: 0
A45: ED_ASS521_00035 | C45: > 66 kV & < = 132 kV | N45: 0 | O45: 0 | P45: DNSP NAME | Q45: REPEX | R45: UNDERGROUND CABLES | S45: > 66 kV & < = 132 kV | T45: DESCRIPTOR METRIC | U45: STANDARD DEVIATION ECONOMIC LIFE | V45: YEARS | W45: NUMBER | X45: 0 | Y45: 0 | Z45: 0 | AA45: 0 | AB45: 0 | AC45: 0 | AD45: 0 | AE45: 0 | AF45: 0 | AG45: 0 | AH45: 0 | AI45: 0 | AJ45: 0 | AK45: 0 | AL45: 0 | AM45: 0 | AN45: 0 | AO45: 0 | AP45: 0 | AQ45: 0 | AR45: 0 | AS45: 0 | AT45: 0 | AU45: 0 | AV45: 0 | AW45: 0 | AX45: 0 | AY45: 0 | AZ45: 0 | BA45: 0 | BB45: 0 | BC45: 0 | BD45: 0 | BE45: 0 | BF45: 0 | BG45: 0 | BH45: 0 | BI45: 0 | BJ45: 0 | BK45: 0 | BL45: 0 | BM45: 0 | BN45: 0 | BO45: 0 | BP45: 0 | BQ45: 0 | BR45: 0 | BS45: 0 | BT45: 0 | BU45: 0 | BV45: 0 | BW45: 0 | BX45: 0 | BY45: 0 | BZ45: 0 | CA45: 0 | CB45: 0 | CC45: 0 | CD45: 0 | CE45: 0 | CF45: 0 | CG45: 0 | CH45: 0 | CI45: 0 | CJ45: 0 | CK45: 0 | CL45: 0 | CM45: 0 | CN45: 0 | CO45: 0 | CP45: 0 | CQ45: 0 | CR45: 0 | CS45: 0 | CT45: 0 | CU45: 0 | CV45: 0 | CW45: 0 | CX45: 0 | CY45: 0 | CZ45: 0 | DA45: 0 | DB45: 0 | DC45: 0 | DD45: 0 | DE45: 0 | DF45: 0 | DG45: 0 | DH45: 0 | DI45: 0 | DJ45: 0 | DK45: 0 | DL45: 0 | DM45: 0 | DN45: 0 | DO45: 0 | DP45: 0 | DQ45: 0 | DR45: 0 | DS45: 0 | DT45: 0 | DU45: 0 | DV45: 0 | DW45: 0 | DX45: 0 | DY45: 0 | DZ45: 0 | EA45: 0 | EB45: 0 | EC45: 0 | ED45: 0 | EE45: 0 | EF45: 0 | EG45: 0 | EH45: 0 | EI45: 0
A46: ED_ASS521_00036 | C46: > 132 kV | N46: 0 | O46: 0 | P46: DNSP NAME | Q46: REPEX | R46: UNDERGROUND CABLES | S46: > 132 kV | T46: DESCRIPTOR METRIC | U46: STANDARD DEVIATION ECONOMIC LIFE | V46: YEARS | W46: NUMBER | X46: 0 | Y46: 0 | Z46: 0 | AA46: 0 | AB46: 0 | AC46: 0 | AD46: 0 | AE46: 0 | AF46: 0 | AG46: 0 | AH46: 0 | AI46: 0 | AJ46: 0 | AK46: 0 | AL46: 0 | AM46: 0 | AN46: 0 | AO46: 0 | AP46: 0 | AQ46: 0 | AR46: 0 | AS46: 0 | AT46: 0 | AU46: 0 | AV46: 0 | AW46: 0 | AX46: 0 | AY46: 0 | AZ46: 0 | BA46: 0 | BB46: 0 | BC46: 0 | BD46: 0 | BE46: 0 | BF46: 0 | BG46: 0 | BH46: 0 | BI46: 0 | BJ46: 0 | BK46: 0 | BL46: 0 | BM46: 0 | BN46: 0 | BO46: 0 | BP46: 0 | BQ46: 0 | BR46: 0 | BS46: 0 | BT46: 0 | BU46: 0 | BV46: 0 | BW46: 0 | BX46: 0 | BY46: 0 | BZ46: 0 | CA46: 0 | CB46: 0 | CC46: 0 | CD46: 0 | CE46: 0 | CF46: 0 | CG46: 0 | CH46: 0 | CI46: 0 | CJ46: 0 | CK46: 0 | CL46: 0 | CM46: 0 | CN46: 0 | CO46: 0 | CP46: 0 | CQ46: 0 | CR46: 0 | CS46: 0 | CT46: 0 | CU46: 0 | CV46: 0 | CW46: 0 | CX46: 0 | CY46: 0 | CZ46: 0 | DA46: 0 | DB46: 0 | DC46: 0 | DD46: 0 | DE46: 0 | DF46: 0 | DG46: 0 | DH46: 0 | DI46: 0 | DJ46: 0 | DK46: 0 | DL46: 0 | DM46: 0 | DN46: 0 | DO46: 0 | DP46: 0 | DQ46: 0 | DR46: 0 | DS46: 0 | DT46: 0 | DU46: 0 | DV46: 0 | DW46: 0 | DX46: 0 | DY46: 0 | DZ46: 0 | EA46: 0 | EB46: 0 | EC46: 0 | ED46: 0 | EE46: 0 | EF46: 0 | EG46: 0 | EH46: 0 | EI46: 0
A47: ED_ASS521_99002 | C47: Other | E47: DNSP NAME | F47: REPEX | G47: SERVICE LINES | H47: Other | I47: DESCRIPTOR METRIC | J47: MEAN ECONOMIC LIFE | K47: YEARS | L47: NUMBER | N47: 70 | O47: 0 | P47: DNSP NAME | Q47: REPEX | R47: SERVICE LINES | S47: PUBLIC LIGHTING UNDERGROUND CABLE | T47: DESCRIPTOR METRIC | U47: STANDARD DEVIATION ECONOMIC LIFE | V47: YEARS | W47: NUMBER | X47: 0 | Y47: 8.37 | Z47: 0 | AA47: 0 | AB47: 0 | AC47: 0 | AD47: 0 | AE47: 0 | AF47: 0 | AG47: 0 | AH47: 0 | AI47: 0 | AJ47: 25.90092 | AK47: 28.90418101 | AL47: 38.34429282 | AM47: 57.4155332 | AN47: 64.47895556 | AO47: 21.79570329 | AP47: 72.75325032 | AQ47: 50.04939273 | AR47: 63.46989522 | AS47: 63.16717712 | AT47: 58.9291237 | AU47: 84.66016231 | AV47: 71.13875378 | AW47: 44.80227898 | AX47: 46.61858759 | AY47: 55.29650649 | AZ47: 36.12436008 | BA47: 21.19026708 | BB47: 20.68573692 | BC47: 17.15402574 | BD47: 20.78664295 | BE47: 27.44644118 | BF47: 20.28211278 | BG47: 24.41926016 | BH47: 19.27305244 | BI47: 21.89660932 | BJ47: 14.32865679 | BK47: 15.8422473 | BL47: 6.76070426 | BM47: 10.39332147 | BN47: 13.31959645 | BO47: 4.036241349 | BP47: 7.56795253 | BQ47: 10.19150941 | BR47: 11.30147578 | BS47: 3.935335316 | BT47: 5.448925822 | BU47: 8.677918901 | BV47: 12.91597232 | BW47: 5.448925822 | BX47: 0.3027181012 | BY47: 0.7063422362 | BZ47: 5.448925822 | CA47: 0.9081543036 | CB47: 0.8072482699 | CC47: 0.8072482699 | CD47: 0 | CE47: 1.009060337 | CF47: 0.5045301687 | CG47: 0 | CH47: 0.5045301687 | CI47: 0 | CJ47: 0 | CK47: 0 | CL47: 0 | CM47: 0 | CN47: 0 | CO47: 0 | CP47: 0.1009060337 | CQ47: 0 | CR47: 0 | CS47: 0 | CT47: 0 | CU47: 0 | CV47: 0 | CW47: 0 | CX47: 0 | CY47: 0 | CZ47: 0 | DA47: 0 | DB47: 0 | DC47: 0 | DD47: 0 | DE47: 0 | DF47: 0 | DG47: 0 | DH47: 0 | DI47: 0 | DJ47: 0 | DK47: 0 | DL47: 0 | DM47: 0 | DN47: 0 | DO47: 0 | DP47: 0 | DQ47: 0 | DR47: 0 | DS47: 0 | DT47: 0 | DU47: 0 | DV47: 0 | DW47: 0 | DX47: 0 | DY47: 0 | DZ47: 0 | EA47: 0 | EB47: 0 | EC47: 0 | ED47: 0 | EE47: 0 | EF47: 0 | EG47: 0 | EH47: 0 | EI47: 0
A48: ED_ASS521_00038 | B48: SERVICE LINES BY: CONNECTION VOLTAGE; CUSTOMER TYPE; CONNECTION COMPLEXITY | C48: ˂ = 11 kV ; Residential ; Simple Type | E48: DNSP NAME | F48: REPEX | G48: SERVICE LINES | H48: ˂ = 11 kV ; Residential ; Simple Type | I48: DESCRIPTOR METRIC | J48: MEAN ECONOMIC LIFE | K48: YEARS | L48: NUMBER | N48: =AVERAGE('[69]5.2 Asset Age Profile'!$N$78:$N$79) -> 55.45 | O48: 0 | P48: 0 | Q48: 0 | R48: 0 | S48: 0 | T48: 0 | U48: 0 | V48: 0 | W48: 0 | X48: 0 | Y48: =AVERAGE('[69]5.2 Asset Age Profile'!$Y$78:$Y$79) -> 10.885 | Z48: 0 | AA48: 0 | AB48: 0 | AC48: 0 | AD48: 0 | AE48: 0 | AF48: 0 | AG48: 0 | AH48: 0 | AI48: 0 | AJ48: 263.43526 | AK48: 280.266984 | AL48: 221.872568 | AM48: 332.128039 | AN48: 372.9895147 | AO48: 128.8135338 | AP48: 264.8107918 | AQ48: 257.7836922 | AR48: 254.4607247 | AS48: 243.7112264 | AT48: 225.6925411 | AU48: 283.6632844 | AV48: 248.415074 | AW48: 180.2628818 | AX48: 193.32051 | AY48: 176.2993991 | AZ48: 114.8811485 | BA48: 81.12723377 | BB48: 42.5690368 | BC48: 78.24934805 | BD48: 99.20612294 | BE48: 160.0045506 | BF48: 134.8831554 | BG48: 108.3420714 | BH48: 148.3320848 | BI48: 247.3469225 | BJ48: 247.0514892 | BK48: 191.9406494 | BL48: 313.1863 | BM48: 240.6884411 | BN48: 217.5960022 | BO48: 163.2516394 | BP48: 120.6081299 | BQ48: 162.5259619 | BR48: 287.9035632 | BS48: 122.3467883 | BT48: 198.3673303 | BU48: 148.5957177 | BV48: 248.9059887 | BW48: 204.982168 | BX48: 164.030813 | BY48: 227.80271 | BZ48: 181.5051355 | CA48: 134.4256775 | CB48: 144.1154065 | CC48: 201.9051355 | CD48: 195.7 | CE48: 206.3 | CF48: 137.510271 | CG48: 161.7051355 | CH48: 159.9 | CI48: 92.3 | CJ48: 106.3 | CK48: 95.1 | CL48: 89.4 | CM48: 77.6 | CN48: 67.4 | CO48: 72.5 | CP48: 18.01540649 | CQ48: 22.8 | CR48: 15.8 | CS48: 22.3 | CT48: 29.7 | CU48: 23 | CV48: 36.5 | CW48: 12.8 | CX48: 7.5 | CY48: 7.2 | CZ48: 6 | DA48: 3.6 | DB48: 2 | DC48: 1.6 | DD48: 5.1 | DE48: 22 | DF48: 43.7 | DG48: 26.2 | DH48: 46.8 | DI48: 10.4 | DJ48: 7.3 | DK48: 2.4 | DL48: 5.8 | DM48: 2 | DN48: 1.5 | DO48: 0.8 | DP48: 1.3 | DQ48: 0 | DR48: 0 | DS48: 0 | DT48: 0 | DU48: 0 | DV48: 0 | DW48: 0 | DX48: 0 | DY48: 0 | DZ48: 0 | EA48: 0 | EB48: 0 | EC48: 0 | ED48: 0 | EE48: 0 | EF48: 0 | EG48: 0 | EH48: 0 | EI48: 0
A49: ED_ASS521_00039 | C49: ˂ = 11 kV ; Commercial & Industrial ; Simple Type | E49: DNSP NAME | F49: REPEX | G49: SERVICE LINES | H49: ˂ = 11 kV ; Commercial & Industrial ; Simple Type | I49: DESCRIPTOR METRIC | J49: MEAN ECONOMIC LIFE | K49: YEARS | L49: NUMBER | N49: 0 | O49: 0 | P49: DNSP NAME | Q49: REPEX | R49: SERVICE LINES | S49: ˂ = 11 kV ; COMMERCIAL & INDUSTRIAL ; SIMPLE TYPE | T49: DESCRIPTOR METRIC | U49: STANDARD DEVIATION ECONOMIC LIFE | V49: YEARS | W49: NUMBER | X49: 0 | Y49: 0 | Z49: 0 | AA49: 0 | AB49: 0 | AC49: 0 | AD49: 0 | AE49: 0 | AF49: 0 | AG49: 0 | AH49: 0 | AI49: 0 | AJ49: 0 | AK49: 0 | AL49: 0 | AM49: 0 | AN49: 0 | AO49: 0 | AP49: 0 | AQ49: 0 | AR49: 0 | AS49: 0 | AT49: 0 | AU49: 0 | AV49: 0 | AW49: 0 | AX49: 0 | AY49: 0 | AZ49: 0 | BA49: 0 | BB49: 0 | BC49: 0 | BD49: 0 | BE49: 0 | BF49: 0 | BG49: 0 | BH49: 0 | BI49: 0 | BJ49: 0 | BK49: 0 | BL49: 0 | BM49: 0 | BN49: 0 | BO49: 0 | BP49: 0 | BQ49: 0 | BR49: 0 | BS49: 0 | BT49: 0 | BU49: 0 | BV49: 0 | BW49: 0 | BX49: 0 | BY49: 0 | BZ49: 0 | CA49: 0 | CB49: 0 | CC49: 0 | CD49: 0 | CE49: 0 | CF49: 0 | CG49: 0 | CH49: 0 | CI49: 0 | CJ49: 0 | CK49: 0 | CL49: 0 | CM49: 0 | CN49: 0 | CO49: 0 | CP49: 0 | CQ49: 0 | CR49: 0 | CS49: 0 | CT49: 0 | CU49: 0 | CV49: 0 | CW49: 0 | CX49: 0 | CY49: 0 | CZ49: 0 | DA49: 0 | DB49: 0 | DC49: 0 | DD49: 0 | DE49: 0 | DF49: 0 | DG49: 0 | DH49: 0 | DI49: 0 | DJ49: 0 | DK49: 0 | DL49: 0 | DM49: 0 | DN49: 0 | DO49: 0 | DP49: 0 | DQ49: 0 | DR49: 0 | DS49: 0 | DT49: 0 | DU49: 0 | DV49: 0 | DW49: 0 | DX49: 0 | DY49: 0 | DZ49: 0 | EA49: 0 | EB49: 0 | EC49: 0 | ED49: 0 | EE49: 0 | EF49: 0 | EG49: 0 | EH49: 0 | EI49: 0
A50: ED_ASS521_00040 | C50: ˂ = 11 kV ; Residential ; Complex Type | E50: DNSP NAME | F50: REPEX | G50: SERVICE LINES | H50: ˂ = 11 kV ; Residential ; Complex Type | I50: DESCRIPTOR METRIC | J50: MEAN ECONOMIC LIFE | K50: YEARS | L50: NUMBER | N50: 0 | O50: 0 | P50: DNSP NAME | Q50: REPEX | R50: SERVICE LINES | S50: ˂ = 11 kV ; RESIDENTIAL ; COMPLEX TYPE | T50: DESCRIPTOR METRIC | U50: STANDARD DEVIATION ECONOMIC LIFE | V50: YEARS | W50: NUMBER | X50: 0 | Y50: 0 | Z50: 0 | AA50: 0 | AB50: 0 | AC50: 0 | AD50: 0 | AE50: 0 | AF50: 0 | AG50: 0 | AH50: 0 | AI50: 0 | AJ50: 0 | AK50: 0 | AL50: 0 | AM50: 0 | AN50: 0 | AO50: 0 | AP50: 0 | AQ50: 0 | AR50: 0 | AS50: 0 | AT50: 0 | AU50: 0 | AV50: 0 | AW50: 0 | AX50: 0 | AY50: 0 | AZ50: 0 | BA50: 0 | BB50: 0 | BC50: 0 | BD50: 0 | BE50: 0 | BF50: 0 | BG50: 0 | BH50: 0 | BI50: 0 | BJ50: 0 | BK50: 0 | BL50: 0 | BM50: 0 | BN50: 0 | BO50: 0 | BP50: 0 | BQ50: 0 | BR50: 0 | BS50: 0 | BT50: 0 | BU50: 0 | BV50: 0 | BW50: 0 | BX50: 0 | BY50: 0 | BZ50: 0 | CA50: 0 | CB50: 0 | CC50: 0 | CD50: 0 | CE50: 0 | CF50: 0 | CG50: 0 | CH50: 0 | CI50: 0 | CJ50: 0 | CK50: 0 | CL50: 0 | CM50: 0 | CN50: 0 | CO50: 0 | CP50: 0 | CQ50: 0 | CR50: 0 | CS50: 0 | CT50: 0 | CU50: 0 | CV50: 0 | CW50: 0 | CX50: 0 | CY50: 0 | CZ50: 0 | DA50: 0 | DB50: 0 | DC50: 0 | DD50: 0 | DE50: 0 | DF50: 0 | DG50: 0 | DH50: 0 | DI50: 0 | DJ50: 0 | DK50: 0 | DL50: 0 | DM50: 0 | DN50: 0 | DO50: 0 | DP50: 0 | DQ50: 0 | DR50: 0 | DS50: 0 | DT50: 0 | DU50: 0 | DV50: 0 | DW50: 0 | DX50: 0 | DY50: 0 | DZ50: 0 | EA50: 0 | EB50: 0 | EC50: 0 | ED50: 0 | EE50: 0 | EF50: 0 | EG50: 0 | EH50: 0 | EI50: 0
A51: ED_ASS521_00041 | C51: ˂ = 11 kV ; Commercial & Industrial ; Complex Type | N51: 0 | O51: 0 | P51: DNSP NAME | Q51: REPEX | R51: SERVICE LINES | S51: ˂ = 11 kV ; COMMERCIAL & INDUSTRIAL ; COMPLEX TYPE | T51: DESCRIPTOR METRIC | U51: STANDARD DEVIATION ECONOMIC LIFE | V51: YEARS | W51: NUMBER | X51: 0 | Y51: 0 | Z51: 0 | AA51: 0 | AB51: 0 | AC51: 0 | AD51: 0 | AE51: 0 | AF51: 0 | AG51: 0 | AH51: 0 | AI51: 0 | AJ51: 0 | AK51: 0 | AL51: 0 | AM51: 0 | AN51: 0 | AO51: 0 | AP51: 0 | AQ51: 0 | AR51: 0 | AS51: 0 | AT51: 0 | AU51: 0 | AV51: 0 | AW51: 0 | AX51: 0 | AY51: 0 | AZ51: 0 | BA51: 0 | BB51: 0 | BC51: 0 | BD51: 0 | BE51: 0 | BF51: 0 | BG51: 0 | BH51: 0 | BI51: 0 | BJ51: 0 | BK51: 0 | BL51: 0 | BM51: 0 | BN51: 0 | BO51: 0 | BP51: 0 | BQ51: 0 | BR51: 0 | BS51: 0 | BT51: 0 | BU51: 0 | BV51: 0 | BW51: 0 | BX51: 0 | BY51: 0 | BZ51: 0 | CA51: 0 | CB51: 0 | CC51: 0 | CD51: 0 | CE51: 0 | CF51: 0 | CG51: 0 | CH51: 0 | CI51: 0 | CJ51: 0 | CK51: 0 | CL51: 0 | CM51: 0 | CN51: 0 | CO51: 0 | CP51: 0 | CQ51: 0 | CR51: 0 | CS51: 0 | CT51: 0 | CU51: 0 | CV51: 0 | CW51: 0 | CX51: 0 | CY51: 0 | CZ51: 0 | DA51: 0 | DB51: 0 | DC51: 0 | DD51: 0 | DE51: 0 | DF51: 0 | DG51: 0 | DH51: 0 | DI51: 0 | DJ51: 0 | DK51: 0 | DL51: 0 | DM51: 0 | DN51: 0 | DO51: 0 | DP51: 0 | DQ51: 0 | DR51: 0 | DS51: 0 | DT51: 0 | DU51: 0 | DV51: 0 | DW51: 0 | DX51: 0 | DY51: 0 | DZ51: 0 | EA51: 0 | EB51: 0 | EC51: 0 | ED51: 0 | EE51: 0 | EF51: 0 | EG51: 0 | EH51: 0 | EI51: 0
A52: ED_ASS521_00042 | C52: ˂ = 11 kV ; Subdivision ; Complex Type | N52: 0 | O52: 0 | P52: DNSP NAME | Q52: REPEX | R52: SERVICE LINES | S52: ˂ = 11 kV ; SUBDIVISION ; COMPLEX TYPE | T52: DESCRIPTOR METRIC | U52: STANDARD DEVIATION ECONOMIC LIFE | V52: YEARS | W52: NUMBER | X52: 0 | Y52: 0 | Z52: 0 | AA52: 0 | AB52: 0 | AC52: 0 | AD52: 0 | AE52: 0 | AF52: 0 | AG52: 0 | AH52: 0 | AI52: 0 | AJ52: 0 | AK52: 0 | AL52: 0 | AM52: 0 | AN52: 0 | AO52: 0 | AP52: 0 | AQ52: 0 | AR52: 0 | AS52: 0 | AT52: 0 | AU52: 0 | AV52: 0 | AW52: 0 | AX52: 0 | AY52: 0 | AZ52: 0 | BA52: 0 | BB52: 0 | BC52: 0 | BD52: 0 | BE52: 0 | BF52: 0 | BG52: 0 | BH52: 0 | BI52: 0 | BJ52: 0 | BK52: 0 | BL52: 0 | BM52: 0 | BN52: 0 | BO52: 0 | BP52: 0 | BQ52: 0 | BR52: 0 | BS52: 0 | BT52: 0 | BU52: 0 | BV52: 0 | BW52: 0 | BX52: 0 | BY52: 0 | BZ52: 0 | CA52: 0 | CB52: 0 | CC52: 0 | CD52: 0 | CE52: 0 | CF52: 0 | CG52: 0 | CH52: 0 | CI52: 0 | CJ52: 0 | CK52: 0 | CL52: 0 | CM52: 0 | CN52: 0 | CO52: 0 | CP52: 0 | CQ52: 0 | CR52: 0 | CS52: 0 | CT52: 0 | CU52: 0 | CV52: 0 | CW52: 0 | CX52: 0 | CY52: 0 | CZ52: 0 | DA52: 0 | DB52: 0 | DC52: 0 | DD52: 0 | DE52: 0 | DF52: 0 | DG52: 0 | DH52: 0 | DI52: 0 | DJ52: 0 | DK52: 0 | DL52: 0 | DM52: 0 | DN52: 0 | DO52: 0 | DP52: 0 | DQ52: 0 | DR52: 0 | DS52: 0 | DT52: 0 | DU52: 0 | DV52: 0 | DW52: 0 | DX52: 0 | DY52: 0 | DZ52: 0 | EA52: 0 | EB52: 0 | EC52: 0 | ED52: 0 | EE52: 0 | EF52: 0 | EG52: 0 | EH52: 0 | EI52: 0
A53: ED_ASS521_00043 | C53: > 11 kV & < = 22 kV ; Commercial & Industrial | N53: 0 | O53: 0 | P53: DNSP NAME | Q53: REPEX | R53: SERVICE LINES | S53: > 11 kV & < = 22 kV ; COMMERCIAL & INDUSTRIAL | T53: DESCRIPTOR METRIC | U53: STANDARD DEVIATION ECONOMIC LIFE | V53: YEARS | W53: NUMBER | X53: 0 | Y53: 0 | Z53: 0 | AA53: 0 | AB53: 0 | AC53: 0 | AD53: 0 | AE53: 0 | AF53: 0 | AG53: 0 | AH53: 0 | AI53: 0 | AJ53: 0 | AK53: 0 | AL53: 0 | AM53: 0 | AN53: 0 | AO53: 0 | AP53: 0 | AQ53: 0 | AR53: 0 | AS53: 0 | AT53: 0 | AU53: 0 | AV53: 0 | AW53: 0 | AX53: 0 | AY53: 0 | AZ53: 0 | BA53: 0 | BB53: 0 | BC53: 0 | BD53: 0 | BE53: 0 | BF53: 0 | BG53: 0 | BH53: 0 | BI53: 0 | BJ53: 0 | BK53: 0 | BL53: 0 | BM53: 0 | BN53: 0 | BO53: 0 | BP53: 0 | BQ53: 0 | BR53: 0 | BS53: 0 | BT53: 0 | BU53: 0 | BV53: 0 | BW53: 0 | BX53: 0 | BY53: 0 | BZ53: 0 | CA53: 0 | CB53: 0 | CC53: 0 | CD53: 0 | CE53: 0 | CF53: 0 | CG53: 0 | CH53: 0 | CI53: 0 | CJ53: 0 | CK53: 0 | CL53: 0 | CM53: 0 | CN53: 0 | CO53: 0 | CP53: 0 | CQ53: 0 | CR53: 0 | CS53: 0 | CT53: 0 | CU53: 0 | CV53: 0 | CW53: 0 | CX53: 0 | CY53: 0 | CZ53: 0 | DA53: 0 | DB53: 0 | DC53: 0 | DD53: 0 | DE53: 0 | DF53: 0 | DG53: 0 | DH53: 0 | DI53: 0 | DJ53: 0 | DK53: 0 | DL53: 0 | DM53: 0 | DN53: 0 | DO53: 0 | DP53: 0 | DQ53: 0 | DR53: 0 | DS53: 0 | DT53: 0 | DU53: 0 | DV53: 0 | DW53: 0 | DX53: 0 | DY53: 0 | DZ53: 0 | EA53: 0 | EB53: 0 | EC53: 0 | ED53: 0 | EE53: 0 | EF53: 0 | EG53: 0 | EH53: 0 | EI53: 0
A54: ED_ASS521_00044 | C54: > 11 kV & < = 22 kV ; Subdivision | N54: 0 | O54: 0 | P54: DNSP NAME | Q54: REPEX | R54: SERVICE LINES | S54: > 11 kV & < = 22 kV ; SUBDIVISION | T54: DESCRIPTOR METRIC | U54: STANDARD DEVIATION ECONOMIC LIFE | V54: YEARS | W54: NUMBER | X54: 0 | Y54: 0 | Z54: 0 | AA54: 0 | AB54: 0 | AC54: 0 | AD54: 0 | AE54: 0 | AF54: 0 | AG54: 0 | AH54: 0 | AI54: 0 | AJ54: 0 | AK54: 0 | AL54: 0 | AM54: 0 | AN54: 0 | AO54: 0 | AP54: 0 | AQ54: 0 | AR54: 0 | AS54: 0 | AT54: 0 | AU54: 0 | AV54: 0 | AW54: 0 | AX54: 0 | AY54: 0 | AZ54: 0 | BA54: 0 | BB54: 0 | BC54: 0 | BD54: 0 | BE54: 0 | BF54: 0 | BG54: 0 | BH54: 0 | BI54: 0 | BJ54: 0 | BK54: 0 | BL54: 0 | BM54: 0 | BN54: 0 | BO54: 0 | BP54: 0 | BQ54: 0 | BR54: 0 | BS54: 0 | BT54: 0 | BU54: 0 | BV54: 0 | BW54: 0 | BX54: 0 | BY54: 0 | BZ54: 0 | CA54: 0 | CB54: 0 | CC54: 0 | CD54: 0 | CE54: 0 | CF54: 0 | CG54: 0 | CH54: 0 | CI54: 0 | CJ54: 0 | CK54: 0 | CL54: 0 | CM54: 0 | CN54: 0 | CO54: 0 | CP54: 0 | CQ54: 0 | CR54: 0 | CS54: 0 | CT54: 0 | CU54: 0 | CV54: 0 | CW54: 0 | CX54: 0 | CY54: 0 | CZ54: 0 | DA54: 0 | DB54: 0 | DC54: 0 | DD54: 0 | DE54: 0 | DF54: 0 | DG54: 0 | DH54: 0 | DI54: 0 | DJ54: 0 | DK54: 0 | DL54: 0 | DM54: 0 | DN54: 0 | DO54: 0 | DP54: 0 | DQ54: 0 | DR54: 0 | DS54: 0 | DT54: 0 | DU54: 0 | DV54: 0 | DW54: 0 | DX54: 0 | DY54: 0 | DZ54: 0 | EA54: 0 | EB54: 0 | EC54: 0 | ED54: 0 | EE54: 0 | EF54: 0 | EG54: 0 | EH54: 0 | EI54: 0
A55: ED_ASS521_00045 | C55: > 22 kV & < = 33 kV ; Commercial & Industrial | N55: 0 | O55: 0 | P55: DNSP NAME | Q55: REPEX | R55: SERVICE LINES | S55: > 22 kV & < = 33 kV ; COMMERCIAL & INDUSTRIAL | T55: DESCRIPTOR METRIC | U55: STANDARD DEVIATION ECONOMIC LIFE | V55: YEARS | W55: NUMBER | X55: 0 | Y55: 0 | Z55: 0 | AA55: 0 | AB55: 0 | AC55: 0 | AD55: 0 | AE55: 0 | AF55: 0 | AG55: 0 | AH55: 0 | AI55: 0 | AJ55: 0 | AK55: 0 | AL55: 0 | AM55: 0 | AN55: 0 | AO55: 0 | AP55: 0 | AQ55: 0 | AR55: 0 | AS55: 0 | AT55: 0 | AU55: 0 | AV55: 0 | AW55: 0 | AX55: 0 | AY55: 0 | AZ55: 0 | BA55: 0 | BB55: 0 | BC55: 0 | BD55: 0 | BE55: 0 | BF55: 0 | BG55: 0 | BH55: 0 | BI55: 0 | BJ55: 0 | BK55: 0 | BL55: 0 | BM55: 0 | BN55: 0 | BO55: 0 | BP55: 0 | BQ55: 0 | BR55: 0 | BS55: 0 | BT55: 0 | BU55: 0 | BV55: 0 | BW55: 0 | BX55: 0 | BY55: 0 | BZ55: 0 | CA55: 0 | CB55: 0 | CC55: 0 | CD55: 0 | CE55: 0 | CF55: 0 | CG55: 0 | CH55: 0 | CI55: 0 | CJ55: 0 | CK55: 0 | CL55: 0 | CM55: 0 | CN55: 0 | CO55: 0 | CP55: 0 | CQ55: 0 | CR55: 0 | CS55: 0 | CT55: 0 | CU55: 0 | CV55: 0 | CW55: 0 | CX55: 0 | CY55: 0 | CZ55: 0 | DA55: 0 | DB55: 0 | DC55: 0 | DD55: 0 | DE55: 0 | DF55: 0 | DG55: 0 | DH55: 0 | DI55: 0 | DJ55: 0 | DK55: 0 | DL55: 0 | DM55: 0 | DN55: 0 | DO55: 0 | DP55: 0 | DQ55: 0 | DR55: 0 | DS55: 0 | DT55: 0 | DU55: 0 | DV55: 0 | DW55: 0 | DX55: 0 | DY55: 0 | DZ55: 0 | EA55: 0 | EB55: 0 | EC55: 0 | ED55: 0 | EE55: 0 | EF55: 0 | EG55: 0 | EH55: 0 | EI55: 0
A56: ED_ASS521_00046 | C56: > 22 kV & < = 33 kV ; Subdivision | N56: 0 | O56: 0 | P56: DNSP NAME | Q56: REPEX | R56: SERVICE LINES | S56: > 22 kV & < = 33 kV ; SUBDIVISION | T56: DESCRIPTOR METRIC | U56: STANDARD DEVIATION ECONOMIC LIFE | V56: YEARS | W56: NUMBER | X56: 0 | Y56: 0 | Z56: 0 | AA56: 0 | AB56: 0 | AC56: 0 | AD56: 0 | AE56: 0 | AF56: 0 | AG56: 0 | AH56: 0 | AI56: 0 | AJ56: 0 | AK56: 0 | AL56: 0 | AM56: 0 | AN56: 0 | AO56: 0 | AP56: 0 | AQ56: 0 | AR56: 0 | AS56: 0 | AT56: 0 | AU56: 0 | AV56: 0 | AW56: 0 | AX56: 0 | AY56: 0 | AZ56: 0 | BA56: 0 | BB56: 0 | BC56: 0 | BD56: 0 | BE56: 0 | BF56: 0 | BG56: 0 | BH56: 0 | BI56: 0 | BJ56: 0 | BK56: 0 | BL56: 0 | BM56: 0 | BN56: 0 | BO56: 0 | BP56: 0 | BQ56: 0 | BR56: 0 | BS56: 0 | BT56: 0 | BU56: 0 | BV56: 0 | BW56: 0 | BX56: 0 | BY56: 0 | BZ56: 0 | CA56: 0 | CB56: 0 | CC56: 0 | CD56: 0 | CE56: 0 | CF56: 0 | CG56: 0 | CH56: 0 | CI56: 0 | CJ56: 0 | CK56: 0 | CL56: 0 | CM56: 0 | CN56: 0 | CO56: 0 | CP56: 0 | CQ56: 0 | CR56: 0 | CS56: 0 | CT56: 0 | CU56: 0 | CV56: 0 | CW56: 0 | CX56: 0 | CY56: 0 | CZ56: 0 | DA56: 0 | DB56: 0 | DC56: 0 | DD56: 0 | DE56: 0 | DF56: 0 | DG56: 0 | DH56: 0 | DI56: 0 | DJ56: 0 | DK56: 0 | DL56: 0 | DM56: 0 | DN56: 0 | DO56: 0 | DP56: 0 | DQ56: 0 | DR56: 0 | DS56: 0 | DT56: 0 | DU56: 0 | DV56: 0 | DW56: 0 | DX56: 0 | DY56: 0 | DZ56: 0 | EA56: 0 | EB56: 0 | EC56: 0 | ED56: 0 | EE56: 0 | EF56: 0 | EG56: 0 | EH56: 0 | EI56: 0
A57: ED_ASS521_00047 | C57: > 33 kV & < = 66 kV ; Commercial & Industrial | N57: 0 | O57: 0 | P57: DNSP NAME | Q57: REPEX | R57: SERVICE LINES | S57: > 33 kV & < = 66 kV ; COMMERCIAL & INDUSTRIAL | T57: DESCRIPTOR METRIC | U57: STANDARD DEVIATION ECONOMIC LIFE | V57: YEARS | W57: NUMBER | X57: 0 | Y57: 0 | Z57: 0 | AA57: 0 | AB57: 0 | AC57: 0 | AD57: 0 | AE57: 0 | AF57: 0 | AG57: 0 | AH57: 0 | AI57: 0 | AJ57: 0 | AK57: 0 | AL57: 0 | AM57: 0 | AN57: 0 | AO57: 0 | AP57: 0 | AQ57: 0 | AR57: 0 | AS57: 0 | AT57: 0 | AU57: 0 | AV57: 0 | AW57: 0 | AX57: 0 | AY57: 0 | AZ57: 0 | BA57: 0 | BB57: 0 | BC57: 0 | BD57: 0 | BE57: 0 | BF57: 0 | BG57: 0 | BH57: 0 | BI57: 0 | BJ57: 0 | BK57: 0 | BL57: 0 | BM57: 0 | BN57: 0 | BO57: 0 | BP57: 0 | BQ57: 0 | BR57: 0 | BS57: 0 | BT57: 0 | BU57: 0 | BV57: 0 | BW57: 0 | BX57: 0 | BY57: 0 | BZ57: 0 | CA57: 0 | CB57: 0 | CC57: 0 | CD57: 0 | CE57: 0 | CF57: 0 | CG57: 0 | CH57: 0 | CI57: 0 | CJ57: 0 | CK57: 0 | CL57: 0 | CM57: 0 | CN57: 0 | CO57: 0 | CP57: 0 | CQ57: 0 | CR57: 0 | CS57: 0 | CT57: 0 | CU57: 0 | CV57: 0 | CW57: 0 | CX57: 0 | CY57: 0 | CZ57: 0 | DA57: 0 | DB57: 0 | DC57: 0 | DD57: 0 | DE57: 0 | DF57: 0 | DG57: 0 | DH57: 0 | DI57: 0 | DJ57: 0 | DK57: 0 | DL57: 0 | DM57: 0 | DN57: 0 | DO57: 0 | DP57: 0 | DQ57: 0 | DR57: 0 | DS57: 0 | DT57: 0 | DU57: 0 | DV57: 0 | DW57: 0 | DX57: 0 | DY57: 0 | DZ57: 0 | EA57: 0 | EB57: 0 | EC57: 0 | ED57: 0 | EE57: 0 | EF57: 0 | EG57: 0 | EH57: 0 | EI57: 0
A58: ED_ASS521_00048 | C58: > 33 kV & < = 66 kV ; Subdivision | N58: 0 | O58: 0 | P58: DNSP NAME | Q58: REPEX | R58: SERVICE LINES | S58: > 33 kV & < = 66 kV ; SUBDIVISION | T58: DESCRIPTOR METRIC | U58: STANDARD DEVIATION ECONOMIC LIFE | V58: YEARS | W58: NUMBER | X58: 0 | Y58: 0 | Z58: 0 | AA58: 0 | AB58: 0 | AC58: 0 | AD58: 0 | AE58: 0 | AF58: 0 | AG58: 0 | AH58: 0 | AI58: 0 | AJ58: 0 | AK58: 0 | AL58: 0 | AM58: 0 | AN58: 0 | AO58: 0 | AP58: 0 | AQ58: 0 | AR58: 0 | AS58: 0 | AT58: 0 | AU58: 0 | AV58: 0 | AW58: 0 | AX58: 0 | AY58: 0 | AZ58: 0 | BA58: 0 | BB58: 0 | BC58: 0 | BD58: 0 | BE58: 0 | BF58: 0 | BG58: 0 | BH58: 0 | BI58: 0 | BJ58: 0 | BK58: 0 | BL58: 0 | BM58: 0 | BN58: 0 | BO58: 0 | BP58: 0 | BQ58: 0 | BR58: 0 | BS58: 0 | BT58: 0 | BU58: 0 | BV58: 0 | BW58: 0 | BX58: 0 | BY58: 0 | BZ58: 0 | CA58: 0 | CB58: 0 | CC58: 0 | CD58: 0 | CE58: 0 | CF58: 0 | CG58: 0 | CH58: 0 | CI58: 0 | CJ58: 0 | CK58: 0 | CL58: 0 | CM58: 0 | CN58: 0 | CO58: 0 | CP58: 0 | CQ58: 0 | CR58: 0 | CS58: 0 | CT58: 0 | CU58: 0 | CV58: 0 | CW58: 0 | CX58: 0 | CY58: 0 | CZ58: 0 | DA58: 0 | DB58: 0 | DC58: 0 | DD58: 0 | DE58: 0 | DF58: 0 | DG58: 0 | DH58: 0 | DI58: 0 | DJ58: 0 | DK58: 0 | DL58: 0 | DM58: 0 | DN58: 0 | DO58: 0 | DP58: 0 | DQ58: 0 | DR58: 0 | DS58: 0 | DT58: 0 | DU58: 0 | DV58: 0 | DW58: 0 | DX58: 0 | DY58: 0 | DZ58: 0 | EA58: 0 | EB58: 0 | EC58: 0 | ED58: 0 | EE58: 0 | EF58: 0 | EG58: 0 | EH58: 0 | EI58: 0
A59: ED_ASS521_00049 | C59: > 66 kV & < = 132 kV ; Commercial & Industrial | N59: 0 | O59: 0 | P59: DNSP NAME | Q59: REPEX | R59: SERVICE LINES | S59: > 66 kV & < = 132 kV ; COMMERCIAL & INDUSTRIAL | T59: DESCRIPTOR METRIC | U59: STANDARD DEVIATION ECONOMIC LIFE | V59: YEARS | W59: NUMBER | X59: 0 | Y59: 0 | Z59: 0 | AA59: 0 | AB59: 0 | AC59: 0 | AD59: 0 | AE59: 0 | AF59: 0 | AG59: 0 | AH59: 0 | AI59: 0 | AJ59: 0 | AK59: 0 | AL59: 0 | AM59: 0 | AN59: 0 | AO59: 0 | AP59: 0 | AQ59: 0 | AR59: 0 | AS59: 0 | AT59: 0 | AU59: 0 | AV59: 0 | AW59: 0 | AX59: 0 | AY59: 0 | AZ59: 0 | BA59: 0 | BB59: 0 | BC59: 0 | BD59: 0 | BE59: 0 | BF59: 0 | BG59: 0 | BH59: 0 | BI59: 0 | BJ59: 0 | BK59: 0 | BL59: 0 | BM59: 0 | BN59: 0 | BO59: 0 | BP59: 0 | BQ59: 0 | BR59: 0 | BS59: 0 | BT59: 0 | BU59: 0 | BV59: 0 | BW59: 0 | BX59: 0 | BY59: 0 | BZ59: 0 | CA59: 0 | CB59: 0 | CC59: 0 | CD59: 0 | CE59: 0 | CF59: 0 | CG59: 0 | CH59: 0 | CI59: 0 | CJ59: 0 | CK59: 0 | CL59: 0 | CM59: 0 | CN59: 0 | CO59: 0 | CP59: 0 | CQ59: 0 | CR59: 0 | CS59: 0 | CT59: 0 | CU59: 0 | CV59: 0 | CW59: 0 | CX59: 0 | CY59: 0 | CZ59: 0 | DA59: 0 | DB59: 0 | DC59: 0 | DD59: 0 | DE59: 0 | DF59: 0 | DG59: 0 | DH59: 0 | DI59: 0 | DJ59: 0 | DK59: 0 | DL59: 0 | DM59: 0 | DN59: 0 | DO59: 0 | DP59: 0 | DQ59: 0 | DR59: 0 | DS59: 0 | DT59: 0 | DU59: 0 | DV59: 0 | DW59: 0 | DX59: 0 | DY59: 0 | DZ59: 0 | EA59: 0 | EB59: 0 | EC59: 0 | ED59: 0 | EE59: 0 | EF59: 0 | EG59: 0 | EH59: 0 | EI59: 0
A60: ED_ASS521_00050 | C60: > 66 kV & < = 132 kV ; Subdivision | N60: 0 | O60: 0 | P60: DNSP NAME | Q60: REPEX | R60: SERVICE LINES | S60: > 66 kV & < = 132 kV ; SUBDIVISION | T60: DESCRIPTOR METRIC | U60: STANDARD DEVIATION ECONOMIC LIFE | V60: YEARS | W60: NUMBER | X60: 0 | Y60: 0 | Z60: 0 | AA60: 0 | AB60: 0 | AC60: 0 | AD60: 0 | AE60: 0 | AF60: 0 | AG60: 0 | AH60: 0 | AI60: 0 | AJ60: 0 | AK60: 0 | AL60: 0 | AM60: 0 | AN60: 0 | AO60: 0 | AP60: 0 | AQ60: 0 | AR60: 0 | AS60: 0 | AT60: 0 | AU60: 0 | AV60: 0 | AW60: 0 | AX60: 0 | AY60: 0 | AZ60: 0 | BA60: 0 | BB60: 0 | BC60: 0 | BD60: 0 | BE60: 0 | BF60: 0 | BG60: 0 | BH60: 0 | BI60: 0 | BJ60: 0 | BK60: 0 | BL60: 0 | BM60: 0 | BN60: 0 | BO60: 0 | BP60: 0 | BQ60: 0 | BR60: 0 | BS60: 0 | BT60: 0 | BU60: 0 | BV60: 0 | BW60: 0 | BX60: 0 | BY60: 0 | BZ60: 0 | CA60: 0 | CB60: 0 | CC60: 0 | CD60: 0 | CE60: 0 | CF60: 0 | CG60: 0 | CH60: 0 | CI60: 0 | CJ60: 0 | CK60: 0 | CL60: 0 | CM60: 0 | CN60: 0 | CO60: 0 | CP60: 0 | CQ60: 0 | CR60: 0 | CS60: 0 | CT60: 0 | CU60: 0 | CV60: 0 | CW60: 0 | CX60: 0 | CY60: 0 | CZ60: 0 | DA60: 0 | DB60: 0 | DC60: 0 | DD60: 0 | DE60: 0 | DF60: 0 | DG60: 0 | DH60: 0 | DI60: 0 | DJ60: 0 | DK60: 0 | DL60: 0 | DM60: 0 | DN60: 0 | DO60: 0 | DP60: 0 | DQ60: 0 | DR60: 0 | DS60: 0 | DT60: 0 | DU60: 0 | DV60: 0 | DW60: 0 | DX60: 0 | DY60: 0 | DZ60: 0 | EA60: 0 | EB60: 0 | EC60: 0 | ED60: 0 | EE60: 0 | EF60: 0 | EG60: 0 | EH60: 0 | EI60: 0
A61: ED_ASS521_00051 | C61: > 132 kV ; Commercial & Industrial | N61: 0 | O61: 0 | P61: DNSP NAME | Q61: REPEX | R61: SERVICE LINES | S61: > 132 kV ; COMMERCIAL & INDUSTRIAL | T61: DESCRIPTOR METRIC | U61: STANDARD DEVIATION ECONOMIC LIFE | V61: YEARS | W61: NUMBER | X61: 0 | Y61: 0 | Z61: 0 | AA61: 0 | AB61: 0 | AC61: 0 | AD61: 0 | AE61: 0 | AF61: 0 | AG61: 0 | AH61: 0 | AI61: 0 | AJ61: 0 | AK61: 0 | AL61: 0 | AM61: 0 | AN61: 0 | AO61: 0 | AP61: 0 | AQ61: 0 | AR61: 0 | AS61: 0 | AT61: 0 | AU61: 0 | AV61: 0 | AW61: 0 | AX61: 0 | AY61: 0 | AZ61: 0 | BA61: 0 | BB61: 0 | BC61: 0 | BD61: 0 | BE61: 0 | BF61: 0 | BG61: 0 | BH61: 0 | BI61: 0 | BJ61: 0 | BK61: 0 | BL61: 0 | BM61: 0 | BN61: 0 | BO61: 0 | BP61: 0 | BQ61: 0 | BR61: 0 | BS61: 0 | BT61: 0 | BU61: 0 | BV61: 0 | BW61: 0 | BX61: 0 | BY61: 0 | BZ61: 0 | CA61: 0 | CB61: 0 | CC61: 0 | CD61: 0 | CE61: 0 | CF61: 0 | CG61: 0 | CH61: 0 | CI61: 0 | CJ61: 0 | CK61: 0 | CL61: 0 | CM61: 0 | CN61: 0 | CO61: 0 | CP61: 0 | CQ61: 0 | CR61: 0 | CS61: 0 | CT61: 0 | CU61: 0 | CV61: 0 | CW61: 0 | CX61: 0 | CY61: 0 | CZ61: 0 | DA61: 0 | DB61: 0 | DC61: 0 | DD61: 0 | DE61: 0 | DF61: 0 | DG61: 0 | DH61: 0 | DI61: 0 | DJ61: 0 | DK61: 0 | DL61: 0 | DM61: 0 | DN61: 0 | DO61: 0 | DP61: 0 | DQ61: 0 | DR61: 0 | DS61: 0 | DT61: 0 | DU61: 0 | DV61: 0 | DW61: 0 | DX61: 0 | DY61: 0 | DZ61: 0 | EA61: 0 | EB61: 0 | EC61: 0 | ED61: 0 | EE61: 0 | EF61: 0 | EG61: 0 | EH61: 0 | EI61: 0
A62: ED_ASS521_00052 | C62: > 132 kV ; Subdivision | N62: 0 | O62: 0 | P62: DNSP NAME | Q62: REPEX | R62: SERVICE LINES | S62: > 132 kV ; SUBDIVISION | T62: DESCRIPTOR METRIC | U62: STANDARD DEVIATION ECONOMIC LIFE | V62: YEARS | W62: NUMBER | X62: 0 | Y62: 0 | Z62: 0 | AA62: 0 | AB62: 0 | AC62: 0 | AD62: 0 | AE62: 0 | AF62: 0 | AG62: 0 | AH62: 0 | AI62: 0 | AJ62: 0 | AK62: 0 | AL62: 0 | AM62: 0 | AN62: 0 | AO62: 0 | AP62: 0 | AQ62: 0 | AR62: 0 | AS62: 0 | AT62: 0 | AU62: 0 | AV62: 0 | AW62: 0 | AX62: 0 | AY62: 0 | AZ62: 0 | BA62: 0 | BB62: 0 | BC62: 0 | BD62: 0 | BE62: 0 | BF62: 0 | BG62: 0 | BH62: 0 | BI62: 0 | BJ62: 0 | BK62: 0 | BL62: 0 | BM62: 0 | BN62: 0 | BO62: 0 | BP62: 0 | BQ62: 0 | BR62: 0 | BS62: 0 | BT62: 0 | BU62: 0 | BV62: 0 | BW62: 0 | BX62: 0 | BY62: 0 | BZ62: 0 | CA62: 0 | CB62: 0 | CC62: 0 | CD62: 0 | CE62: 0 | CF62: 0 | CG62: 0 | CH62: 0 | CI62: 0 | CJ62: 0 | CK62: 0 | CL62: 0 | CM62: 0 | CN62: 0 | CO62: 0 | CP62: 0 | CQ62: 0 | CR62: 0 | CS62: 0 | CT62: 0 | CU62: 0 | CV62: 0 | CW62: 0 | CX62: 0 | CY62: 0 | CZ62: 0 | DA62: 0 | DB62: 0 | DC62: 0 | DD62: 0 | DE62: 0 | DF62: 0 | DG62: 0 | DH62: 0 | DI62: 0 | DJ62: 0 | DK62: 0 | DL62: 0 | DM62: 0 | DN62: 0 | DO62: 0 | DP62: 0 | DQ62: 0 | DR62: 0 | DS62: 0 | DT62: 0 | DU62: 0 | DV62: 0 | DW62: 0 | DX62: 0 | DY62: 0 | DZ62: 0 | EA62: 0 | EB62: 0 | EC62: 0 | ED62: 0 | EE62: 0 | EF62: 0 | EG62: 0 | EH62: 0 | EI62: 0
A63: ED_ASS521_99003 | C63: Other | E63: DNSP NAME | F63: REPEX | G63: SERVICE LINES | H63: Other | I63: DESCRIPTOR METRIC | J63: MEAN ECONOMIC LIFE | K63: YEARS | L63: NUMBER | N63: 0 | O63: 0 | P63: DNSP NAME | Q63: REPEX | R63: SERVICE LINES | S63: LV UNDERGROUND SERVICE CABLE | T63: DESCRIPTOR METRIC | U63: STANDARD DEVIATION ECONOMIC LIFE | V63: YEARS | W63: NUMBER | X63: 0 | Y63: 0 | Z63: 0 | AA63: 0 | AB63: 0 | AC63: 0 | AD63: 0 | AE63: 0 | AF63: 0 | AG63: 0 | AH63: 0 | AI63: 0 | AJ63: 0 | AK63: 0 | AL63: 0 | AM63: 0 | AN63: 0 | AO63: 0 | AP63: 0 | AQ63: 0 | AR63: 0 | AS63: 0 | AT63: 0 | AU63: 0 | AV63: 0 | AW63: 0 | AX63: 0 | AY63: 0 | AZ63: 0 | BA63: 0 | BB63: 0 | BC63: 0 | BD63: 0 | BE63: 0 | BF63: 0 | BG63: 0 | BH63: 0 | BI63: 0 | BJ63: 0 | BK63: 0 | BL63: 0 | BM63: 0 | BN63: 0 | BO63: 0 | BP63: 0 | BQ63: 0 | BR63: 0 | BS63: 0 | BT63: 0 | BU63: 0 | BV63: 0 | BW63: 0 | BX63: 0 | BY63: 0 | BZ63: 0 | CA63: 0 | CB63: 0 | CC63: 0 | CD63: 0 | CE63: 0 | CF63: 0 | CG63: 0 | CH63: 0 | CI63: 0 | CJ63: 0 | CK63: 0 | CL63: 0 | CM63: 0 | CN63: 0 | CO63: 0 | CP63: 0 | CQ63: 0 | CR63: 0 | CS63: 0 | CT63: 0 | CU63: 0 | CV63: 0 | CW63: 0 | CX63: 0 | CY63: 0 | CZ63: 0 | DA63: 0 | DB63: 0 | DC63: 0 | DD63: 0 | DE63: 0 | DF63: 0 | DG63: 0 | DH63: 0 | DI63: 0 | DJ63: 0 | DK63: 0 | DL63: 0 | DM63: 0 | DN63: 0 | DO63: 0 | DP63: 0 | DQ63: 0 | DR63: 0 | DS63: 0 | DT63: 0 | DU63: 0 | DV63: 0 | DW63: 0 | DX63: 0 | DY63: 0 | DZ63: 0 | EA63: 0 | EB63: 0 | EC63: 0 | ED63: 0 | EE63: 0 | EF63: 0 | EG63: 0 | EH63: 0 | EI63: 0
A64: ED_ASS521_00054 | B64: TRANSFORMERS BY: MOUNTING TYPE; HIGHEST OPERATING VOLTAGE ; AMPERE RATING; NUMBER OF PHASES (AT LV) | C64: Pole Mounted ; < = 22kV ; < = 60 kVA ; Single Phase | E64: DNSP NAME | F64: REPEX | G64: TRANSFORMERS | H64: Pole Mounted ; < = 22kV ; < = 60 kVA ; Single Phase | I64: DESCRIPTOR METRIC | J64: MEAN ECONOMIC LIFE | K64: YEARS | L64: NUMBER | N64: 45 | O64: 0 | P64: DNSP NAME | Q64: REPEX | R64: TRANSFORMERS | S64: POLE MOUNTED ; < = 22kV ; < = 60 kVA ; SINGLE PHASE | T64: DESCRIPTOR METRIC | U64: STANDARD DEVIATION ECONOMIC LIFE | V64: YEARS | W64: NUMBER | X64: 0 | Y64: 8.7 | Z64: 0 | AA64: 0 | AB64: 0 | AC64: 0 | AD64: 0 | AE64: 0 | AF64: 0 | AG64: 0 | AH64: 0 | AI64: 0 | AJ64: 459 | AK64: 580 | AL64: 301 | AM64: 551 | AN64: 542 | AO64: 322 | AP64: 750 | AQ64: 933 | AR64: 979 | AS64: 832 | AT64: 690 | AU64: 712 | AV64: 660 | AW64: 729 | AX64: 632 | AY64: 646 | AZ64: 693 | BA64: 581 | BB64: 581 | BC64: 588 | BD64: 642 | BE64: 706 | BF64: 688 | BG64: 773 | BH64: 871 | BI64: 1031 | BJ64: 1145 | BK64: 986 | BL64: 935 | BM64: 1026 | BN64: 861 | BO64: 703 | BP64: 743 | BQ64: 825 | BR64: 804 | BS64: 776 | BT64: 631 | BU64: 622 | BV64: 866 | BW64: 372 | BX64: 277 | BY64: 331 | BZ64: 269 | CA64: 234 | CB64: 435 | CC64: 479 | CD64: 500 | CE64: 548 | CF64: 608 | CG64: 546 | CH64: 517 | CI64: 311 | CJ64: 269 | CK64: 231 | CL64: 201 | CM64: 126 | CN64: 144 | CO64: 93 | CP64: 78 | CQ64: 53 | CR64: 35 | CS64: 34 | CT64: 23 | CU64: 8 | CV64: 3 | CW64: 0 | CX64: 0 | CY64: 0 | CZ64: 0 | DA64: 0 | DB64: 0 | DC64: 0 | DD64: 0 | DE64: 0 | DF64: 0 | DG64: 0 | DH64: 0 | DI64: 0 | DJ64: 0 | DK64: 0 | DL64: 0 | DM64: 0 | DN64: 0 | DO64: 0 | DP64: 0 | DQ64: 0 | DR64: 0 | DS64: 0 | DT64: 0 | DU64: 0 | DV64: 0 | DW64: 0 | DX64: 0 | DY64: 0 | DZ64: 0 | EA64: 0 | EB64: 0 | EC64: 0 | ED64: 0 | EE64: 0 | EF64: 0 | EG64: 0 | EH64: 0 | EI64: 0
A65: ED_ASS521_00055 | C65: Pole Mounted ; < = 22kV ; > 60 kVA and < = 600 kVA ; Single Phase | E65: DNSP NAME | F65: REPEX | G65: TRANSFORMERS | H65: Pole Mounted ; < = 22kV ; > 60 kVA and < = 600 kVA ; Single Phase | I65: DESCRIPTOR METRIC | J65: MEAN ECONOMIC LIFE | K65: YEARS | L65: NUMBER | N65: 45 | O65: 0 | P65: DNSP NAME | Q65: REPEX | R65: TRANSFORMERS | S65: POLE MOUNTED ; < = 22kV ; > 60 kVA AND < = 600 kVA ; SINGLE PHASE | T65: DESCRIPTOR METRIC | U65: STANDARD DEVIATION ECONOMIC LIFE | V65: YEARS | W65: NUMBER | X65: 0 | Y65: 8.7 | Z65: 0 | AA65: 0 | AB65: 0 | AC65: 0 | AD65: 0 | AE65: 0 | AF65: 0 | AG65: 0 | AH65: 0 | AI65: 0 | AJ65: 26 | AK65: 16 | AL65: 8 | AM65: 15 | AN65: 15 | AO65: 9 | AP65: 21 | AQ65: 26 | AR65: 27 | AS65: 23 | AT65: 19 | AU65: 20 | AV65: 18 | AW65: 20 | AX65: 18 | AY65: 18 | AZ65: 19 | BA65: 16 | BB65: 16 | BC65: 16 | BD65: 18 | BE65: 20 | BF65: 19 | BG65: 22 | BH65: 24 | BI65: 29 | BJ65: 32 | BK65: 27 | BL65: 26 | BM65: 29 | BN65: 24 | BO65: 20 | BP65: 21 | BQ65: 23 | BR65: 22 | BS65: 22 | BT65: 18 | BU65: 17 | BV65: 24 | BW65: 10 | BX65: 8 | BY65: 9 | BZ65: 7 | CA65: 7 | CB65: 12 | CC65: 13 | CD65: 14 | CE65: 15 | CF65: 17 | CG65: 15 | CH65: 14 | CI65: 9 | CJ65: 7 | CK65: 6 | CL65: 6 | CM65: 4 | CN65: 4 | CO65: 3 | CP65: 2 | CQ65: 1 | CR65: 1 | CS65: 1 | CT65: 1 | CU65: 0 | CV65: 0 | CW65: 0 | CX65: 0 | CY65: 0 | CZ65: 0 | DA65: 0 | DB65: 0 | DC65: 0 | DD65: 0 | DE65: 0 | DF65: 0 | DG65: 0 | DH65: 0 | DI65: 0 | DJ65: 0 | DK65: 0 | DL65: 0 | DM65: 0 | DN65: 0 | DO65: 0 | DP65: 0 | DQ65: 0 | DR65: 0 | DS65: 0 | DT65: 0 | DU65: 0 | DV65: 0 | DW65: 0 | DX65: 0 | DY65: 0 | DZ65: 0 | EA65: 0 | EB65: 0 | EC65: 0 | ED65: 0 | EE65: 0 | EF65: 0 | EG65: 0 | EH65: 0 | EI65: 0
A66: ED_ASS521_00056 | C66: Pole Mounted ; < = 22kV ; > 600 kVA ; Single Phase | E66: DNSP NAME | F66: REPEX | G66: TRANSFORMERS | H66: Pole Mounted ; < = 22kV ; > 600 kVA ; Single Phase | I66: DESCRIPTOR METRIC | J66: MEAN ECONOMIC LIFE | K66: YEARS | L66: NUMBER | N66: 0 | O66: 0 | P66: DNSP NAME | Q66: REPEX | R66: TRANSFORMERS | S66: POLE MOUNTED ; < = 22kV ; > 600 kVA ; SINGLE PHASE | T66: DESCRIPTOR METRIC | U66: STANDARD DEVIATION ECONOMIC LIFE | V66: YEARS | W66: NUMBER | X66: 0 | Y66: 0 | Z66: 0 | AA66: 0 | AB66: 0 | AC66: 0 | AD66: 0 | AE66: 0 | AF66: 0 | AG66: 0 | AH66: 0 | AI66: 0 | AJ66: 0 | AK66: 0 | AL66: 0 | AM66: 0 | AN66: 0 | AO66: 0 | AP66: 0 | AQ66: 0 | AR66: 0 | AS66: 0 | AT66: 0 | AU66: 0 | AV66: 0 | AW66: 0 | AX66: 0 | AY66: 0 | AZ66: 0 | BA66: 0 | BB66: 0 | BC66: 0 | BD66: 0 | BE66: 0 | BF66: 0 | BG66: 0 | BH66: 0 | BI66: 0 | BJ66: 0 | BK66: 0 | BL66: 0 | BM66: 0 | BN66: 0 | BO66: 0 | BP66: 0 | BQ66: 0 | BR66: 0 | BS66: 0 | BT66: 0 | BU66: 0 | BV66: 0 | BW66: 0 | BX66: 0 | BY66: 0 | BZ66: 0 | CA66: 0 | CB66: 0 | CC66: 0 | CD66: 0 | CE66: 0 | CF66: 0 | CG66: 0 | CH66: 0 | CI66: 0 | CJ66: 0 | CK66: 0 | CL66: 0 | CM66: 0 | CN66: 0 | CO66: 0 | CP66: 0 | CQ66: 0 | CR66: 0 | CS66: 0 | CT66: 0 | CU66: 0 | CV66: 0 | CW66: 0 | CX66: 0 | CY66: 0 | CZ66: 0 | DA66: 0 | DB66: 0 | DC66: 0 | DD66: 0 | DE66: 0 | DF66: 0 | DG66: 0 | DH66: 0 | DI66: 0 | DJ66: 0 | DK66: 0 | DL66: 0 | DM66: 0 | DN66: 0 | DO66: 0 | DP66: 0 | DQ66: 0 | DR66: 0 | DS66: 0 | DT66: 0 | DU66: 0 | DV66: 0 | DW66: 0 | DX66: 0 | DY66: 0 | DZ66: 0 | EA66: 0 | EB66: 0 | EC66: 0 | ED66: 0 | EE66: 0 | EF66: 0 | EG66: 0 | EH66: 0 | EI66: 0
A67: ED_ASS521_00057 | C67: Pole Mounted ; < = 22kV ; < = 60 kVA ; Multiple Phase | E67: DNSP NAME | F67: REPEX | G67: TRANSFORMERS | H67: Pole Mounted ; < = 22kV ; < = 60 kVA ; Multiple Phase | I67: DESCRIPTOR METRIC | J67: MEAN ECONOMIC LIFE | K67: YEARS | L67: NUMBER | N67: 45 | O67: 0 | P67: DNSP NAME | Q67: REPEX | R67: TRANSFORMERS | S67: POLE MOUNTED ; < = 22kV ; < = 60 kVA ; MULTIPLE PHASE | T67: DESCRIPTOR METRIC | U67: STANDARD DEVIATION ECONOMIC LIFE | V67: YEARS | W67: NUMBER | X67: 0 | Y67: 8.7 | Z67: 0 | AA67: 0 | AB67: 0 | AC67: 0 | AD67: 0 | AE67: 0 | AF67: 0 | AG67: 0 | AH67: 0 | AI67: 0 | AJ67: 52 | AK67: 120 | AL67: 62 | AM67: 114 | AN67: 112 | AO67: 66 | AP67: 155 | AQ67: 193 | AR67: 202 | AS67: 172 | AT67: 142 | AU67: 147 | AV67: 136 | AW67: 150 | AX67: 131 | AY67: 133 | AZ67: 143 | BA67: 120 | BB67: 120 | BC67: 121 | BD67: 132 | BE67: 146 | BF67: 142 | BG67: 160 | BH67: 180 | BI67: 213 | BJ67: 236 | BK67: 203 | BL67: 193 | BM67: 212 | BN67: 178 | BO67: 145 | BP67: 153 | BQ67: 170 | BR67: 166 | BS67: 160 | BT67: 130 | BU67: 128 | BV67: 179 | BW67: 77 | BX67: 57 | BY67: 68 | BZ67: 56 | CA67: 48 | CB67: 90 | CC67: 99 | CD67: 103 | CE67: 113 | CF67: 126 | CG67: 113 | CH67: 107 | CI67: 64 | CJ67: 56 | CK67: 48 | CL67: 41 | CM67: 26 | CN67: 30 | CO67: 19 | CP67: 16 | CQ67: 11 | CR67: 7 | CS67: 7 | CT67: 5 | CU67: 2 | CV67: 1 | CW67: 0 | CX67: 0 | CY67: 0 | CZ67: 0 | DA67: 0 | DB67: 0 | DC67: 0 | DD67: 0 | DE67: 0 | DF67: 0 | DG67: 0 | DH67: 0 | DI67: 0 | DJ67: 0 | DK67: 0 | DL67: 0 | DM67: 0 | DN67: 0 | DO67: 0 | DP67: 0 | DQ67: 0 | DR67: 0 | DS67: 0 | DT67: 0 | DU67: 0 | DV67: 0 | DW67: 0 | DX67: 0 | DY67: 0 | DZ67: 0 | EA67: 0 | EB67: 0 | EC67: 0 | ED67: 0 | EE67: 0 | EF67: 0 | EG67: 0 | EH67: 0 | EI67: 0
A68: ED_ASS521_00058 | C68: Pole Mounted ; < = 22kV ; > 60 kVA and < = 600 kVA ; Multiple Phase | E68: DNSP NAME | F68: REPEX | G68: TRANSFORMERS | H68: Pole Mounted ; < = 22kV ; > 60 kVA and < = 600 kVA ; Multiple Phase | I68: DESCRIPTOR METRIC | J68: MEAN ECONOMIC LIFE | K68: YEARS | L68: NUMBER | N68: 45 | O68: 0 | P68: DNSP NAME | Q68: REPEX | R68: TRANSFORMERS | S68: POLE MOUNTED ; < = 22kV ; > 60 kVA AND < = 600 kVA ; MULTIPLE PHASE | T68: DESCRIPTOR METRIC | U68: STANDARD DEVIATION ECONOMIC LIFE | V68: YEARS | W68: NUMBER | X68: 0 | Y68: 8.7 | Z68: 0 | AA68: 0 | AB68: 0 | AC68: 0 | AD68: 0 | AE68: 0 | AF68: 0 | AG68: 0 | AH68: 0 | AI68: 0 | AJ68: 444 | AK68: 238 | AL68: 123 | AM68: 227 | AN68: 223 | AO68: 132 | AP68: 308 | AQ68: 383 | AR68: 402 | AS68: 342 | AT68: 283 | AU68: 293 | AV68: 271 | AW68: 299 | AX68: 260 | AY68: 265 | AZ68: 285 | BA68: 239 | BB68: 239 | BC68: 242 | BD68: 263 | BE68: 290 | BF68: 283 | BG68: 318 | BH68: 358 | BI68: 423 | BJ68: 470 | BK68: 405 | BL68: 384 | BM68: 421 | BN68: 354 | BO68: 289 | BP68: 305 | BQ68: 339 | BR68: 330 | BS68: 319 | BT68: 259 | BU68: 255 | BV68: 356 | BW68: 153 | BX68: 114 | BY68: 136 | BZ68: 111 | CA68: 96 | CB68: 179 | CC68: 197 | CD68: 206 | CE68: 225 | CF68: 250 | CG68: 224 | CH68: 212 | CI68: 128 | CJ68: 111 | CK68: 95 | CL68: 82 | CM68: 52 | CN68: 59 | CO68: 38 | CP68: 32 | CQ68: 22 | CR68: 14 | CS68: 14 | CT68: 9 | CU68: 3 | CV68: 1 | CW68: 0 | CX68: 0 | CY68: 0 | CZ68: 0 | DA68: 0 | DB68: 0 | DC68: 0 | DD68: 0 | DE68: 0 | DF68: 0 | DG68: 0 | DH68: 0 | DI68: 0 | DJ68: 0 | DK68: 0 | DL68: 0 | DM68: 0 | DN68: 0 | DO68: 0 | DP68: 0 | DQ68: 0 | DR68: 0 | DS68: 0 | DT68: 0 | DU68: 0 | DV68: 0 | DW68: 0 | DX68: 0 | DY68: 0 | DZ68: 0 | EA68: 0 | EB68: 0 | EC68: 0 | ED68: 0 | EE68: 0 | EF68: 0 | EG68: 0 | EH68: 0 | EI68: 0
A69: ED_ASS521_00059 | C69: Pole Mounted ; < = 22kV ; > 600 kVA ; Multiple Phase | E69: DNSP NAME | F69: REPEX | G69: TRANSFORMERS | H69: Pole Mounted ; < = 22kV ; > 600 kVA ; Multiple Phase | I69: DESCRIPTOR METRIC | J69: MEAN ECONOMIC LIFE | K69: YEARS | L69: NUMBER | N69: 55 | O69: 0 | P69: DNSP NAME | Q69: REPEX | R69: TRANSFORMERS | S69: POLE MOUNTED ; < = 22kV ; > 600 kVA ; MULTIPLE PHASE | T69: DESCRIPTOR METRIC | U69: STANDARD DEVIATION ECONOMIC LIFE | V69: YEARS | W69: NUMBER | X69: 0 | Y69: 8.7 | Z69: 0 | AA69: 0 | AB69: 0 | AC69: 0 | AD69: 0 | AE69: 0 | AF69: 0 | AG69: 0 | AH69: 0 | AI69: 0 | AJ69: 0 | AK69: 0 | AL69: 0 | AM69: 0 | AN69: 0 | AO69: 0 | AP69: 0 | AQ69: 1 | AR69: 1 | AS69: 0 | AT69: 0 | AU69: 0 | AV69: 0 | AW69: 0 | AX69: 0 | AY69: 0 | AZ69: 0 | BA69: 0 | BB69: 0 | BC69: 0 | BD69: 0 | BE69: 0 | BF69: 0 | BG69: 0 | BH69: 1 | BI69: 1 | BJ69: 1 | BK69: 1 | BL69: 1 | BM69: 1 | BN69: 0 | BO69: 0 | BP69: 0 | BQ69: 0 | BR69: 0 | BS69: 0 | BT69: 0 | BU69: 0 | BV69: 0 | BW69: 0 | BX69: 0 | BY69: 0 | BZ69: 0 | CA69: 0 | CB69: 0 | CC69: 0 | CD69: 0 | CE69: 0 | CF69: 0 | CG69: 0 | CH69: 0 | CI69: 0 | CJ69: 0 | CK69: 0 | CL69: 0 | CM69: 0 | CN69: 0 | CO69: 0 | CP69: 0 | CQ69: 0 | CR69: 0 | CS69: 0 | CT69: 0 | CU69: 0 | CV69: 0 | CW69: 0 | CX69: 0 | CY69: 0 | CZ69: 0 | DA69: 0 | DB69: 0 | DC69: 0 | DD69: 0 | DE69: 0 | DF69: 0 | DG69: 0 | DH69: 0 | DI69: 0 | DJ69: 0 | DK69: 0 | DL69: 0 | DM69: 0 | DN69: 0 | DO69: 0 | DP69: 0 | DQ69: 0 | DR69: 0 | DS69: 0 | DT69: 0 | DU69: 0 | DV69: 0 | DW69: 0 | DX69: 0 | DY69: 0 | DZ69: 0 | EA69: 0 | EB69: 0 | EC69: 0 | ED69: 0 | EE69: 0 | EF69: 0 | EG69: 0 | EH69: 0 | EI69: 0
A70: ED_ASS521_00060 | C70: Kiosk Mounted ; < = 22kV ; < = 60 kVA ; Single Phase | N70: 55 | O70: 0 | P70: DNSP NAME | Q70: REPEX | R70: TRANSFORMERS | S70: POLE MOUNTED ; < = 22kV ; > 600 kVA ; MULTIPLE PHASE | T70: DESCRIPTOR METRIC | U70: STANDARD DEVIATION ECONOMIC LIFE | V70: YEARS | W70: NUMBER | X70: 0 | Y70: 8.7 | Z70: 0 | AA70: 0 | AB70: 0 | AC70: 0 | AD70: 0 | AE70: 0 | AF70: 0 | AG70: 0 | AH70: 0 | AI70: 0 | AJ70: 0 | AK70: 0 | AL70: 0 | AM70: 0 | AN70: 0 | AO70: 0 | AP70: 0 | AQ70: 0 | AR70: 0 | AS70: 0 | AT70: 0 | AU70: 0 | AV70: 0 | AW70: 0 | AX70: 0 | AY70: 0 | AZ70: 0 | BA70: 0 | BB70: 0 | BC70: 0 | BD70: 0 | BE70: 0 | BF70: 0 | BG70: 0 | BH70: 0 | BI70: 0 | BJ70: 1 | BK70: 0 | BL70: 0 | BM70: 0 | BN70: 0 | BO70: 0 | BP70: 0 | BQ70: 0 | BR70: 0 | BS70: 0 | BT70: 0 | BU70: 0 | BV70: 0 | BW70: 0 | BX70: 0 | BY70: 0 | BZ70: 0 | CA70: 0 | CB70: 0 | CC70: 0 | CD70: 0 | CE70: 0 | CF70: 0 | CG70: 0 | CH70: 0 | CI70: 0 | CJ70: 0 | CK70: 0 | CL70: 0 | CM70: 0 | CN70: 0 | CO70: 0 | CP70: 0 | CQ70: 0 | CR70: 0 | CS70: 0 | CT70: 0 | CU70: 0 | CV70: 0 | CW70: 0 | CX70: 0 | CY70: 0 | CZ70: 0 | DA70: 0 | DB70: 0 | DC70: 0 | DD70: 0 | DE70: 0 | DF70: 0 | DG70: 0 | DH70: 0 | DI70: 0 | DJ70: 0 | DK70: 0 | DL70: 0 | DM70: 0 | DN70: 0 | DO70: 0 | DP70: 0 | DQ70: 0 | DR70: 0 | DS70: 0 | DT70: 0 | DU70: 0 | DV70: 0 | DW70: 0 | DX70: 0 | DY70: 0 | DZ70: 0 | EA70: 0 | EB70: 0 | EC70: 0 | ED70: 0 | EE70: 0 | EF70: 0 | EG70: 0 | EH70: 0 | EI70: 0
A71: ED_ASS521_00061 | C71: Kiosk Mounted ; < = 22kV ; > 60 kVA and < = 600 kVA ; Single Phase | N71: 0 | O71: 0 | P71: 0 | Q71: 0 | R71: 0 | S71: 0 | T71: 0 | U71: 0 | V71: 0 | W71: 0 | X71: 0 | Y71: 0 | Z71: 0 | AA71: 0 | AB71: 0 | AC71: 0 | AD71: 0 | AE71: 0 | AF71: 0 | AG71: 0 | AH71: 0 | AI71: 0 | AJ71: 0 | AK71: 0 | AL71: 0 | AM71: 0 | AN71: 0 | AO71: 0 | AP71: 0 | AQ71: 0 | AR71: 0 | AS71: 0 | AT71: 0 | AU71: 0 | AV71: 0 | AW71: 0 | AX71: 0 | AY71: 0 | AZ71: 0 | BA71: 0 | BB71: 0 | BC71: 0 | BD71: 0 | BE71: 0 | BF71: 0 | BG71: 0 | BH71: 0 | BI71: 0 | BJ71: 0 | BK71: 0 | BL71: 0 | BM71: 0 | BN71: 0 | BO71: 0 | BP71: 0 | BQ71: 0 | BR71: 0 | BS71: 0 | BT71: 0 | BU71: 0 | BV71: 0 | BW71: 0 | BX71: 0 | BY71: 0 | BZ71: 0 | CA71: 0 | CB71: 0 | CC71: 0 | CD71: 0 | CE71: 0 | CF71: 0 | CG71: 0 | CH71: 0 | CI71: 0 | CJ71: 0 | CK71: 0 | CL71: 0 | CM71: 0 | CN71: 0 | CO71: 0 | CP71: 0 | CQ71: 0 | CR71: 0 | CS71: 0 | CT71: 0 | CU71: 0 | CV71: 0 | CW71: 0 | CX71: 0 | CY71: 0 | CZ71: 0 | DA71: 0 | DB71: 0 | DC71: 0 | DD71: 0 | DE71: 0 | DF71: 0 | DG71: 0 | DH71: 0 | DI71: 0 | DJ71: 0 | DK71: 0 | DL71: 0 | DM71: 0 | DN71: 0 | DO71: 0 | DP71: 0 | DQ71: 0 | DR71: 0 | DS71: 0 | DT71: 0 | DU71: 0 | DV71: 0 | DW71: 0 | DX71: 0 | DY71: 0 | DZ71: 0 | EA71: 0 | EB71: 0 | EC71: 0 | ED71: 0 | EE71: 0 | EF71: 0 | EG71: 0 | EH71: 0 | EI71: 0
A72: ED_ASS521_00062 | C72: Kiosk Mounted ; < = 22kV ; > 600 kVA ; Single Phase | N72: 0 | O72: 0 | P72: 0 | Q72: 0 | R72: 0 | S72: 0 | T72: 0 | U72: 0 | V72: 0 | W72: 0 | X72: 0 | Y72: 0 | Z72: 0 | AA72: 0 | AB72: 0 | AC72: 0 | AD72: 0 | AE72: 0 | AF72: 0 | AG72: 0 | AH72: 0 | AI72: 0 | AJ72: 0 | AK72: 0 | AL72: 0 | AM72: 0 | AN72: 0 | AO72: 0 | AP72: 0 | AQ72: 0 | AR72: 0 | AS72: 0 | AT72: 0 | AU72: 0 | AV72: 0 | AW72: 0 | AX72: 0 | AY72: 0 | AZ72: 0 | BA72: 0 | BB72: 0 | BC72: 0 | BD72: 0 | BE72: 0 | BF72: 0 | BG72: 0 | BH72: 0 | BI72: 0 | BJ72: 0 | BK72: 0 | BL72: 0 | BM72: 0 | BN72: 0 | BO72: 0 | BP72: 0 | BQ72: 0 | BR72: 0 | BS72: 0 | BT72: 0 | BU72: 0 | BV72: 0 | BW72: 0 | BX72: 0 | BY72: 0 | BZ72: 0 | CA72: 0 | CB72: 0 | CC72: 0 | CD72: 0 | CE72: 0 | CF72: 0 | CG72: 0 | CH72: 0 | CI72: 0 | CJ72: 0 | CK72: 0 | CL72: 0 | CM72: 0 | CN72: 0 | CO72: 0 | CP72: 0 | CQ72: 0 | CR72: 0 | CS72: 0 | CT72: 0 | CU72: 0 | CV72: 0 | CW72: 0 | CX72: 0 | CY72: 0 | CZ72: 0 | DA72: 0 | DB72: 0 | DC72: 0 | DD72: 0 | DE72: 0 | DF72: 0 | DG72: 0 | DH72: 0 | DI72: 0 | DJ72: 0 | DK72: 0 | DL72: 0 | DM72: 0 | DN72: 0 | DO72: 0 | DP72: 0 | DQ72: 0 | DR72: 0 | DS72: 0 | DT72: 0 | DU72: 0 | DV72: 0 | DW72: 0 | DX72: 0 | DY72: 0 | DZ72: 0 | EA72: 0 | EB72: 0 | EC72: 0 | ED72: 0 | EE72: 0 | EF72: 0 | EG72: 0 | EH72: 0 | EI72: 0
A73: ED_ASS521_00063 | C73: Kiosk Mounted ; < = 22kV ; < = 60 kVA ; Multiple Phase | N73: 55 | O73: 0 | P73: DNSP NAME | Q73: REPEX | R73: TRANSFORMERS | S73: KIOSK MOUNTED ; < = 22kV ; < = 60 kVA ; MULTIPLE PHASE | T73: DESCRIPTOR METRIC | U73: STANDARD DEVIATION ECONOMIC LIFE | V73: YEARS | W73: NUMBER | X73: 0 | Y73: 8.7 | Z73: 0 | AA73: 0 | AB73: 0 | AC73: 0 | AD73: 0 | AE73: 0 | AF73: 0 | AG73: 0 | AH73: 0 | AI73: 0 | AJ73: 16 | AK73: 2 | AL73: 1 | AM73: 2 | AN73: 2 | AO73: 1 | AP73: 3 | AQ73: 4 | AR73: 4 | AS73: 3 | AT73: 3 | AU73: 3 | AV73: 3 | AW73: 3 | AX73: 3 | AY73: 3 | AZ73: 3 | BA73: 2 | BB73: 2 | BC73: 2 | BD73: 3 | BE73: 3 | BF73: 3 | BG73: 3 | BH73: 4 | BI73: 4 | BJ73: 5 | BK73: 4 | BL73: 4 | BM73: 4 | BN73: 3 | BO73: 3 | BP73: 3 | BQ73: 3 | BR73: 3 | BS73: 3 | BT73: 3 | BU73: 3 | BV73: 4 | BW73: 2 | BX73: 1 | BY73: 1 | BZ73: 1 | CA73: 1 | CB73: 2 | CC73: 2 | CD73: 2 | CE73: 2 | CF73: 2 | CG73: 2 | CH73: 2 | CI73: 1 | CJ73: 1 | CK73: 1 | CL73: 1 | CM73: 1 | CN73: 1 | CO73: 0 | CP73: 0 | CQ73: 0 | CR73: 0 | CS73: 0 | CT73: 0 | CU73: 0 | CV73: 0 | CW73: 0 | CX73: 0 | CY73: 0 | CZ73: 0 | DA73: 0 | DB73: 0 | DC73: 0 | DD73: 0 | DE73: 0 | DF73: 0 | DG73: 0 | DH73: 0 | DI73: 0 | DJ73: 0 | DK73: 0 | DL73: 0 | DM73: 0 | DN73: 0 | DO73: 0 | DP73: 0 | DQ73: 0 | DR73: 0 | DS73: 0 | DT73: 0 | DU73: 0 | DV73: 0 | DW73: 0 | DX73: 0 | DY73: 0 | DZ73: 0 | EA73: 0 | EB73: 0 | EC73: 0 | ED73: 0 | EE73: 0 | EF73: 0 | EG73: 0 | EH73: 0 | EI73: 0
A74: ED_ASS521_00064 | C74: Kiosk Mounted ; < = 22kV ; > 60 kVA and < = 600 kVA ; Multiple Phase | N74: 55 | O74: 0 | P74: DNSP NAME | Q74: REPEX | R74: TRANSFORMERS | S74: KIOSK MOUNTED ; < = 22kV ; > 60 kVA AND < = 600 kVA ; MULTIPLE PHASE | T74: DESCRIPTOR METRIC | U74: STANDARD DEVIATION ECONOMIC LIFE | V74: YEARS | W74: NUMBER | X74: 0 | Y74: 8.7 | Z74: 0 | AA74: 0 | AB74: 0 | AC74: 0 | AD74: 0 | AE74: 0 | AF74: 0 | AG74: 0 | AH74: 0 | AI74: 0 | AJ74: 116 | AK74: 45 | AL74: 23 | AM74: 43 | AN74: 42 | AO74: 25 | AP74: 58 | AQ74: 72 | AR74: 76 | AS74: 65 | AT74: 53 | AU74: 55 | AV74: 51 | AW74: 57 | AX74: 49 | AY74: 50 | AZ74: 54 | BA74: 45 | BB74: 45 | BC74: 46 | BD74: 50 | BE74: 55 | BF74: 53 | BG74: 60 | BH74: 68 | BI74: 80 | BJ74: 89 | BK74: 76 | BL74: 73 | BM74: 80 | BN74: 67 | BO74: 55 | BP74: 58 | BQ74: 64 | BR74: 62 | BS74: 60 | BT74: 49 | BU74: 48 | BV74: 67 | BW74: 29 | BX74: 21 | BY74: 26 | BZ74: 21 | CA74: 18 | CB74: 34 | CC74: 37 | CD74: 39 | CE74: 43 | CF74: 47 | CG74: 42 | CH74: 40 | CI74: 24 | CJ74: 21 | CK74: 18 | CL74: 16 | CM74: 10 | CN74: 11 | CO74: 7 | CP74: 6 | CQ74: 4 | CR74: 3 | CS74: 3 | CT74: 2 | CU74: 1 | CV74: 0 | CW74: 0 | CX74: 0 | CY74: 0 | CZ74: 0 | DA74: 0 | DB74: 0 | DC74: 0 | DD74: 0 | DE74: 0 | DF74: 0 | DG74: 0 | DH74: 0 | DI74: 0 | DJ74: 0 | DK74: 0 | DL74: 0 | DM74: 0 | DN74: 0 | DO74: 0 | DP74: 0 | DQ74: 0 | DR74: 0 | DS74: 0 | DT74: 0 | DU74: 0 | DV74: 0 | DW74: 0 | DX74: 0 | DY74: 0 | DZ74: 0 | EA74: 0 | EB74: 0 | EC74: 0 | ED74: 0 | EE74: 0 | EF74: 0 | EG74: 0 | EH74: 0 | EI74: 0
A75: ED_ASS521_00065 | C75: Kiosk Mounted ; < = 22kV ; > 600 kVA ; Multiple Phase | N75: 55 | O75: 0 | P75: DNSP NAME | Q75: REPEX | R75: TRANSFORMERS | S75: KIOSK MOUNTED ; < = 22kV ; > 600 kVA ; MULTIPLE PHASE | T75: DESCRIPTOR METRIC | U75: STANDARD DEVIATION ECONOMIC LIFE | V75: YEARS | W75: NUMBER | X75: 0 | Y75: 8.7 | Z75: 0 | AA75: 0 | AB75: 0 | AC75: 0 | AD75: 0 | AE75: 0 | AF75: 0 | AG75: 0 | AH75: 0 | AI75: 0 | AJ75: 50 | AK75: 9 | AL75: 5 | AM75: 9 | AN75: 9 | AO75: 5 | AP75: 12 | AQ75: 15 | AR75: 16 | AS75: 14 | AT75: 11 | AU75: 12 | AV75: 11 | AW75: 12 | AX75: 10 | AY75: 11 | AZ75: 11 | BA75: 10 | BB75: 10 | BC75: 10 | BD75: 10 | BE75: 12 | BF75: 11 | BG75: 13 | BH75: 14 | BI75: 17 | BJ75: 19 | BK75: 16 | BL75: 15 | BM75: 17 | BN75: 14 | BO75: 12 | BP75: 12 | BQ75: 13 | BR75: 13 | BS75: 13 | BT75: 10 | BU75: 10 | BV75: 14 | BW75: 6 | BX75: 5 | BY75: 5 | BZ75: 4 | CA75: 4 | CB75: 7 | CC75: 8 | CD75: 8 | CE75: 9 | CF75: 10 | CG75: 9 | CH75: 8 | CI75: 5 | CJ75: 4 | CK75: 4 | CL75: 3 | CM75: 2 | CN75: 2 | CO75: 2 | CP75: 1 | CQ75: 1 | CR75: 1 | CS75: 1 | CT75: 0 | CU75: 0 | CV75: 0 | CW75: 0 | CX75: 0 | CY75: 0 | CZ75: 0 | DA75: 0 | DB75: 0 | DC75: 0 | DD75: 0 | DE75: 0 | DF75: 0 | DG75: 0 | DH75: 0 | DI75: 0 | DJ75: 0 | DK75: 0 | DL75: 0 | DM75: 0 | DN75: 0 | DO75: 0 | DP75: 0 | DQ75: 0 | DR75: 0 | DS75: 0 | DT75: 0 | DU75: 0 | DV75: 0 | DW75: 0 | DX75: 0 | DY75: 0 | DZ75: 0 | EA75: 0 | EB75: 0 | EC75: 0 | ED75: 0 | EE75: 0 | EF75: 0 | EG75: 0 | EH75: 0 | EI75: 0
A76: ED_ASS521_00066 | C76: Ground Outdoor / Indoor Chamber Mounted; ˂ 22 kV ; < = 60 kVA ; Single Phase | N76: 45 | O76: 0 | P76: DNSP NAME | Q76: REPEX | R76: TRANSFORMERS | S76: GROUND OUTDOOR / INDOOR CHAMBER MOUNTED ; ˂ 22 kV ; < = 60 kVA ; SINGLE PHASE | T76: DESCRIPTOR METRIC | U76: STANDARD DEVIATION ECONOMIC LIFE | V76: YEARS | W76: NUMBER | X76: 0 | Y76: 8.7 | Z76: 0 | AA76: 0 | AB76: 0 | AC76: 0 | AD76: 0 | AE76: 0 | AF76: 0 | AG76: 0 | AH76: 0 | AI76: 0 | AJ76: 0 | AK76: 0 | AL76: 0 | AM76: 0 | AN76: 0 | AO76: 0 | AP76: 0 | AQ76: 0 | AR76: 0 | AS76: 0 | AT76: 0 | AU76: 0 | AV76: 0 | AW76: 0 | AX76: 0 | AY76: 0 | AZ76: 0 | BA76: 0 | BB76: 0 | BC76: 0 | BD76: 0 | BE76: 0 | BF76: 0 | BG76: 0 | BH76: 0 | BI76: 0 | BJ76: 1 | BK76: 0 | BL76: 0 | BM76: 0 | BN76: 0 | BO76: 0 | BP76: 0 | BQ76: 0 | BR76: 0 | BS76: 0 | BT76: 0 | BU76: 0 | BV76: 0 | BW76: 0 | BX76: 0 | BY76: 0 | BZ76: 0 | CA76: 0 | CB76: 0 | CC76: 0 | CD76: 0 | CE76: 0 | CF76: 0 | CG76: 0 | CH76: 0 | CI76: 0 | CJ76: 0 | CK76: 0 | CL76: 0 | CM76: 0 | CN76: 0 | CO76: 0 | CP76: 0 | CQ76: 0 | CR76: 0 | CS76: 0 | CT76: 0 | CU76: 0 | CV76: 0 | CW76: 0 | CX76: 0 | CY76: 0 | CZ76: 0 | DA76: 0 | DB76: 0 | DC76: 0 | DD76: 0 | DE76: 0 | DF76: 0 | DG76: 0 | DH76: 0 | DI76: 0 | DJ76: 0 | DK76: 0 | DL76: 0 | DM76: 0 | DN76: 0 | DO76: 0 | DP76: 0 | DQ76: 0 | DR76: 0 | DS76: 0 | DT76: 0 | DU76: 0 | DV76: 0 | DW76: 0 | DX76: 0 | DY76: 0 | DZ76: 0 | EA76: 0 | EB76: 0 | EC76: 0 | ED76: 0 | EE76: 0 | EF76: 0 | EG76: 0 | EH76: 0 | EI76: 0
A77: ED_ASS521_00067 | C77: Ground Outdoor / Indoor Chamber Mounted; ˂ 22 kV ; > 60 kVA and < = 600 kVA ; Single Phase | N77: 45 | O77: 0 | P77: DNSP NAME | Q77: REPEX | R77: TRANSFORMERS | S77: GROUND OUTDOOR / INDOOR CHAMBER MOUNTED ; ˂ 22 kV ; > 60 kVA AND < = 600 kVA ; SINGLE PHASE | T77: DESCRIPTOR METRIC | U77: STANDARD DEVIATION ECONOMIC LIFE | V77: YEARS | W77: NUMBER | X77: 0 | Y77: 8.7 | Z77: 0 | AA77: 0 | AB77: 0 | AC77: 0 | AD77: 0 | AE77: 0 | AF77: 0 | AG77: 0 | AH77: 0 | AI77: 0 | AJ77: 0 | AK77: 0 | AL77: 0 | AM77: 0 | AN77: 0 | AO77: 0 | AP77: 0 | AQ77: 0 | AR77: 0 | AS77: 0 | AT77: 0 | AU77: 0 | AV77: 0 | AW77: 0 | AX77: 0 | AY77: 0 | AZ77: 0 | BA77: 0 | BB77: 0 | BC77: 0 | BD77: 0 | BE77: 0 | BF77: 0 | BG77: 0 | BH77: 0 | BI77: 0 | BJ77: 1 | BK77: 0 | BL77: 0 | BM77: 0 | BN77: 0 | BO77: 0 | BP77: 0 | BQ77: 0 | BR77: 0 | BS77: 0 | BT77: 0 | BU77: 0 | BV77: 0 | BW77: 0 | BX77: 0 | BY77: 0 | BZ77: 0 | CA77: 0 | CB77: 0 | CC77: 0 | CD77: 0 | CE77: 0 | CF77: 0 | CG77: 0 | CH77: 0 | CI77: 0 | CJ77: 0 | CK77: 0 | CL77: 0 | CM77: 0 | CN77: 0 | CO77: 0 | CP77: 0 | CQ77: 0 | CR77: 0 | CS77: 0 | CT77: 0 | CU77: 0 | CV77: 0 | CW77: 0 | CX77: 0 | CY77: 0 | CZ77: 0 | DA77: 0 | DB77: 0 | DC77: 0 | DD77: 0 | DE77: 0 | DF77: 0 | DG77: 0 | DH77: 0 | DI77: 0 | DJ77: 0 | DK77: 0 | DL77: 0 | DM77: 0 | DN77: 0 | DO77: 0 | DP77: 0 | DQ77: 0 | DR77: 0 | DS77: 0 | DT77: 0 | DU77: 0 | DV77: 0 | DW77: 0 | DX77: 0 | DY77: 0 | DZ77: 0 | EA77: 0 | EB77: 0 | EC77: 0 | ED77: 0 | EE77: 0 | EF77: 0 | EG77: 0 | EH77: 0 | EI77: 0
A78: ED_ASS521_00068 | C78: Ground Outdoor / Indoor Chamber Mounted; ˂ 22 kV ; > 600 kVA ; Single Phase | N78: 0 | O78: 0 | P78: 0 | Q78: 0 | R78: 0 | S78: 0 | T78: 0 | U78: 0 | V78: 0 | W78: 0 | X78: 0 | Y78: 0 | Z78: 0 | AA78: 0 | AB78: 0 | AC78: 0 | AD78: 0 | AE78: 0 | AF78: 0 | AG78: 0 | AH78: 0 | AI78: 0 | AJ78: 0 | AK78: 0 | AL78: 0 | AM78: 0 | AN78: 0 | AO78: 0 | AP78: 0 | AQ78: 0 | AR78: 0 | AS78: 0 | AT78: 0 | AU78: 0 | AV78: 0 | AW78: 0 | AX78: 0 | AY78: 0 | AZ78: 0 | BA78: 0 | BB78: 0 | BC78: 0 | BD78: 0 | BE78: 0 | BF78: 0 | BG78: 0 | BH78: 0 | BI78: 0 | BJ78: 0 | BK78: 0 | BL78: 0 | BM78: 0 | BN78: 0 | BO78: 0 | BP78: 0 | BQ78: 0 | BR78: 0 | BS78: 0 | BT78: 0 | BU78: 0 | BV78: 0 | BW78: 0 | BX78: 0 | BY78: 0 | BZ78: 0 | CA78: 0 | CB78: 0 | CC78: 0 | CD78: 0 | CE78: 0 | CF78: 0 | CG78: 0 | CH78: 0 | CI78: 0 | CJ78: 0 | CK78: 0 | CL78: 0 | CM78: 0 | CN78: 0 | CO78: 0 | CP78: 0 | CQ78: 0 | CR78: 0 | CS78: 0 | CT78: 0 | CU78: 0 | CV78: 0 | CW78: 0 | CX78: 0 | CY78: 0 | CZ78: 0 | DA78: 0 | DB78: 0 | DC78: 0 | DD78: 0 | DE78: 0 | DF78: 0 | DG78: 0 | DH78: 0 | DI78: 0 | DJ78: 0 | DK78: 0 | DL78: 0 | DM78: 0 | DN78: 0 | DO78: 0 | DP78: 0 | DQ78: 0 | DR78: 0 | DS78: 0 | DT78: 0 | DU78: 0 | DV78: 0 | DW78: 0 | DX78: 0 | DY78: 0 | DZ78: 0 | EA78: 0 | EB78: 0 | EC78: 0 | ED78: 0 | EE78: 0 | EF78: 0 | EG78: 0 | EH78: 0 | EI78: 0
A79: ED_ASS521_00069 | C79: Ground Outdoor / Indoor Chamber Mounted; ˂ 22 kV ; < = 60 kVA ; Multiple Phase | N79: 45 | O79: 0 | P79: DNSP NAME | Q79: REPEX | R79: TRANSFORMERS | S79: GROUND OUTDOOR / INDOOR CHAMBER MOUNTED ; ˂ 22 kV ; < = 60 kVA ; MULTIPLE PHASE | T79: DESCRIPTOR METRIC | U79: STANDARD DEVIATION ECONOMIC LIFE | V79: YEARS | W79: NUMBER | X79: 0 | Y79: 8.7 | Z79: 0 | AA79: 0 | AB79: 0 | AC79: 0 | AD79: 0 | AE79: 0 | AF79: 0 | AG79: 0 | AH79: 0 | AI79: 0 | AJ79: 0 | AK79: 0 | AL79: 0 | AM79: 0 | AN79: 0 | AO79: 0 | AP79: 1 | AQ79: 1 | AR79: 1 | AS79: 1 | AT79: 1 | AU79: 1 | AV79: 0 | AW79: 1 | AX79: 0 | AY79: 0 | AZ79: 1 | BA79: 0 | BB79: 0 | BC79: 0 | BD79: 0 | BE79: 1 | BF79: 1 | BG79: 1 | BH79: 1 | BI79: 1 | BJ79: 1 | BK79: 1 | BL79: 1 | BM79: 1 | BN79: 1 | BO79: 1 | BP79: 1 | BQ79: 1 | BR79: 1 | BS79: 1 | BT79: 0 | BU79: 0 | BV79: 1 | BW79: 0 | BX79: 0 | BY79: 0 | BZ79: 0 | CA79: 0 | CB79: 0 | CC79: 0 | CD79: 0 | CE79: 0 | CF79: 0 | CG79: 0 | CH79: 0 | CI79: 0 | CJ79: 0 | CK79: 0 | CL79: 0 | CM79: 0 | CN79: 0 | CO79: 0 | CP79: 0 | CQ79: 0 | CR79: 0 | CS79: 0 | CT79: 0 | CU79: 0 | CV79: 0 | CW79: 0 | CX79: 0 | CY79: 0 | CZ79: 0 | DA79: 0 | DB79: 0 | DC79: 0 | DD79: 0 | DE79: 0 | DF79: 0 | DG79: 0 | DH79: 0 | DI79: 0 | DJ79: 0 | DK79: 0 | DL79: 0 | DM79: 0 | DN79: 0 | DO79: 0 | DP79: 0 | DQ79: 0 | DR79: 0 | DS79: 0 | DT79: 0 | DU79: 0 | DV79: 0 | DW79: 0 | DX79: 0 | DY79: 0 | DZ79: 0 | EA79: 0 | EB79: 0 | EC79: 0 | ED79: 0 | EE79: 0 | EF79: 0 | EG79: 0 | EH79: 0 | EI79: 0
A80: ED_ASS521_00070 | C80: Ground Outdoor / Indoor Chamber Mounted; ˂ 22 kV ; > 60 kVA and < = 600 kVA ; Multiple Phase | N80: 45 | O80: 0 | P80: DNSP NAME | Q80: REPEX | R80: TRANSFORMERS | S80: GROUND OUTDOOR / INDOOR CHAMBER MOUNTED ; ˂ 22 kV ; > 60 kVA AND < = 600 kVA ; MULTIPLE PHASE | T80: DESCRIPTOR METRIC | U80: STANDARD DEVIATION ECONOMIC LIFE | V80: YEARS | W80: NUMBER | X80: 0 | Y80: 8.7 | Z80: 0 | AA80: 0 | AB80: 0 | AC80: 0 | AD80: 0 | AE80: 0 | AF80: 0 | AG80: 0 | AH80: 0 | AI80: 0 | AJ80: 3 | AK80: 6 | AL80: 3 | AM80: 6 | AN80: 6 | AO80: 3 | AP80: 8 | AQ80: 10 | AR80: 10 | AS80: 9 | AT80: 7 | AU80: 7 | AV80: 7 | AW80: 8 | AX80: 7 | AY80: 7 | AZ80: 7 | BA80: 6 | BB80: 6 | BC80: 6 | BD80: 7 | BE80: 7 | BF80: 7 | BG80: 8 | BH80: 9 | BI80: 11 | BJ80: 12 | BK80: 10 | BL80: 10 | BM80: 11 | BN80: 9 | BO80: 7 | BP80: 8 | BQ80: 9 | BR80: 8 | BS80: 8 | BT80: 7 | BU80: 6 | BV80: 9 | BW80: 4 | BX80: 3 | BY80: 3 | BZ80: 3 | CA80: 2 | CB80: 5 | CC80: 5 | CD80: 5 | CE80: 6 | CF80: 6 | CG80: 6 | CH80: 5 | CI80: 3 | CJ80: 3 | CK80: 2 | CL80: 2 | CM80: 1 | CN80: 2 | CO80: 1 | CP80: 1 | CQ80: 1 | CR80: 0 | CS80: 0 | CT80: 0 | CU80: 0 | CV80: 0 | CW80: 0 | CX80: 0 | CY80: 0 | CZ80: 0 | DA80: 0 | DB80: 0 | DC80: 0 | DD80: 0 | DE80: 0 | DF80: 0 | DG80: 0 | DH80: 0 | DI80: 0 | DJ80: 0 | DK80: 0 | DL80: 0 | DM80: 0 | DN80: 0 | DO80: 0 | DP80: 0 | DQ80: 0 | DR80: 0 | DS80: 0 | DT80: 0 | DU80: 0 | DV80: 0 | DW80: 0 | DX80: 0 | DY80: 0 | DZ80: 0 | EA80: 0 | EB80: 0 | EC80: 0 | ED80: 0 | EE80: 0 | EF80: 0 | EG80: 0 | EH80: 0 | EI80: 0
A81: ED_ASS521_00071 | C81: Ground Outdoor / Indoor Chamber Mounted; ˂ 22 kV ; > 600 kVA ; Multiple Phase | N81: 55 | O81: 0 | P81: DNSP NAME | Q81: REPEX | R81: TRANSFORMERS | S81: GROUND OUTDOOR / INDOOR CHAMBER MOUNTED ; ˂ 22 kV ; > 600 kVA ; MULTIPLE PHASE | T81: DESCRIPTOR METRIC | U81: STANDARD DEVIATION ECONOMIC LIFE | V81: YEARS | W81: NUMBER | X81: 0 | Y81: 8.7 | Z81: 0 | AA81: 0 | AB81: 0 | AC81: 0 | AD81: 0 | AE81: 0 | AF81: 0 | AG81: 0 | AH81: 0 | AI81: 0 | AJ81: 8 | AK81: 10 | AL81: 5 | AM81: 10 | AN81: 10 | AO81: 6 | AP81: 14 | AQ81: 17 | AR81: 18 | AS81: 15 | AT81: 12 | AU81: 13 | AV81: 12 | AW81: 13 | AX81: 11 | AY81: 12 | AZ81: 12 | BA81: 10 | BB81: 10 | BC81: 11 | BD81: 12 | BE81: 13 | BF81: 12 | BG81: 14 | BH81: 16 | BI81: 19 | BJ81: 22 | BK81: 18 | BL81: 17 | BM81: 19 | BN81: 16 | BO81: 13 | BP81: 13 | BQ81: 15 | BR81: 15 | BS81: 14 | BT81: 11 | BU81: 11 | BV81: 16 | BW81: 7 | BX81: 5 | BY81: 6 | BZ81: 5 | CA81: 4 | CB81: 8 | CC81: 9 | CD81: 9 | CE81: 10 | CF81: 11 | CG81: 10 | CH81: 9 | CI81: 6 | CJ81: 5 | CK81: 4 | CL81: 4 | CM81: 2 | CN81: 3 | CO81: 2 | CP81: 1 | CQ81: 1 | CR81: 1 | CS81: 1 | CT81: 0 | CU81: 0 | CV81: 0 | CW81: 0 | CX81: 0 | CY81: 0 | CZ81: 0 | DA81: 0 | DB81: 0 | DC81: 0 | DD81: 0 | DE81: 0 | DF81: 0 | DG81: 0 | DH81: 0 | DI81: 0 | DJ81: 0 | DK81: 0 | DL81: 0 | DM81: 0 | DN81: 0 | DO81: 0 | DP81: 0 | DQ81: 0 | DR81: 0 | DS81: 0 | DT81: 0 | DU81: 0 | DV81: 0 | DW81: 0 | DX81: 0 | DY81: 0 | DZ81: 0 | EA81: 0 | EB81: 0 | EC81: 0 | ED81: 0 | EE81: 0 | EF81: 0 | EG81: 0 | EH81: 0 | EI81: 0
A82: ED_ASS521_00072 | C82: Ground Outdoor / Indoor Chamber Mounted; > = 22 kV & < = 33 kV ; < = 15 MVA | N82: 0 | O82: 0 | P82: 0 | Q82: 0 | R82: 0 | S82: 0 | T82: 0 | U82: 0 | V82: 0 | W82: 0 | X82: 0 | Y82: 0 | Z82: 0 | AA82: 0 | AB82: 0 | AC82: 0 | AD82: 0 | AE82: 0 | AF82: 0 | AG82: 0 | AH82: 0 | AI82: 0 | AJ82: 0 | AK82: 0 | AL82: 0 | AM82: 0 | AN82: 0 | AO82: 0 | AP82: 0 | AQ82: 0 | AR82: 0 | AS82: 0 | AT82: 0 | AU82: 0 | AV82: 0 | AW82: 0 | AX82: 0 | AY82: 0 | AZ82: 0 | BA82: 0 | BB82: 0 | BC82: 0 | BD82: 0 | BE82: 0 | BF82: 0 | BG82: 0 | BH82: 0 | BI82: 0 | BJ82: 0 | BK82: 0 | BL82: 0 | BM82: 0 | BN82: 0 | BO82: 0 | BP82: 0 | BQ82: 0 | BR82: 0 | BS82: 0 | BT82: 0 | BU82: 0 | BV82: 0 | BW82: 0 | BX82: 0 | BY82: 0 | BZ82: 0 | CA82: 0 | CB82: 0 | CC82: 0 | CD82: 0 | CE82: 0 | CF82: 0 | CG82: 0 | CH82: 0 | CI82: 0 | CJ82: 0 | CK82: 0 | CL82: 0 | CM82: 0 | CN82: 0 | CO82: 0 | CP82: 0 | CQ82: 0 | CR82: 0 | CS82: 0 | CT82: 0 | CU82: 0 | CV82: 0 | CW82: 0 | CX82: 0 | CY82: 0 | CZ82: 0 | DA82: 0 | DB82: 0 | DC82: 0 | DD82: 0 | DE82: 0 | DF82: 0 | DG82: 0 | DH82: 0 | DI82: 0 | DJ82: 0 | DK82: 0 | DL82: 0 | DM82: 0 | DN82: 0 | DO82: 0 | DP82: 0 | DQ82: 0 | DR82: 0 | DS82: 0 | DT82: 0 | DU82: 0 | DV82: 0 | DW82: 0 | DX82: 0 | DY82: 0 | DZ82: 0 | EA82: 0 | EB82: 0 | EC82: 0 | ED82: 0 | EE82: 0 | EF82: 0 | EG82: 0 | EH82: 0 | EI82: 0
A83: ED_ASS521_00073 | C83: Ground Outdoor / Indoor Chamber Mounted; > = 22 kV & < = 33 kV ; > 15 MVA and < = 40 MVA | N83: 0 | O83: 0 | P83: 0 | Q83: 0 | R83: 0 | S83: 0 | T83: 0 | U83: 0 | V83: 0 | W83: 0 | X83: 0 | Y83: 0 | Z83: 0 | AA83: 0 | AB83: 0 | AC83: 0 | AD83: 0 | AE83: 0 | AF83: 0 | AG83: 0 | AH83: 0 | AI83: 0 | AJ83: 0 | AK83: 0 | AL83: 0 | AM83: 0 | AN83: 0 | AO83: 0 | AP83: 0 | AQ83: 0 | AR83: 0 | AS83: 0 | AT83: 0 | AU83: 0 | AV83: 0 | AW83: 0 | AX83: 0 | AY83: 0 | AZ83: 0 | BA83: 0 | BB83: 0 | BC83: 0 | BD83: 0 | BE83: 0 | BF83: 0 | BG83: 0 | BH83: 0 | BI83: 0 | BJ83: 0 | BK83: 0 | BL83: 0 | BM83: 0 | BN83: 0 | BO83: 0 | BP83: 0 | BQ83: 0 | BR83: 0 | BS83: 0 | BT83: 0 | BU83: 0 | BV83: 0 | BW83: 0 | BX83: 0 | BY83: 0 | BZ83: 0 | CA83: 0 | CB83: 0 | CC83: 0 | CD83: 0 | CE83: 0 | CF83: 0 | CG83: 0 | CH83: 0 | CI83: 0 | CJ83: 0 | CK83: 0 | CL83: 0 | CM83: 0 | CN83: 0 | CO83: 0 | CP83: 0 | CQ83: 0 | CR83: 0 | CS83: 0 | CT83: 0 | CU83: 0 | CV83: 0 | CW83: 0 | CX83: 0 | CY83: 0 | CZ83: 0 | DA83: 0 | DB83: 0 | DC83: 0 | DD83: 0 | DE83: 0 | DF83: 0 | DG83: 0 | DH83: 0 | DI83: 0 | DJ83: 0 | DK83: 0 | DL83: 0 | DM83: 0 | DN83: 0 | DO83: 0 | DP83: 0 | DQ83: 0 | DR83: 0 | DS83: 0 | DT83: 0 | DU83: 0 | DV83: 0 | DW83: 0 | DX83: 0 | DY83: 0 | DZ83: 0 | EA83: 0 | EB83: 0 | EC83: 0 | ED83: 0 | EE83: 0 | EF83: 0 | EG83: 0 | EH83: 0 | EI83: 0
A84: ED_ASS521_00074 | C84: Ground Outdoor / Indoor Chamber Mounted; > = 22 kV & < = 33 kV ; > 40 MVA | N84: 0 | O84: 0 | P84: 0 | Q84: 0 | R84: 0 | S84: 0 | T84: 0 | U84: 0 | V84: 0 | W84: 0 | X84: 0 | Y84: 0 | Z84: 0 | AA84: 0 | AB84: 0 | AC84: 0 | AD84: 0 | AE84: 0 | AF84: 0 | AG84: 0 | AH84: 0 | AI84: 0 | AJ84: 0 | AK84: 0 | AL84: 0 | AM84: 0 | AN84: 0 | AO84: 0 | AP84: 0 | AQ84: 0 | AR84: 0 | AS84: 0 | AT84: 0 | AU84: 0 | AV84: 0 | AW84: 0 | AX84: 0 | AY84: 0 | AZ84: 0 | BA84: 0 | BB84: 0 | BC84: 0 | BD84: 0 | BE84: 0 | BF84: 0 | BG84: 0 | BH84: 0 | BI84: 0 | BJ84: 0 | BK84: 0 | BL84: 0 | BM84: 0 | BN84: 0 | BO84: 0 | BP84: 0 | BQ84: 0 | BR84: 0 | BS84: 0 | BT84: 0 | BU84: 0 | BV84: 0 | BW84: 0 | BX84: 0 | BY84: 0 | BZ84: 0 | CA84: 0 | CB84: 0 | CC84: 0 | CD84: 0 | CE84: 0 | CF84: 0 | CG84: 0 | CH84: 0 | CI84: 0 | CJ84: 0 | CK84: 0 | CL84: 0 | CM84: 0 | CN84: 0 | CO84: 0 | CP84: 0 | CQ84: 0 | CR84: 0 | CS84: 0 | CT84: 0 | CU84: 0 | CV84: 0 | CW84: 0 | CX84: 0 | CY84: 0 | CZ84: 0 | DA84: 0 | DB84: 0 | DC84: 0 | DD84: 0 | DE84: 0 | DF84: 0 | DG84: 0 | DH84: 0 | DI84: 0 | DJ84: 0 | DK84: 0 | DL84: 0 | DM84: 0 | DN84: 0 | DO84: 0 | DP84: 0 | DQ84: 0 | DR84: 0 | DS84: 0 | DT84: 0 | DU84: 0 | DV84: 0 | DW84: 0 | DX84: 0 | DY84: 0 | DZ84: 0 | EA84: 0 | EB84: 0 | EC84: 0 | ED84: 0 | EE84: 0 | EF84: 0 | EG84: 0 | EH84: 0 | EI84: 0
A85: ED_ASS521_00075 | C85: Ground Outdoor / Indoor Chamber Mounted; > 33 kV & < = 66 kV ; < = 15 MVA | N85: 50.6 | O85: 0 | P85: DNSP NAME | Q85: REPEX | R85: TRANSFORMERS | S85: GROUND OUTDOOR / INDOOR CHAMBER MOUNTED ; > 33 kV & < = 66 kV ; < = 15 MVA | T85: DESCRIPTOR METRIC | U85: STANDARD DEVIATION ECONOMIC LIFE | V85: YEARS | W85: NUMBER | X85: 0 | Y85: 8.67 | Z85: 0 | AA85: 0 | AB85: 0 | AC85: 0 | AD85: 0 | AE85: 0 | AF85: 0 | AG85: 0 | AH85: 0 | AI85: 0 | AJ85: 0 | AK85: 0 | AL85: 0 | AM85: 0 | AN85: 0 | AO85: 0 | AP85: 0 | AQ85: 0 | AR85: 0 | AS85: 0 | AT85: 0 | AU85: 1 | AV85: 0 | AW85: 1 | AX85: 1 | AY85: 0 | AZ85: 1 | BA85: 0 | BB85: 0 | BC85: 0 | BD85: 0 | BE85: 0 | BF85: 0 | BG85: 0 | BH85: 0 | BI85: 0 | BJ85: 0 | BK85: 0 | BL85: 0 | BM85: 0 | BN85: 0 | BO85: 0 | BP85: 0 | BQ85: 0 | BR85: 1 | BS85: 0 | BT85: 1 | BU85: 0 | BV85: 0 | BW85: 0 | BX85: 0 | BY85: 0 | BZ85: 0 | CA85: 0 | CB85: 0 | CC85: 0 | CD85: 3 | CE85: 8 | CF85: 3 | CG85: 6 | CH85: 0 | CI85: 4 | CJ85: 15 | CK85: 0 | CL85: 6 | CM85: 1 | CN85: 2 | CO85: 0 | CP85: 0 | CQ85: 0 | CR85: 0 | CS85: 0 | CT85: 0 | CU85: 0 | CV85: 6 | CW85: 0 | CX85: 4 | CY85: 1 | CZ85: 0 | DA85: 0 | DB85: 0 | DC85: 0 | DD85: 0 | DE85: 0 | DF85: 0 | DG85: 0 | DH85: 0 | DI85: 0 | DJ85: 0 | DK85: 0 | DL85: 0 | DM85: 0 | DN85: 0 | DO85: 0 | DP85: 0 | DQ85: 0 | DR85: 0 | DS85: 0 | DT85: 0 | DU85: 0 | DV85: 0 | DW85: 0 | DX85: 0 | DY85: 0 | DZ85: 0 | EA85: 0 | EB85: 0 | EC85: 0 | ED85: 0 | EE85: 0 | EF85: 0 | EG85: 0 | EH85: 0 | EI85: 0
A86: ED_ASS521_00076 | C86: Ground Outdoor / Indoor Chamber Mounted; > 33 kV & < = 66 kV ; > 15 MVA and < = 40 MVA | N86: 50.6 | O86: 0 | P86: DNSP NAME | Q86: REPEX | R86: TRANSFORMERS | S86: GROUND OUTDOOR / INDOOR CHAMBER MOUNTED ; > 33 kV & < = 66 kV ; > 15 MVA AND < = 40 MVA | T86: DESCRIPTOR METRIC | U86: STANDARD DEVIATION ECONOMIC LIFE | V86: YEARS | W86: NUMBER | X86: 0 | Y86: 8.67 | Z86: 0 | AA86: 0 | AB86: 0 | AC86: 0 | AD86: 0 | AE86: 0 | AF86: 0 | AG86: 0 | AH86: 0 | AI86: 0 | AJ86: 2 | AK86: 3 | AL86: 3 | AM86: 3 | AN86: 5 | AO86: 1 | AP86: 3 | AQ86: 1 | AR86: 1 | AS86: 1 | AT86: 2 | AU86: 2 | AV86: 0 | AW86: 3 | AX86: 0 | AY86: 1 | AZ86: 0 | BA86: 0 | BB86: 0 | BC86: 0 | BD86: 0 | BE86: 0 | BF86: 0 | BG86: 0 | BH86: 0 | BI86: 1 | BJ86: 0 | BK86: 1 | BL86: 2 | BM86: 0 | BN86: 0 | BO86: 0 | BP86: 2 | BQ86: 0 | BR86: 6 | BS86: 2 | BT86: 12 | BU86: 1 | BV86: 0 | BW86: 3 | BX86: 0 | BY86: 0 | BZ86: 0 | CA86: 0 | CB86: 0 | CC86: 0 | CD86: 0 | CE86: 1 | CF86: 4 | CG86: 2 | CH86: 2 | CI86: 2 | CJ86: 0 | CK86: 0 | CL86: 1 | CM86: 1 | CN86: 0 | CO86: 0 | CP86: 0 | CQ86: 0 | CR86: 0 | CS86: 0 | CT86: 0 | CU86: 0 | CV86: 0 | CW86: 0 | CX86: 0 | CY86: 1 | CZ86: 0 | DA86: 0 | DB86: 0 | DC86: 0 | DD86: 0 | DE86: 0 | DF86: 0 | DG86: 0 | DH86: 0 | DI86: 0 | DJ86: 0 | DK86: 0 | DL86: 0 | DM86: 0 | DN86: 0 | DO86: 0 | DP86: 0 | DQ86: 0 | DR86: 0 | DS86: 0 | DT86: 0 | DU86: 0 | DV86: 0 | DW86: 0 | DX86: 0 | DY86: 0 | DZ86: 0 | EA86: 0 | EB86: 0 | EC86: 0 | ED86: 0 | EE86: 0 | EF86: 0 | EG86: 0 | EH86: 0 | EI86: 0
A87: ED_ASS521_00077 | C87: Ground Outdoor / Indoor Chamber Mounted; > 33 kV & < = 66 kV ; > 40 MVA | N87: 50.6 | O87: 0 | P87: DNSP NAME | Q87: REPEX | R87: TRANSFORMERS | S87: GROUND OUTDOOR / INDOOR CHAMBER MOUNTED ; > 33 kV & < = 66 kV ; > 40 MVA | T87: DESCRIPTOR METRIC | U87: STANDARD DEVIATION ECONOMIC LIFE | V87: YEARS | W87: NUMBER | X87: 0 | Y87: 8.67 | Z87: 0 | AA87: 0 | AB87: 0 | AC87: 0 | AD87: 0 | AE87: 0 | AF87: 0 | AG87: 0 | AH87: 0 | AI87: 0 | AJ87: 0 | AK87: 0 | AL87: 0 | AM87: 0 | AN87: 0 | AO87: 0 | AP87: 0 | AQ87: 0 | AR87: 0 | AS87: 0 | AT87: 0 | AU87: 0 | AV87: 0 | AW87: 0 | AX87: 0 | AY87: 0 | AZ87: 0 | BA87: 0 | BB87: 0 | BC87: 0 | BD87: 0 | BE87: 0 | BF87: 0 | BG87: 0 | BH87: 0 | BI87: 0 | BJ87: 0 | BK87: 0 | BL87: 0 | BM87: 0 | BN87: 0 | BO87: 0 | BP87: 0 | BQ87: 0 | BR87: 0 | BS87: 0 | BT87: 0 | BU87: 0 | BV87: 0 | BW87: 0 | BX87: 0 | BY87: 0 | BZ87: 0 | CA87: 0 | CB87: 0 | CC87: 0 | CD87: 0 | CE87: 0 | CF87: 0 | CG87: 0 | CH87: 0 | CI87: 0 | CJ87: 0 | CK87: 0 | CL87: 0 | CM87: 1 | CN87: 0 | CO87: 0 | CP87: 0 | CQ87: 0 | CR87: 0 | CS87: 0 | CT87: 0 | CU87: 0 | CV87: 0 | CW87: 0 | CX87: 0 | CY87: 0 | CZ87: 0 | DA87: 0 | DB87: 0 | DC87: 0 | DD87: 0 | DE87: 0 | DF87: 0 | DG87: 0 | DH87: 0 | DI87: 0 | DJ87: 0 | DK87: 0 | DL87: 0 | DM87: 0 | DN87: 0 | DO87: 0 | DP87: 0 | DQ87: 0 | DR87: 0 | DS87: 0 | DT87: 0 | DU87: 0 | DV87: 0 | DW87: 0 | DX87: 0 | DY87: 0 | DZ87: 0 | EA87: 0 | EB87: 0 | EC87: 0 | ED87: 0 | EE87: 0 | EF87: 0 | EG87: 0 | EH87: 0 | EI87: 0
A88: ED_ASS521_00078 | C88: Ground Outdoor / Indoor Chamber Mounted; > 66 kV & < = 132 kV ; < = 100 MVA | N88: 0 | O88: 0 | P88: 0 | Q88: 0 | R88: 0 | S88: 0 | T88: 0 | U88: 0 | V88: 0 | W88: 0 | X88: 0 | Y88: 0 | Z88: 0 | AA88: 0 | AB88: 0 | AC88: 0 | AD88: 0 | AE88: 0 | AF88: 0 | AG88: 0 | AH88: 0 | AI88: 0 | AJ88: 0 | AK88: 0 | AL88: 0 | AM88: 0 | AN88: 0 | AO88: 0 | AP88: 0 | AQ88: 0 | AR88: 0 | AS88: 0 | AT88: 0 | AU88: 0 | AV88: 0 | AW88: 0 | AX88: 0 | AY88: 0 | AZ88: 0 | BA88: 0 | BB88: 0 | BC88: 0 | BD88: 0 | BE88: 0 | BF88: 0 | BG88: 0 | BH88: 0 | BI88: 0 | BJ88: 0 | BK88: 0 | BL88: 0 | BM88: 0 | BN88: 0 | BO88: 0 | BP88: 0 | BQ88: 0 | BR88: 0 | BS88: 0 | BT88: 0 | BU88: 0 | BV88: 0 | BW88: 0 | BX88: 0 | BY88: 0 | BZ88: 0 | CA88: 0 | CB88: 0 | CC88: 0 | CD88: 0 | CE88: 0 | CF88: 0 | CG88: 0 | CH88: 0 | CI88: 0 | CJ88: 0 | CK88: 0 | CL88: 0 | CM88: 0 | CN88: 0 | CO88: 0 | CP88: 0 | CQ88: 0 | CR88: 0 | CS88: 0 | CT88: 0 | CU88: 0 | CV88: 0 | CW88: 0 | CX88: 0 | CY88: 0 | CZ88: 0 | DA88: 0 | DB88: 0 | DC88: 0 | DD88: 0 | DE88: 0 | DF88: 0 | DG88: 0 | DH88: 0 | DI88: 0 | DJ88: 0 | DK88: 0 | DL88: 0 | DM88: 0 | DN88: 0 | DO88: 0 | DP88: 0 | DQ88: 0 | DR88: 0 | DS88: 0 | DT88: 0 | DU88: 0 | DV88: 0 | DW88: 0 | DX88: 0 | DY88: 0 | DZ88: 0 | EA88: 0 | EB88: 0 | EC88: 0 | ED88: 0 | EE88: 0 | EF88: 0 | EG88: 0 | EH88: 0 | EI88: 0
A89: ED_ASS521_00079 | C89: Ground Outdoor / Indoor Chamber Mounted; > 66 kV & < = 132 kV ; > 100 MVA | N89: 0 | O89: 0 | P89: 0 | Q89: 0 | R89: 0 | S89: 0 | T89: 0 | U89: 0 | V89: 0 | W89: 0 | X89: 0 | Y89: 0 | Z89: 0 | AA89: 0 | AB89: 0 | AC89: 0 | AD89: 0 | AE89: 0 | AF89: 0 | AG89: 0 | AH89: 0 | AI89: 0 | AJ89: 0 | AK89: 0 | AL89: 0 | AM89: 0 | AN89: 0 | AO89: 0 | AP89: 0 | AQ89: 0 | AR89: 0 | AS89: 0 | AT89: 0 | AU89: 0 | AV89: 0 | AW89: 0 | AX89: 0 | AY89: 0 | AZ89: 0 | BA89: 0 | BB89: 0 | BC89: 0 | BD89: 0 | BE89: 0 | BF89: 0 | BG89: 0 | BH89: 0 | BI89: 0 | BJ89: 0 | BK89: 0 | BL89: 0 | BM89: 0 | BN89: 0 | BO89: 0 | BP89: 0 | BQ89: 0 | BR89: 0 | BS89: 0 | BT89: 0 | BU89: 0 | BV89: 0 | BW89: 0 | BX89: 0 | BY89: 0 | BZ89: 0 | CA89: 0 | CB89: 0 | CC89: 0 | CD89: 0 | CE89: 0 | CF89: 0 | CG89: 0 | CH89: 0 | CI89: 0 | CJ89: 0 | CK89: 0 | CL89: 0 | CM89: 0 | CN89: 0 | CO89: 0 | CP89: 0 | CQ89: 0 | CR89: 0 | CS89: 0 | CT89: 0 | CU89: 0 | CV89: 0 | CW89: 0 | CX89: 0 | CY89: 0 | CZ89: 0 | DA89: 0 | DB89: 0 | DC89: 0 | DD89: 0 | DE89: 0 | DF89: 0 | DG89: 0 | DH89: 0 | DI89: 0 | DJ89: 0 | DK89: 0 | DL89: 0 | DM89: 0 | DN89: 0 | DO89: 0 | DP89: 0 | DQ89: 0 | DR89: 0 | DS89: 0 | DT89: 0 | DU89: 0 | DV89: 0 | DW89: 0 | DX89: 0 | DY89: 0 | DZ89: 0 | EA89: 0 | EB89: 0 | EC89: 0 | ED89: 0 | EE89: 0 | EF89: 0 | EG89: 0 | EH89: 0 | EI89: 0
A90: ED_ASS521_00080 | C90: Ground Outdoor / Indoor Chamber Mounted; > 132 kV ; < = 100 MVA | N90: 0 | O90: 0 | P90: 0 | Q90: 0 | R90: 0 | S90: 0 | T90: 0 | U90: 0 | V90: 0 | W90: 0 | X90: 0 | Y90: 0 | Z90: 0 | AA90: 0 | AB90: 0 | AC90: 0 | AD90: 0 | AE90: 0 | AF90: 0 | AG90: 0 | AH90: 0 | AI90: 0 | AJ90: 0 | AK90: 0 | AL90: 0 | AM90: 0 | AN90: 0 | AO90: 0 | AP90: 0 | AQ90: 0 | AR90: 0 | AS90: 0 | AT90: 0 | AU90: 0 | AV90: 0 | AW90: 0 | AX90: 0 | AY90: 0 | AZ90: 0 | BA90: 0 | BB90: 0 | BC90: 0 | BD90: 0 | BE90: 0 | BF90: 0 | BG90: 0 | BH90: 0 | BI90: 0 | BJ90: 0 | BK90: 0 | BL90: 0 | BM90: 0 | BN90: 0 | BO90: 0 | BP90: 0 | BQ90: 0 | BR90: 0 | BS90: 0 | BT90: 0 | BU90: 0 | BV90: 0 | BW90: 0 | BX90: 0 | BY90: 0 | BZ90: 0 | CA90: 0 | CB90: 0 | CC90: 0 | CD90: 0 | CE90: 0 | CF90: 0 | CG90: 0 | CH90: 0 | CI90: 0 | CJ90: 0 | CK90: 0 | CL90: 0 | CM90: 0 | CN90: 0 | CO90: 0 | CP90: 0 | CQ90: 0 | CR90: 0 | CS90: 0 | CT90: 0 | CU90: 0 | CV90: 0 | CW90: 0 | CX90: 0 | CY90: 0 | CZ90: 0 | DA90: 0 | DB90: 0 | DC90: 0 | DD90: 0 | DE90: 0 | DF90: 0 | DG90: 0 | DH90: 0 | DI90: 0 | DJ90: 0 | DK90: 0 | DL90: 0 | DM90: 0 | DN90: 0 | DO90: 0 | DP90: 0 | DQ90: 0 | DR90: 0 | DS90: 0 | DT90: 0 | DU90: 0 | DV90: 0 | DW90: 0 | DX90: 0 | DY90: 0 | DZ90: 0 | EA90: 0 | EB90: 0 | EC90: 0 | ED90: 0 | EE90: 0 | EF90: 0 | EG90: 0 | EH90: 0 | EI90: 0
